Workbook

Sheet Прил.21
Q1: Приложение № 21
Q2: УТВЕРЖДЕН
Q3: Приказом ФНС России
Q4: от " " 20 г.
Q5: №
A7: План-график дополнительного профессионального образования гражданских служащих в "Академии ФНС ЛАБ–Нева" в 2025 году (очная форма обучения)
A8: № п/п | B8: Структурные подразделения ЦА ФНС России, УФНС России по субъектам РФ, межрегиональные инспекции ФНС России | C8: Численность, человек
C9: В том числе по программам повышения квалификации с указанием продолжительности и периодам обучения
C10: Администрирование системы защиты информации (Secret Net Studio) | H10: Внешние коммуникации в профессиональной деятельности государственного служащего | L10: Клиентоцентричность: понятие, принципы, стандарты | M10: Коммуникативная компетентность гражданского служащего (базовый уровень) | O10: Коммуникативная компетентность гражданского служащего (повышенный уровень) | Q10: Лидерство и развитие высокоэффективных команд (базовый уровень) | R10: Модерация и фасилитация в деятельности налоговых органов
C11: (32 часа) | H11: (32 часа) | L11: (32 часа) | M11: (32 часа) | O11: (32 часа) | Q11: (32 часа) | R11: (32 часа)
C12: 03.03-07.03 | D12: 31.03-04.04 | E12: 23.06-27.06 | F12: 24.11-28.11 | G12: 01.12-05.12 | H12: 27.01-31.01 | I12: 03.02-07.02 | J12: 30.06-04.07 | K12: 07.07-11.07 | L12: 15.12-19.12 | M12: 24.02-28.02 | N12: 03.03-07.03 | O12: 14.04-18.04 | P12: 21.04-25.04 | Q12: 17.02-21.02 | R12: 20.10-24.10
A13: 1 | B13: 2 | C13: 3 | D13: 4 | E13: 5 | F13: 6 | G13: 7 | H13: 8 | I13: 9 | J13: 10 | K13: 11 | L13: 12 | M13: 13 | N13: 14 | O13: 15 | P13: 16 | Q13: 17 | R13: 18
A14: Центральный аппарат ФНС России
A15: 28 | B15: Управление профессионального развития | M15: 1 | N15: 1
B16: Итого: | C16: =SUM(C15:C15) -> 0 | D16: 0 | E16: 0 | F16: 0 | G16: 0 | H16: 0 | I16: 0 | J16: 0 | K16: 0 | L16: 0 | M16: 1 | N16: 1 | O16: 0 | P16: 0 | Q16: 0 | R16: 0 | AA16: =SUM(V16:Z16) -> 0
A17: Центральный федеральный округ
A18: 1 | B18: Белгородская область | C18: 1 | I18: 1 | M18: 1 | N18: 1 | P18: 1
A19: 2 | B19: Брянская область
A20: 3 | B20: Владимирская область | J20: 1 | O20: 1 | P20: 1 | R20: 1
A21: 4 | B21: Воронежская область | D21: 1 | F21: 1
A22: 5 | B22: г.Москва | C22: 1 | D22: 1 | E22: 2 | F22: 2 | G22: 2 | H22: 1 | Q22: 1
A23: 6 | B23: Ивановская область | M23: 1
A24: 7 | B24: Калужская область | H24: 1 | I24: 1 | J24: 1 | K24: 2 | N24: 1 | P24: 1
A25: 8 | B25: Костромская область | I25: 1 | L25: 1 | R25: 1
A26: 9 | B26: Курская область
A27: 10 | B27: Липецкая область | H27: 1 | Q27: 1
A28: 11 | B28: МИ ФНС России по камеральному контролю | Q28: 1
A29: 12 | B29: МИ ФНС России по КН № 1 | C29: 1 | J29: 1
A30: 13 | B30: МИ ФНС России по КН № 2
A31: 14 | B31: МИ ФНС России по КН № 3 | C31: 1
A32: 15 | B32: МИ ФНС России по КН № 4
A33: 16 | B33: МИ ФНС России по КН № 5 | D33: 1
A34: 17 | B34: МИ ФНС России по КН № 6 | E34: 1 | G34: 1
A35: 18 | B35: МИ ФНС России по КН № 7
A36: 19 | B36: МИ ФНС России по КН № 9 | C36: 1
A37: 20 | B37: МИ ФНС России по КН № 10 | E37: 1
A38: 21 | B38: МИ ФНС России по ценообразованию для целей налогообложения | G38: 1
A39: 22 | B39: МИ ФНС России по Центральному ФО
A40: 23 | B40: МИ ФНС России по ЦОД | K40: 1
A41: 24 | B41: МИ ФНС России по ЦОД №2 | H41: 1
A42: 25 | B42: МИ ФНС России по управлению долгом | O42: 1
A43: 26 | B43: МИ ФНС России по контролю и надзору за налогоплательщиками в сфере бюджетного финансирования | C43: 1
A44: 27 | B44: Московская область | C44: 2 | E44: 2 | G44: 2 | J44: 1 | P44: 1 | Q44: 1
A45: 28 | B45: Орловская область
A46: 29 | B46: Рязанская область | D46: 1 | F46: 1 | H46: 1 | I46: 1 | M46: 1
A47: 30 | B47: Смоленская область | C47: 1
A48: 31 | B48: Тамбовская область | K48: 1 | O48: 1
A49: 32 | B49: Тверская область | D49: 1 | F49: 1 | L49: 1 | N49: 1
A50: 33 | B50: Тульская область
A51: 34 | B51: Ярославская область | D51: 1 | G51: 1
B52: Итого: | C52: =SUM(C18:C51) -> 9 | D52: 6 | E52: 6 | F52: 5 | G52: 7 | H52: 5 | I52: 4 | J52: 4 | K52: 4 | L52: 2 | M52: 3 | N52: 3 | O52: 3 | P52: 4 | Q52: 4 | R52: 2
A53: Северо-Западный федеральный округ
A54: 1 | B54: Архангельская область и Ненецкий АО | C54: 1 | H54: 1 | L54: 1 | M54: 1 | N54: 1
A55: 2 | B55: Вологодская область
A56: 3 | B56: г.Санкт- Петербург | C56: 2 | D56: 2 | E56: 2 | F56: 2 | G56: 1 | J56: 1 | M56: 1 | Q56: 1 | R56: 1
A57: 4 | B57: Калининградская область | H57: 1 | I57: 1 | J57: 1 | L57: 2 | M57: 1 | N57: 1 | Q57: 2 | R57: 2
A58: 5 | B58: Ленинградская область | D58: 1 | F58: 1 | G58: 1
A59: 6 | B59: МИ ФНС России по Северо-Западному ФО
A60: 7 | B60: Мурманская область
A61: 8 | B61: Новгородская область | C61: 1 | J61: 1 | K61: 1 | N61: 1
A62: 9 | B62: Псковская область | L62: 1
A63: 10 | B63: Республика Карелия | G63: 1 | I63: 1 | J63: 1 | K63: 1 | L63: 1 | P63: 1
A64: 11 | B64: Республика Коми | D64: 1 | J64: 1 | Q64: 1
B65: Итого: | C65: =SUM(C54:C64) -> 4 | D65: 4 | E65: 2 | F65: 3 | G65: 3 | H65: 2 | I65: 2 | J65: 5 | K65: 2 | L65: 5 | M65: 3 | N65: 3 | O65: 0 | P65: 1 | Q65: 4 | R65: 3
A66: Южный федеральный округ
A67: 1 | B67: Астраханская область
A68: 2 | B68: Волгоградская область | C68: 1 | G68: 1
A69: 3 | B69: г.Севастополь
A70: 4 | B70: Краснодарский край | C70: 1 | D70: 1 | E70: 1 | F70: 1 | H70: 1
A71: 5 | B71: МИ ФНС России по Южному ФО | G71: 1
A72: 6 | B72: Республика Адыгея
A73: 7 | B73: Республика Калмыкия
A74: 8 | B74: Республика Крым | L74: 1 | O74: 1
A75: 9 | B75: Ростовская область | C75: 1 | D75: 1 | E75: 1 | F75: 1 | G75: 1 | J75: 1
B76: Итого: | C76: =SUM(C67:C75) -> 3 | D76: 2 | E76: 2 | F76: 2 | G76: 3 | H76: 1 | I76: 0 | J76: 1 | K76: 0 | L76: 1 | M76: 0 | N76: 0 | O76: 1 | P76: 0 | Q76: 0 | R76: 0
A77: Северо-Кавказский федеральный округ
A78: 1 | B78: Кабардино- Балкарская Республика | P78: 1
A79: 2 | B79: Карачаево- Черкесская Республика | I79: 1 | L79: 2 | M79: 2 | N79: 1 | O79: 3 | P79: 2 | Q79: 1
A80: 3 | B80: МИ ФНС России по Северо-Кавказскому ФО
A81: 4 | B81: Республика Дагестан | I81: 1 | J81: 1 | K81: 1 | M81: 1 | N81: 2 | O81: 1 | P81: 1
A82: 5 | B82: Республика Ингушетия | H82: 1
A83: 6 | B83: Республика Северная Осетия - Алания
A84: 7 | B84: Ставропольский край | E84: 1 | F84: 1 | H84: 1 | I84: 1
A85: 8 | B85: Чеченская Республика | G85: 1
B86: Итого: | C86: =SUM(C78:C85) -> 0 | D86: 0 | E86: 1 | F86: 1 | G86: 1 | H86: 2 | I86: 3 | J86: 1 | K86: 1 | L86: 2 | M86: 3 | N86: 3 | O86: 4 | P86: 4 | Q86: 1 | R86: 0
A87: Приволжский федеральный округ
A88: 1 | B88: Кировская область | H88: 2 | I88: 1 | J88: 1 | K88: 1 | M88: 1 | N88: 1 | P88: 1 | Q88: 1 | R88: 1
A89: 2 | B89: МИ ФНС России по Приволжскому ФО
A90: 3 | B90: Нижегородская область | C90: 1 | D90: 1 | E90: 1 | F90: 1 | Q90: 2
A91: 4 | B91: Оренбургская область | G91: 2 | H91: 1 | L91: 1 | N91: 1 | Q91: 1 | R91: 1
A92: 5 | B92: Пензенская область
A93: 6 | B93: Пермский край | D93: 1 | E93: 1 | F93: 1 | H93: 2 | I93: 2 | J93: 2 | M93: 1 | O93: 4 | P93: 4 | Q93: 1 | R93: 1
A94: 7 | B94: Республика Башкортостан | C94: 1 | E94: 2 | F94: 1 | G94: 2 | K94: 2 | L94: 1 | N94: 1 | Q94: 1
A95: 8 | B95: Республика Марий Эл
A96: 9 | B96: Республика Мордовия
A97: 10 | B97: Республика Татарстан | C97: 1 | D97: 1 | E97: 1 | F97: 1 | H97: 1 | I97: 1 | L97: 1 | M97: 1 | N97: 1
A98: 11 | B98: Самарская область | E98: 1 | F98: 1 | G98: 1 | O98: 1 | Q98: 1
A99: 12 | B99: Саратовская область | D99: 1 | E99: 1 | H99: 1 | I99: 1 | J99: 1 | K99: 1 | L99: 1 | Q99: 1
A100: 13 | B100: Удмуртская Республика | C100: 1 | F100: 1 | G100: 1 | R100: 1
A101: 14 | B101: Ульяновская область
A102: 15 | B102: Чувашская Республика | P102: 1
B103: Итого: | C103: =SUM(C88:C102) -> 4 | D103: 4 | E103: 7 | F103: 6 | G103: 6 | H103: 7 | I103: 5 | J103: 4 | K103: 4 | L103: 4 | M103: 3 | N103: 4 | O103: 5 | P103: 6 | Q103: 8 | R103: 4
A104: Уральский федеральный округ
A105: 1 | B105: Курганская область | D105: 1 | F105: 1
A106: 2 | B106: МИ ФНС России по Уральскому ФО | K106: 1 | M106: 1 | Q106: 1
A107: 3 | B107: Свердловская область | D107: 2 | E107: 2 | F107: 1 | G107: 2 | J107: 1 | L107: 2 | N107: 1 | O107: 1 | R107: 1
A108: 4 | B108: Тюменская область | C108: 1 | D108: 1 | H108: 1 | I108: 1 | O108: 1 | P108: 2
A109: 5 | B109: Ханты-Мансийский АО | E109: 1 | F109: 1 | O109: 1
A110: 6 | B110: Челябинская область | C110: 1 | I110: 1 | J110: 1 | K110: 1 | L110: 1 | M110: 1 | N110: 1 | Q110: 1
A111: 7 | B111: Ямало-Ненецкий АО | D111: 1 | E111: 1
B112: Итого: | C112: =SUM(C105:C111) -> 2 | D112: 5 | E112: 4 | F112: 3 | G112: 2 | H112: 1 | I112: 2 | J112: 2 | K112: 2 | L112: 3 | M112: 2 | N112: 2 | O112: 3 | P112: 2 | Q112: 2 | R112: 1
A113: Сибирский федеральный округ
A114: 1 | B114: Алтайский край
A115: 2 | B115: Иркутская область | C115: 1 | D115: 1 | H115: 1 | I115: 1 | J115: 1 | K115: 1 | L115: 1 | M115: 1 | N115: 1 | O115: 1 | P115: 1 | Q115: 1
A116: 3 | B116: Кемеровская область | E116: 1 | F116: 1 | G116: 1
A117: 4 | B117: Красноярский край | K117: 1 | M117: 1 | N117: 1 | P117: 1 | R117: 1
A118: 5 | B118: МИ ФНС России по Сибирскому ФО
A119: 6 | B119: Новосибирская область | C119: 1 | D119: 1 | H119: 1 | L119: 1 | O119: 1
A120: 7 | B120: Омская область | E120: 1 | F120: 1 | H120: 1 | I120: 2 | J120: 1 | K120: 2 | M120: 1 | N120: 1 | O120: 1 | P120: 2 | Q120: 1
A121: 8 | B121: Республика Алтай | H121: 1 | L121: 1 | Q121: 1
A122: 9 | B122: Республика Тыва
A123: 10 | B123: Республика Хакасия | I123: 1 | J123: 1 | K123: 1 | M123: 1
A124: 11 | B124: Томская область | N124: 1 | O124: 1 | R124: 2
B125: Итого: | C125: =SUM(C114:C124) -> 2 | D125: 2 | E125: 2 | F125: 2 | G125: 1 | H125: 4 | I125: 4 | J125: 3 | K125: 5 | L125: 3 | M125: 4 | N125: 4 | O125: 4 | P125: 4 | Q125: 3 | R125: 3
A126: Дальневосточный федеральный округ
A127: 1 | B127: Амурская область | G127: 1
A128: 2 | B128: Еврейская АО | L128: 1
A129: 3 | B129: Забайкальский край | H129: 1 | I129: 1 | J129: 1 | K129: 1 | L129: 1 | P129: 1 | R129: 1
A130: 4 | B130: Камчатский край | L130: 1
A131: 5 | B131: Магаданская область | C131: 1
A132: 6 | B132: МИ ФНС России по Дальневосточному ФО | K132: 1
A133: 7 | B133: Приморский край | H133: 1 | I133: 1 | L133: 1 | M133: 1 | O133: 1 | R133: 1
A134: 8 | B134: Республика Бурятия | I134: 1 | J134: 1 | K134: 1 | P134: 1 | Q134: 1 | R134: 2
A135: 9 | B135: Республика Саха (Якутия) | L135: 1 | M135: 1 | N135: 1 | R135: 1
A136: 10 | B136: Сахалинская область
A137: 11 | B137: Хабаровский край | E137: 1 | H137: 1 | I137: 1 | J137: 2 | K137: 2 | R137: 1
A138: 12 | B138: Чукотский АО
B139: Итого: | C139: =SUM(C127:C138) -> 1 | D139: 0 | E139: 1 | F139: 0 | G139: 1 | H139: 3 | I139: 4 | J139: 4 | K139: 5 | L139: 5 | M139: 2 | N139: 1 | O139: 1 | P139: 2 | Q139: 1 | R139: 6
A140: Новые территории Российской Федерации
A141: 1 | B141: Донецкая Народная Республика | L141: 1 | Q141: 1
A142: 2 | B142: Запорожская область | D142: 1
A143: 3 | B143: Луганская Народная Республика | D143: 1 | F143: 3 | K143: 1 | M143: 1 | N143: 1 | Q143: 1 | R143: 1
A144: 4 | B144: Херсонская область
B145: Итого: | C145: =SUM(C141:C144) -> 0 | D145: 2 | E145: 0 | F145: 3 | G145: 0 | H145: 0 | I145: 0 | J145: 0 | K145: 1 | L145: 1 | M145: 1 | N145: 1 | O145: 0 | P145: 0 | Q145: 2 | R145: 1
B146: Всего: | C146: =C145+C139+C125+C112+C103+C86+C76+C65+C52+C16 -> 25 | D146: 25 | E146: 25 | F146: 25 | G146: 24 | H146: 25 | I146: 24 | J146: 24 | K146: 24 | L146: 26 | M146: 22 | N146: 22 | O146: 21 | P146: 23 | Q146: 25 | R146: 20

Sheet Прил.22
T1: Приложение № 22
T2: УТВЕРЖДЕН
T3: Приказом ФНС России
T4: от " " 20 г.
T5: №
A7: План-график дополнительного профессионального образования гражданских служащих в "Академии ФНС ЛАБ–Нева" в 2025 году (очная форма обучения)
A8: № п/п | B8: Структурные подразделения ЦА ФНС России, УФНС России по субъектам РФ, межрегиональные инспекции ФНС России | C8: Численность, человек
C9: В том числе по программам повышения квалификации с указанием продолжительности и периодам обучения
C10: Психологические аспекты профессиональной деятельности на государственной гражданской службе и предотвращение выгорания (повышенный уровень) | H10: Публичные выступления в работе государственных гражданских служащих | L10: Развитие мышления государственных гражданских служащих | O10: Регулярный менеджмент - инструменты эффективного руководителя | S10: Управление конфликтами на государственной службе (базовый уровень) | T10: Управление конфликтами на государственной службе (повышенный уровень)
C11: (32 часа) | H11: (32 часа) | L11: (32 часа) | O11: (32 часа) | S11: (32 часа) | T11: (32 часа)
C12: 10.02-14.02 | D12: 24.02-28.02 | E12: 24.03-28.03 | F12: 31.03-04.04 | G12: 16.06-20.06 | H12: 07.04-11.04 | I12: 19.05-23.05 | J12: 23.06-27.06 | K12: 01.12-05.12 | L12: 14.04-18.04 | M12: 25.08-29.08 | N12: 01.09-05.09 | O12: 10.02-14.02 | P12: 17.02-21.02 | Q12: 17.11-21.11 | R12: 24.11-28.11 | S12: 12.05-16.05 | T12: 01.12-05.12
A13: 1 | B13: 2 | C13: 3 | D13: 4 | E13: 5 | F13: 6 | G13: 7 | H13: 8 | I13: 9 | J13: 10 | K13: 11 | L13: 12 | M13: 13 | N13: 14 | O13: 15 | P13: 16 | Q13: 17 | R13: 18 | S13: 19 | T13: 20
A14: Центральный аппарат ФНС России
A15: 1 | B15: Управление профессионального развития | C15: 1 | D15: 1 | E15: 1 | O15: 1 | P15: 1 | Q15: 1 | T15: 1
B16: Итого: | C16: =SUM(C15:C15) -> 1 | D16: 1 | E16: 1 | F16: 0 | G16: 0 | H16: 0 | I16: 0 | J16: 0 | K16: 0 | L16: 0 | M16: 0 | N16: 0 | O16: 1 | P16: 1 | Q16: 1 | R16: 0 | S16: 0 | T16: 1 | AE16: =SUM(U16:U16) -> 0
A17: Центральный федеральный округ
A18: 1 | B18: Белгородская область | C18: 1 | E18: 1 | H18: 1 | I18: 1 | J18: 1 | K18: 1 | L18: 2
A19: 2 | B19: Брянская область | I19: 1
A20: 3 | B20: Владимирская область | C20: 1 | D20: 1 | J20: 1 | M20: 1 | O20: 1 | P20: 1
A21: 4 | B21: Воронежская область | H21: 1
A22: 5 | B22: г.Москва | C22: 2 | F22: 1 | K22: 1 | R22: 1
A23: 6 | B23: Ивановская область | G23: 1 | O23: 1 | S23: 1
A24: 7 | B24: Калужская область | N24: 1 | P24: 1
A25: 8 | B25: Костромская область | H25: 1
A26: 9 | B26: Курская область | J26: 1 | K26: 1 | T26: 1
A27: 10 | B27: Липецкая область | C27: 1 | D27: 1 | I27: 1 | M27: 1 | Q27: 1 | T27: 1
A28: 11 | B28: МИ ФНС России по камеральному контролю | J28: 1 | K28: 1 | R28: 1
A29: 12 | B29: МИ ФНС России по КН № 1
A30: 13 | B30: МИ ФНС России по КН № 2
A31: 14 | B31: МИ ФНС России по КН № 3 | O31: 1 | S31: 1
A32: 15 | B32: МИ ФНС России по КН № 4
A33: 16 | B33: МИ ФНС России по КН № 5
A34: 17 | B34: МИ ФНС России по КН № 6
A35: 18 | B35: МИ ФНС России по КН № 7
A36: 19 | B36: МИ ФНС России по КН № 9
A37: 20 | B37: МИ ФНС России по КН № 10
A38: 21 | B38: МИ ФНС России по ценообразованию для целей налогообложения | N38: 1
A39: 22 | B39: МИ ФНС России по Центральному ФО
A40: 23 | B40: МИ ФНС России по ЦОД | H40: 1
A41: 24 | B41: МИ ФНС России по ЦОД №2
A42: 25 | B42: МИ ФНС России по управлению долгом
A43: 26 | B43: МИ ФНС России по контролю и надзору за налогоплательщиками в сфере бюджетного финансирования | P43: 1
A44: 27 | B44: Московская область | G44: 1 | J44: 1 | K44: 1 | M44: 1 | Q44: 1
A45: 28 | B45: Орловская область | H45: 1 | M45: 1
A46: 29 | B46: Рязанская область
A47: 30 | B47: Смоленская область
A48: 31 | B48: Тамбовская область | E48: 1 | I48: 1 | N48: 1
A49: 32 | B49: Тверская область | H49: 1 | J49: 1 | M49: 1
A50: 33 | B50: Тульская область | K50: 1 | T50: 1
A51: 34 | B51: Ярославская область
B52: Итого: | C52: =SUM(C18:C51) -> 5 | D52: 2 | E52: 2 | F52: 1 | G52: 2 | H52: 6 | I52: 4 | J52: 6 | K52: 6 | L52: 2 | M52: 5 | N52: 3 | O52: =SUM(O18:O51) -> 3 | P52: 3 | Q52: 2 | R52: 2 | S52: =SUM(S18:S51) -> 2 | T52: =SUM(T18:T51) -> 3
A53: Северо-Западный федеральный округ
A54: 1 | B54: Архангельская область и Ненецкий АО | D54: 1 | I54: 1 | K54: 1 | L54: 3 | M54: 2 | N54: 3 | R54: 1 | S54: 2 | T54: 1
A55: 2 | B55: Вологодская область
A56: 3 | B56: г.Санкт- Петербург | H56: 1 | L56: 1 | O56: 1 | P56: 1 | S56: 1
A57: 4 | B57: Калининградская область | H57: 1 | I57: 2 | J57: 1 | K57: 1 | N57: 1 | Q57: 1 | S57: 2 | T57: 1
A58: 5 | B58: Ленинградская область | H58: 1 | L58: 1 | R58: 1
A59: 6 | B59: МИ ФНС России по Северо-Западному ФО | F59: 1
A60: 7 | B60: Мурманская область | O60: 1
A61: 8 | B61: Новгородская область | F61: 1 | G61: 1 | K61: 1 | M61: 1 | P61: 1
A62: 9 | B62: Псковская область | S62: 1 | T62: 1
A63: 10 | B63: Республика Карелия | Q63: 1 | R63: 1
A64: 11 | B64: Республика Коми | I64: 1 | J64: 1 | K64: 1
B65: Итого: | C65: =SUM(C54:C64) -> 0 | D65: 1 | E65: 0 | F65: 2 | G65: 1 | H65: 3 | I65: 4 | J65: 2 | K65: 4 | L65: 5 | M65: 3 | N65: 4 | O65: =SUM(O54:O64) -> 2 | P65: 2 | Q65: 2 | R65: 3 | S65: =SUM(S54:S64) -> 6 | T65: =SUM(T54:T64) -> 3
A66: Южный федеральный округ
A67: 1 | B67: Астраханская область | T67: 1
A68: 2 | B68: Волгоградская область
A69: 3 | B69: г.Севастополь
A70: 4 | B70: Краснодарский край | C70: 1 | E70: 1 | S70: 2 | T70: 1
A71: 5 | B71: МИ ФНС России по Южному ФО
A72: 6 | B72: Республика Адыгея | D72: 1
A73: 7 | B73: Республика Калмыкия
A74: 8 | B74: Республика Крым | F74: 1 | H74: 1 | L74: 1 | M74: 1 | T74: 1
A75: 9 | B75: Ростовская область | O75: 1 | T75: 1
B76: Итого: | C76: =SUM(C67:C75) -> 1 | D76: 1 | E76: 1 | F76: 1 | G76: 0 | H76: 1 | I76: 0 | J76: 0 | K76: 0 | L76: 1 | M76: 1 | N76: 0 | O76: =SUM(O67:O75) -> 1 | P76: 0 | Q76: 0 | R76: 0 | S76: =SUM(S67:S75) -> 2 | T76: =SUM(T67:T75) -> 4
A77: Северо-Кавказский федеральный округ
A78: 1 | B78: Кабардино- Балкарская Республика | I78: 1
A79: 2 | B79: Карачаево- Черкесская Республика | D79: 1 | G79: 1 | H79: 1 | I79: 1 | J79: 1 | K79: 1 | P79: 1 | T79: 1
A80: 3 | B80: МИ ФНС России по Северо-Кавказскому ФО
A81: 4 | B81: Республика Дагестан | K81: 1 | T81: 1
A82: 5 | B82: Республика Ингушетия | R82: 1
A83: 6 | B83: Республика Северная Осетия - Алания | I83: 1
A84: 7 | B84: Ставропольский край | C84: 1 | E84: 1 | L84: 1 | O84: 1 | P84: 1 | Q84: 1 | T84: 1
A85: 8 | B85: Чеченская Республика | M85: 1 | N85: 1
B86: Итого: | C86: =SUM(C78:C85) -> 1 | D86: 1 | E86: 1 | F86: 0 | G86: 1 | H86: 1 | I86: 3 | J86: 1 | K86: 2 | L86: 1 | M86: 1 | N86: 1 | O86: =SUM(O78:O85) -> 1 | P86: 2 | Q86: 1 | R86: 1 | S86: =SUM(S78:S85) -> 0 | T86: =SUM(T78:T85) -> 3
A87: Приволжский федеральный округ
A88: 1 | B88: Кировская область | H88: 1 | O88: 1 | R88: 1 | S88: 2 | T88: 1
A89: 2 | B89: МИ ФНС России по Приволжскому ФО | D89: 1 | E89: 1
A90: 3 | B90: Нижегородская область | C90: 1 | I90: 1 | J90: 2 | L90: 1 | P90: 1 | T90: 1
A91: 4 | B91: Оренбургская область | M91: 1 | Q91: 1 | R91: 1 | S91: 1
A92: 5 | B92: Пензенская область | O92: 1
A93: 6 | B93: Пермский край | E93: 2 | F93: 1 | J93: 1 | K93: 1 | L93: 2 | N93: 2 | O93: 1 | P93: 1 | Q93: 2 | R93: 1 | T93: 1
A94: 7 | B94: Республика Башкортостан | D94: 1 | G94: 1 | H94: 1 | I94: 1 | J94: 1 | L94: 1 | M94: 2 | N94: 2 | O94: 1 | P94: 1 | Q94: 1 | R94: 1 | S94: 1
A95: 8 | B95: Республика Марий Эл | R95: 1
A96: 9 | B96: Республика Мордовия
A97: 10 | B97: Республика Татарстан | C97: 1 | D97: 2 | E97: 2 | F97: 2 | G97: 2 | K97: 1 | O97: 1 | P97: 1 | Q97: 1 | R97: 1 | T97: 1
A98: 11 | B98: Самарская область | E98: 1 | H98: 1 | I98: 2 | J98: 1 | K98: 1 | L98: 1 | M98: 1 | O98: 1 | P98: 1 | Q98: 1
A99: 12 | B99: Саратовская область | F99: 1 | J99: 1 | S99: 1
A100: 13 | B100: Удмуртская Республика | T100: 1
A101: 14 | B101: Ульяновская область | I101: 1 | R101: 1
A102: 15 | B102: Чувашская Республика | G102: 1 | K102: 1 | L102: 1 | O102: 1
B103: Итого: | C103: =SUM(C88:C102) -> 2 | D103: 4 | E103: 6 | F103: 4 | G103: 4 | H103: 3 | I103: 5 | J103: 6 | K103: 4 | L103: 6 | M103: 4 | N103: 4 | O103: =SUM(O88:O102) -> 7 | P103: 5 | Q103: 6 | R103: 7 | S103: =SUM(S88:S102) -> 5 | T103: =SUM(T88:T102) -> 5
A104: Уральский федеральный округ
A105: 1 | B105: Курганская область
A106: 2 | B106: МИ ФНС России по Уральскому ФО | N106: 1 | P106: 1
A107: 3 | B107: Свердловская область | C107: 2 | H107: 1 | L107: 1 | M107: 1 | N107: 2 | Q107: 1 | R107: 1 | S107: 1
A108: 4 | B108: Тюменская область | D108: 1 | G108: 1 | J108: 1 | M108: 1 | O108: 1 | S108: 1 | T108: 1
A109: 5 | B109: Ханты-Мансийский АО | E109: 1 | F109: 1 | P109: 1 | Q109: 1 | R109: 1
A110: 6 | B110: Челябинская область | C110: 2 | F110: 1 | G110: 1 | H110: 1 | I110: 1 | J110: 1 | K110: 1 | L110: 1 | N110: 1 | O110: 1 | P110: 1 | Q110: 1 | S110: 1
A111: 7 | B111: Ямало-Ненецкий АО | I111: 1 | J111: 1
B112: Итого: | C112: =SUM(C105:C111) -> 4 | D112: 1 | E112: 1 | F112: 2 | G112: 2 | H112: 2 | I112: 2 | J112: 3 | K112: 1 | L112: 2 | M112: 2 | N112: 4 | O112: =SUM(O105:O111) -> 2 | P112: 3 | Q112: 3 | R112: 2 | S112: =SUM(S105:S111) -> 3 | T112: =SUM(T105:T111) -> 1
A113: Сибирский федеральный округ
A114: 1 | B114: Алтайский край | D114: 1 | E114: 1 | K114: 1 | L114: 1 | O114: 1 | R114: 1 | S114: 1 | T114: 1
A115: 2 | B115: Иркутская область | C115: 1 | D115: 1 | E115: 3 | F115: 2 | G115: 3 | L115: 1 | M115: 1 | N115: 2 | O115: 1 | P115: 2 | Q115: 1 | R115: 1 | T115: 1
A116: 3 | B116: Кемеровская область
A117: 4 | B117: Красноярский край | D117: 1 | F117: 2 | H117: 1 | J117: 1 | L117: 2 | M117: 1 | Q117: 1 | R117: 1 | S117: 1 | T117: 1
A118: 5 | B118: МИ ФНС России по Сибирскому ФО | D118: 1 | E118: 1 | H118: 1
A119: 6 | B119: Новосибирская область | C119: 1 | J119: 1 | N119: 1
A120: 7 | B120: Омская область | D120: 1 | E120: 1 | G120: 1 | I120: 1 | J120: 1 | L120: 2 | M120: 2 | N120: 1 | O120: 1 | P120: 1 | Q120: 1
A121: 8 | B121: Республика Алтай | C121: 1 | F121: 1 | H121: 1 | K121: 1
A122: 9 | B122: Республика Тыва | G122: 1 | I122: 1 | S122: 1
A123: 10 | B123: Республика Хакасия | C123: 2 | D123: 1 | O123: 1 | P123: 1 | Q123: 1 | R123: 1
A124: 11 | B124: Томская область | F124: 1 | H124: 1 | K124: 1 | M124: 1
B125: Итого: | C125: =SUM(C114:C124) -> 5 | D125: 6 | E125: 6 | F125: 6 | G125: 5 | H125: 4 | I125: 2 | J125: 3 | K125: 3 | L125: 6 | M125: 5 | N125: 4 | O125: =SUM(O114:O124) -> 4 | P125: 4 | Q125: 4 | R125: 4 | S125: =SUM(S114:S124) -> 3 | T125: =SUM(T114:T124) -> 3
A126: Дальневосточный федеральный округ
A127: 1 | B127: Амурская область
A128: 2 | B128: Еврейская АО
A129: 3 | B129: Забайкальский край | G129: 1 | H129: 1 | R129: 1
A130: 4 | B130: Камчатский край
A131: 5 | B131: Магаданская область
A132: 6 | B132: МИ ФНС России по Дальневосточному ФО | E132: 1 | S132: 1
A133: 7 | B133: Приморский край | C133: 2 | D133: 3 | F133: 2 | G133: 1 | I133: 1 | P133: 1 | Q133: 1 | R133: 1 | S133: 1
A134: 8 | B134: Республика Бурятия | F134: 1 | G134: 1 | J134: 1
A135: 9 | B135: Республика Саха (Якутия) | F135: 1 | G135: 1 | H135: 1 | I135: 1 | J135: 1 | M135: 2 | N135: 1 | S135: 1
A136: 10 | B136: Сахалинская область | E136: 1 | M136: 1
A137: 11 | B137: Хабаровский край | C137: 2 | D137: 2 | E137: 2 | F137: 1 | G137: 1 | H137: 2 | K137: 1 | L137: 1 | N137: 2 | O137: 1 | P137: 1 | Q137: 1 | R137: 1 | S137: 1 | T137: 1
A138: 12 | B138: Чукотский АО
B139: Итого: | C139: =SUM(C127:C138) -> 4 | D139: 5 | E139: 4 | F139: 5 | G139: 5 | H139: 4 | I139: 2 | J139: 2 | K139: 1 | L139: 1 | M139: 3 | N139: 3 | O139: =SUM(O127:O138) -> 1 | P139: 2 | Q139: 2 | R139: 3 | S139: =SUM(S127:S138) -> 4 | T139: =SUM(T127:T138) -> 1
A140: Новые территории Российской Федерации
A141: 1 | B141: Донецкая Народная Республика | K141: 2 | O141: 1 | P141: 1 | Q141: 1 | R141: 1 | T141: 1
A142: 2 | B142: Запорожская область
A143: 3 | B143: Луганская Народная Республика | E143: 1 | I143: 1 | O143: 1 | P143: 1 | Q143: 1 | R143: 1 | S143: 1
A144: 4 | B144: Херсонская область
B145: Итого: | C145: =SUM(C141:C144) -> 0 | D145: 0 | E145: 1 | F145: 0 | G145: 0 | H145: 0 | I145: 1 | J145: 0 | K145: 2 | L145: 0 | M145: 0 | N145: 0 | O145: =SUM(O141:O144) -> 2 | P145: 2 | Q145: 2 | R145: 2 | S145: =SUM(S141:S144) -> 1 | T145: =SUM(T141:T144) -> 1
B146: Всего: | C146: =C145+C139+C125+C112+C103+C86+C76+C65+C52+C16 -> 23 | D146: 22 | E146: 23 | F146: 21 | G146: 20 | H146: 24 | I146: 23 | J146: 23 | K146: 23 | L146: 24 | M146: 24 | N146: 23 | O146: =O145+O139+O125+O112+O103+O86+O76+O65+O52+O16 -> 24 | P146: 24 | Q146: 23 | R146: 24 | S146: =S145+S139+S125+S112+S103+S86+S76+S65+S52+S16 -> 26 | T146: =T145+T139+T125+T112+T103+T86+T76+T65+T52+T16 -> 25

Sheet Прил.23
S1: Приложение № 23
S2: УТВЕРЖДЕН
S3: Приказом ФНС России
S4: от " " 20 г.
S5: №
A7: План-график дополнительного профессионального образования гражданских служащих в "Академии ФНС ЛАБ–Нева" в 2025 году (очная форма обучения)
A8: № п/п | B8: Структурные подразделения ЦА ФНС России, УФНС России по субъектам РФ, межрегиональные инспекции ФНС России | C8: Численность, человек
C9: В том числе по программам повышения квалификации с указанием продолжительности и периодам обучения
C10: Эффективные переговоры. Методы влияния и убеждения (базовый уровень) | F10: Эффективные переговоры. Методы влияния и убеждения (повышенный уровень) | H10: Эффективные переговоры. Методы влияния и убеждения (мастерский уровень) | J10: Администрирование имущественных налогов физических лиц | O10: Администрирование имущественных налогов юридических лиц | S10: Предоставление государственных услуг органами ФНС России в сфере государственной регистрации налогоплательщиков
C11: (32 часа) | F11: (32 часа) | H11: (32 часа) | J11: (40 часов) | O11: (40 часов) | S11: (56 часов)
C12: 16.06-20.06 | D12: 23.06-27.06 | E12: 07.07-11.07 | F12: 03.03-07.03 | G12: 07.04-11.04 | H12: 17.11-21.11 | I12: 08.12-12.12 | J12: 31.03-04.04 | K12: 07.07-11.07 | L12: 08.09-12.09 | M12: 27.10-01.11 | N12: 17.11-21.11 | O12: 27.01-31.01 | P12: 03.02-07.02 | Q12: 24.02-28.02 | R12: 15.12-19.12 | S12: 05.05-16.05 | T12: 09.06-20.06
A13: 1 | B13: 2 | C13: 3 | D13: 4 | E13: 5 | F13: 6 | G13: 7 | H13: 8 | I13: 9 | J13: 10 | K13: 11 | L13: 12 | M13: 13 | N13: 14 | O13: 15 | P13: 16 | Q13: 17 | R13: 18 | S13: 19 | T13: 20
A14: Центральный аппарат ФНС России
A15: 1 | B15: Управление профессионального развития | F15: 1 | G15: 1 | H15: 1 | I15: 1
B16: Итого: | C16: =SUM(C15:C15) -> 0 | D16: 0 | E16: 0 | F16: 1 | G16: 1 | H16: 1 | I16: 1 | J16: 0 | K16: 0 | L16: 0 | M16: 0 | N16: =SUM(N15:N15) -> 0 | O16: 0 | P16: 0 | Q16: 0 | R16: 0 | S16: 0 | T16: =SUM(T15:T15) -> 0
A17: Центральный федеральный округ
A18: 1 | B18: Белгородская область | C18: 1 | J18: 1 | K18: 1 | L18: 1
A19: 2 | B19: Брянская область | K19: 1 | L19: 1 | N19: 1
A20: 3 | B20: Владимирская область | D20: 1 | M20: 1 | N20: 1
A21: 4 | B21: Воронежская область | O21: 1 | P21: 1 | Q21: 1 | T21: 1
A22: 5 | B22: г.Москва | C22: 1 | E22: 1 | F22: 1 | G22: 1 | J22: 1 | P22: 1 | Q22: 1
A23: 6 | B23: Ивановская область | N23: 1 | O23: 1 | R23: 1
A24: 7 | B24: Калужская область | D24: 1 | E24: 1 | K24: 1 | M24: 1 | R24: 1 | S24: 1
A25: 8 | B25: Костромская область | J25: 1
A26: 9 | B26: Курская область | C26: 1 | N26: 1 | T26: 1
A27: 10 | B27: Липецкая область | D27: 1 | H27: 1 | O27: 1 | P27: 2 | Q27: 2 | R27: 1
A28: 11 | B28: МИ ФНС России по камеральному контролю | C28: 1
A29: 12 | B29: МИ ФНС России по КН № 1
A30: 13 | B30: МИ ФНС России по КН № 2
A31: 14 | B31: МИ ФНС России по КН № 3
A32: 15 | B32: МИ ФНС России по КН № 4
A33: 16 | B33: МИ ФНС России по КН № 5
A34: 17 | B34: МИ ФНС России по КН № 6 | E34: 1
A35: 18 | B35: МИ ФНС России по КН № 7
A36: 19 | B36: МИ ФНС России по КН № 9 | O36: 1
A37: 20 | B37: МИ ФНС России по КН № 10
A38: 21 | B38: МИ ФНС России по ценообразованию для целей налогообложения | E38: 1
A39: 22 | B39: МИ ФНС России по Центральному ФО
A40: 23 | B40: МИ ФНС России по ЦОД
A41: 24 | B41: МИ ФНС России по ЦОД №2
A42: 25 | B42: МИ ФНС России по управлению долгом | I42: 1
A43: 26 | B43: МИ ФНС России по ЦОД по контролю и надзору за налогоплательщиками в сфере бюджетного финансирования
A44: 27 | B44: Московская область | D44: 1 | H44: 1 | S44: 1
A45: 28 | B45: Орловская область | L45: 1 | P45: 1
A46: 29 | B46: Рязанская область | F46: 1 | N46: 1 | R46: 1
A47: 30 | B47: Смоленская область
A48: 31 | B48: Тамбовская область | G48: 1
A49: 32 | B49: Тверская область | C49: 2 | D49: 1 | F49: 1 | G49: 1 | I49: 1 | S49: 1 | T49: 2
A50: 33 | B50: Тульская область | G50: 1
A51: 34 | B51: Ярославская область | O51: 1
B52: Итого: | C52: =SUM(C18:C51) -> 6 | D52: 5 | E52: 4 | F52: 3 | G52: 4 | H52: 2 | I52: 2 | J52: 3 | K52: 3 | L52: 3 | M52: 2 | N52: =SUM(N18:N51) -> 5 | O52: 5 | P52: 5 | Q52: 4 | R52: 4 | S52: 3 | T52: =SUM(T18:T51) -> 4
A53: Северо-Западный федеральный округ
A54: 1 | B54: Архангельская область и Ненецкий АО | D54: 1 | E54: 1 | F54: 1 | H54: 1 | N54: 1 | P54: 1 | Q54: 1 | R54: 1
A55: 2 | B55: Вологодская область
A56: 3 | B56: г.Санкт- Петербург | G56: 1 | O56: 1
A57: 4 | B57: Калининградская область | C57: 1 | D57: 1 | G57: 1 | J57: 1 | K57: 1 | M57: 1 | P57: 1
A58: 5 | B58: Ленинградская область | F58: 1
A59: 6 | B59: МИ ФНС России по Северо-Западному ФО
A60: 7 | B60: Мурманская область | N60: 1 | R60: 1
A61: 8 | B61: Новгородская область | E61: 1 | K61: 1
A62: 9 | B62: Псковская область | C62: 1 | D62: 1 | F62: 1
A63: 10 | B63: Республика Карелия | D63: 1 | E63: 1 | G63: 1 | H63: 1 | I63: 1 | J63: 1 | M63: 1 | P63: 1 | Q63: 1
A64: 11 | B64: Республика Коми | C64: 1 | L64: 1 | R64: 1
B65: Итого: | C65: =SUM(C54:C64) -> 3 | D65: 4 | E65: 3 | F65: 3 | G65: 3 | H65: 2 | I65: 1 | J65: 2 | K65: 2 | L65: 1 | M65: 2 | N65: =SUM(N54:N64) -> 2 | O65: 1 | P65: 3 | Q65: 2 | R65: 3 | S65: 0 | T65: =SUM(T54:T64) -> 0
A66: Южный федеральный округ
A67: 1 | B67: Астраханская область | N67: 1
A68: 2 | B68: Волгоградская область | K68: 1 | M68: 1 | S68: 1
A69: 3 | B69: г.Севастополь
A70: 4 | B70: Краснодарский край | E70: 1 | H70: 1 | J70: 1 | K70: 1 | L70: 1 | N70: 1 | O70: 1 | P70: 1
A71: 5 | B71: МИ ФНС России по Южному ФО
A72: 6 | B72: Республика Адыгея
A73: 7 | B73: Республика Калмыкия | L73: 1 | M73: 1
A74: 8 | B74: Республика Крым | K74: 1 | M74: 1 | O74: 1 | P74: 1 | Q74: 1
A75: 9 | B75: Ростовская область | C75: 1 | D75: 2 | F75: 1 | G75: 1 | H75: 1 | I75: 1 | J75: 1 | K75: 1 | L75: 1 | N75: 2 | P75: 1 | Q75: 1 | R75: 1 | T75: 1
B76: Итого: | C76: =SUM(C67:C75) -> 1 | D76: 2 | E76: 1 | F76: 1 | G76: 1 | H76: 2 | I76: 1 | J76: 2 | K76: 4 | L76: 3 | M76: 3 | N76: =SUM(N67:N75) -> 4 | O76: 2 | P76: 3 | Q76: 2 | R76: 1 | S76: 1 | T76: =SUM(T67:T75) -> 1
A77: Северо-Кавказский федеральный округ
A78: 1 | B78: Кабардино- Балкарская Республика | H78: 1 | I78: 1 | S78: 1
A79: 2 | B79: Карачаево- Черкесская Республика | E79: 1 | F79: 1 | L79: 1 | N79: 1
A80: 3 | B80: МИ ФНС России по Северо-Кавказскому ФО
A81: 4 | B81: Республика Дагестан | C81: 1 | D81: 1 | G81: 1 | H81: 1 | J81: 1 | M81: 1 | O81: 1
A82: 5 | B82: Республика Ингушетия | F82: 1 | I82: 1 | T82: 1
A83: 6 | B83: Республика Северная Осетия - Алания | E83: 1 | S83: 1
A84: 7 | B84: Ставропольский край | G84: 1 | N84: 1 | O84: 1 | R84: 1 | T84: 1
A85: 8 | B85: Чеченская Республика
B86: Итого: | C86: =SUM(C78:C85) -> 1 | D86: 1 | E86: 2 | F86: 2 | G86: 2 | H86: 2 | I86: 2 | J86: 1 | K86: 0 | L86: 1 | M86: 1 | N86: =SUM(N78:N85) -> 2 | O86: 2 | P86: 0 | Q86: 0 | R86: 1 | S86: 2 | T86: =SUM(T78:T85) -> 2
A87: Приволжский федеральный округ
A88: 1 | B88: Кировская область | C88: 1 | E88: 1 | G88: 1 | H88: 1 | M88: 1 | N88: 1 | P88: 1 | Q88: 1 | S88: 1
A89: 2 | B89: МИ ФНС России по Приволжскому ФО
A90: 3 | B90: Нижегородская область | C90: 1 | D90: 1 | F90: 1 | G90: 1 | H90: 1 | I90: 2 | N90: 1 | O90: 1 | P90: 1 | R90: 1 | S90: 1 | T90: 2
A91: 4 | B91: Оренбургская область | E91: 1 | G91: 1 | K91: 1 | M91: 2 | N91: 1 | Q91: 1 | S91: 1
A92: 5 | B92: Пензенская область | J92: 1 | Q92: 1
A93: 6 | B93: Пермский край | C93: 2 | D93: 1 | F93: 2 | G93: 1 | O93: 1 | P93: 1 | R93: 1 | T93: 1
A94: 7 | B94: Республика Башкортостан | D94: 1 | E94: 1 | H94: 1 | O94: 1 | Q94: 1 | S94: 2 | T94: 1
A95: 8 | B95: Республика Марий Эл | P95: 1 | T95: 1
A96: 9 | B96: Республика Мордовия | J96: 1 | L96: 1
A97: 10 | B97: Республика Татарстан | C97: 2 | D97: 1 | G97: 1 | I97: 1 | J97: 1 | K97: 1 | L97: 1 | N97: 1 | P97: 1 | Q97: 1 | R97: 1
A98: 11 | B98: Самарская область | E98: 1 | H98: 1 | I98: 1 | M98: 1 | S98: 1 | T98: 1
A99: 12 | B99: Саратовская область | F99: 1 | G99: 1 | L99: 1 | M99: 1 | O99: 1
A100: 13 | B100: Удмуртская Республика | H100: 1 | J100: 1 | M100: 1 | P100: 1 | Q100: 1 | R100: 1 | T100: 1
A101: 14 | B101: Ульяновская область | C101: 1 | J101: 1 | S101: 1 | T101: 1
A102: 15 | B102: Чувашская Республика | D102: 1 | K102: 2 | O102: 1
B103: Итого: | C103: =SUM(C88:C102) -> 7 | D103: 5 | E103: 4 | F103: 4 | G103: 6 | H103: 5 | I103: 4 | J103: 5 | K103: 4 | L103: 3 | M103: 6 | N103: =SUM(N88:N102) -> 4 | O103: 5 | P103: 6 | Q103: 6 | R103: 4 | S103: 7 | T103: =SUM(T88:T102) -> 8
A104: Уральский федеральный округ
A105: 1 | B105: Курганская область | M105: 1 | N105: 1 | P105: 1 | Q105: 1
A106: 2 | B106: МИ ФНС России по Уральскому ФО | E106: 1
A107: 3 | B107: Свердловская область | D107: 1 | E107: 2 | F107: 1 | I107: 2 | K107: 1 | O107: 1 | P107: 1 | Q107: 1 | S107: 1
A108: 4 | B108: Тюменская область | H108: 1 | R108: 2
A109: 5 | B109: Ханты-Мансийский АО | F109: 1 | O109: 1 | T109: 1
A110: 6 | B110: Челябинская область | C110: 1 | D110: 1 | H110: 1 | I110: 1 | J110: 1 | P110: 1 | S110: 1 | T110: 1
A111: 7 | B111: Ямало-Ненецкий АО | F111: 1 | Q111: 1
B112: Итого: | C112: =SUM(C105:C111) -> 1 | D112: 2 | E112: 3 | F112: 3 | G112: 0 | H112: 2 | I112: 3 | J112: 1 | K112: 1 | L112: 0 | M112: 1 | N112: =SUM(N105:N111) -> 1 | O112: 2 | P112: 3 | Q112: 3 | R112: 2 | S112: 2 | T112: =SUM(T105:T111) -> 2
A113: Сибирский федеральный округ
A114: 1 | B114: Алтайский край | F114: 1 | H114: 1 | K114: 1 | L114: 1 | M114: 1 | R114: 1 | T114: 1
A115: 2 | B115: Иркутская область | C115: 1 | H115: 1 | I115: 2 | J115: 1 | N115: 1 | O115: 1 | P115: 1 | Q115: 1 | S115: 1
A116: 3 | B116: Кемеровская область | N116: 1 | T116: 1
A117: 4 | B117: Красноярский край | D117: 1 | F117: 1 | I117: 1 | K117: 1 | O117: 1 | Q117: 1 | R117: 1
A118: 5 | B118: МИ ФНС России по Сибирскому ФО | E118: 1 | G118: 1
A119: 6 | B119: Новосибирская область | D119: 1 | F119: 1 | I119: 1 | K119: 1 | L119: 1 | M119: 1 | O119: 1 | P119: 1 | T119: 1
A120: 7 | B120: Омская область | C120: 1 | G120: 1 | H120: 1 | Q120: 1 | S120: 1
A121: 8 | B121: Республика Алтай | D121: 1 | H121: 1
A122: 9 | B122: Республика Тыва | C122: 1 | J122: 1 | K122: 1 | N122: 1 | S122: 1 | T122: 1
A123: 10 | B123: Республика Хакасия | M123: 1 | S123: 1 | T123: 1
A124: 11 | B124: Томская область | I124: 1 | J124: 1 | K124: 1 | S124: 1
B125: Итого: | C125: =SUM(C114:C124) -> 3 | D125: 3 | E125: 1 | F125: 3 | G125: 2 | H125: 4 | I125: 5 | J125: 3 | K125: 5 | L125: 2 | M125: 3 | N125: =SUM(N114:N124) -> 3 | O125: 3 | P125: 2 | Q125: 3 | R125: 2 | S125: 5 | T125: =SUM(T114:T124) -> 5
A126: Дальневосточный федеральный округ
A127: 1 | B127: Амурская область
A128: 2 | B128: Еврейская АО
A129: 3 | B129: Забайкальский край | F129: 1 | G129: 1 | I129: 1 | J129: 1 | K129: 1 | M129: 1 | T129: 1
A130: 4 | B130: Камчатский край | O130: 1 | P130: 1
A131: 5 | B131: Магаданская область | Q131: 1
A132: 6 | B132: МИ ФНС России по Дальневосточному ФО | E132: 1 | L132: 1 | R132: 1
A133: 7 | B133: Приморский край | C133: 1 | E133: 1 | I133: 1 | K133: 1 | L133: 2 | M133: 2 | O133: 2 | Q133: 1 | R133: 2 | S133: 1
A134: 8 | B134: Республика Бурятия | F134: 1 | J134: 1 | K134: 1 | L134: 1 | O134: 1 | Q134: 1 | R134: 1 | S134: 2 | T134: 1
A135: 9 | B135: Республика Саха (Якутия) | C135: 1 | D135: 1 | G135: 1 | H135: 1 | J135: 1 | M135: 1 | P135: 1 | Q135: 1 | R135: 1
A136: 10 | B136: Сахалинская область | F136: 1 | H136: 1
A137: 11 | B137: Хабаровский край | E137: 2 | I137: 1 | J137: 1 | L137: 2 | N137: 2 | Q137: 1 | R137: 1 | S137: 1 | T137: 1
A138: 12 | B138: Чукотский АО
B139: Итого: | C139: =SUM(C127:C138) -> 2 | D139: 1 | E139: 4 | F139: 3 | G139: 2 | H139: 2 | I139: 3 | J139: 4 | K139: 3 | L139: 6 | M139: 4 | N139: =SUM(N127:N138) -> 2 | O139: 4 | P139: 2 | Q139: 5 | R139: 6 | S139: 4 | T139: =SUM(T127:T138) -> 3
A140: Новые территории Российской Федерации
A141: 1 | B141: Донецкая Народная Республика | D141: 1 | G141: 1 | L141: 2
A142: 2 | B142: Запорожская область | S142: 1
A143: 3 | B143: Луганская Народная Республика | E143: 1 | J143: 2 | L143: 1 | O143: 1 | P143: 1 | R143: 1
A144: 4 | B144: Херсонская область
B145: Итого: | C145: =SUM(C141:C144) -> 0 | D145: 1 | E145: 1 | F145: 0 | G145: 1 | H145: 0 | I145: 0 | J145: 2 | K145: 0 | L145: 3 | M145: 0 | N145: =SUM(N141:N144) -> 0 | O145: 1 | P145: 1 | Q145: 0 | R145: 1 | S145: 1 | T145: =SUM(T141:T144) -> 0
B146: Всего: | C146: =C145+C139+C125+C112+C103+C86+C76+C65+C52+C16 -> 24 | D146: 24 | E146: 23 | F146: 23 | G146: 22 | H146: 22 | I146: 22 | J146: 23 | K146: 22 | L146: 22 | M146: 22 | N146: =N145+N139+N125+N112+N103+N86+N76+N65+N52+N16 -> 23 | O146: 25 | P146: 25 | Q146: 25 | R146: 24 | S146: 25 | T146: =T145+T139+T125+T112+T103+T86+T76+T65+T52+T16 -> 25

Sheet Прил.24
W1: Приложение № 24
W2: УТВЕРЖДЕН
W3: Приказом ФНС России
W4: от " " 20 г.
W5: №
A7: План-график дополнительного профессионального образования гражданских служащих в "Академии ФНС ЛАБ–Нева" в 2025 году (очная форма)
A8: № п/п | B8: Структурные подразделения ЦА ФНС России, УФНС России по субъектам РФ, межрегиональные инспекции ФНС России | C8: Численность, человек
C9: В том числе по программам повышения квалификации с указанием продолжительности и периодам обучения
C10: Антихрупкость, жизнестойкость и личная трансформация в системе государственной службы | K10: Коммуникативная компетентность гражданского служащего (мастерский уровень) | L10: Коммуникативные стратегии в деятельности руководителя | R10: Лидерство и развитие высокоэффективных команд (мастерский уровень) | S10: Логика и риторика в деятельности налоговых органов | V10: Предоставление государственных услуг органами ФНС России в сфере учета налогоплательщиков
C11: (64 часа) | K11: (64 часа) | L11: (64 часа) | R11: (64 часа) | S11: (64 часа) | V11: (64 часа)
C12: 14.01-24.01 | D12: 10.02-21.02 | E12: 24.02-07.03 | F12: 14.07-25.07 | G12: 08.09-19.09 | H12: 20.10-31.10 | I12: 05.11-14.11 | J12: 24.11-05.12 | K12: 05.11-14.11 | L12: 27.01-07.02 | M12: 10.02-21.02 | N12: 10.03-21.03 | O12: 07.04-18.04 | P12: 14.07-25.07 | Q12: 27.10-07.11 | R12: 08.12-19.12 | S12: 17.03-28.03 | T12: 21.04-30.04 | U12: 05.11-14.11 | V12: 14.01-24.01 | W12: 25.08-05.09 | X12: 08.09-19.09
A13: 1 | B13: 2 | C13: 3 | D13: 4 | E13: 5 | F13: 6 | G13: 7 | H13: 8 | I13: 9 | J13: 10 | K13: 11 | L13: 12 | M13: 13 | N13: 14 | O13: 15 | P13: 16 | Q13: 17 | R13: 18 | S13: 19 | T13: 20 | U13: 21 | V13: 22 | W13: 23 | X13: 24
A14: Центральный аппарат ФНС России
A15: 1 | B15: Управление профессионального развития | C15: 1 | D15: 1 | E15: 1 | G15: 1 | H15: 1 | J15: 1 | N15: 1 | R15: 1 | S15: 1
B16: Итого: | C16: =SUM(C15:C15) -> 1 | D16: =SUM(D15:D15) -> 1 | E16: =SUM(E15:E15) -> 1 | F16: =SUM(F15:F15) -> 0 | G16: =SUM(G15:G15) -> 1 | H16: 1 | I16: 0 | J16: 1 | K16: 0 | L16: 0 | M16: 0 | N16: 1 | O16: 0 | P16: 0 | Q16: 0 | R16: 1 | S16: 1 | T16: 0 | U16: 0 | V16: =SUM(V15:V15) -> 0 | W16: =SUM(W15:W15) -> 0 | X16: =SUM(X15:X15) -> 0
A17: Центральный федеральный округ
A18: 1 | B18: Белгородская область | C18: 1 | H18: 1 | L18: 1 | O18: 1 | V18: 2 | X18: 1
A19: 2 | B19: Брянская область | D19: 1 | G19: 1 | R19: 1
A20: 3 | B20: Владимирская область | F20: 1 | I20: 1 | J20: 1 | S20: 1
A21: 4 | B21: Воронежская область | N21: 1 | Q21: 1 | T21: 1 | V21: 1 | X21: 1
A22: 5 | B22: г.Москва | I22: 1 | K22: 2 | M22: 1 | S22: 1
A23: 6 | B23: Ивановская область | E23: 1 | H23: 1
A24: 7 | B24: Калужская область | G24: 1 | J24: 1 | S24: 1 | V24: 1
A25: 8 | B25: Костромская область
A26: 9 | B26: Курская область | F26: 1 | T26: 1
A27: 10 | B27: Липецкая область | C27: 1 | X27: 1
A28: 11 | B28: МИ ФНС России по камеральному контролю
A29: 12 | B29: МИ ФНС России по КН № 1 | P29: 1
A30: 13 | B30: МИ ФНС России по КН № 2
A31: 14 | B31: МИ ФНС России по КН № 3
A32: 15 | B32: МИ ФНС России по КН № 4
A33: 16 | B33: МИ ФНС России по КН № 5 | I33: 1
A34: 17 | B34: МИ ФНС России по КН № 6
A35: 18 | B35: МИ ФНС России по КН № 7
A36: 19 | B36: МИ ФНС России по КН № 9 | K36: 1
A37: 20 | B37: МИ ФНС России по КН № 10
A38: 21 | B38: МИ ФНС России по ценообразованию для целей налогообложения
A39: 22 | B39: МИ ФНС России по Центральному ФО
A40: 23 | B40: МИ ФНС России по ЦОД
A41: 24 | B41: МИ ФНС России по ЦОД №2
A42: 25 | B42: МИ ФНС России по управлению долгом | C42: 1
A43: 26 | B43: МИ ФНС России по контролю и надзору за налогоплательщиками в сфере бюджетного финансирования | E43: 1 | H43: 1
A44: 27 | B44: Московская область | D44: 1 | F44: 1 | L44: 1 | N44: 1 | R44: 1 | S44: 1
A45: 28 | B45: Орловская область | E45: 1 | G45: 1 | M45: 1
A46: 29 | B46: Рязанская область | Q46: 1 | S46: 1 | V46: 1 | W46: 1
A47: 30 | B47: Смоленская область
A48: 31 | B48: Тамбовская область | C48: 1 | O48: 1
A49: 32 | B49: Тверская область | D49: 1 | G49: 1 | J49: 1 | P49: 1 | R49: 1
A50: 33 | B50: Тульская область | C50: 1 | D50: 1 | E50: 1 | G50: 1 | H50: 1 | J50: 1 | K50: 1 | T50: 1 | X50: 1
A51: 34 | B51: Ярославская область
B52: Итого: | C52: =SUM(C18:C51) -> 5 | D52: =SUM(D18:D51) -> 4 | E52: =SUM(E18:E51) -> 4 | F52: =SUM(F18:F51) -> 3 | G52: =SUM(G18:G51) -> 5 | H52: 4 | I52: 3 | J52: 4 | K52: 4 | L52: 2 | M52: 2 | N52: 2 | O52: 2 | P52: 2 | Q52: 2 | R52: 3 | S52: 5 | T52: 3 | U52: 0 | V52: =SUM(V18:V51) -> 5 | W52: =SUM(W18:W51) -> 1 | X52: =SUM(X18:X51) -> 4
A53: Северо-Западный федеральный округ
A54: 1 | B54: Архангельская область и Ненецкий АО | C54: 1 | D54: 1 | E54: 1 | G54: 1 | H54: 1 | J54: 1 | L54: 2 | N54: 1 | O54: 1 | V54: 1
A55: 2 | B55: Вологодская область
A56: 3 | B56: г.Санкт- Петербург | G56: 1 | M56: 1 | R56: 1 | S56: 1 | U56: 1
A57: 4 | B57: Калининградская область | C57: 1 | D57: 1 | E57: 1 | F57: 1 | G57: 1 | H57: 1 | I57: 1 | N57: 1 | P57: 1 | Q57: 1 | T57: 1 | U57: 1
A58: 5 | B58: Ленинградская область | F58: 1 | G58: 1 | J58: 1
A59: 6 | B59: МИ ФНС России по Северо-Западному ФО
A60: 7 | B60: Мурманская область | C60: 1
A61: 8 | B61: Новгородская область | D61: 1 | M61: 1
A62: 9 | B62: Псковская область
A63: 10 | B63: Республика Карелия | I63: 1 | O63: 1 | S63: 1
A64: 11 | B64: Республика Коми | Q64: 1 | T64: 1 | W64: 1
B65: Итого: | C65: =SUM(C54:C64) -> 3 | D65: =SUM(D54:D64) -> 3 | E65: =SUM(E54:E64) -> 2 | F65: =SUM(F54:F64) -> 2 | G65: =SUM(G54:G64) -> 4 | H65: 2 | I65: 2 | J65: 2 | K65: 0 | L65: 2 | M65: 2 | N65: 2 | O65: 2 | P65: 1 | Q65: 2 | R65: 1 | S65: 2 | T65: 2 | U65: 2 | V65: =SUM(V54:V64) -> 1 | W65: =SUM(W54:W64) -> 1 | X65: =SUM(X54:X64) -> 0
A66: Южный федеральный округ
A67: 1 | B67: Астраханская область | D67: 1 | K67: 1 | R67: 1
A68: 2 | B68: Волгоградская область
A69: 3 | B69: г.Севастополь | P69: 1
A70: 4 | B70: Краснодарский край | C70: 1 | D70: 1 | E70: 1 | G70: 1 | H70: 1 | J70: 1 | L70: 1 | N70: 1 | P70: 1 | Q70: 1
A71: 5 | B71: МИ ФНС России по Южному ФО
A72: 6 | B72: Республика Адыгея
A73: 7 | B73: Республика Калмыкия
A74: 8 | B74: Республика Крым | I74: 1 | K74: 1 | R74: 1 | U74: 1 | V74: 1 | X74: 1
A75: 9 | B75: Ростовская область | F75: 1 | M75: 1 | O75: 1 | S75: 1 | T75: 1 | W75: 1
B76: Итого: | C76: =SUM(C67:C75) -> 1 | D76: =SUM(D67:D75) -> 2 | E76: =SUM(E67:E75) -> 1 | F76: =SUM(F67:F75) -> 1 | G76: =SUM(G67:G75) -> 1 | H76: 1 | I76: 1 | J76: 1 | K76: 2 | L76: 1 | M76: 1 | N76: 1 | O76: 1 | P76: 2 | Q76: 1 | R76: 2 | S76: 1 | T76: 1 | U76: 1 | V76: =SUM(V67:V75) -> 1 | W76: =SUM(W67:W75) -> 1 | X76: =SUM(X67:X75) -> 1
A77: Северо-Кавказский федеральный округ
A78: 1 | B78: Кабардино- Балкарская Республика | F78: 1 | I78: 1 | J78: 1 | L78: 1 | R78: 1
A79: 2 | B79: Карачаево- Черкесская Республика | C79: 1 | D79: 1 | E79: 1 | F79: 1 | G79: 2 | I79: 1 | J79: 1 | K79: 1 | M79: 1 | S79: 1 | T79: 1 | U79: 1
A80: 3 | B80: МИ ФНС России по Северо-Кавказскому ФО
A81: 4 | B81: Республика Дагестан | I81: 1 | K81: 1 | N81: 1 | Q81: 1
A82: 5 | B82: Республика Ингушетия | V82: 1
A83: 6 | B83: Республика Северная Осетия - Алания | R83: 1 | W83: 1 | X83: 1
A84: 7 | B84: Ставропольский край | C84: 1 | H84: 1 | J84: 1 | N84: 1 | P84: 1 | U84: 1
A85: 8 | B85: Чеченская Республика
B86: Итого: | C86: =SUM(C78:C85) -> 2 | D86: =SUM(D78:D85) -> 1 | E86: =SUM(E78:E85) -> 1 | F86: =SUM(F78:F85) -> 2 | G86: =SUM(G78:G85) -> 2 | H86: 1 | I86: 3 | J86: 3 | K86: 2 | L86: 1 | M86: 1 | N86: 2 | O86: 0 | P86: 1 | Q86: 1 | R86: 2 | S86: 1 | T86: 1 | U86: 2 | V86: =SUM(V78:V85) -> 1 | W86: =SUM(W78:W85) -> 1 | X86: =SUM(X78:X85) -> 1
A87: Приволжский федеральный округ
A88: 1 | B88: Кировская область | E88: 1 | G88: 1 | H88: 1 | I88: 1 | J88: 1 | K88: 1 | L88: 1 | M88: 1 | N88: 1 | O88: 2 | P88: 1 | Q88: 2 | R88: 1 | S88: 1 | T88: 2 | U88: 1 | V88: 2 | X88: 1
A89: 2 | B89: МИ ФНС России по Приволжскому ФО
A90: 3 | B90: Нижегородская область | C90: 1 | D90: 1 | E90: 2 | G90: 1 | K90: 1 | M90: 1 | O90: 2 | P90: 1 | V90: 1 | W90: 1
A91: 4 | B91: Оренбургская область | G91: 1 | H91: 1 | J91: 1 | L91: 1 | N91: 1 | Q91: 1 | U91: 1 | V91: 1 | X91: 1
A92: 5 | B92: Пензенская область | K92: 1 | M92: 1
A93: 6 | B93: Пермский край | C93: 2 | D93: 2 | E93: 2 | I93: 2 | K93: 1 | L93: 1 | M93: 1 | N93: 2 | O93: 1 | Q93: 1 | R93: 2 | S93: 2 | T93: 2 | U93: 2 | W93: 1 | X93: 1
A94: 7 | B94: Республика Башкортостан | D94: 1 | E94: 1 | F94: 2 | H94: 1 | I94: 1 | J94: 2 | M94: 1 | P94: 1 | R94: 1 | S94: 1 | T94: 1 | V94: 1
A95: 8 | B95: Республика Марий Эл | N95: 1 | P95: 1
A96: 9 | B96: Республика Мордовия
A97: 10 | B97: Республика Татарстан | C97: 1 | D97: 1 | E97: 1 | F97: 1 | G97: 1 | H97: 1 | J97: 1 | K97: 1 | L97: 2 | N97: 1 | P97: 1 | Q97: 1 | W97: 1
A98: 11 | B98: Самарская область | F98: 1 | I98: 1 | J98: 1 | K98: 1 | M98: 1 | O98: 1 | U98: 1 | V98: 1 | X98: 2
A99: 12 | B99: Саратовская область | C99: 1 | D99: 1 | E99: 1 | F99: 1 | G99: 1 | H99: 1 | J99: 1 | L99: 2 | P99: 1 | Q99: 1 | R99: 2 | S99: 1 | T99: 1 | W99: 1
A100: 13 | B100: Удмуртская Республика | M100: 1 | O100: 1 | P100: 2
A101: 14 | B101: Ульяновская область
A102: 15 | B102: Чувашская Республика | I102: 1 | U102: 1 | W102: 1
B103: Итого: | C103: =SUM(C88:C102) -> 5 | D103: =SUM(D88:D102) -> 6 | E103: =SUM(E88:E102) -> 8 | F103: =SUM(F88:F102) -> 5 | G103: =SUM(G88:G102) -> 5 | H103: 5 | I103: 6 | J103: 7 | K103: 6 | L103: 7 | M103: 7 | N103: 6 | O103: 7 | P103: 8 | Q103: 6 | R103: 6 | S103: 5 | T103: 6 | U103: 6 | V103: =SUM(V88:V102) -> 6 | W103: =SUM(W88:W102) -> 5 | X103: =SUM(X88:X102) -> 5
A104: Уральский федеральный округ
A105: 1 | B105: Курганская область | R105: 1 | W105: 1
A106: 2 | B106: МИ ФНС России по Уральскому ФО | L106: 1 | S106: 1
A107: 3 | B107: Свердловская область | C107: 1 | D107: 1 | E107: 1 | G107: 1 | H107: 1 | K107: 1 | N107: 1 | P107: 1 | Q107: 1 | T107: 1 | X107: 1
A108: 4 | B108: Тюменская область | J108: 1 | U108: 1 | X108: 1
A109: 5 | B109: Ханты-Мансийский АО | F109: 1
A110: 6 | B110: Челябинская область | I110: 1 | J110: 1 | K110: 1 | L110: 2 | M110: 2 | O110: 1 | P110: 1 | Q110: 1 | R110: 1 | S110: 1 | T110: 1 | V110: 1
A111: 7 | B111: Ямало-Ненецкий АО | D111: 1 | W111: 1
B112: Итого: | C112: =SUM(C105:C111) -> 1 | D112: =SUM(D105:D111) -> 2 | E112: =SUM(E105:E111) -> 1 | F112: =SUM(F105:F111) -> 1 | G112: =SUM(G105:G111) -> 1 | H112: 1 | I112: 1 | J112: 2 | K112: 2 | L112: 3 | M112: 2 | N112: 1 | O112: 1 | P112: 2 | Q112: 2 | R112: 2 | S112: 2 | T112: 2 | U112: 1 | V112: =SUM(V105:V111) -> 1 | W112: =SUM(W105:W111) -> 2 | X112: =SUM(X105:X111) -> 2
A113: Сибирский федеральный округ
A114: 1 | B114: Алтайский край | C114: 1 | F114: 1 | H114: 1 | K114: 1 | L114: 1 | M114: 1 | O114: 2 | R114: 1 | V114: 2 | X114: 1
A115: 2 | B115: Иркутская область | D115: 1 | E115: 1 | F115: 1 | G115: 1 | H115: 1 | J115: 1 | K115: 1 | N115: 1 | O115: 1 | P115: 2 | Q115: 1 | S115: 1 | U115: 1 | W115: 1
A116: 3 | B116: Кемеровская область
A117: 4 | B117: Красноярский край | C117: 2 | D117: 2 | E117: 1 | F117: 2 | H117: 1 | I117: 1 | J117: 1 | K117: 3 | L117: 1 | M117: 1 | O117: 1 | Q117: 1 | T117: 1
A118: 5 | B118: МИ ФНС России по Сибирскому ФО | N118: 1
A119: 6 | B119: Новосибирская область | C119: 1 | P119: 1 | Q119: 1
A120: 7 | B120: Омская область | D120: 1 | E120: 1 | G120: 1 | H120: 1 | J120: 1 | K120: 1 | M120: 1 | N120: 1 | O120: 1 | Q120: 1 | S120: 1 | T120: 1 | U120: 1 | X120: 1
A121: 8 | B121: Республика Алтай | F121: 1 | I121: 1 | W121: 1 | X121: 1
A122: 9 | B122: Республика Тыва | C122: 1 | R122: 1
A123: 10 | B123: Республика Хакасия | D123: 1 | E123: 1 | V123: 1
A124: 11 | B124: Томская область | G124: 1 | H124: 1 | J124: 1 | L124: 1 | N124: 1 | O124: 1 | U124: 1 | W124: 1
B125: Итого: | C125: =SUM(C114:C124) -> 5 | D125: =SUM(D114:D124) -> 5 | E125: =SUM(E114:E124) -> 4 | F125: =SUM(F114:F124) -> 5 | G125: =SUM(G114:G124) -> 3 | H125: 5 | I125: 2 | J125: 4 | K125: 6 | L125: 3 | M125: 3 | N125: 4 | O125: 6 | P125: 3 | Q125: 4 | R125: 2 | S125: 2 | T125: 2 | U125: 3 | V125: =SUM(V114:V124) -> 3 | W125: =SUM(W114:W124) -> 3 | X125: =SUM(X114:X124) -> 3
A126: Дальневосточный федеральный округ
A127: 1 | B127: Амурская область | M127: 1
A128: 2 | B128: Еврейская АО | K128: 1
A129: 3 | B129: Забайкальский край | F129: 1 | I129: 1 | N129: 1 | Q129: 1 | R129: 1 | S129: 1 | T129: 1 | X129: 1
A130: 4 | B130: Камчатский край | S130: 1 | U130: 1
A131: 5 | B131: Магаданская область | F131: 1 | W131: 1
A132: 6 | B132: МИ ФНС России по Дальневосточному ФО | C132: 1 | E132: 1 | H132: 1 | Q132: 1 | T132: 1
A133: 7 | B133: Приморский край | F133: 1 | G133: 1 | H133: 1 | L133: 1 | M133: 2 | R133: 1 | S133: 1 | T133: 1 | U133: 1 | V133: 2 | X133: 1
A134: 8 | B134: Республика Бурятия
A135: 9 | B135: Республика Саха (Якутия) | F135: 1 | I135: 1 | M135: 1 | U135: 1 | W135: 1
A136: 10 | B136: Сахалинская область | W136: 1
A137: 11 | B137: Хабаровский край | C137: 1 | D137: 1 | E137: 1 | F137: 1 | G137: 1 | H137: 1 | I137: 3 | J137: 1 | L137: 1 | N137: 1 | O137: 2 | P137: 1 | S137: 2 | T137: 2 | U137: 1 | V137: 2 | W137: 2 | X137: 2
A138: 12 | B138: Чукотский АО
B139: Итого: | C139: =SUM(C127:C138) -> 2 | D139: =SUM(D127:D138) -> 1 | E139: =SUM(E127:E138) -> 2 | F139: =SUM(F127:F138) -> 5 | G139: =SUM(G127:G138) -> 2 | H139: 3 | I139: 5 | J139: 1 | K139: 1 | L139: 2 | M139: 4 | N139: 2 | O139: 2 | P139: 1 | Q139: 2 | R139: 2 | S139: 5 | T139: 5 | U139: 4 | V139: =SUM(V127:V138) -> 4 | W139: =SUM(W127:W138) -> 5 | X139: =SUM(X127:X138) -> 4
A140: Новые территории Российской Федерации
A141: 1 | B141: Донецкая Народная Республика | E141: 1 | G141: 1 | H141: 1 | L141: 1 | O141: 1 | P141: 1 | Q141: 2 | R141: 1 | V141: 3 | W141: 2 | X141: 3
A142: 2 | B142: Запорожская область
A143: 3 | B143: Луганская Народная Республика | I143: 1 | K143: 1 | L143: 2 | M143: 2 | N143: 3 | O143: 2 | P143: 3 | Q143: 2 | R143: 1 | U143: 1 | V143: 1 | W143: 1 | X143: 1
A144: 4 | B144: Херсонская область
B145: Итого: | C145: =SUM(C141:C144) -> 0 | D145: =SUM(D141:D144) -> 0 | E145: =SUM(E141:E144) -> 1 | F145: =SUM(F141:F144) -> 0 | G145: =SUM(G141:G144) -> 1 | H145: 1 | I145: 1 | J145: 0 | K145: 1 | L145: 3 | M145: 2 | N145: 3 | O145: 3 | P145: 4 | Q145: 4 | R145: 2 | S145: 0 | T145: 0 | U145: 1 | V145: =SUM(V141:V144) -> 4 | W145: =SUM(W141:W144) -> 3 | X145: =SUM(X141:X144) -> 4
B146: Всего: | C146: =C145+C139+C125+C112+C103+C86+C76+C65+C52+C16 -> 25 | D146: =D145+D139+D125+D112+D103+D86+D76+D65+D52+D16 -> 25 | E146: =E145+E139+E125+E112+E103+E86+E76+E65+E52+E16 -> 25 | F146: =F145+F139+F125+F112+F103+F86+F76+F65+F52+F16 -> 24 | G146: =G145+G139+G125+G112+G103+G86+G76+G65+G52+G16 -> 25 | H146: 24 | I146: 24 | J146: 25 | K146: 24 | L146: 24 | M146: 24 | N146: 24 | O146: 24 | P146: 24 | Q146: 24 | R146: 23 | S146: 24 | T146: 22 | U146: 20 | V146: =V145+V139+V125+V112+V103+V86+V76+V65+V52+V16 -> 26 | W146: =W145+W139+W125+W112+W103+W86+W76+W65+W52+W16 -> 22 | X146: =X145+X139+X125+X112+X103+X86+X76+X65+X52+X16 -> 24

Sheet Прил.25
AA1: Приложение № 25
AA2: УТВЕРЖДЕН
AA3: Приказом ФНС России
AA4: от " " 20 г.
AA5: №
A7: План-график дополнительного профессионального образования гражданских служащих в "Академии ФНС ЛАБ–Нева" в 2025 году (очная форма обучения)
A8: № п/п | B8: Структурные подразделения ЦА ФНС России, УФНС России по субъектам РФ, межрегиональные инспекции ФНС России | C8: Численность, человек
C9: В том числе по программам повышения квалификации с указанием продолжительности и периодам обучения
C10: Предупреждение коррупции на государственной службе | E10: Психологические аспекты профессиональной деятельности на государственной гражданской службе и предотвращение выгорания (базовый уровень) | J10: Психологические аспекты профессиональной деятельности на государственной гражданской службе и предотвращение выгорания (мастерский уровень) | L10: Тактика ведения допроса (базовый уровень) | P10: Тактика ведения допроса (повышенный уровень) | S10: Три ключа к имиджу государственного служащего | U10: Управление конфликтами на государственной службе (мастерский уровень) | W10: Школа кадровика (повышенный уровень) | Y10: Эффективное взаимодействие с налогоплательщиками (повышенный уровень)
C11: (64 часа) | E11: (64 часа) | J11: (64 часа) | L11: (64 часа) | P11: (64 часа) | S11: (64 часа) | U11: (64 часа) | W11: (64 часа) | Y11: (64 часа)
C12: 25.08-05.09 | D12: 05.11-14.11 | E12: 14.01-24.01 | F12: 27.01-07.02 | G12: 21.04-30.04 | H12: 26.05-06.06 | I12: 05.11-14.11 | J12: 09.06-20.06 | K12: 06.10-17.10 | L12: 24.02-07.03 | M12: 26.05-06.06 | N12: 25.08-05.09 | O12: 22.09-03.10 | P12: 10.02-21.02 | Q12: 17.11-28.11 | R12: 08.12-19.12 | S12: 10.03-21.03 | T12: 26.05-06.06 | U12: 27.01-07.02 | V12: 22.09-03.10 | W12: 27.01-07.02 | X12: 09.06-20.06 | Y12: 24.02-07.03 | Z12: 10.03-21.03 | AA12: 09.06-20.06 | AB12: 20.10-31.10
A13: 1 | B13: 2 | C13: 3 | D13: 4 | E13: 5 | F13: 6 | G13: 7 | H13: 8 | I13: 9 | J13: 10 | K13: 11 | L13: 12 | M13: 13 | N13: 14 | O13: 15 | P13: 16 | Q13: 17 | R13: 18 | S13: 19 | T13: 20 | U13: 21 | V13: 22 | W13: 23 | X13: 24 | Y13: 25 | Z13: 26 | AA13: 27 | AB13: 28
A14: Центральный аппарат ФНС России
A15: 1 | B15: Управление профессионального развития | G15: 1 | J15: 1 | K15: 1 | L15: 1 | M15: 1 | U15: 1 | V15: 1 | X15: 1 | Z15: 1
B16: Итого: | C16: =SUM(C15:C15) -> 0 | D16: 0 | E16: 0 | F16: 0 | G16: 1 | H16: 0 | I16: 0 | J16: 1 | K16: 1 | L16: 1 | M16: 1 | N16: 0 | O16: 0 | P16: 0 | Q16: 0 | R16: 0 | S16: 0 | T16: 0 | U16: 1 | V16: 1 | W16: 0 | X16: 1 | Y16: 0 | Z16: 1 | AA16: 0 | AB16: 0
A17: Центральный федеральный округ
A18: 1 | B18: Белгородская область | E18: 1 | L18: 1 | M18: 1 | W18: 1
A19: 2 | B19: Брянская область | Y19: 1
A20: 3 | B20: Владимирская область | F20: 1 | G20: 1 | P20: 1 | Q20: 1 | R20: 1 | AA20: 1
A21: 4 | B21: Воронежская область | N21: 1 | O21: 1 | P21: 1 | Q21: 1 | R21: 1 | Z21: 1
A22: 5 | B22: г.Москва | C22: 1 | D22: 1 | J22: 1 | L22: 1 | P22: 1 | Q22: 1 | W22: 1 | X22: 1 | AA22: 1
A23: 6 | B23: Ивановская область | C23: 1 | P23: 1 | X23: 1
A24: 7 | B24: Калужская область | H24: 1 | M24: 1 | N24: 1 | S24: 1 | Y24: 1
A25: 8 | B25: Костромская область | I25: 1 | O25: 1
A26: 9 | B26: Курская область | E26: 1 | F26: 1 | T26: 1 | U26: 1 | W26: 1
A27: 10 | B27: Липецкая область | E27: 1 | K27: 1 | L27: 1 | R27: 1 | S27: 1 | Z27: 1
A28: 11 | B28: МИ ФНС России по камеральному контролю | W28: 1 | X28: 1
A29: 12 | B29: МИ ФНС России по КН № 1 | G29: 1
A30: 13 | B30: МИ ФНС России по КН № 2
A31: 14 | B31: МИ ФНС России по КН № 3
A32: 15 | B32: МИ ФНС России по КН № 4 | J32: 1 | V32: 1
A33: 16 | B33: МИ ФНС России по КН № 5
A34: 17 | B34: МИ ФНС России по КН № 6 | C34: 1
A35: 18 | B35: МИ ФНС России по КН № 7
A36: 19 | B36: МИ ФНС России по КН № 9
A37: 20 | B37: МИ ФНС России по КН № 10
A38: 21 | B38: МИ ФНС России по ценообразованию для целей налогообложения
A39: 22 | B39: МИ ФНС России по Центральному ФО
A40: 23 | B40: МИ ФНС России по ЦОД | H40: 1
A41: 24 | B41: МИ ФНС России по ЦОД №2
A42: 25 | B42: МИ ФНС России по управлению долгом | U42: 1
A43: 26 | B43: МИ ФНС России по контролю и надзору за налогоплательщиками в сфере бюджетного финансирования | I43: 1
A44: 27 | B44: Московская область | D44: 1 | K44: 1 | V44: 1 | X44: 2 | AA44: 1 | AB44: 1
A45: 28 | B45: Орловская область
A46: 29 | B46: Рязанская область | Q46: 1
A47: 30 | B47: Смоленская область | Y47: 1
A48: 31 | B48: Тамбовская область | E48: 1 | F48: 1 | J48: 1 | L48: 1 | N48: 1 | R48: 1 | U48: 1
A49: 32 | B49: Тверская область | G49: 1 | J49: 1 | K49: 1 | M49: 1 | N49: 1 | O49: 1 | T49: 1 | V49: 1
A50: 33 | B50: Тульская область | H50: 1 | S50: 1
A51: 34 | B51: Ярославская область
B52: Итого: | C52: =SUM(C18:C51) -> 3 | D52: =SUM(D18:D51) -> 2 | E52: =SUM(E18:E51) -> 4 | F52: 3 | G52: 3 | H52: 3 | I52: 2 | J52: =SUM(J18:J51) -> 4 | K52: 3 | L52: 4 | M52: 3 | N52: 4 | O52: 3 | P52: 4 | Q52: 4 | R52: 4 | S52: 3 | T52: 2 | U52: 3 | V52: 3 | W52: 4 | X52: 5 | Y52: 3 | Z52: 2 | AA52: 3 | AB52: 1
A53: Северо-Западный федеральный округ
A54: 1 | B54: Архангельская область и Ненецкий АО | D54: 1 | E54: 1 | F54: 1 | G54: 1 | H54: 1 | J54: 1 | L54: 1 | M54: 1 | R54: 1 | U54: 1 | V54: 1 | W54: 1 | Z54: 1 | AB54: 1
A55: 2 | B55: Вологодская область
A56: 3 | B56: г.Санкт- Петербург | E56: 1 | F56: 1 | I56: 2 | K56: 1 | L56: 1 | M56: 1 | N56: 1 | O56: 1 | S56: 2 | T56: 2 | V56: 1 | AA56: 1
A57: 4 | B57: Калининградская область | E57: 1 | F57: 1 | G57: 1 | H57: 1 | I57: 1 | M57: 1 | N57: 1 | Q57: 1 | R57: 1 | S57: 3 | T57: 2 | U57: 1 | V57: 1 | Y57: 1
A58: 5 | B58: Ленинградская область | M58: 1 | O58: 1 | X58: 1 | AA58: 1
A59: 6 | B59: МИ ФНС России по Северо-Западному ФО
A60: 7 | B60: Мурманская область | P60: 1 | Q60: 1 | T60: 1
A61: 8 | B61: Новгородская область | K61: 1 | P61: 1 | S61: 1 | V61: 1 | Z61: 1 | AB61: 1
A62: 9 | B62: Псковская область | P62: 1 | Q62: 1 | S62: 1 | T62: 1 | U62: 1 | Y62: 1 | Z62: 1 | AB62: 1
A63: 10 | B63: Республика Карелия | H63: 1 | I63: 1 | N63: 1 | O63: 1 | S63: 1 | T63: 1 | Y63: 1 | AA63: 1 | AB63: 1
A64: 11 | B64: Республика Коми | C64: 1
B65: Итого: | C65: =SUM(C54:C64) -> 1 | D65: =SUM(D54:D64) -> 1 | E65: =SUM(E54:E64) -> 3 | F65: 3 | G65: 2 | H65: 3 | I65: 4 | J65: =SUM(J54:J64) -> 1 | K65: 2 | L65: 2 | M65: 4 | N65: 3 | O65: 3 | P65: 3 | Q65: 3 | R65: 2 | S65: 8 | T65: 7 | U65: 3 | V65: 4 | W65: 1 | X65: 1 | Y65: 3 | Z65: 3 | AA65: 3 | AB65: 4
A66: Южный федеральный округ
A67: 1 | B67: Астраханская область | V67: 1 | Y67: 1
A68: 2 | B68: Волгоградская область
A69: 3 | B69: г.Севастополь | C69: 1
A70: 4 | B70: Краснодарский край | D70: 1 | J70: 1 | L70: 1 | M70: 1 | P70: 1 | Q70: 1 | R70: 1 | W70: 1
A71: 5 | B71: МИ ФНС России по Южному ФО
A72: 6 | B72: Республика Адыгея
A73: 7 | B73: Республика Калмыкия | AA73: 1
A74: 8 | B74: Республика Крым | I74: 1 | P74: 1 | Q74: 1 | X74: 1 | AA74: 1 | AB74: 1
A75: 9 | B75: Ростовская область | C75: 1 | E75: 1 | F75: 1 | L75: 1 | M75: 1 | N75: 2 | O75: 1 | R75: 1 | V75: 1 | Y75: 1 | Z75: 1 | AA75: 1
B76: Итого: | C76: =SUM(C67:C75) -> 2 | D76: =SUM(D67:D75) -> 1 | E76: =SUM(E67:E75) -> 1 | F76: 1 | G76: 0 | H76: 0 | I76: 1 | J76: =SUM(J67:J75) -> 1 | K76: 0 | L76: 2 | M76: 2 | N76: 2 | O76: 1 | P76: 2 | Q76: 2 | R76: 2 | S76: 0 | T76: 0 | U76: 0 | V76: 2 | W76: 1 | X76: 1 | Y76: 2 | Z76: 1 | AA76: 3 | AB76: 1
A77: Северо-Кавказский федеральный округ
A78: 1 | B78: Кабардино- Балкарская Республика | G78: 1
A79: 2 | B79: Карачаево- Черкесская Республика | C79: 1 | E79: 1 | H79: 1 | I79: 1 | U79: 1
A80: 3 | B80: МИ ФНС России по Северо-Кавказскому ФО
A81: 4 | B81: Республика Дагестан | F81: 1 | L81: 1 | M81: 1 | P81: 1 | T81: 1 | U81: 1 | V81: 1 | X81: 1 | Y81: 1
A82: 5 | B82: Республика Ингушетия
A83: 6 | B83: Республика Северная Осетия - Алания | Q83: 1 | AA83: 1
A84: 7 | B84: Ставропольский край | K84: 1 | L84: 1 | Y84: 1 | Z84: 1 | AA84: 1 | AB84: 1
A85: 8 | B85: Чеченская Республика
B86: Итого: | C86: =SUM(C78:C85) -> 1 | D86: =SUM(D78:D85) -> 0 | E86: =SUM(E78:E85) -> 1 | F86: 1 | G86: 1 | H86: 1 | I86: 1 | J86: =SUM(J78:J85) -> 0 | K86: 1 | L86: 2 | M86: 1 | N86: 0 | O86: 0 | P86: 1 | Q86: 1 | R86: 0 | S86: 0 | T86: 1 | U86: 2 | V86: 1 | W86: 0 | X86: 1 | Y86: 2 | Z86: 1 | AA86: 2 | AB86: 1
A87: Приволжский федеральный округ
A88: 1 | B88: Кировская область | C88: 1 | D88: 2 | E88: 2 | F88: 1 | G88: 2 | H88: 2 | I88: 1 | J88: 2 | L88: 1 | M88: 1 | N88: 1 | O88: 1 | U88: 1 | V88: 2 | W88: 1 | Y88: 1 | Z88: 1 | AA88: 1 | AB88: 2
A89: 2 | B89: МИ ФНС России по Приволжскому ФО
A90: 3 | B90: Нижегородская область | C90: 1 | F90: 1 | G90: 1 | K90: 1 | M90: 1 | N90: 1 | P90: 1 | Q90: 1 | R90: 1 | W90: 1 | X90: 1 | Y90: 1 | Z90: 1
A91: 4 | B91: Оренбургская область | H91: 1 | I91: 1 | L91: 1 | O91: 1 | P91: 1 | S91: 1 | U91: 1 | W91: 1 | AA91: 1
A92: 5 | B92: Пензенская область | M92: 1 | X92: 1 | AB92: 1
A93: 6 | B93: Пермский край | D93: 1 | E93: 1 | F93: 1 | G93: 1 | H93: 1 | L93: 1 | M93: 1 | N93: 1 | O93: 1 | Q93: 1 | S93: 1 | T93: 1 | U93: 1 | V93: 1 | X93: 1 | Z93: 1 | AA93: 1 | AB93: 1
A94: 7 | B94: Республика Башкортостан | C94: 2 | E94: 1 | F94: 1 | G94: 1 | I94: 1 | J94: 1 | L94: 1 | M94: 1 | N94: 1 | P94: 1 | W94: 2 | X94: 1 | Y94: 1 | Z94: 1 | AA94: 1
A95: 8 | B95: Республика Марий Эл | C95: 1 | N95: 1 | O95: 1 | W95: 1 | AB95: 1
A96: 9 | B96: Республика Мордовия | X96: 1 | Y96: 1
A97: 10 | B97: Республика Татарстан | D97: 2 | E97: 1 | F97: 1 | G97: 1 | H97: 1 | I97: 1 | L97: 1 | M97: 1 | P97: 1 | R97: 1 | S97: 1 | V97: 1 | W97: 1 | Z97: 1 | AA97: 1 | AB97: 1
A98: 11 | B98: Самарская область | C98: 1 | D98: 2 | K98: 2 | L98: 1 | M98: 1 | N98: 1 | O98: 1 | P98: 1 | Q98: 1 | R98: 1 | S98: 1 | U98: 1 | V98: 1 | X98: 1 | Y98: 2 | AB98: 1
A99: 12 | B99: Саратовская область | D99: 1 | E99: 1 | F99: 1 | H99: 1 | I99: 1 | J99: 1 | K99: 1 | Q99: 1 | R99: 1 | S99: 1 | T99: 1 | V99: 1 | W99: 2 | X99: 1 | Y99: 1 | AA99: 1
A100: 13 | B100: Удмуртская Республика | D100: 1 | Y100: 1 | AA100: 1 | AB100: 1
A101: 14 | B101: Ульяновская область | U101: 1 | Z101: 1
A102: 15 | B102: Чувашская Республика | E102: 1 | F102: 1 | G102: 1 | H102: 1 | I102: 1 | L102: 1 | AA102: 1
B103: Итого: | C103: =SUM(C88:C102) -> 6 | D103: =SUM(D88:D102) -> 9 | E103: =SUM(E88:E102) -> 7 | F103: 7 | G103: 7 | H103: 7 | I103: 6 | J103: =SUM(J88:J102) -> 4 | K103: 4 | L103: 7 | M103: 7 | N103: 6 | O103: 5 | P103: 5 | Q103: 4 | R103: 4 | S103: 5 | T103: 2 | U103: 5 | V103: 6 | W103: 9 | X103: 7 | Y103: 8 | Z103: 6 | AA103: 8 | AB103: 8
A104: Уральский федеральный округ
A105: 1 | B105: Курганская область | N105: 1 | R105: 1
A106: 2 | B106: МИ ФНС России по Уральскому ФО | S106: 1
A107: 3 | B107: Свердловская область | E107: 1 | F107: 1 | G107: 1 | H107: 1 | I107: 1 | K107: 2 | O107: 1 | P107: 1 | R107: 1 | S107: 1 | T107: 1 | U107: 1 | V107: 1 | W107: 1 | X107: 1 | Y107: 1 | Z107: 1 | AB107: 1
A108: 4 | B108: Тюменская область | F108: 1 | G108: 1 | H108: 1 | J108: 1 | L108: 1 | M108: 1 | X108: 1 | AB108: 1
A109: 5 | B109: Ханты-Мансийский АО | D109: 2 | N109: 1 | Q109: 1 | U109: 1 | Y109: 1 | Z109: 1
A110: 6 | B110: Челябинская область | C110: 2 | D110: 2 | E110: 1 | I110: 1 | L110: 1 | N110: 1 | O110: 1 | P110: 1 | Q110: 1 | S110: 1 | T110: 1 | U110: 1 | V110: 1 | W110: 2 | X110: 1 | AA110: 1 | AB110: 1
A111: 7 | B111: Ямало-Ненецкий АО | K111: 1 | Q111: 1 | R111: 1 | W111: 1
B112: Итого: | C112: =SUM(C105:C111) -> 2 | D112: =SUM(D105:D111) -> 4 | E112: =SUM(E105:E111) -> 2 | F112: 2 | G112: 2 | H112: 2 | I112: 2 | J112: =SUM(J105:J111) -> 1 | K112: 3 | L112: 2 | M112: 1 | N112: 3 | O112: 2 | P112: 2 | Q112: 3 | R112: 3 | S112: 3 | T112: 2 | U112: 3 | V112: 2 | W112: 4 | X112: 3 | Y112: 2 | Z112: 2 | AA112: 1 | AB112: 3
A113: Сибирский федеральный округ
A114: 1 | B114: Алтайский край | C114: 2 | D114: 1 | F114: 1 | G114: 1 | L114: 1 | M114: 1 | T114: 1 | U114: 1 | AA114: 1
A115: 2 | B115: Иркутская область | C115: 1 | H115: 1 | I115: 1 | J115: 2 | K115: 1 | O115: 1 | P115: 1 | Q115: 1 | S115: 1 | U115: 1 | V115: 2 | W115: 1
A116: 3 | B116: Кемеровская область
A117: 4 | B117: Красноярский край | C117: 2 | D117: 1 | E117: 2 | F117: 2 | G117: 2 | H117: 1 | I117: 1 | J117: 1 | K117: 2 | L117: 1 | M117: 1 | P117: 1 | Q117: 2 | R117: 1 | U117: 1 | W117: 1 | X117: 1 | Z117: 1 | AA117: 1
A118: 5 | B118: МИ ФНС России по Сибирскому ФО
A119: 6 | B119: Новосибирская область | D119: 1 | K119: 1 | N119: 1 | R119: 1
A120: 7 | B120: Омская область | H120: 1 | I120: 1 | O120: 1 | P120: 1 | S120: 1 | T120: 2 | V120: 1 | Z120: 1
A121: 8 | B121: Республика Алтай | C121: 1 | E121: 1 | J121: 1 | O121: 1
A122: 9 | B122: Республика Тыва | U122: 1 | AB122: 1
A123: 10 | B123: Республика Хакасия | G123: 1 | L123: 1 | O123: 1 | V123: 1
A124: 11 | B124: Томская область | H124: 1 | I124: 1 | R124: 1 | U124: 1 | W124: 1 | X124: 1 | Y124: 1
B125: Итого: | C125: =SUM(C114:C124) -> 6 | D125: =SUM(D114:D124) -> 3 | E125: =SUM(E114:E124) -> 3 | F125: 3 | G125: 4 | H125: 4 | I125: 4 | J125: =SUM(J114:J124) -> 4 | K125: 4 | L125: 3 | M125: 2 | N125: 1 | O125: 4 | P125: 3 | Q125: 3 | R125: 3 | S125: 2 | T125: 3 | U125: 5 | V125: 4 | W125: 3 | X125: 2 | Y125: 1 | Z125: 2 | AA125: 2 | AB125: 1
A126: Дальневосточный федеральный округ
A127: 1 | B127: Амурская область | N127: 1
A128: 2 | B128: Еврейская АО | Z128: 1
A129: 3 | B129: Забайкальский край | E129: 1 | F129: 1 | X129: 1 | AB129: 1
A130: 4 | B130: Камчатский край | Y130: 1
A131: 5 | B131: Магаданская область | C131: 1
A132: 6 | B132: МИ ФНС России по Дальневосточному ФО | G132: 1
A133: 7 | B133: Приморский край | C133: 1 | D133: 2 | F133: 1 | J133: 2 | L133: 1 | M133: 1 | N133: 1 | O133: 1 | P133: 1 | S133: 1 | U133: 1 | V133: 1 | W133: 1 | X133: 1 | Y133: 1 | Z133: 1 | AA133: 1 | AB133: 2
A134: 8 | B134: Республика Бурятия | J134: 2 | K134: 1 | L134: 1 | M134: 1 | N134: 1 | O134: 2 | V134: 1 | Z134: 1 | AA134: 1 | AB134: 1
A135: 9 | B135: Республика Саха (Якутия) | C135: 1 | E135: 1 | H135: 1 | I135: 1 | J135: 1 | M135: 1 | N135: 1 | O135: 1 | R135: 1 | U135: 1 | W135: 1 | Y135: 1 | Z135: 1
A136: 10 | B136: Сахалинская область | K136: 1 | M136: 1 | N136: 1 | X136: 2 | AA136: 1
A137: 11 | B137: Хабаровский край | E137: 1 | F137: 2 | G137: 1 | H137: 1 | I137: 1 | J137: 3 | K137: 2 | L137: 1 | M137: 1 | N137: 1 | O137: 1 | P137: 2 | Q137: 2 | R137: 3 | S137: 2 | T137: 4 | W137: 1 | Y137: 1 | AB137: 1
A138: 12 | B138: Чукотский АО | D138: 1
B139: Итого: | C139: =SUM(C127:C138) -> 3 | D139: =SUM(D127:D138) -> 3 | E139: =SUM(E127:E138) -> 3 | F139: 4 | G139: 2 | H139: 2 | I139: 2 | J139: =SUM(J127:J138) -> 8 | K139: 4 | L139: 3 | M139: 5 | N139: 6 | O139: 5 | P139: 3 | Q139: 2 | R139: 4 | S139: 3 | T139: 4 | U139: 2 | V139: 2 | W139: 3 | X139: 4 | Y139: 4 | Z139: 4 | AA139: 3 | AB139: 5
A140: Новые территории Российской Федерации
A141: 1 | B141: Донецкая Народная Республика | G141: 1 | N141: 1 | O141: 2 | T141: 1 | U141: 1 | Z141: 1
A142: 2 | B142: Запорожская область | K142: 1
A143: 3 | B143: Луганская Народная Республика | E143: 1 | F143: 1 | H143: 1 | O143: 1 | Q143: 1 | T143: 1 | Z143: 1 | AA143: 1 | AB143: 1
A144: 4 | B144: Херсонская область
B145: Итого: | C145: =SUM(C141:C144) -> 0 | D145: =SUM(D141:D144) -> 0 | E145: =SUM(E141:E144) -> 1 | F145: 1 | G145: 1 | H145: 1 | I145: 0 | J145: =SUM(J141:J144) -> 0 | K145: 1 | L145: 0 | M145: 0 | N145: 1 | O145: 3 | P145: 0 | Q145: 1 | R145: 0 | S145: 0 | T145: 2 | U145: 1 | V145: 0 | W145: 0 | X145: 0 | Y145: 0 | Z145: 2 | AA145: 1 | AB145: 1
B146: Всего: | C146: =C145+C139+C125+C112+C103+C86+C76+C65+C52+C16 -> 24 | D146: =D145+D139+D125+D112+D103+D86+D76+D65+D52+D16 -> 23 | E146: =E145+E139+E125+E112+E103+E86+E76+E65+E52+E16 -> 25 | F146: 25 | G146: 23 | H146: 23 | I146: 22 | J146: =J145+J139+J125+J112+J103+J86+J76+J65+J52+J16 -> 24 | K146: 23 | L146: 26 | M146: 26 | N146: 26 | O146: 26 | P146: 23 | Q146: 23 | R146: 22 | S146: 24 | T146: 23 | U146: 25 | V146: 25 | W146: 25 | X146: 25 | Y146: 25 | Z146: 24 | AA146: 26 | AB146: 25

Sheet Прил.26
A1: 0 | N1: Приложение № 26
N2: УТВЕРЖДЕН
N3: Приказом ФНС России
N4: от " " 20 г.
N5: №
A7: План-график дополнительного профессионального образования гражданских служащих в "Академии ФНС ЛАБ–Нева" в 2025 году (очная форма обучения)
A8: № п/п | B8: Структурные подразделения ЦА ФНС России, УФНС России по субъектам РФ, межрегиональные инспекции ФНС России | C8: Численность, человек
C9: В том числе по программам повышения квалификации с указанием продолжительности и периодам обучения
C10: Администрирование страховых взносов (повышенный уровень) | F10: Администрирование страховых взносов (мастерский уровень) | H10: Анализ и прогнозирование налоговых и неналоговых поступлений в бюджетную систему Российской Федерации (повышенный уровень) | K10: Анализ и прогнозирование налоговых и неналоговых поступлений в бюджетную систему Российской Федерации (мастерский уровень) | L10: Анализ финансовой деятельности в целях налогового контроля (повышенный уровень) | N10: Анализ финансовой деятельности в целях налогового контроля (мастерский уровень)
C11: (72 часа) | F11: (72 часа) | H11: (72 часа) | K11: (72 часа) | L11: (72 часа) | N11: (72 часа)
C12: 10.02-21.02 | D12: 31.03-11.04 | E12: 08.12-19.12 | F12: 22.09-03.10 | G12: 27.10-07.11 | H12: 10.03-21.03 | I12: 16.06-27.06 | J12: 25.08-05.09 | K12: 05.11-14.11 | L12: 14.01-24.01 | M12: 27.01-07.02 | N12: 20.10-31.10 | O12: 10.11-21.11
A13: 1 | B13: 2 | C13: 3 | D13: 4 | E13: 5 | F13: 6 | G13: 7 | H13: 8 | I13: 9 | J13: 10 | K13: 11 | L13: 12 | M13: 13 | N13: 14 | O13: 15
A14: Центральный аппарат ФНС России
A15: 1 | B15: Управление профессионального развития | N15: 1
B16: Итого: | C16: =SUM(C15:C15) -> 0 | D16: 0 | E16: 0 | F16: 0 | G16: 0 | H16: 0 | I16: 0 | J16: 0 | K16: 0 | L16: 0 | M16: 0 | N16: 1 | O16: 0
A17: Центральный федеральный округ
A18: 1 | B18: Белгородская область
A19: 2 | B19: Брянская область | C19: 1 | H19: 1
A20: 3 | B20: Владимирская область | L20: 1
A21: 4 | B21: Воронежская область | F21: 1 | J21: 1 | M21: 1
A22: 5 | B22: г.Москва | F22: 2 | G22: 2 | J22: 1 | L22: 1
A23: 6 | B23: Ивановская область | M23: 1
A24: 7 | B24: Калужская область | L24: 1
A25: 8 | B25: Костромская область | D25: 1 | M25: 1
A26: 9 | B26: Курская область | H26: 1 | N26: 1
A27: 10 | B27: Липецкая область | C27: 1 | E27: 1 | G27: 1 | I27: 1 | J27: 1 | O27: 1
A28: 11 | B28: МИ ФНС России по камеральному контролю | L28: 1
A29: 12 | B29: МИ ФНС России по КН № 1
A30: 13 | B30: МИ ФНС России по КН № 2
A31: 14 | B31: МИ ФНС России по КН № 3
A32: 15 | B32: МИ ФНС России по КН № 4 | D32: 1
A33: 16 | B33: МИ ФНС России по КН № 5 | N33: 1
A34: 17 | B34: МИ ФНС России по КН № 6 | E34: 1
A35: 18 | B35: МИ ФНС России по КН № 7 | C35: 1
A36: 19 | B36: МИ ФНС России по КН № 9 | O36: 1
A37: 20 | B37: МИ ФНС России по КН № 10
A38: 21 | B38: МИ ФНС России по ценообразованию для целей налогообложения
A39: 22 | B39: МИ ФНС России по Центральному ФО
A40: 23 | B40: МИ ФНС России по ЦОД
A41: 24 | B41: МИ ФНС России по ЦОД №2
A42: 25 | B42: МИ ФНС России по управлению долгом
A43: 26 | B43: МИ ФНС России по контролю и надзору за налогоплательщиками в сфере бюджетного финансирования
A44: 27 | B44: Московская область | C44: 1 | D44: 1 | K44: 1 | N44: 1
A45: 28 | B45: Орловская область | H45: 1 | O45: 1
A46: 29 | B46: Рязанская область | L46: 1 | M46: 1 | N46: 1
A47: 30 | B47: Смоленская область
A48: 31 | B48: Тамбовская область | C48: 1 | I48: 1 | K48: 1 | M48: 1
A49: 32 | B49: Тверская область | K49: 1
A50: 33 | B50: Тульская область | O50: 1
A51: 34 | B51: Ярославская область | J51: 1 | K51: 1
B52: Итого: | C52: =SUM(C18:C51) -> 5 | D52: 3 | E52: 2 | F52: 3 | G52: 3 | H52: 3 | I52: 2 | J52: 4 | K52: 4 | L52: 5 | M52: 5 | N52: 4 | O52: 4
A53: Северо-Западный федеральный округ
A54: 1 | B54: Архангельская область и Ненецкий АО | H54: 1 | L54: 1
A55: 2 | B55: Вологодская область
A56: 3 | B56: г.Санкт- Петербург | I56: 1 | N56: 1
A57: 4 | B57: Калининградская область | O57: 1
A58: 5 | B58: Ленинградская область | J58: 1 | N58: 1
A59: 6 | B59: МИ ФНС России по Северо-Западному ФО
A60: 7 | B60: Мурманская область
A61: 8 | B61: Новгородская область
A62: 9 | B62: Псковская область
A63: 10 | B63: Республика Карелия | H63: 1 | M63: 1
A64: 11 | B64: Республика Коми | D64: 1 | L64: 1
B65: Итого: | C65: =SUM(C54:C64) -> 0 | D65: 1 | E65: 0 | F65: 0 | G65: 0 | H65: 2 | I65: 1 | J65: 1 | K65: 0 | L65: 2 | M65: 1 | N65: 2 | O65: 1
A66: Южный федеральный округ
A67: 1 | B67: Астраханская область | E67: 1 | M67: 1
A68: 2 | B68: Волгоградская область | I68: 1
A69: 3 | B69: г.Севастополь | C69: 1 | J69: 1
A70: 4 | B70: Краснодарский край | D70: 1 | H70: 1 | I70: 1 | O70: 1
A71: 5 | B71: МИ ФНС России по Южному ФО
A72: 6 | B72: Республика Адыгея | J72: 1 | K72: 1
A73: 7 | B73: Республика Калмыкия | C73: 1 | E73: 1 | F73: 1 | K73: 1 | L73: 1
A74: 8 | B74: Республика Крым | D74: 1 | E74: 1 | F74: 1 | G74: 1 | H74: 1 | I74: 1 | L74: 1 | M74: 1 | N74: 1 | O74: 1
A75: 9 | B75: Ростовская область | H75: 1 | J75: 1 | K75: 1 | L75: 1 | M75: 1 | N75: 1
B76: Итого: | C76: =SUM(C67:C75) -> 2 | D76: 2 | E76: 3 | F76: 2 | G76: 1 | H76: 3 | I76: 3 | J76: 3 | K76: 3 | L76: 3 | M76: 3 | N76: 2 | O76: 2
A77: Северо-Кавказский федеральный округ
A78: 1 | B78: Кабардино- Балкарская Республика
A79: 2 | B79: Карачаево- Черкесская Республика | C79: 1 | D79: 1 | K79: 1
A80: 3 | B80: МИ ФНС России по Северо-Кавказскому ФО
A81: 4 | B81: Республика Дагестан | C81: 1 | D81: 1 | E81: 1 | G81: 1 | I81: 1 | J81: 1 | K81: 1 | L81: 1 | M81: 1 | O81: 1
A82: 5 | B82: Республика Ингушетия
A83: 6 | B83: Республика Северная Осетия - Алания | E83: 1 | H83: 1
A84: 7 | B84: Ставропольский край | F84: 1 | I84: 1 | J84: 1 | M84: 1
A85: 8 | B85: Чеченская Республика | H85: 1 | I85: 1
B86: Итого: | C86: =SUM(C78:C85) -> 2 | D86: 2 | E86: 2 | F86: 1 | G86: 1 | H86: 2 | I86: 3 | J86: 2 | K86: 2 | L86: 1 | M86: 2 | N86: 0 | O86: 1
A87: Приволжский федеральный округ
A88: 1 | B88: Кировская область | C88: 1 | D88: 1 | G88: 1 | H88: 1 | J88: 1 | K88: 1 | L88: 1
A89: 2 | B89: МИ ФНС России по Приволжскому ФО | I89: 1 | N89: 1
A90: 3 | B90: Нижегородская область | E90: 1 | F90: 1 | H90: 1 | J90: 1 | K90: 1 | L90: 1 | M90: 1 | O90: 1
A91: 4 | B91: Оренбургская область | C91: 1 | D91: 1 | G91: 1 | I91: 1 | K91: 1 | N91: 1 | O91: 1
A92: 5 | B92: Пензенская область | N92: 1
A93: 6 | B93: Пермский край | H93: 1 | I93: 1 | J93: 2 | K93: 1 | M93: 1 | N93: 3 | O93: 2
A94: 7 | B94: Республика Башкортостан | C94: 1 | E94: 1 | F94: 1 | G94: 1 | H94: 1 | I94: 1 | L94: 1 | N94: 1 | O94: 1
A95: 8 | B95: Республика Марий Эл | J95: 1 | M95: 1
A96: 9 | B96: Республика Мордовия | D96: 1 | H96: 1 | L96: 1 | O96: 1
A97: 10 | B97: Республика Татарстан | F97: 1 | I97: 1 | M97: 1 | N97: 1
A98: 11 | B98: Самарская область | E98: 1 | F98: 1 | G98: 2 | H98: 1 | J98: 1 | K98: 1 | L98: 1 | M98: 1 | O98: 1
A99: 12 | B99: Саратовская область | C99: 1 | L99: 1
A100: 13 | B100: Удмуртская Республика | D100: 1 | F100: 1 | I100: 1 | K100: 1 | M100: 1
A101: 14 | B101: Ульяновская область | L101: 1 | N101: 1
A102: 15 | B102: Чувашская Республика | J102: 1 | K102: 1 | O102: 1
B103: Итого: | C103: =SUM(C88:C102) -> 4 | D103: 4 | E103: 3 | F103: 5 | G103: 5 | H103: 6 | I103: 6 | J103: 7 | K103: 7 | L103: 7 | M103: 6 | N103: 9 | O103: 8
A104: Уральский федеральный округ
A105: 1 | B105: Курганская область | H105: 1 | N105: 1
A106: 2 | B106: МИ ФНС России по Уральскому ФО
A107: 3 | B107: Свердловская область | C107: 1 | E107: 1 | I107: 1 | J107: 1 | K107: 1 | O107: 1
A108: 4 | B108: Тюменская область | D108: 1
A109: 5 | B109: Ханты-Мансийский АО | C109: 1 | D109: 1 | E109: 1 | M109: 1 | N109: 1
A110: 6 | B110: Челябинская область | C110: 1 | E110: 1 | F110: 2 | G110: 3 | H110: 1 | L110: 1 | O110: 1
A111: 7 | B111: Ямало-Ненецкий АО | N111: 1 | O111: 1
B112: Итого: | C112: =SUM(C105:C111) -> 3 | D112: 2 | E112: 3 | F112: 2 | G112: 3 | H112: 2 | I112: 1 | J112: 1 | K112: 1 | L112: 1 | M112: 1 | N112: 3 | O112: 3
A113: Сибирский федеральный округ
A114: 1 | B114: Алтайский край | D114: 1 | F114: 1 | I114: 1 | J114: 1 | K114: 1 | M114: 1 | N114: 1
A115: 2 | B115: Иркутская область | C115: 1 | E115: 1 | F115: 4 | G115: 4
A116: 3 | B116: Кемеровская область | D116: 1
A117: 4 | B117: Красноярский край | C117: 1 | E117: 1 | F117: 1 | G117: 1 | H117: 1 | N117: 1 | O117: 1
A118: 5 | B118: МИ ФНС России по Сибирскому ФО
A119: 6 | B119: Новосибирская область | D119: 1 | L119: 1 | M119: 1
A120: 7 | B120: Омская область
A121: 8 | B121: Республика Алтай | E121: 1
A122: 9 | B122: Республика Тыва | C122: 1 | D122: 1 | G122: 1 | I122: 1
A123: 10 | B123: Республика Хакасия | E123: 1 | F123: 1 | L123: 1
A124: 11 | B124: Томская область | J124: 1 | K124: 1 | M124: 1
B125: Итого: | C125: =SUM(C114:C124) -> 3 | D125: 4 | E125: 4 | F125: 7 | G125: 6 | H125: 1 | I125: 2 | J125: 2 | K125: 2 | L125: 2 | M125: 3 | N125: 2 | O125: 1
A126: Дальневосточный федеральный округ
A127: 1 | B127: Амурская область | C127: 1 | D127: 1 | H127: 1
A128: 2 | B128: Еврейская АО
A129: 3 | B129: Забайкальский край | C129: 1 | E129: 1 | I129: 1 | L129: 1
A130: 4 | B130: Камчатский край | J130: 1 | N130: 1 | O130: 1
A131: 5 | B131: Магаданская область | D131: 1 | H131: 1 | I131: 1 | M131: 1
A132: 6 | B132: МИ ФНС России по Дальневосточному ФО | G132: 1
A133: 7 | B133: Приморский край | C133: 1 | E133: 1 | H133: 1 | J133: 1 | K133: 1 | L133: 1
A134: 8 | B134: Республика Бурятия | D134: 1 | I134: 1 | J134: 1 | M134: 1 | O134: 1
A135: 9 | B135: Республика Саха (Якутия) | E135: 2 | F135: 1 | G135: 1 | H135: 1 | I135: 1 | K135: 1 | N135: 1
A136: 10 | B136: Сахалинская область | J136: 1
A137: 11 | B137: Хабаровский край | C137: 1 | D137: 1 | E137: 1 | F137: 1 | H137: 1 | I137: 1 | L137: 1 | O137: 1
A138: 12 | B138: Чукотский АО
B139: Итого: | C139: =SUM(C127:C138) -> 4 | D139: 4 | E139: 5 | F139: 2 | G139: 2 | H139: 5 | I139: 5 | J139: 4 | K139: 2 | L139: 3 | M139: 2 | N139: 2 | O139: 3
A140: Новые территории Российской Федерации
A141: 1 | B141: Донецкая Народная Республика | C141: 1 | D141: 1 | H141: 1 | J141: 1 | K141: 1 | M141: 1 | N141: 1
A142: 2 | B142: Запорожская область | K142: 1 | O142: 1
A143: 3 | B143: Луганская Народная Республика | C143: 2 | D143: 2 | E143: 2 | I143: 1 | J143: 1 | L143: 1 | M143: 1
A144: 4 | B144: Херсонская область | K144: 1
B145: Итого: | C145: =SUM(C141:C144) -> 3 | D145: 3 | E145: 2 | F145: 0 | G145: 0 | H145: 1 | I145: 1 | J145: 2 | K145: 3 | L145: 1 | M145: 2 | N145: 1 | O145: 1
B146: Всего: | C146: =C145+C139+C125+C112+C103+C86+C76+C65+C52+C16 -> 26 | D146: =D145+D139+D125+D112+D103+D86+D76+D65+D52+D16 -> 25 | E146: 24 | F146: 22 | G146: 21 | H146: 25 | I146: 24 | J146: 26 | K146: 24 | L146: 25 | M146: 25 | N146: 26 | O146: 24

Sheet Прил.27
M1: Приложение № 27
M2: УТВЕРЖДЕН
M3: Приказом ФНС России
M4: от " " 20 г.
M5: №
A7: План-график дополнительного профессионального образования гражданских служащих в "Академии ФНС ЛАБ–Нева" в 2025 году (очная форма обучения)
A8: № п/п | B8: Структурные подразделения ЦА ФНС России, УФНС России по субъектам РФ, межрегиональные инспекции ФНС России | C8: Численность, человек
C9: В том числе по программам повышения квалификации с указанием продолжительности и периодам обучения
C10: Бухгалтерский и налоговый учёт в программном комплексе "1С: Предприятие" в целях налогового контроля | J10: Досудебное урегулирование налоговых споров
C11: (72 часа) | J11: (72 часа)
C12: 14.01-24.01 | D12: 10.02-21.02 | E12: 24.03-04.04 | F12: 07.04-18.04 | G12: 21.04-07.05 | H12: 25.08-05.09 | I12: 08.09-19.09 | J12: 10.02-21.02 | K12: 03.03-14.03 | L12: 30.06-11.07 | M12: 08.12-19.12
A13: 1 | B13: 2 | C13: 3 | D13: 4 | E13: 5 | F13: 6 | G13: 7 | H13: 8 | I13: 9 | J13: 10 | K13: 11 | L13: 12 | M13: 13
A14: Центральный аппарат ФНС России
A15: 1 | B15: Управление профессионального развития
B16: Итого: | C16: =SUM(C15:C15) -> 0 | D16: 0 | E16: 0 | F16: 0 | G16: 0 | H16: 0 | I16: 0 | J16: 0 | K16: 0 | L16: 0 | M16: 0
A17: Центральный федеральный округ
A18: 1 | B18: Белгородская область | C18: 1 | D18: 1 | E18: 1 | F18: 1 | G18: 1 | I18: 1
A19: 2 | B19: Брянская область | H19: 1 | I19: 1 | J19: 1 | M19: 1
A20: 3 | B20: Владимирская область
A21: 4 | B21: Воронежская область | C21: 1 | L21: 1
A22: 5 | B22: г.Москва | D22: 1 | E22: 1 | F22: 1
A23: 6 | B23: Ивановская область | M23: 1
A24: 7 | B24: Калужская область | G24: 1 | H24: 1
A25: 8 | B25: Костромская область | I25: 1
A26: 9 | B26: Курская область
A27: 10 | B27: Липецкая область | C27: 1 | J27: 1 | K27: 1
A28: 11 | B28: МИ ФНС России по камеральному контролю
A29: 12 | B29: МИ ФНС России по КН № 1 | L29: 1
A30: 13 | B30: МИ ФНС России по КН № 2 | D30: 1
A31: 14 | B31: МИ ФНС России по КН № 3
A32: 15 | B32: МИ ФНС России по КН № 4 | E32: 1
A33: 16 | B33: МИ ФНС России по КН № 5 | F33: 1
A34: 17 | B34: МИ ФНС России по КН № 6 | G34: 1 | H34: 1
A35: 18 | B35: МИ ФНС России по КН № 7
A36: 19 | B36: МИ ФНС России по КН № 9
A37: 20 | B37: МИ ФНС России по КН № 10
A38: 21 | B38: МИ ФНС России по ценообразованию для целей налогообложения
A39: 22 | B39: МИ ФНС России по Центральному ФО | I39: 1
A40: 23 | B40: МИ ФНС России по ЦОД
A41: 24 | B41: МИ ФНС России по ЦОД №2
A42: 25 | B42: МИ ФНС России по управлению долгом
A43: 26 | B43: МИ ФНС России по контролю и надзору за налогоплательщиками в сфере бюджетного финансирования
A44: 27 | B44: Московская область | C44: 1 | D44: 1 | M44: 1
A45: 28 | B45: Орловская область | E45: 1 | F45: 1 | J45: 1
A46: 29 | B46: Рязанская область | G46: 1
A47: 30 | B47: Смоленская область | H47: 1 | I47: 1
A48: 31 | B48: Тамбовская область | C48: 1
A49: 32 | B49: Тверская область | D49: 1 | E49: 1 | K49: 1
A50: 33 | B50: Тульская область | F50: 1
A51: 34 | B51: Ярославская область | G51: 1 | H51: 1 | I51: 1
B52: Итого: | C52: =SUM(C18:C51) -> 5 | D52: 5 | E52: 5 | F52: 5 | G52: 5 | H52: 5 | I52: 6 | J52: 3 | K52: 2 | L52: 2 | M52: 3
A53: Северо-Западный федеральный округ
A54: 1 | B54: Архангельская область и Ненецкий АО | C54: 1 | D54: 1
A55: 2 | B55: Вологодская область
A56: 3 | B56: г.Санкт- Петербург | E56: 1 | F56: 1 | G56: 1 | H56: 1 | I56: 1
A57: 4 | B57: Калининградская область | C57: 1 | L57: 1
A58: 5 | B58: Ленинградская область | J58: 1 | M58: 1
A59: 6 | B59: МИ ФНС России по Северо-Западному ФО
A60: 7 | B60: Мурманская область | D60: 1
A61: 8 | B61: Новгородская область
A62: 9 | B62: Псковская область | D62: 1
A63: 10 | B63: Республика Карелия | E63: 1 | F63: 1 | G63: 1
A64: 11 | B64: Республика Коми
B65: Итого: | C65: =SUM(C54:C64) -> 2 | D65: =SUM(D54:D64) -> 3 | E65: 2 | F65: 2 | G65: 2 | H65: 1 | I65: 1 | J65: 1 | K65: 0 | L65: 1 | M65: 1
A66: Южный федеральный округ
A67: 1 | B67: Астраханская область
A68: 2 | B68: Волгоградская область | H68: 1
A69: 3 | B69: г.Севастополь | I69: 1
A70: 4 | B70: Краснодарский край
A71: 5 | B71: МИ ФНС России по Южному ФО | K71: 1 | L71: 1
A72: 6 | B72: Республика Адыгея
A73: 7 | B73: Республика Калмыкия | M73: 1
A74: 8 | B74: Республика Крым | C74: 2 | E74: 1 | F74: 1 | G74: 1 | H74: 1 | I74: 1 | J74: 1
A75: 9 | B75: Ростовская область | D75: 1 | E75: 1
B76: Итого: | C76: =SUM(C67:C75) -> 2 | D76: 1 | E76: 2 | F76: 1 | G76: 1 | H76: 2 | I76: 2 | J76: 1 | K76: 1 | L76: 1 | M76: 1
A77: Северо-Кавказский федеральный округ
A78: 1 | B78: Кабардино- Балкарская Республика | F78: 1 | G78: 1
A79: 2 | B79: Карачаево- Черкесская Республика | K79: 1
A80: 3 | B80: МИ ФНС России по Северо-Кавказскому ФО | L80: 1 | M80: 1
A81: 4 | B81: Республика Дагестан | C81: 1 | D81: 1 | H81: 1 | I81: 1
A82: 5 | B82: Республика Ингушетия
A83: 6 | B83: Республика Северная Осетия - Алания | E83: 1 | F83: 1 | G83: 1 | J83: 1
A84: 7 | B84: Ставропольский край | C84: 1 | H84: 1 | I84: 1 | K84: 1 | L84: 1
A85: 8 | B85: Чеченская Республика
B86: Итого: | C86: =SUM(C78:C85) -> 2 | D86: 1 | E86: 1 | F86: 2 | G86: 2 | H86: 2 | I86: 2 | J86: 1 | K86: 2 | L86: 2 | M86: 1
A87: Приволжский федеральный округ
A88: 1 | B88: Кировская область | D88: 1 | E88: 1 | F88: 1 | G88: 1 | H88: 1 | I88: 1
A89: 2 | B89: МИ ФНС России по Приволжскому ФО | J89: 1 | K89: 1 | L89: 1 | M89: 1
A90: 3 | B90: Нижегородская область | C90: 1 | D90: 1 | J90: 1 | K90: 1 | M90: 1
A91: 4 | B91: Оренбургская область | E91: 1 | F91: 1 | L91: 1
A92: 5 | B92: Пензенская область | G92: 1
A93: 6 | B93: Пермский край | C93: 1 | D93: 1 | E93: 1 | F93: 1 | G93: 1 | H93: 2 | I93: 2 | J93: 1 | K93: 1 | M93: 1
A94: 7 | B94: Республика Башкортостан | C94: 1 | D94: 1 | E94: 1 | F94: 2 | G94: 2 | H94: 2 | I94: 2 | L94: 1
A95: 8 | B95: Республика Марий Эл
A96: 9 | B96: Республика Мордовия | C96: 1 | J96: 1 | M96: 1
A97: 10 | B97: Республика Татарстан | D97: 1 | E97: 1 | F97: 1 | J97: 1 | K97: 1 | L97: 1 | M97: 1
A98: 11 | B98: Самарская область | G98: 1 | H98: 1 | J98: 1 | K98: 1 | L98: 1 | M98: 1
A99: 12 | B99: Саратовская область | C99: 1 | I99: 1 | J99: 1 | K99: 2 | L99: 2 | M99: 1
A100: 13 | B100: Удмуртская Республика | D100: 1
A101: 14 | B101: Ульяновская область
A102: 15 | B102: Чувашская Республика | E102: 1
B103: Итого: | C103: =SUM(C88:C102) -> 5 | D103: 6 | E103: 6 | F103: 6 | G103: 6 | H103: 6 | I103: 6 | J103: 7 | K103: 7 | L103: 7 | M103: 7
A104: Уральский федеральный округ
A105: 1 | B105: Курганская область | F105: 1 | M105: 1
A106: 2 | B106: МИ ФНС России по Уральскому ФО | J106: 1
A107: 3 | B107: Свердловская область | G107: 1 | H107: 1 | I107: 1
A108: 4 | B108: Тюменская область | K108: 1 | L108: 1 | M108: 1
A109: 5 | B109: Ханты-Мансийский АО | C109: 1 | D109: 1 | E109: 1 | J109: 1
A110: 6 | B110: Челябинская область | C110: 1 | F110: 1 | G110: 1 | H110: 1 | I110: 1 | J110: 1 | K110: 2 | L110: 2 | M110: 1
A111: 7 | B111: Ямало-Ненецкий АО | M111: 1
B112: Итого: | C112: =SUM(C105:C111) -> 2 | D112: 1 | E112: 1 | F112: 2 | G112: 2 | H112: 2 | I112: 2 | J112: 3 | K112: 3 | L112: 3 | M112: 4
A113: Сибирский федеральный округ
A114: 1 | B114: Алтайский край | D114: 1 | J114: 1 | K114: 1
A115: 2 | B115: Иркутская область | C115: 1 | E115: 1 | F115: 1 | G115: 1 | H115: 1 | I115: 1 | J115: 2 | K115: 1 | L115: 2 | M115: 2
A116: 3 | B116: Кемеровская область | D116: 1
A117: 4 | B117: Красноярский край | E117: 1 | F117: 1 | G117: 1 | J117: 1 | K117: 2 | L117: 1 | M117: 1
A118: 5 | B118: МИ ФНС России по Сибирскому ФО
A119: 6 | B119: Новосибирская область | H119: 1 | L119: 1
A120: 7 | B120: Омская область | I120: 1 | J120: 1 | K120: 1 | M120: 1
A121: 8 | B121: Республика Алтай | C121: 1 | L121: 1
A122: 9 | B122: Республика Тыва | D122: 1 | E122: 1
A123: 10 | B123: Республика Хакасия
A124: 11 | B124: Томская область | F124: 1 | G124: 1 | H124: 1 | J124: 1 | M124: 1
B125: Итого: | C125: =SUM(C114:C124) -> 2 | D125: 3 | E125: 3 | F125: 3 | G125: 3 | H125: 3 | I125: 2 | J125: 6 | K125: 5 | L125: 5 | M125: 5
A126: Дальневосточный федеральный округ
A127: 1 | B127: Амурская область | I127: 1
A128: 2 | B128: Еврейская АО
A129: 3 | B129: Забайкальский край | C129: 1
A130: 4 | B130: Камчатский край
A131: 5 | B131: Магаданская область | D131: 1
A132: 6 | B132: МИ ФНС России по Дальневосточному ФО | E132: 1
A133: 7 | B133: Приморский край | F133: 1 | G133: 1 | H133: 1 | I133: 1 | J133: 1 | K133: 2 | L133: 1 | M133: 1
A134: 8 | B134: Республика Бурятия | L134: 1
A135: 9 | B135: Республика Саха (Якутия) | C135: 1 | D135: 1 | E135: 1 | F135: 1 | G135: 1 | H135: 1 | I135: 1
A136: 10 | B136: Сахалинская область
A137: 11 | B137: Хабаровский край | C137: 1 | D137: 1 | E137: 1 | J137: 1 | M137: 1
A138: 12 | B138: Чукотский АО
B139: Итого: | C139: =SUM(C127:C138) -> 3 | D139: 3 | E139: 3 | F139: 2 | G139: 2 | H139: 2 | I139: 3 | J139: 2 | K139: 2 | L139: 2 | M139: 2
A140: Новые территории Российской Федерации
A141: 1 | B141: Донецкая Народная Республика | F141: 1 | G141: 1 | H141: 1 | I141: 1 | J141: 1 | K141: 1 | L141: 1 | M141: 1
A142: 2 | B142: Запорожская область
A143: 3 | B143: Луганская Народная Республика | C143: 1 | D143: 1 | E143: 1 | K143: 1 | L143: 1
A144: 4 | B144: Херсонская область
B145: Итого: | C145: =SUM(C141:C144) -> 1 | D145: =SUM(D141:D144) -> 1 | E145: 1 | F145: 1 | G145: 1 | H145: 1 | I145: 1 | J145: 1 | K145: 2 | L145: 2 | M145: 1
B146: Всего: | C146: =C145+C139+C125+C112+C103+C86+C76+C65+C52+C16 -> 24 | D146: =D145+D139+D125+D112+D103+D86+D76+D65+D52+D16 -> 24 | E146: 24 | F146: 24 | G146: 24 | H146: 24 | I146: 25 | J146: 25 | K146: 24 | L146: 25 | M146: 25

Sheet Прил.28
W1: Приложение № 28
W2: УТВЕРЖДЕН
W3: Приказом ФНС России
W4: от " " 20 г.
W5: №
A7: План-график дополнительного профессионального образования гражданских служащих в в "Академии ФНС ЛАБ–Нева" в 2025 году (очная форма обучения)
A8: № п/п | B8: Структурные подразделения ЦА ФНС России, УФНС России по субъектам РФ, межрегиональные инспекции ФНС России | C8: Численность, человек
C9: В том числе по программам повышения квалификации с указанием продолжительности, группам и категориям должностей и периодам обучения
C10: Камеральный контроль по устранению расхождений в налоговой декларации по НДС с использованием аналитических систем ФНС России | H10: Контрольно-аналитическая работа налоговых органов по устранению «налоговых разрывов» | O10: Лидерство и развитие высокоэффективных команд (повышенный уровень) | Q10: Налог на добавленную стоимость (повышенный уровень) | V10: Налог на добавленную стоимость (мастерский уровень)
C11: (72 часа) | H11: (72 часа) | O11: (72 часа) | Q11: (72 часа) | V11: (72 часа)
C12: 07.04-18.04 | D12: 25.08-05.09 | E12: 22.09-03.10 | F12: 20.10-31.10 | G12: 01.12-12.12 | H12: 10.02-21.02 | I12: 21.04-07.05 | J12: 16.06-27.06 | K12: 08.09-19.09 | L12: 06.10-17.10 | M12: 05.11-14.11 | N12: 08.12-19.12 | O12: 24.03-04.04 | P12: 06.10-17.10 | Q12: 14.01-24.01 | R12: 24.02-07.03 | S12: 24.03-04.04 | T12: 12.05-23.05 | U12: 17.11-28.11 | V12: 30.06-11.07 | W12: 24.11-05.12
A13: 1 | B13: 2 | C13: 3 | D13: 4 | E13: 5 | F13: 6 | G13: 7 | H13: 8 | I13: 9 | J13: 10 | K13: 11 | L13: 12 | M13: 13 | N13: 14 | O13: 15 | P13: 16 | Q13: 17 | R13: 18 | S13: 19 | T13: 20 | U13: 21 | V13: 22 | W13: 23
A14: Центральный аппарат ФНС России
A15: 1 | B15: Управление профессионального развития
B16: Итого: | C16: =SUM(C15:C15) -> 0 | D16: 0 | E16: 0 | G16: 0 | H16: 0 | I16: 0 | J16: 0 | K16: 0 | L16: 0 | M16: 0 | N16: 0 | O16: 0 | P16: 0 | Q16: 0 | R16: 0 | S16: 0 | T16: 0 | U16: 0 | V16: 0 | W16: 0
A17: Центральный федеральный округ
A18: 1 | B18: Белгородская область | C18: 1 | D18: 1 | H18: 1 | I18: 1 | J18: 1
A19: 2 | B19: Брянская область | K19: 1
A20: 3 | B20: Владимирская область | E20: 1 | L20: 1 | V20: 1
A21: 4 | B21: Воронежская область | C21: 1 | G21: 1 | H21: 1 | M21: 1 | N21: 1 | Q21: 1 | R21: 1
A22: 5 | B22: г.Москва | D22: 1 | I22: 1 | J22: 1 | O22: 1
A23: 6 | B23: Ивановская область | K23: 1 | P23: 1 | S23: 1 | W23: 1
A24: 7 | B24: Калужская область | E24: 1 | L24: 1 | Q24: 1 | R24: 1 | T24: 1 | U24: 1
A25: 8 | B25: Костромская область | D25: 1 | O25: 1
A26: 9 | B26: Курская область | S26: 1 | V26: 1
A27: 10 | B27: Липецкая область | H27: 1 | I27: 1 | L27: 1 | N27: 1 | T27: 1 | V27: 1 | W27: 1
A28: 11 | B28: МИ ФНС России по камеральному контролю
A29: 12 | B29: МИ ФНС России по КН № 1 | C29: 1 | P29: 1
A30: 13 | B30: МИ ФНС России по КН № 2 | H30: 1
A31: 14 | B31: МИ ФНС России по КН № 3 | K31: 1 | L31: 1
A32: 15 | B32: МИ ФНС России по КН № 4 | M32: 1
A33: 16 | B33: МИ ФНС России по КН № 5 | D33: 1 | L33: 1 | N33: 1 | U33: 1
A34: 17 | B34: МИ ФНС России по КН № 6
A35: 18 | B35: МИ ФНС России по КН № 7 | E35: 1 | G35: 1
A36: 19 | B36: МИ ФНС России по КН № 9
A37: 20 | B37: МИ ФНС России по КН № 10
A38: 21 | B38: МИ ФНС России по ценообразованию для целей налогообложения | O38: 1
A39: 22 | B39: МИ ФНС России по Центральному ФО | Q39: 1 | R39: 1
A40: 23 | B40: МИ ФНС России по ЦОД
A41: 24 | B41: МИ ФНС России по ЦОД №2
A42: 25 | B42: МИ ФНС России по управлению долгом
A43: 26 | B43: МИ ФНС России по контролю и надзору за налогоплательщиками в сфере бюджетного финансирования
A44: 27 | B44: Московская область | C44: 2 | D44: 1 | E44: 1 | G44: 1 | P44: 1 | S44: 1
A45: 28 | B45: Орловская область | D45: 1 | H45: 1 | I45: 1 | J45: 1 | T45: 1 | U45: 1 | V45: 1 | W45: 1
A46: 29 | B46: Рязанская область
A47: 30 | B47: Смоленская область
A48: 31 | B48: Тамбовская область | V48: 1 | W48: 1
A49: 32 | B49: Тверская область | H49: 1 | I49: 1 | K49: 1 | L49: 1 | M49: 1 | N49: 1
A50: 33 | B50: Тульская область | C50: 1 | E50: 1 | G50: 1 | J50: 1 | O50: 1 | P50: 1 | Q50: 1 | R50: 1
A51: 34 | B51: Ярославская область
B52: Итого: | C52: =SUM(C18:C51) -> 6 | D52: =SUM(D18:D51) -> 6 | E52: 5 | F52: 0 | G52: 4 | H52: 6 | I52: 5 | J52: 4 | K52: 4 | L52: 6 | M52: 3 | N52: 4 | O52: 4 | P52: 4 | Q52: 4 | R52: 4 | S52: 3 | T52: 3 | U52: 3 | V52: 5 | W52: 4
A53: Северо-Западный федеральный округ
A54: 1 | B54: Архангельская область и Ненецкий АО | K54: 1 | L54: 1 | S54: 1 | W54: 1
A55: 2 | B55: Вологодская область
A56: 3 | B56: г.Санкт- Петербург | J56: 1 | T56: 1 | V56: 1
A57: 4 | B57: Калининградская область | D57: 1 | E57: 1 | N57: 1 | O57: 2 | P57: 1 | Q57: 1 | U57: 1
A58: 5 | B58: Ленинградская область
A59: 6 | B59: МИ ФНС России по Северо-Западному ФО
A60: 7 | B60: Мурманская область | H60: 1
A61: 8 | B61: Новгородская область | G61: 1 | I61: 1 | P61: 1 | R61: 1 | S61: 1 | T61: 1
A62: 9 | B62: Псковская область | C62: 1 | L62: 1
A63: 10 | B63: Республика Карелия | D63: 1 | E63: 1 | F63: 1 | K63: 1
A64: 11 | B64: Республика Коми | O64: 1
B65: Итого: | C65: =SUM(C54:C64) -> 1 | D65: =SUM(D54:D64) -> 2 | E65: 2 | F65: 1 | G65: 1 | H65: 1 | I65: 1 | J65: 1 | K65: 2 | L65: 2 | M65: 0 | N65: 1 | O65: 3 | P65: 2 | Q65: 1 | R65: 1 | S65: 2 | T65: 2 | U65: 1 | V65: 1 | W65: 1
A66: Южный федеральный округ
A67: 1 | B67: Астраханская область | G67: 1
A68: 2 | B68: Волгоградская область | C68: 1 | D68: 1 | F68: 1 | M68: 1
A69: 3 | B69: г.Севастополь | U69: 1
A70: 4 | B70: Краснодарский край | E70: 1 | G70: 1 | M70: 1 | N70: 1 | Q70: 1 | R70: 1 | S70: 1 | T70: 1 | V70: 1 | W70: 1
A71: 5 | B71: МИ ФНС России по Южному ФО | C71: 1 | H71: 1 | P71: 1 | W71: 1
A72: 6 | B72: Республика Адыгея
A73: 7 | B73: Республика Калмыкия
A74: 8 | B74: Республика Крым | I74: 1 | J74: 1 | K74: 1 | L74: 1 | M74: 1 | N74: 1
A75: 9 | B75: Ростовская область | H75: 1 | I75: 1 | V75: 3 | W75: 2
B76: Итого: | C76: =SUM(C67:C75) -> 2 | D76: 1 | E76: 1 | F76: 1 | G76: 2 | H76: 2 | I76: 2 | J76: 1 | K76: 1 | L76: 1 | M76: 3 | N76: 2 | O76: 0 | P76: 1 | Q76: 1 | R76: 1 | S76: 1 | T76: 1 | U76: 1 | V76: 4 | W76: 4
A77: Северо-Кавказский федеральный округ
A78: 1 | B78: Кабардино- Балкарская Республика | O78: 1
A79: 2 | B79: Карачаево- Черкесская Республика | I79: 1 | U79: 1
A80: 3 | B80: МИ ФНС России по Северо-Кавказскому ФО
A81: 4 | B81: Республика Дагестан | D81: 1 | E81: 1 | G81: 1 | K81: 1 | L81: 1 | N81: 1 | P81: 1 | Q81: 1 | R81: 1 | S81: 1 | T81: 1 | U81: 1 | V81: 2 | W81: 2
A82: 5 | B82: Республика Ингушетия | C82: 1
A83: 6 | B83: Республика Северная Осетия - Алания | D83: 1
A84: 7 | B84: Ставропольский край | E84: 1 | G84: 1 | H84: 1 | I84: 1 | N84: 1 | O84: 1
A85: 8 | B85: Чеченская Республика
B86: Итого: | C86: =SUM(C78:C85) -> 1 | D86: =SUM(D78:D85) -> 2 | E86: 2 | F86: 0 | G86: 2 | H86: 1 | I86: 2 | J86: 0 | K86: 1 | L86: 1 | M86: 0 | N86: 2 | O86: 2 | P86: 1 | Q86: 1 | R86: 1 | S86: 1 | T86: 1 | U86: 2 | V86: 2 | W86: 2
A87: Приволжский федеральный округ
A88: 1 | B88: Кировская область | C88: 1 | D88: 1 | I88: 1 | Q88: 1 | R88: 1 | S88: 1 | T88: 1 | U88: 1 | V88: 1 | W88: 1
A89: 2 | B89: МИ ФНС России по Приволжскому ФО
A90: 3 | B90: Нижегородская область | C90: 1 | E90: 1 | F90: 1 | G90: 1 | K90: 1 | L90: 1 | M90: 1 | N90: 1 | O90: 1 | P90: 1 | Q90: 1 | R90: 1 | S90: 1 | V90: 2 | W90: 1
A91: 4 | B91: Оренбургская область | D91: 1 | E91: 1 | H91: 1 | I91: 1 | J91: 1 | K91: 1 | P91: 1 | Q91: 1 | T91: 1 | U91: 1
A92: 5 | B92: Пензенская область | L92: 1 | R92: 1 | S92: 1 | V92: 1 | W92: 1
A93: 6 | B93: Пермский край | C93: 1 | F93: 1 | G93: 1 | H93: 1 | M93: 1 | N93: 1 | O93: 1 | P93: 1 | T93: 1 | U93: 1 | W93: 1
A94: 7 | B94: Республика Башкортостан | D94: 1 | E94: 1 | F94: 2 | G94: 1 | H94: 1 | I94: 2 | J94: 2 | K94: 2 | L94: 1 | M94: 1 | N94: 1 | O94: 1 | Q94: 1 | R94: 1 | S94: 1 | T94: 1
A95: 8 | B95: Республика Марий Эл | C95: 1 | L95: 1
A96: 9 | B96: Республика Мордовия
A97: 10 | B97: Республика Татарстан | D97: 1 | E97: 1 | H97: 2 | I97: 2 | J97: 1 | K97: 1 | L97: 1 | M97: 2 | N97: 2 | O97: 1 | P97: 1 | Q97: 2 | R97: 1 | S97: 1 | T97: 1 | U97: 2 | V97: 1 | W97: 1
A98: 11 | B98: Самарская область | C98: 1 | F98: 2 | G98: 1 | H98: 1 | I98: 1 | J98: 2 | K98: 1 | L98: 1 | M98: 1 | N98: 1 | P98: 1 | R98: 1 | S98: 1 | W98: 1
A99: 12 | B99: Саратовская область | D99: 1 | O99: 1 | Q99: 1 | T99: 1 | U99: 1 | V99: 1
A100: 13 | B100: Удмуртская Республика | E100: 1
A101: 14 | B101: Ульяновская область | K101: 1 | L101: 1 | R101: 1
A102: 15 | B102: Чувашская Республика | G102: 1 | S102: 1 | T102: 1
B103: Итого: | C103: =SUM(C88:C102) -> 5 | D103: 5 | E103: 5 | F103: 6 | G103: 5 | H103: 6 | I103: 7 | J103: 6 | K103: 7 | L103: 7 | M103: 6 | N103: 6 | O103: 5 | P103: 5 | Q103: 7 | R103: 7 | S103: 7 | T103: 7 | U103: 6 | V103: 6 | W103: 6
A104: Уральский федеральный округ
A105: 1 | B105: Курганская область | P105: 1 | U105: 1
A106: 2 | B106: МИ ФНС России по Уральскому ФО | C106: 1 | M106: 1
A107: 3 | B107: Свердловская область | D107: 1 | E107: 1 | G107: 1 | H107: 1 | I107: 1 | N107: 1 | O107: 1 | Q107: 1
A108: 4 | B108: Тюменская область | C108: 1 | J108: 1 | K108: 1 | R108: 1 | S108: 1 | T108: 1 | U108: 1 | V108: 1 | W108: 1
A109: 5 | B109: Ханты-Мансийский АО | D109: 1 | L109: 1 | Q109: 1
A110: 6 | B110: Челябинская область | C110: 1 | E110: 1 | F110: 4 | G110: 1 | H110: 1 | I110: 1 | J110: 1 | M110: 1 | N110: 1 | O110: 1 | P110: 1 | R110: 1 | S110: 1 | T110: 1 | U110: 1 | V110: 1 | W110: 1
A111: 7 | B111: Ямало-Ненецкий АО | K111: 1 | Q111: 1 | W111: 1
B112: Итого: | C112: =SUM(C105:C111) -> 3 | D112: =SUM(D105:D111) -> 2 | E112: 2 | F112: 4 | G112: 2 | H112: 2 | I112: 2 | J112: 2 | K112: 2 | L112: 1 | M112: 2 | N112: 2 | O112: 2 | P112: 2 | Q112: 3 | R112: 2 | S112: 2 | T112: 2 | U112: 3 | V112: 2 | W112: 3
A113: Сибирский федеральный округ
A114: 1 | B114: Алтайский край | D114: 1 | L114: 1 | R114: 1 | S114: 1 | T114: 1
A115: 2 | B115: Иркутская область | C115: 1 | D115: 1 | E115: 1 | F115: 2 | G115: 1 | H115: 1 | I115: 1 | J115: 1 | M115: 1 | N115: 1 | O115: 1 | P115: 2 | Q115: 1 | R115: 1 | S115: 1 | U115: 1
A116: 3 | B116: Кемеровская область | E116: 1 | G116: 1 | T116: 1
A117: 4 | B117: Красноярский край | C117: 1 | D117: 1 | E117: 1 | F117: 2 | K117: 1 | L117: 1 | M117: 1 | N117: 1 | O117: 1 | V117: 1 | W117: 1
A118: 5 | B118: МИ ФНС России по Сибирскому ФО
A119: 6 | B119: Новосибирская область | H119: 1 | U119: 1
A120: 7 | B120: Омская область | I120: 1 | P120: 1 | Q120: 1
A121: 8 | B121: Республика Алтай
A122: 9 | B122: Республика Тыва | C122: 1 | G122: 1 | J122: 1 | K122: 1 | L122: 1 | M122: 1
A123: 10 | B123: Республика Хакасия | D123: 1 | N123: 1 | O123: 1
A124: 11 | B124: Томская область | H124: 1 | I124: 1 | J124: 1 | R124: 1 | S124: 1 | T124: 1
B125: Итого: | C125: =SUM(C114:C124) -> 3 | D125: =SUM(D114:D124) -> 4 | E125: 3 | F125: 4 | G125: 3 | H125: 3 | I125: 3 | J125: 3 | K125: 2 | L125: 3 | M125: 3 | N125: 3 | O125: 3 | P125: 3 | Q125: 2 | R125: 3 | S125: 3 | T125: 3 | U125: 2 | V125: 1 | W125: 1
A126: Дальневосточный федеральный округ
A127: 1 | B127: Амурская область | K127: 1 | L127: 1 | M127: 1 | N127: 1 | Q127: 1 | R127: 1 | U127: 1
A128: 2 | B128: Еврейская АО | E128: 1
A129: 3 | B129: Забайкальский край | G129: 1 | H129: 1 | P129: 1 | S129: 1 | T129: 1
A130: 4 | B130: Камчатский край | I130: 1 | J130: 1
A131: 5 | B131: Магаданская область
A132: 6 | B132: МИ ФНС России по Дальневосточному ФО | K132: 1 | O132: 1 | U132: 1
A133: 7 | B133: Приморский край | C133: 1 | F133: 1 | H133: 1 | I133: 1 | J133: 1 | K133: 1 | L133: 1 | M133: 1 | N133: 1 | Q133: 1
A134: 8 | B134: Республика Бурятия | R134: 1 | S134: 1 | V134: 2 | W134: 1
A135: 9 | B135: Республика Саха (Якутия) | C135: 1 | D135: 1 | E135: 1 | G135: 1 | H135: 1 | L135: 1 | M135: 1 | N135: 1 | O135: 1 | P135: 1 | Q135: 1 | R135: 1 | T135: 1 | U135: 1 | V135: 2 | W135: 1
A136: 10 | B136: Сахалинская область | E136: 1
A137: 11 | B137: Хабаровский край | C137: 1 | D137: 1 | E137: 1 | F137: 2 | G137: 1 | I137: 1 | J137: 1 | K137: 1 | L137: 1 | S137: 1 | T137: 1 | U137: 1 | W137: 1
A138: 12 | B138: Чукотский АО | Q138: 1
B139: Итого: | C139: =SUM(C127:C138) -> 3 | D139: =SUM(D127:D138) -> 2 | E139: 4 | F139: 3 | G139: 3 | H139: 3 | I139: 3 | J139: 3 | K139: 4 | L139: 4 | M139: 3 | N139: 3 | O139: 2 | P139: 2 | Q139: 4 | R139: 3 | S139: 3 | T139: 3 | U139: 4 | V139: 4 | W139: 3
A140: Новые территории Российской Федерации
A141: 1 | B141: Донецкая Народная Республика | G141: 1 | H141: 1 | M141: 1 | N141: 1 | O141: 1 | P141: 2 | R141: 1
A142: 2 | B142: Запорожская область
A143: 3 | B143: Луганская Народная Республика | C143: 1 | D143: 1 | E143: 1 | F143: 3 | G143: 1 | I143: 1 | J143: 1 | K143: 1 | L143: 1 | M143: 1 | P143: 1 | S143: 1
A144: 4 | B144: Херсонская область
B145: Итого: | C145: =SUM(C141:C144) -> 1 | D145: =SUM(D141:D144) -> 1 | E145: 1 | F145: 3 | G145: 2 | H145: 1 | I145: 1 | J145: 1 | K145: 1 | L145: 1 | M145: 2 | N145: 1 | O145: 1 | P145: 3 | Q145: 0 | R145: 1 | S145: 1 | T145: 0 | U145: 0 | V145: 0 | W145: 0
B146: Всего: | C146: =C145+C139+C125+C112+C103+C86+C76+C65+C52+C16 -> 25 | D146: =D145+D139+D125+D112+D103+D86+D76+D65+D52+D16 -> 25 | E146: 25 | F146: 22 | G146: 24 | H146: 25 | I146: 26 | J146: 21 | K146: 24 | L146: 26 | M146: 22 | N146: 24 | O146: 22 | P146: 23 | Q146: 23 | R146: 23 | S146: 23 | T146: 22 | U146: 22 | V146: 25 | W146: 24

Sheet Прил.29
O1: Приложение № 29
O2: УТВЕРЖДЕНО
O3: приказом ФНС России
O4: от " " 20 г.
O5: №
A7: План-график дополнительного профессионального образования гражданских служащих в "Академии ФНС ЛАБ–Нева" в 2025 году (очная форма обучения)
A8: № п/п | B8: Структурные подразделения ЦА ФНС России, УФНС России по субъектам РФ, межрегиональные инспекции ФНС России | C8: Численность, человек
C9: В том числе по программам повышения квалификации с указанием продолжительности и периодам обучения
C10: Налогообложение доходов физических лиц (мастерский уровень) | G10: Налогообложение при применении специальных налоговых режимов (повышенный уровень) | J10: Налогообложение при применении специальных налоговых режимов (мастерский уровень) | L10: Налогообложение прибыли организаций (повышенный уровень) | N10: Налогообложение прибыли организаций (мастерский уровень)
C11: (72 часа) | G11: (72 часа) | J11: (72 часа) | L11: (72 часа) | N11: (72 часа)
C12: 14.01-24.01 | D12: 12.05-23.05 | E12: 26.05-06.06 | F12: 10.11-21.11 | G12: 10.03-21.03 | H12: 09.06-20.06 | I12: 29.09-10.10 | J12: 21.04-07.05 | K12: 25.08-05.09 | L12: 14.01-24.01 | M12: 27.01-07.02 | N12: 24.03-04.04 | O12: 01.12-12.12
A13: 1 | B13: 2 | C13: 3 | D13: 4 | E13: 5 | F13: 6 | G13: 7 | H13: 8 | I13: 9 | J13: 10 | K13: 11 | L13: 12 | M13: 13 | N13: 14 | O13: 15
A14: Центральный аппарат ФНС России
A15: 1 | B15: Управление профессионального развития
B16: Итого: | C16: =SUM(C15:C15) -> 0 | D16: 0 | E16: 0 | F16: 0 | G16: 0 | H16: 0 | I16: 0 | J16: 0 | K16: 0 | L16: 0 | M16: 0 | N16: 0 | O16: 0
A17: Центральный федеральный округ
A18: 1 | B18: Белгородская область | C18: 1 | D18: 1 | G18: 1 | J18: 1 | M18: 1
A19: 2 | B19: Брянская область | E19: 1
A20: 3 | B20: Владимирская область | F20: 1 | L20: 1
A21: 4 | B21: Воронежская область | C21: 1
A22: 5 | B22: г.Москва | C22: 1 | E22: 1 | J22: 1 | K22: 2
A23: 6 | B23: Ивановская область
A24: 7 | B24: Калужская область
A25: 8 | B25: Костромская область | C25: 1 | F25: 1 | I25: 1 | J25: 1 | K25: 1
A26: 9 | B26: Курская область
A27: 10 | B27: Липецкая область | G27: 1 | I27: 1
A28: 11 | B28: МИ ФНС России по камеральному контролю
A29: 12 | B29: МИ ФНС России по КН № 1 | L29: 1 | N29: 1
A30: 13 | B30: МИ ФНС России по КН № 2
A31: 14 | B31: МИ ФНС России по КН № 3
A32: 15 | B32: МИ ФНС России по КН № 4 | L32: 1 | M32: 1
A33: 16 | B33: МИ ФНС России по КН № 5 | L33: 2 | M33: 2
A34: 17 | B34: МИ ФНС России по КН № 6
A35: 18 | B35: МИ ФНС России по КН № 7 | D35: 1 | O35: 1
A36: 19 | B36: МИ ФНС России по КН № 9 | E36: 1
A37: 20 | B37: МИ ФНС России по КН № 10
A38: 21 | B38: МИ ФНС России по ценообразованию для целей налогообложения
A39: 22 | B39: МИ ФНС России по Центральному ФО | F39: 1 | M39: 1 | N39: 1
A40: 23 | B40: МИ ФНС России по ЦОД
A41: 24 | B41: МИ ФНС России по ЦОД №2
A42: 25 | B42: МИ ФНС России по управлению долгом
A43: 26 | B43: МИ ФНС России по контролю и надзору за налогоплательщиками в сфере бюджетного финансирования
A44: 27 | B44: Московская область | K44: 1
A45: 28 | B45: Орловская область | O45: 1
A46: 29 | B46: Рязанская область | C46: 1
A47: 30 | B47: Смоленская область
A48: 31 | B48: Тамбовская область | D48: 1 | E48: 1 | H48: 1 | L48: 1
A49: 32 | B49: Тверская область | C49: 1 | F49: 1 | G49: 1 | J49: 1
A50: 33 | B50: Тульская область | D50: 1
A51: 34 | B51: Ярославская область | E51: 1
B52: Итого: | C52: =SUM(C18:C51) -> 6 | D52: =SUM(D18:D51) -> 4 | E52: 5 | F52: 4 | G52: 3 | H52: 1 | I52: 2 | J52: 4 | K52: 4 | L52: 6 | M52: 5 | N52: 2 | O52: 2
A53: Северо-Западный федеральный округ
A54: 1 | B54: Архангельская область и Ненецкий АО | F54: 1 | G54: 1 | H54: 1 | I54: 1 | K54: 1
A55: 2 | B55: Вологодская область
A56: 3 | B56: г.Санкт- Петербург | C56: 1
A57: 4 | B57: Калининградская область | J57: 1
A58: 5 | B58: Ленинградская область
A59: 6 | B59: МИ ФНС России по Северо-Западному ФО
A60: 7 | B60: Мурманская область | D60: 1
A61: 8 | B61: Новгородская область | E61: 1
A62: 9 | B62: Псковская область | F62: 1
A63: 10 | B63: Республика Карелия | C63: 1 | D63: 1 | H63: 1 | I63: 1 | K63: 1
A64: 11 | B64: Республика Коми | G64: 1
B65: Итого: | C65: =SUM(C54:C64) -> 2 | D65: =SUM(D54:D64) -> 2 | E65: 1 | F65: 2 | G65: 2 | H65: 2 | I65: 2 | J65: 1 | K65: 2 | L65: 0 | M65: 0 | N65: 0 | O65: 0
A66: Южный федеральный округ
A67: 1 | B67: Астраханская область | E67: 1 | F67: 1
A68: 2 | B68: Волгоградская область | C68: 1 | D68: 1
A69: 3 | B69: г.Севастополь | E69: 1 | L69: 1 | M69: 1
A70: 4 | B70: Краснодарский край | F70: 1 | K70: 1
A71: 5 | B71: МИ ФНС России по Южному ФО
A72: 6 | B72: Республика Адыгея
A73: 7 | B73: Республика Калмыкия | C73: 1
A74: 8 | B74: Республика Крым | D74: 1 | G74: 1 | I74: 1 | J74: 1 | M74: 1 | N74: 1 | O74: 1
A75: 9 | B75: Ростовская область | C75: 1 | D75: 1 | E75: 1 | F75: 1 | H75: 1 | K75: 1 | L75: 1 | N75: 1
B76: Итого: | C76: =SUM(C67:C75) -> 3 | D76: =SUM(D67:D75) -> 3 | E76: 3 | F76: 3 | G76: 1 | H76: 1 | I76: 1 | J76: 1 | K76: 2 | L76: 2 | M76: 2 | N76: 2 | O76: 1
A77: Северо-Кавказский федеральный округ
A78: 1 | B78: Кабардино- Балкарская Республика
A79: 2 | B79: Карачаево- Черкесская Республика | E79: 1 | G79: 1 | I79: 1
A80: 3 | B80: МИ ФНС России по Северо-Кавказскому ФО | H80: 1
A81: 4 | B81: Республика Дагестан | F81: 1 | G81: 1 | H81: 1 | I81: 1
A82: 5 | B82: Республика Ингушетия
A83: 6 | B83: Республика Северная Осетия - Алания
A84: 7 | B84: Ставропольский край | M84: 1 | N84: 1 | O84: 1
A85: 8 | B85: Чеченская Республика | C85: 1 | D85: 1
B86: Итого: | C86: =SUM(C78:C85) -> 1 | D86: =SUM(D78:D85) -> 1 | E86: 1 | F86: 1 | G86: 2 | H86: 2 | I86: 2 | J86: 0 | K86: 0 | L86: 0 | M86: 1 | N86: 1 | O86: 1
A87: Приволжский федеральный округ
A88: 1 | B88: Кировская область | E88: 1 | G88: 1 | J88: 1 | L88: 1 | N88: 1 | O88: 1
A89: 2 | B89: МИ ФНС России по Приволжскому ФО
A90: 3 | B90: Нижегородская область | C90: 1 | F90: 1 | G90: 1 | H90: 1 | I90: 1 | K90: 1 | M90: 1 | N90: 1 | O90: 1
A91: 4 | B91: Оренбургская область | D91: 1 | E91: 1 | H91: 1 | M91: 1 | O91: 1
A92: 5 | B92: Пензенская область | J92: 1
A93: 6 | B93: Пермский край | F93: 1 | G93: 1 | H93: 1 | I93: 1 | J93: 1 | K93: 2 | N93: 1
A94: 7 | B94: Республика Башкортостан | G94: 1 | H94: 1 | I94: 1 | J94: 2 | K94: 1 | N94: 1 | O94: 1
A95: 8 | B95: Республика Марий Эл | K95: 1
A96: 9 | B96: Республика Мордовия | C96: 1 | J96: 1
A97: 10 | B97: Республика Татарстан | D97: 1 | E97: 1 | G97: 1 | H97: 1 | I97: 1 | L97: 1
A98: 11 | B98: Самарская область | C98: 1 | F98: 1 | G98: 1 | H98: 1 | I98: 2 | J98: 1 | K98: 1 | N98: 1 | O98: 1
A99: 12 | B99: Саратовская область | G99: 1 | H99: 1 | I99: 2 | L99: 1 | M99: 1 | N99: 1 | O99: 1
A100: 13 | B100: Удмуртская Республика | G100: 1 | H100: 1 | I100: 2 | L100: 1 | N100: 1 | O100: 1
A101: 14 | B101: Ульяновская область | M101: 1 | N101: 1 | O101: 2
A102: 15 | B102: Чувашская Республика | D102: 1
B103: Итого: | C103: =SUM(C88:C102) -> 3 | D103: =SUM(D88:D102) -> 3 | E103: 3 | F103: 3 | G103: 8 | H103: 8 | I103: 10 | J103: 7 | K103: 6 | L103: 4 | M103: 4 | N103: 8 | O103: 9
A104: Уральский федеральный округ
A105: 1 | B105: Курганская область
A106: 2 | B106: МИ ФНС России по Уральскому ФО
A107: 3 | B107: Свердловская область | E107: 1 | H107: 1 | L107: 1 | N107: 1
A108: 4 | B108: Тюменская область | C108: 1 | F108: 1 | G108: 1 | J108: 1 | K108: 1 | L108: 1 | M108: 1 | O108: 1
A109: 5 | B109: Ханты-Мансийский АО | J109: 1 | K109: 1
A110: 6 | B110: Челябинская область | D110: 1 | E110: 1 | L110: 1 | M110: 1
A111: 7 | B111: Ямало-Ненецкий АО | F111: 1 | M111: 1
B112: Итого: | C112: =SUM(C105:C111) -> 1 | D112: =SUM(D105:D111) -> 1 | E112: 2 | F112: 2 | G112: 1 | H112: 1 | I112: 0 | J112: 2 | K112: 2 | L112: 3 | M112: 3 | N112: 1 | O112: 1
A113: Сибирский федеральный округ
A114: 1 | B114: Алтайский край | C114: 1 | D114: 1 | E114: 1 | L114: 1
A115: 2 | B115: Иркутская область | C115: 1 | D115: 1 | E115: 1 | F115: 1 | G115: 1 | H115: 1 | I115: 2 | J115: 1 | K115: 2 | L115: 1 | M115: 1 | N115: 2 | O115: 1
A116: 3 | B116: Кемеровская область | O116: 1
A117: 4 | B117: Красноярский край | F117: 1 | J117: 1
A118: 5 | B118: МИ ФНС России по Сибирскому ФО | C118: 1
A119: 6 | B119: Новосибирская область | E119: 1 | F119: 1 | H119: 1 | K119: 1
A120: 7 | B120: Омская область | C120: 1 | D120: 1 | J120: 1 | M120: 1 | N120: 1 | O120: 1
A121: 8 | B121: Республика Алтай
A122: 9 | B122: Республика Тыва | E122: 1 | F122: 1 | G122: 1 | K122: 1 | L122: 1
A123: 10 | B123: Республика Хакасия | C123: 1 | D123: 1 | G123: 1 | H123: 1 | I123: 1 | J123: 1
A124: 11 | B124: Томская область | E124: 1 | F124: 1 | G124: 1 | K124: 1
B125: Итого: | C125: =SUM(C114:C124) -> 5 | D125: =SUM(D114:D124) -> 4 | E125: 5 | F125: 5 | G125: 4 | H125: 3 | I125: 3 | J125: 4 | K125: 5 | L125: 3 | M125: 2 | N125: 3 | O125: 3
A126: Дальневосточный федеральный округ
A127: 1 | B127: Амурская область | F127: 1 | M127: 1 | N127: 1
A128: 2 | B128: Еврейская АО
A129: 3 | B129: Забайкальский край | C129: 1 | H129: 1 | J129: 1 | L129: 1
A130: 4 | B130: Камчатский край | D130: 1
A131: 5 | B131: Магаданская область | M131: 1 | O131: 1
A132: 6 | B132: МИ ФНС России по Дальневосточному ФО
A133: 7 | B133: Приморский край | C133: 1 | D133: 1 | E133: 1 | F133: 1 | G133: 1 | H133: 1 | I133: 2 | K133: 1
A134: 8 | B134: Республика Бурятия | C134: 1 | E134: 1 | F134: 1 | M134: 1
A135: 9 | B135: Республика Саха (Якутия) | D135: 1 | E135: 1 | F135: 1 | G135: 1 | M135: 1
A136: 10 | B136: Сахалинская область | H136: 1
A137: 11 | B137: Хабаровский край | C137: 1 | G137: 2 | H137: 1 | I137: 2 | M137: 1 | N137: 1
A138: 12 | B138: Чукотский АО
B139: Итого: | C139: =SUM(C127:C138) -> 4 | D139: =SUM(D127:D138) -> 3 | E139: 3 | F139: 4 | G139: 4 | H139: 4 | I139: 4 | J139: 1 | K139: 1 | L139: 1 | M139: 5 | N139: 2 | O139: 1
A140: Новые территории Российской Федерации
A141: 1 | B141: Донецкая Народная Республика | D141: 1 | H141: 1 | O141: 1
A142: 2 | B142: Запорожская область | J142: 1
A143: 3 | B143: Луганская Народная Республика | C143: 1 | D143: 1 | E143: 2 | F143: 1 | M143: 1 | N143: 1 | O143: 1
A144: 4 | B144: Херсонская область
B145: Итого: | C145: =SUM(C141:C144) -> 1 | D145: =SUM(D141:D144) -> 2 | E145: 2 | F145: 1 | G145: 0 | H145: 1 | I145: 0 | J145: 1 | K145: 0 | L145: 0 | M145: 1 | N145: 1 | O145: 2
B146: Всего: | C146: =C145+C139+C125+C112+C103+C86+C76+C65+C52+C16 -> 26 | D146: =D145+D139+D125+D112+D103+D86+D76+D65+D52+D16 -> 23 | E146: 25 | F146: 25 | G146: 25 | H146: 23 | I146: 24 | J146: 21 | K146: 22 | L146: 19 | M146: 23 | N146: 20 | O146: 20

Sheet Прил.30
N1: Приложение № 30
N2: УТВЕРЖДЕНО
N3: приказом ФНС России
N4: от " " 20 г.
N5: №
A7: План-график дополнительного профессионального образования гражданских служащих в "Академии ФНС ЛАБ–Нева" в 2025 году (очная форма обучения)
A8: № п/п | B8: Структурные подразделения ЦА ФНС России, УФНС России по субъектам РФ, межрегиональные инспекции ФНС России | C8: Численность, человек
C9: В том числе по программам повышения квалификации с указанием продолжительности и периодам обучения
C10: Обеспечение безопасности персональных данных при их обработке в информационных системах персональных данных | E10: Обеспечение процедур банкротства (базовый уровень) | F10: Обеспечение процедур банкротства (повышенный уровень) | J10: Обеспечение процедур банкротства (мастерский уровень) | L10: Организация делопроизводства и архивного дела
B11: Продолжительность | C11: (72 часа) | E11: (72 часа) | F11: (72 часа) | J11: (72 часа) | L11: (72 часа)
B12: Период обучения | C12: 27.01-07.02 | D12: 07.04-18.04 | E12: 06.10-17.10 | F12: 10.03-21.03 | G12: 24.03-04.04 | H12: 07.04-18.04 | I12: 14.07-25.07 | J12: 24.02-07.03 | K12: 17.11-28.11 | L12: 14.01-24.01 | M12: 14.07-25.07 | N12: 24.11-05.12
A13: 1 | B13: 2 | C13: 3 | D13: 4 | E13: 5 | F13: 6 | G13: 7 | H13: 8 | I13: 9 | J13: 10 | K13: 11 | L13: 12 | M13: 13 | N13: 14
A14: Центральный аппарат ФНС России
A15: 1 | B15: Управление профессионального развития
B16: Итого: | C16: =SUM(C15:C15) -> 0 | D16: 0 | E16: 0 | F16: =SUM(F15:F15) -> 0 | G16: 0 | H16: 0 | I16: 0 | J16: 0 | K16: 0 | L16: 0 | M16: =SUM(M15:M15) -> 0 | N16: 0
A17: Центральный федеральный округ
A18: 1 | B18: Белгородская область | F18: 1 | G18: 1 | H18: 1 | J18: 1 | M18: 1
A19: 2 | B19: Брянская область | F19: 1 | H19: 1 | I19: 1
A20: 3 | B20: Владимирская область | E20: 1 | G20: 1 | L20: 1
A21: 4 | B21: Воронежская область | H21: 1 | N21: 1
A22: 5 | B22: г.Москва | C22: 1 | F22: 1 | H22: 1 | I22: 1 | J22: 1 | K22: 1
A23: 6 | B23: Ивановская область | G23: 1 | K23: 1
A24: 7 | B24: Калужская область | H24: 1
A25: 8 | B25: Костромская область | F25: 1 | N25: 1
A26: 9 | B26: Курская область | E26: 1 | G26: 1 | I26: 1
A27: 10 | B27: Липецкая область
A28: 11 | B28: МИ ФНС России по камеральному контролю
A29: 12 | B29: МИ ФНС России по КН № 1
A30: 13 | B30: МИ ФНС России по КН № 2 | G30: 1
A31: 14 | B31: МИ ФНС России по КН № 3
A32: 15 | B32: МИ ФНС России по КН № 4
A33: 16 | B33: МИ ФНС России по КН № 5
A34: 17 | B34: МИ ФНС России по КН № 6 | G34: 1
A35: 18 | B35: МИ ФНС России по КН № 7 | M35: 1
A36: 19 | B36: МИ ФНС России по КН № 9 | D36: 1
A37: 20 | B37: МИ ФНС России по КН № 10
A38: 21 | B38: МИ ФНС России по ценообразованию для целей налогообложения
A39: 22 | B39: МИ ФНС России по Центральному ФО
A40: 23 | B40: МИ ФНС России по ЦОД
A41: 24 | B41: МИ ФНС России по ЦОД №2 | L41: 1
A42: 25 | B42: МИ ФНС России по управлению долгом
A43: 26 | B43: МИ ФНС России по контролю и надзору за налогоплательщиками в сфере бюджетного финансирования
A44: 27 | B44: Московская область | C44: 1 | D44: 1 | F44: 1 | G44: 1 | H44: 1 | K44: 1
A45: 28 | B45: Орловская область | C45: 1 | D45: 1 | F45: 1 | G45: 1
A46: 29 | B46: Рязанская область | D46: 1 | M46: 1 | N46: 1
A47: 30 | B47: Смоленская область
A48: 31 | B48: Тамбовская область | C48: 1 | E48: 1 | I48: 1 | J48: 1
A49: 32 | B49: Тверская область
A50: 33 | B50: Тульская область
A51: 34 | B51: Ярославская область
B52: Итого: | C52: =SUM(C18:C51) -> 4 | D52: =SUM(D18:D51) -> 4 | E52: 3 | F52: =SUM(F18:F51) -> 6 | G52: 8 | H52: 6 | I52: 4 | J52: 3 | K52: 3 | L52: 2 | M52: =SUM(M18:M51) -> 3 | N52: 3
A53: Северо-Западный федеральный округ
A54: 1 | B54: Архангельская область и Ненецкий АО | G54: 1 | H54: 1
A55: 2 | B55: Вологодская область
A56: 3 | B56: г.Санкт- Петербург | C56: 1 | F56: 1 | L56: 1
A57: 4 | B57: Калининградская область | E57: 3 | F57: 2 | G57: 1 | H57: 1 | I57: 2 | J57: 1 | K57: 1 | N57: 1
A58: 5 | B58: Ленинградская область | D58: 1
A59: 6 | B59: МИ ФНС России по Северо-Западному ФО | M59: 1
A60: 7 | B60: Мурманская область | L60: 1
A61: 8 | B61: Новгородская область | E61: 1 | G61: 1 | H61: 1 | J61: 2 | K61: 1
A62: 9 | B62: Псковская область
A63: 10 | B63: Республика Карелия | I63: 1 | K63: 1
A64: 11 | B64: Республика Коми
B65: Итого: | C65: =SUM(C54:C64) -> 1 | D65: =SUM(D54:D64) -> 1 | E65: 4 | F65: =SUM(F54:F64) -> 3 | G65: 3 | H65: 3 | I65: 3 | J65: 3 | K65: 3 | L65: 2 | M65: =SUM(M54:M64) -> 1 | N65: 1
A66: Южный федеральный округ
A67: 1 | B67: Астраханская область | C67: 1
A68: 2 | B68: Волгоградская область | N68: 1
A69: 3 | B69: г.Севастополь | G69: 1
A70: 4 | B70: Краснодарский край | D70: 1 | J70: 1
A71: 5 | B71: МИ ФНС России по Южному ФО | M71: 1
A72: 6 | B72: Республика Адыгея
A73: 7 | B73: Республика Калмыкия | H73: 1
A74: 8 | B74: Республика Крым | E74: 1 | F74: 1 | L74: 1 | M74: 1
A75: 9 | B75: Ростовская область | C75: 1 | D75: 1 | I75: 1 | L75: 2 | M75: 1 | N75: 2
B76: Итого: | C76: =SUM(C67:C75) -> 2 | D76: =SUM(D67:D75) -> 2 | E76: 1 | F76: =SUM(F67:F75) -> 1 | G76: 1 | H76: 1 | I76: 1 | J76: 1 | K76: 0 | L76: 3 | M76: =SUM(M67:M75) -> 3 | N76: 3
A77: Северо-Кавказский федеральный округ
A78: 1 | B78: Кабардино- Балкарская Республика | C78: 1 | K78: 1
A79: 2 | B79: Карачаево- Черкесская Республика
A80: 3 | B80: МИ ФНС России по Северо-Кавказскому ФО
A81: 4 | B81: Республика Дагестан | G81: 1 | L81: 1
A82: 5 | B82: Республика Ингушетия
A83: 6 | B83: Республика Северная Осетия - Алания | E83: 1 | H83: 1 | J83: 1
A84: 7 | B84: Ставропольский край | C84: 1 | D84: 1 | F84: 1 | I84: 1
A85: 8 | B85: Чеченская Республика | C85: 1
B86: Итого: | C86: =SUM(C78:C85) -> 3 | D86: =SUM(D78:D85) -> 1 | E86: 1 | F86: =SUM(F78:F85) -> 1 | G86: 1 | H86: 1 | I86: 1 | J86: 1 | K86: 1 | L86: 1 | M86: =SUM(M78:M85) -> 0 | N86: 0
A87: Приволжский федеральный округ
A88: 1 | B88: Кировская область | C88: 1 | J88: 1 | L88: 1 | M88: 1 | N88: 1
A89: 2 | B89: МИ ФНС России по Приволжскому ФО
A90: 1 | B90: Нижегородская область | D90: 1 | E90: 1 | G90: 1 | H90: 1 | J90: 2 | K90: 2 | L90: 1
A91: 4 | B91: Оренбургская область | M91: 1 | N91: 1
A92: 5 | B92: Пензенская область | L92: 1
A93: 6 | B93: Пермский край | E93: 1 | F93: 1 | I93: 1 | J93: 1 | K93: 1 | N93: 1
A94: 7 | B94: Республика Башкортостан | C94: 1 | D94: 1 | G94: 1 | K94: 1 | L94: 1 | M94: 2 | N94: 1
A95: 8 | B95: Республика Марий Эл | H95: 1
A96: 9 | B96: Республика Мордовия | D96: 1 | F96: 1
A97: 10 | B97: Республика Татарстан | C97: 1 | D97: 1 | E97: 1 | F97: 2 | G97: 1 | H97: 1 | I97: 2 | M97: 1
A98: 11 | B98: Самарская область | E98: 2 | G98: 1 | H98: 1 | L98: 1
A99: 12 | B99: Саратовская область | C99: 1 | D99: 2 | G99: 1 | I99: 1 | L99: 1 | N99: 1
A100: 13 | B100: Удмуртская Республика | H100: 1 | J100: 1 | K100: 1 | L100: 1 | M100: 1
A101: 14 | B101: Ульяновская область | F101: 1 | I101: 1
A102: 15 | B102: Чувашская Республика | H102: 1 | N102: 1
B103: Итого: | C103: =SUM(C88:C102) -> 4 | D103: =SUM(D88:D102) -> 6 | E103: 5 | F103: =SUM(F88:F102) -> 5 | G103: 5 | H103: 6 | I103: 5 | J103: 5 | K103: 5 | L103: 7 | M103: =SUM(M88:M102) -> 6 | N103: 6
A104: Уральский федеральный округ
A105: 1 | B105: Курганская область | L105: 1
A106: 2 | B106: МИ ФНС России по Уральскому ФО | M106: 1
A107: 3 | B107: Свердловская область | E107: 2 | F107: 1 | G107: 1 | H107: 1 | I107: 2 | J107: 2 | K107: 2 | L107: 1
A108: 4 | B108: Тюменская область | C108: 1 | E108: 1 | F108: 1 | G108: 1 | J108: 1
A109: 5 | B109: Ханты-Мансийский АО | D109: 1 | E109: 1 | G109: 1
A110: 6 | B110: Челябинская область | C110: 1 | E110: 2 | F110: 2 | G110: 1 | H110: 2 | I110: 2 | K110: 1 | L110: 2 | M110: 2 | N110: 2
A111: 7 | B111: Ямало-Ненецкий АО | H111: 1 | J111: 1
B112: Итого: | C112: =SUM(C105:C111) -> 2 | D112: =SUM(D105:D111) -> 1 | E112: 6 | F112: =SUM(F105:F111) -> 4 | G112: 4 | H112: 4 | I112: 4 | J112: 4 | K112: 3 | L112: 4 | M112: =SUM(M105:M111) -> 3 | N112: 2
A113: Сибирский федеральный округ
A114: 1 | B114: Алтайский край | C114: 1 | D114: 1 | E114: 1 | L114: 1 | M114: 1
A115: 2 | B115: Иркутская область | G115: 1 | J115: 1 | K115: 2 | L115: 1 | M115: 1 | N115: 3
A116: 3 | B116: Кемеровская область
A117: 4 | B117: Красноярский край | E117: 1 | F117: 1 | H117: 1 | I117: 1 | J117: 1 | M117: 1
A118: 5 | B118: МИ ФНС России по Сибирскому ФО
A119: 6 | B119: Новосибирская область | C119: 1 | D119: 1 | H119: 1 | K119: 1
A120: 7 | B120: Омская область | D120: 1 | E120: 1 | G120: 1 | J120: 1 | K120: 1 | L120: 1 | N120: 1
A121: 8 | B121: Республика Алтай | J121: 1
A122: 9 | B122: Республика Тыва | M122: 1
A123: 10 | B123: Республика Хакасия | C123: 1 | F123: 1 | N123: 1
A124: 11 | B124: Томская область | I124: 1 | K124: 1 | L124: 1
B125: Итого: | C125: =SUM(C114:C124) -> 3 | D125: 3 | E125: 3 | F125: =SUM(F114:F124) -> 2 | G125: 2 | H125: 2 | I125: 2 | J125: 4 | K125: 5 | L125: 4 | M125: =SUM(M114:M124) -> 4 | N125: 5
A126: Дальневосточный федеральный округ
A127: 1 | B127: Амурская область | E127: 1
A128: 2 | B128: Еврейская АО | G128: 1 | J128: 1
A129: 3 | B129: Забайкальский край | D129: 1 | H129: 1 | K129: 1 | M129: 1
A130: 4 | B130: Камчатский край | F130: 1 | I130: 1 | K130: 1 | N130: 1
A131: 5 | B131: Магаданская область
A132: 6 | B132: МИ ФНС России по Дальневосточному ФО | C132: 1 | G132: 1 | N132: 1
A133: 7 | B133: Приморский край | F133: 1 | H133: 1 | I133: 1 | N133: 1
A134: 8 | B134: Республика Бурятия | J134: 1 | K134: 1 | L134: 1 | M134: 1
A135: 9 | B135: Республика Саха (Якутия) | D135: 1 | E135: 1 | F135: 1 | M135: 1 | N135: 2
A136: 10 | B136: Сахалинская область | D136: 1
A137: 11 | B137: Хабаровский край | C137: 1 | M137: 1
A138: 12 | B138: Чукотский АО
B139: Итого: | C139: =SUM(C127:C138) -> 2 | D139: =SUM(D127:D138) -> 3 | E139: 2 | F139: =SUM(F127:F138) -> 3 | G139: 2 | H139: 2 | I139: 2 | J139: 2 | K139: 3 | L139: 1 | M139: =SUM(M127:M138) -> 4 | N139: 5
A140: Новые территории Российской Федерации
A141: 1 | B141: Донецкая Народная Республика | L141: 1 | M141: 1
A142: 2 | B142: Запорожская область
A143: 3 | B143: Луганская Народная Республика | I143: 1 | M143: 1 | N143: 1
A144: 4 | B144: Херсонская область
B145: Итого: | C145: =SUM(C141:C144) -> 0 | D145: =SUM(D141:D144) -> 0 | E145: 0 | F145: =SUM(F141:F144) -> 0 | G145: 0 | H145: 0 | I145: 1 | J145: 0 | K145: 0 | L145: 1 | M145: =SUM(M141:M144) -> 2 | N145: 1
B146: Всего: | C146: =C145+C139+C125+C112+C103+C86+C76+C65+C52+C16 -> 21 | D146: =D145+D139+D125+D112+D103+D86+D76+D65+D52+D16 -> 21 | E146: 25 | F146: =F145+F139+F125+F112+F103+F86+F76+F65+F52+F16 -> 25 | G146: 26 | H146: 25 | I146: 23 | J146: 23 | K146: 23 | L146: 25 | M146: =M145+M139+M125+M112+M103+M86+M76+M65+M52+M16 -> 26 | N146: 26

Sheet Прил.31
L1: Приложение № 31
L2: УТВЕРЖДЕНО
L3: приказом ФНС России
L4: от " " 20 г.
L5: №
A7: План-график дополнительного профессионального образования гражданских служащих в "Академии ФНС ЛАБ–Нева" в 2025 году (очная форма обучения)
A8: № п/п | B8: Структурные подразделения ЦА ФНС России, УФНС России по субъектам РФ, межрегиональные инспекции ФНС России | C8: Численность, человек
C9: В том числе по программам повышения квалификации с указанием продолжительности и периодам обучения
C10: Организация и осуществление внутреннего финансового аудита | E10: Организация и технология проведения камеральных налоговых проверок (повышенный уровень) | H10: Организация и технология проведения камеральных налоговых проверок (мастерский уровень) | I10: Планирование, организация и проведение выездных налоговых проверок (повышенный уровень) | K10: Планирование, организация и проведение выездных налоговых проверок (мастерский уровень)
C11: (72 часа) | E11: (72 часа) | H11: (72 часа) | I11: (72 часа) | K11: (72 часа)
C12: 12.05-23.05 | D12: 13.10-24.10 | E12: 10.03-21.03 | F12: 23.06-04.07 | G12: 22.09-03.10 | H12: 06.10-17.10 | I12: 27.01-07.02 | J12: 05.05-16.05 | K12: 25.08-05.09 | L12: 20.10-31.10
A13: 1 | B13: 2 | C13: 3 | D13: 4 | E13: 5 | F13: 6 | G13: 7 | H13: 8 | I13: 9 | J13: 10 | K13: 11 | L13: 12
A14: Центральный аппарат ФНС России
A15: 1 | B15: Управление профессионального развития | C15: 1
B16: Итого: | C16: =SUM(C15:C15) -> 1 | D16: 0 | E16: 0 | F16: 0 | G16: 0 | H16: 0 | I16: 0 | J16: 0 | K16: 0 | L16: 0
A17: Центральный федеральный округ
A18: 1 | B18: Белгородская область | E18: 1 | F18: 1 | H18: 1
A19: 2 | B19: Брянская область | G19: 1 | I19: 1 | K19: 1
A20: 3 | B20: Владимирская область
A21: 4 | B21: Воронежская область | L21: 1
A22: 5 | B22: г.Москва
A23: 6 | B23: Ивановская область | C23: 1 | I23: 1 | J23: 1
A24: 7 | B24: Калужская область
A25: 8 | B25: Костромская область
A26: 9 | B26: Курская область
A27: 10 | B27: Липецкая область | E27: 1 | I27: 1 | J27: 2
A28: 11 | B28: МИ ФНС России по камеральному контролю | D28: 1
A29: 12 | B29: МИ ФНС России по КН № 1
A30: 13 | B30: МИ ФНС России по КН № 2 | C30: 1
A31: 14 | B31: МИ ФНС России по КН № 3
A32: 15 | B32: МИ ФНС России по КН № 4
A33: 16 | B33: МИ ФНС России по КН № 5 | D33: 1
A34: 17 | B34: МИ ФНС России по КН № 6
A35: 18 | B35: МИ ФНС России по КН № 7
A36: 19 | B36: МИ ФНС России по КН № 9
A37: 20 | B37: МИ ФНС России по КН № 10
A38: 21 | B38: МИ ФНС России по ценообразованию для целей налогообложения
A39: 22 | B39: МИ ФНС России по Центральному ФО
A40: 23 | B40: МИ ФНС России по ЦОД | C40: 1 | D40: 1
A41: 24 | B41: МИ ФНС России по ЦОД №2 | C41: 1
A42: 25 | B42: МИ ФНС России по управлению долгом
A43: 26 | B43: МИ ФНС России по контролю и надзору за налогоплательщиками в сфере бюджетного финансирования
A44: 27 | B44: Московская область
A45: 28 | B45: Орловская область
A46: 29 | B46: Рязанская область | C46: 1 | D46: 1 | I46: 1
A47: 30 | B47: Смоленская область
A48: 31 | B48: Тамбовская область | C48: 1 | D48: 1 | F48: 1 | G48: 1 | H48: 1 | K48: 1
A49: 32 | B49: Тверская область | D49: 1 | L49: 1
A50: 33 | B50: Тульская область | D50: 1 | J50: 1
A51: 34 | B51: Ярославская область
B52: Итого: | C52: =SUM(C18:C51) -> 6 | D52: 7 | E52: 2 | F52: 2 | G52: 2 | H52: 2 | I52: 4 | J52: 4 | K52: 2 | L52: 2
A53: Северо-Западный федеральный округ
A54: 1 | B54: Архангельская область и Ненецкий АО | C54: 1 | D54: 1 | E54: 1 | I54: 1
A55: 2 | B55: Вологодская область
A56: 3 | B56: г.Санкт- Петербург
A57: 4 | B57: Калининградская область | C57: 1 | F57: 1 | J57: 1
A58: 5 | B58: Ленинградская область
A59: 6 | B59: МИ ФНС России по Северо-Западному ФО
A60: 7 | B60: Мурманская область
A61: 8 | B61: Новгородская область | D61: 1
A62: 9 | B62: Псковская область
A63: 10 | B63: Республика Карелия | E63: 1 | F63: 1 | G63: 1
A64: 11 | B64: Республика Коми
B65: Итого: | C65: =SUM(C54:C64) -> 2 | D65: =SUM(D54:D64) -> 2 | E65: 2 | F65: 2 | G65: 1 | H65: 0 | I65: 1 | J65: 1 | K65: 0 | L65: 0
A66: Южный федеральный округ
A67: 1 | B67: Астраханская область | I67: 1
A68: 2 | B68: Волгоградская область | H68: 1
A69: 3 | B69: г.Севастополь | K69: 1
A70: 4 | B70: Краснодарский край | J70: 1
A71: 5 | B71: МИ ФНС России по Южному ФО | L71: 1
A72: 6 | B72: Республика Адыгея | C72: 1
A73: 7 | B73: Республика Калмыкия
A74: 8 | B74: Республика Крым | F74: 1 | K74: 1
A75: 9 | B75: Ростовская область | D75: 1 | E75: 1 | I75: 1 | L75: 1
B76: Итого: | C76: =SUM(C67:C75) -> 1 | D76: =SUM(D67:D75) -> 1 | E76: 1 | F76: 1 | G76: 0 | H76: 1 | I76: 2 | J76: 1 | K76: 2 | L76: 2
A77: Северо-Кавказский федеральный округ
A78: 1 | B78: Кабардино- Балкарская Республика
A79: 2 | B79: Карачаево- Черкесская Республика | L79: 1
A80: 3 | B80: МИ ФНС России по Северо-Кавказскому ФО | C80: 1
A81: 4 | B81: Республика Дагестан | K81: 4 | L81: 4
A82: 5 | B82: Республика Ингушетия
A83: 6 | B83: Республика Северная Осетия - Алания | J83: 1 | K83: 1
A84: 7 | B84: Ставропольский край | D84: 1 | G84: 1
A85: 8 | B85: Чеченская Республика | C85: 1
B86: Итого: | C86: =SUM(C78:C85) -> 2 | D86: =SUM(D78:D85) -> 1 | E86: 0 | F86: 0 | G86: 1 | H86: 0 | I86: 0 | J86: 1 | K86: 5 | L86: 5
A87: Приволжский федеральный округ
A88: 1 | B88: Кировская область | C88: 1 | K88: 1
A89: 2 | B89: МИ ФНС России по Приволжскому ФО
A90: 3 | B90: Нижегородская область | E90: 1 | H90: 2 | I90: 1 | J90: 1 | K90: 1 | L90: 1
A91: 4 | B91: Оренбургская область | D91: 1 | J91: 1 | L91: 1
A92: 5 | B92: Пензенская область
A93: 6 | B93: Пермский край | C93: 1 | E93: 1 | F93: 1 | G93: 1
A94: 7 | B94: Республика Башкортостан | C94: 1 | D94: 1 | G94: 1 | I94: 1 | K94: 1 | L94: 1
A95: 8 | B95: Республика Марий Эл | D95: 1
A96: 9 | B96: Республика Мордовия
A97: 10 | B97: Республика Татарстан | C97: 1 | D97: 1 | E97: 1 | H97: 1 | I97: 1 | J97: 2 | L97: 1
A98: 11 | B98: Самарская область | C98: 1 | I98: 1
A99: 12 | B99: Саратовская область | C99: 1 | F99: 1 | H99: 3 | K99: 1 | L99: 1
A100: 13 | B100: Удмуртская Республика | J100: 1
A101: 14 | B101: Ульяновская область
A102: 15 | B102: Чувашская Республика
B103: Итого: | C103: =SUM(C88:C102) -> 6 | D103: =SUM(D88:D102) -> 4 | E103: 3 | F103: 2 | G103: 2 | H103: 6 | I103: 4 | J103: 5 | K103: 4 | L103: 5
A104: Уральский федеральный округ
A105: 1 | B105: Курганская область | F105: 1 | G105: 1 | K105: 1
A106: 2 | B106: МИ ФНС России по Уральскому ФО
A107: 3 | B107: Свердловская область | C107: 1 | D107: 1 | H107: 1 | I107: 1 | K107: 2 | L107: 1
A108: 4 | B108: Тюменская область | I108: 1 | J108: 1 | L108: 1
A109: 5 | B109: Ханты-Мансийский АО | C109: 1
A110: 6 | B110: Челябинская область | D110: 1 | E110: 1 | J110: 1
A111: 7 | B111: Ямало-Ненецкий АО
B112: Итого: | C112: =SUM(C105:C111) -> 2 | D112: 2 | E112: 1 | F112: 1 | G112: 1 | H112: 1 | I112: 2 | J112: 2 | K112: 3 | L112: 2
A113: Сибирский федеральный округ
A114: 1 | B114: Алтайский край | F114: 1 | H114: 1 | I114: 1 | K114: 1 | L114: 1
A115: 2 | B115: Иркутская область | E115: 1 | F115: 1 | G115: 1 | H115: 4 | I115: 2 | J115: 1 | K115: 2 | L115: 2
A116: 3 | B116: Кемеровская область
A117: 4 | B117: Красноярский край | D117: 1 | E117: 1 | I117: 1 | J117: 1 | K117: 1 | L117: 1
A118: 5 | B118: МИ ФНС России по Сибирскому ФО | D118: 1
A119: 6 | B119: Новосибирская область | I119: 1 | J119: 1 | K119: 1
A120: 7 | B120: Омская область | F120: 1 | G120: 1 | H120: 1 | J120: 1
A121: 8 | B121: Республика Алтай | D121: 1 | E121: 1
A122: 9 | B122: Республика Тыва | F122: 1 | H122: 1
A123: 10 | B123: Республика Хакасия | E123: 1
A124: 11 | B124: Томская область | F124: 1 | G124: 1 | H124: 1 | L124: 1
B125: Итого: | C125: =SUM(C114:C124) -> 0 | D125: 3 | E125: 4 | F125: 5 | G125: 3 | H125: 8 | I125: 5 | J125: 4 | K125: 5 | L125: 5
A126: Дальневосточный федеральный округ
A127: 1 | B127: Амурская область | I127: 1 | J127: 1
A128: 2 | B128: Еврейская АО | D128: 1 | E128: 1
A129: 3 | B129: Забайкальский край | G129: 1
A130: 4 | B130: Камчатский край | C130: 1 | D130: 1
A131: 5 | B131: Магаданская область
A132: 6 | B132: МИ ФНС России по Дальневосточному ФО | J132: 1
A133: 7 | B133: Приморский край | C133: 1 | D133: 1 | F133: 3 | G133: 3 | H133: 2 | I133: 1 | J133: 2
A134: 8 | B134: Республика Бурятия | I134: 1
A135: 9 | B135: Республика Саха (Якутия) | D135: 1 | E135: 1 | G135: 1 | H135: 1 | I135: 1
A136: 10 | B136: Сахалинская область | K136: 1
A137: 11 | B137: Хабаровский край | C137: 1 | D137: 1 | E137: 4 | F137: 2 | G137: 1 | H137: 1
A138: 12 | B138: Чукотский АО
B139: Итого: | C139: =SUM(C127:C138) -> 3 | D139: =SUM(D127:D138) -> 5 | E139: 6 | F139: 5 | G139: 6 | H139: 4 | I139: 4 | J139: 4 | K139: 1 | L139: 0
A140: Новые территории Российской Федерации
A141: 1 | B141: Донецкая Народная Республика
A142: 2 | B142: Запорожская область
A143: 3 | B143: Луганская Народная Республика | C143: 1 | E143: 1 | F143: 1 | G143: 3 | H143: 1
A144: 4 | B144: Херсонская область | C144: 1
B145: Итого: | C145: =SUM(C141:C144) -> 2 | D145: =SUM(D141:D144) -> 0 | E145: 1 | F145: 1 | G145: 3 | H145: 1 | I145: 0 | J145: 0 | K145: 0 | L145: 0
B146: Всего: | C146: =C145+C139+C125+C112+C103+C86+C76+C65+C52+C16 -> 25 | D146: =D145+D139+D125+D112+D103+D86+D76+D65+D52+D16 -> 25 | E146: 20 | F146: 19 | G146: 19 | H146: 23 | I146: 22 | J146: 22 | K146: 22 | L146: 21

Sheet Прил.32
Q1: Приложение № 32
Q2: УТВЕРЖДЕНО
Q3: приказом ФНС России
Q4: от " " 20 г.
Q5: №
A7: План-график дополнительного профессионального образования гражданских служащих в "Академии ФНС ЛАБ–Нева" в 2025 году (очная форма обучения)
A8: № п/п | B8: Структурные подразделения ЦА ФНС России, УФНС России по субъектам РФ, межрегиональные инспекции ФНС России | C8: Численность, человек
C9: В том числе по программам повышения квалификации с указанием продолжительности и периодам обучения
C10: Программно-аналитические комплексы АИС Налог-3 в контрольной работе налоговых органов | H10: Схемы, применяемые налогоплательщиками при исчислении и уплате налогов и страховых взносов. Побуждение к добровольному уточнению налоговых обязательств | M10: Тактика ведения допроса (мастерский уровень) | O10: Техническая защита информации. Организация защиты информации ограниченного доступа, не содержащей сведения, составляющие государственную тайну | P10: Техническая защита информации. Способы и средства защиты информации от несанкционированного доступа
C11: (72 часа) | H11: (72 часа) | M11: (72 часа) | O11: (72 часа) | P11: (72 часа)
C12: 27.01-07.02 | D12: 10.02-21.02 | E12: 10.03-21.03 | F12: 26.05-06.06 | G12: 15.09-26.09 | H12: 14.01-24.01 | I12: 24.03-04.04 | J12: 21.04-07.05 | K12: 25.08-05.09 | L12: 05.11-14.11 | M12: 21.04-07.05 | N12: 08.09-19.09 | O12: 14.01-24.01 | P12: 14.07-25.07 | Q12: 20.10-31.10
A13: 1 | B13: 2 | C13: 3 | D13: 4 | E13: 5 | F13: 6 | G13: 7 | H13: 8 | I13: 9 | J13: 10 | K13: 11 | L13: 12 | M13: 13 | N13: 14 | O13: 15 | P13: 16 | Q13: 17
A14: Центральный аппарат ФНС России
A15: 1 | B15: Управление профессионального развития
B16: Итого: | C16: =SUM(C15:C15) -> 0 | D16: =SUM(D15:D15) -> 0 | E16: =SUM(E15:E15) -> 0 | F16: =SUM(F15:F15) -> 0 | G16: 0 | H16: 0 | I16: 0 | J16: 0 | K16: 0 | L16: 0 | M16: 0 | N16: 0 | O16: 0 | P16: =SUM(P15:P15) -> 0 | Q16: =SUM(Q15:Q15) -> 0
A17: Центральный федеральный округ
A18: 1 | B18: Белгородская область | C18: 1 | D18: 1 | F18: 1 | H18: 1 | I18: 1 | J18: 1 | K18: 1 | M18: 1 | Q18: 1
A19: 2 | B19: Брянская область
A20: 3 | B20: Владимирская область
A21: 4 | B21: Воронежская область | K21: 1 | L21: 1
A22: 5 | B22: г.Москва | G22: 1 | H22: 1 | I22: 1 | P22: 2 | Q22: 1
A23: 6 | B23: Ивановская область | N23: 1
A24: 7 | B24: Калужская область | C24: 1 | E24: 1 | J24: 1 | O24: 1
A25: 8 | B25: Костромская область | D25: 1 | F25: 1 | I25: 1
A26: 9 | B26: Курская область | L26: 1
A27: 10 | B27: Липецкая область | J27: 1 | K27: 1 | Q27: 1
A28: 11 | B28: МИ ФНС России по камеральному контролю
A29: 12 | B29: МИ ФНС России по КН № 1 | H29: 1 | M29: 1
A30: 13 | B30: МИ ФНС России по КН № 2
A31: 14 | B31: МИ ФНС России по КН № 3
A32: 15 | B32: МИ ФНС России по КН № 4 | O32: 1
A33: 16 | B33: МИ ФНС России по КН № 5 | G33: 1 | I33: 1
A34: 17 | B34: МИ ФНС России по КН № 6
A35: 18 | B35: МИ ФНС России по КН № 7 | E35: 1 | J35: 1 | N35: 1
A36: 19 | B36: МИ ФНС России по КН № 9
A37: 20 | B37: МИ ФНС России по КН № 10
A38: 21 | B38: МИ ФНС России по ценообразованию для целей налогообложения
A39: 22 | B39: МИ ФНС России по Центральному ФО
A40: 23 | B40: МИ ФНС России по ЦОД | O40: 1 | P40: 1 | Q40: 1
A41: 24 | B41: МИ ФНС России по ЦОД №2
A42: 25 | B42: МИ ФНС России по управлению долгом
A43: 26 | B43: МИ ФНС России по контролю и надзору за налогоплательщиками в сфере бюджетного финансирования
A44: 27 | B44: Московская область | C44: 1 | K44: 1
A45: 28 | B45: Орловская область | D45: 1
A46: 29 | B46: Рязанская область | Q46: 1
A47: 30 | B47: Смоленская область | O47: 1
A48: 31 | B48: Тамбовская область | F48: 1 | M48: 2 | N48: 2
A49: 32 | B49: Тверская область | H49: 1 | J49: 1 | K49: 1 | M49: 1 | N49: 1 | O49: 1 | Q49: 1
A50: 33 | B50: Тульская область | M50: 1
A51: 34 | B51: Ярославская область | G51: 1 | M51: 1 | N51: 1
B52: Итого: | C52: =SUM(C18:C51) -> 3 | D52: =SUM(D18:D51) -> 3 | E52: =SUM(E18:E51) -> 2 | F52: =SUM(F18:F51) -> 3 | G52: 3 | H52: 4 | I52: 4 | J52: 5 | K52: 5 | L52: 2 | M52: 7 | N52: 6 | O52: 5 | P52: =SUM(P18:P51) -> 3 | Q52: =SUM(Q18:Q51) -> 6
A53: Северо-Западный федеральный округ
A54: 1 | B54: Архангельская область и Ненецкий АО | E54: 1 | G54: 1 | N54: 1 | Q54: 1
A55: 2 | B55: Вологодская область
A56: 3 | B56: г.Санкт- Петербург | I56: 1 | M56: 2 | N56: 2 | O56: 2 | P56: 2
A57: 4 | B57: Калининградская область | C57: 1 | J57: 1 | K57: 1 | M57: 1 | N57: 2
A58: 5 | B58: Ленинградская область | D58: 1 | F58: 1 | M58: 1
A59: 6 | B59: МИ ФНС России по Северо-Западному ФО | H59: 1
A60: 7 | B60: Мурманская область | L60: 1
A61: 8 | B61: Новгородская область
A62: 9 | B62: Псковская область
A63: 10 | B63: Республика Карелия | E63: 1 | G63: 1 | H63: 1 | I63: 1 | J63: 1 | M63: 1 | N63: 1 | O63: 2
A64: 11 | B64: Республика Коми | K64: 1
B65: Итого: | C65: =SUM(C54:C64) -> 1 | D65: =SUM(D54:D64) -> 1 | E65: =SUM(E54:E64) -> 2 | F65: =SUM(F54:F64) -> 1 | G65: 2 | H65: 2 | I65: 2 | J65: 2 | K65: 2 | L65: 1 | M65: 5 | N65: 6 | O65: 4 | P65: =SUM(P54:P64) -> 2 | Q65: =SUM(Q54:Q64) -> 1
A66: Южный федеральный округ
A67: 1 | B67: Астраханская область | L67: 1 | O67: 1 | Q67: 1
A68: 2 | B68: Волгоградская область | P68: 1
A69: 3 | B69: г.Севастополь | M69: 1
A70: 4 | B70: Краснодарский край | D70: 1 | E70: 1 | F70: 1 | G70: 1 | H70: 1
A71: 5 | B71: МИ ФНС России по Южному ФО | C71: 1 | O71: 1 | Q71: 1
A72: 6 | B72: Республика Адыгея | P72: 1
A73: 7 | B73: Республика Калмыкия | I73: 1
A74: 8 | B74: Республика Крым | D74: 1 | N74: 1 | Q74: 1
A75: 9 | B75: Ростовская область | C75: 1 | D75: 1 | E75: 1 | F75: 1 | G75: 1 | H75: 1 | J75: 1 | K75: 1 | L75: 1 | O75: 1 | P75: 1 | Q75: 1
B76: Итого: | C76: =SUM(C67:C75) -> 2 | D76: =SUM(D67:D75) -> 3 | E76: =SUM(E67:E75) -> 2 | F76: =SUM(F67:F75) -> 2 | G76: 2 | H76: 2 | I76: 1 | J76: 1 | K76: 1 | L76: 2 | M76: 1 | N76: 1 | O76: 3 | P76: =SUM(P67:P75) -> 3 | Q76: =SUM(Q67:Q75) -> 4
A77: Северо-Кавказский федеральный округ
A78: 1 | B78: Кабардино- Балкарская Республика
A79: 2 | B79: Карачаево- Черкесская Республика
A80: 3 | B80: МИ ФНС России по Северо-Кавказскому ФО
A81: 4 | B81: Республика Дагестан | Q81: 1
A82: 5 | B82: Республика Ингушетия | O82: 1
A83: 6 | B83: Республика Северная Осетия - Алания
A84: 7 | B84: Ставропольский край | F84: 1 | G84: 1 | H84: 1 | I84: 1 | P84: 1
A85: 8 | B85: Чеченская Республика | Q85: 1
B86: Итого: | C86: =SUM(C78:C85) -> 0 | D86: =SUM(D78:D85) -> 0 | E86: =SUM(E78:E85) -> 0 | F86: =SUM(F78:F85) -> 1 | G86: 1 | H86: 1 | I86: 1 | J86: 0 | K86: 0 | L86: 0 | M86: 0 | N86: 0 | O86: 1 | P86: =SUM(P78:P85) -> 1 | Q86: =SUM(Q78:Q85) -> 2
A87: Приволжский федеральный округ
A88: 1 | B88: Кировская область | C88: 1 | E88: 1 | J88: 1 | K88: 1 | L88: 1 | M88: 1 | Q88: 1
A89: 2 | B89: МИ ФНС России по Приволжскому ФО
A90: 3 | B90: Нижегородская область | D90: 1 | F90: 1 | H90: 1 | I90: 1 | M90: 1 | N90: 1 | O90: 1 | P90: 1
A91: 4 | B91: Оренбургская область | G91: 1 | J91: 1 | K91: 1 | M91: 2 | N91: 2
A92: 5 | B92: Пензенская область
A93: 6 | B93: Пермский край | C93: 1 | K93: 1 | L93: 1 | M93: 1 | N93: 1 | P93: 1 | Q93: 1
A94: 7 | B94: Республика Башкортостан | C94: 1 | D94: 1 | E94: 1 | F94: 2 | G94: 1 | H94: 1 | I94: 1 | O94: 1 | P94: 1
A95: 8 | B95: Республика Марий Эл | G95: 1 | J95: 1
A96: 9 | B96: Республика Мордовия | O96: 1
A97: 10 | B97: Республика Татарстан | E97: 1 | K97: 1 | L97: 1 | O97: 1 | Q97: 1
A98: 11 | B98: Самарская область | C98: 1 | D98: 1 | F98: 1 | M98: 1
A99: 12 | B99: Саратовская область | D99: 1 | E99: 1 | G99: 1 | H99: 1 | I99: 1 | J99: 1 | K99: 1 | L99: 1 | N99: 1
A100: 13 | B100: Удмуртская Республика | C100: 1 | D100: 1 | H100: 1
A101: 14 | B101: Ульяновская область | I101: 1
A102: 15 | B102: Чувашская Республика | J102: 1
B103: Итого: | C103: =SUM(C88:C102) -> 5 | D103: =SUM(D88:D102) -> 5 | E103: =SUM(E88:E102) -> 4 | F103: =SUM(F88:F102) -> 4 | G103: 4 | H103: 4 | I103: 4 | J103: 5 | K103: 5 | L103: 4 | M103: 6 | N103: 5 | O103: 4 | P103: =SUM(P88:P102) -> 3 | Q103: =SUM(Q88:Q102) -> 3
A104: Уральский федеральный округ
A105: 1 | B105: Курганская область | C105: 1 | H105: 1
A106: 2 | B106: МИ ФНС России по Уральскому ФО | D106: 1 | F106: 1
A107: 3 | B107: Свердловская область | C107: 1 | D107: 1 | E107: 1 | G107: 1 | I107: 1 | J107: 1 | N107: 1 | P107: 1 | Q107: 1
A108: 4 | B108: Тюменская область | F108: 1 | G108: 1 | H108: 1 | P108: 1
A109: 5 | B109: Ханты-Мансийский АО
A110: 6 | B110: Челябинская область | E110: 1 | H110: 2 | I110: 2 | J110: 1 | K110: 1 | L110: 1 | M110: 1 | O110: 2 | P110: 2 | Q110: 1
A111: 7 | B111: Ямало-Ненецкий АО
B112: Итого: | C112: =SUM(C105:C111) -> 2 | D112: =SUM(D105:D111) -> 2 | E112: =SUM(E105:E111) -> 2 | F112: =SUM(F105:F111) -> 2 | G112: 2 | H112: 4 | I112: 3 | J112: 2 | K112: 1 | L112: 1 | M112: 1 | N112: 1 | O112: 2 | P112: =SUM(P105:P111) -> 4 | Q112: =SUM(Q105:Q111) -> 2
A113: Сибирский федеральный округ
A114: 1 | B114: Алтайский край | C114: 1 | K114: 1 | L114: 1 | N114: 1
A115: 2 | B115: Иркутская область | D115: 1 | E115: 1 | F115: 1 | G115: 1 | H115: 2 | I115: 1 | J115: 1 | K115: 1 | L115: 1 | O115: 1 | P115: 1
A116: 3 | B116: Кемеровская область | C116: 1 | I116: 1 | J116: 1 | M116: 1 | N116: 1 | Q116: 1
A117: 4 | B117: Красноярский край | D117: 1 | E117: 1 | F117: 1 | G117: 1 | H117: 1 | I117: 1 | J117: 1 | K117: 1 | L117: 1 | N117: 1 | O117: 3 | P117: 1 | Q117: 1
A118: 5 | B118: МИ ФНС России по Сибирскому ФО | O118: 1
A119: 6 | B119: Новосибирская область | C119: 1 | D119: 1 | E119: 1 | F119: 1 | G119: 1 | J119: 1 | K119: 1 | L119: 1
A120: 7 | B120: Омская область | F120: 1 | I120: 1 | L120: 1 | P120: 1 | Q120: 1
A121: 8 | B121: Республика Алтай
A122: 9 | B122: Республика Тыва | D122: 1 | J122: 1 | P122: 1
A123: 10 | B123: Республика Хакасия | P123: 1
A124: 11 | B124: Томская область | D124: 1 | E124: 1 | F124: 1 | G124: 1 | I124: 1 | J124: 1 | K124: 1 | L124: 1 | Q124: 1
B125: Итого: | C125: =SUM(C114:C124) -> 3 | D125: =SUM(D114:D124) -> 5 | E125: =SUM(E114:E124) -> 4 | F125: =SUM(F114:F124) -> 5 | G125: 4 | H125: 3 | I125: 5 | J125: 6 | K125: 5 | L125: 6 | M125: 1 | N125: 3 | O125: 5 | P125: =SUM(P114:P124) -> 5 | Q125: =SUM(Q114:Q124) -> 4
A126: Дальневосточный федеральный округ
A127: 1 | B127: Амурская область | C127: 1 | L127: 1
A128: 2 | B128: Еврейская АО | D128: 1
A129: 3 | B129: Забайкальский край | F129: 1 | G129: 1 | L129: 1
A130: 4 | B130: Камчатский край | C130: 1 | E130: 1
A131: 5 | B131: Магаданская область
A132: 6 | B132: МИ ФНС России по Дальневосточному ФО
A133: 7 | B133: Приморский край | D133: 1 | F133: 1 | I133: 1 | J133: 1 | K133: 1 | L133: 1 | O133: 1 | P133: 1 | Q133: 1
A134: 8 | B134: Республика Бурятия | D134: 1 | H134: 1
A135: 9 | B135: Республика Саха (Якутия) | C135: 1 | E135: 1 | F135: 1 | G135: 1 | I135: 1 | J135: 1 | Q135: 1
A136: 10 | B136: Сахалинская область
A137: 11 | B137: Хабаровский край | C137: 1 | E137: 1 | F137: 1 | G137: 2 | H137: 2 | I137: 2 | J137: 1 | K137: 2 | L137: 1
A138: 12 | B138: Чукотский АО
B139: Итого: | C139: =SUM(C127:C138) -> 4 | D139: =SUM(D127:D138) -> 3 | E139: =SUM(E127:E138) -> 3 | F139: =SUM(F127:F138) -> 4 | G139: 4 | H139: 3 | I139: 4 | J139: 3 | K139: 3 | L139: 4 | M139: 0 | N139: 0 | O139: 1 | P139: =SUM(P127:P138) -> 1 | Q139: =SUM(Q127:Q138) -> 2
A140: Новые территории Российской Федерации
A141: 1 | B141: Донецкая Народная Республика | C141: 1 | E141: 1 | I141: 1 | L141: 2 | O141: 1 | P141: 2
A142: 2 | B142: Запорожская область | K142: 1 | L142: 1
A143: 3 | B143: Луганская Народная Республика | C143: 1 | P143: 1 | Q143: 1
A144: 4 | B144: Херсонская область
B145: Итого: | C145: =SUM(C141:C144) -> 2 | D145: =SUM(D141:D144) -> 0 | E145: =SUM(E141:E144) -> 1 | F145: =SUM(F141:F144) -> 0 | G145: 0 | H145: 0 | I145: 1 | J145: 0 | K145: 1 | L145: 3 | M145: 0 | N145: 0 | O145: 1 | P145: =SUM(P141:P144) -> 3 | Q145: =SUM(Q141:Q144) -> 1
B146: Всего: | C146: =C145+C139+C125+C112+C103+C86+C76+C65+C52+C16 -> 22 | D146: =D145+D139+D125+D112+D103+D86+D76+D65+D52+D16 -> 22 | E146: =E145+E139+E125+E112+E103+E86+E76+E65+E52+E16 -> 20 | F146: =F145+F139+F125+F112+F103+F86+F76+F65+F52+F16 -> 22 | G146: 22 | H146: 23 | I146: 25 | J146: 24 | K146: 23 | L146: 23 | M146: 21 | N146: 22 | O146: 26 | P146: =P145+P139+P125+P112+P103+P86+P76+P65+P52+P16 -> 25 | Q146: =Q145+Q139+Q125+Q112+Q103+Q86+Q76+Q65+Q52+Q16 -> 25

Sheet Прил.33
Q1: Приложение № 33
Q2: УТВЕРЖДЕН
Q3: Приказом ФНС России
Q4: от " " 20 г.
Q5: №
A7: План-график дополнительного профессионального образования гражданских служащих в "Академии ФНС ЛАБ–Нева" в 2025 году (очная форма обучения)
A8: № п/п | B8: Структурные подразделения ЦА ФНС России, УФНС России по субъектам РФ, межрегиональные инспекции ФНС России | C8: Численность, человек
C9: В том числе по программам повышения квалификации с указанием продолжительности и периодам обучения
C10: Урегулирование и взыскание задолженности (повышенный уровень) | K10: Урегулирование и взыскание задолженности (мастерский уровень) | N10: Учебный доктринальный курс по правовым и судебным аспектам деятельности налоговых органов (повышенный уровень) | P10: Учебный доктринальный курс по правовым и судебным аспектам деятельности налоговых органов (мастерский уровень)
C11: (72 часа) | K11: (72 часа) | N11: (72 часа) | P11: (72 часа)
C12: 24.02-07.03 | D12: 17.03-28.03 | E12: 07.04-18.04 | F12: 14.07-25.07 | G12: 25.08-05.09 | H12: 08.09-19.09 | I12: 24.11-05.12 | J12: 08.12-19.12 | K12: 21.04-07.05 | L12: 09.06-20.06 | M12: 30.06-11.07 | N12: 21.04-07.05 | O12: 08.12-19.12 | P12: 12.05-23.05 | Q12: 22.09-03.10
A13: 1 | B13: 2 | C13: 3 | D13: 4 | E13: 5 | F13: 6 | G13: 7 | H13: 8 | I13: 9 | J13: 10 | K13: 11 | L13: 12 | M13: 13 | N13: 14 | O13: 15 | P13: 16 | Q13: 17
A14: Центральный аппарат ФНС России
A15: 1 | B15: Управление профессионального развития
B16: Итого: | C16: =SUM(C15:C15) -> 0 | D16: 0 | E16: 0 | F16: =SUM(F15:F15) -> 0 | G16: 0 | H16: 0 | I16: 0 | J16: 0 | K16: 0 | L16: 0 | M16: 0 | N16: 0 | O16: 0 | P16: 0 | Q16: 0
A17: Центральный федеральный округ
A18: 1 | B18: Белгородская область | D18: 1 | F18: 1 | G18: 1 | I18: 1 | K18: 1 | M18: 1
A19: 2 | B19: Брянская область | C19: 1 | H19: 1 | L19: 1
A20: 3 | B20: Владимирская область | D20: 1 | E20: 1 | G20: 1 | H20: 1 | I20: 1 | J20: 1 | N20: 1 | O20: 1 | P20: 1 | Q20: 1
A21: 4 | B21: Воронежская область | F21: 1 | K21: 1 | L21: 1
A22: 5 | B22: г.Москва
A23: 6 | B23: Ивановская область | C23: 1
A24: 7 | B24: Калужская область | D24: 1
A25: 8 | B25: Костромская область | M25: 1
A26: 9 | B26: Курская область | E26: 1 | G26: 1 | K26: 1 | L26: 2 | M26: 1 | O26: 1
A27: 10 | B27: Липецкая область | K27: 1 | N27: 1 | Q27: 1
A28: 11 | B28: МИ ФНС России по камеральному контролю | Q28: 1
A29: 12 | B29: МИ ФНС России по КН № 1
A30: 13 | B30: МИ ФНС России по КН № 2
A31: 14 | B31: МИ ФНС России по КН № 3 | M31: 1
A32: 15 | B32: МИ ФНС России по КН № 4 | I32: 1
A33: 16 | B33: МИ ФНС России по КН № 5
A34: 17 | B34: МИ ФНС России по КН № 6
A35: 18 | B35: МИ ФНС России по КН № 7
A36: 19 | B36: МИ ФНС России по КН № 9
A37: 20 | B37: МИ ФНС России по КН № 10
A38: 21 | B38: МИ ФНС России по ценообразованию для целей налогообложения
A39: 22 | B39: МИ ФНС России по Центральному ФО
A40: 23 | B40: МИ ФНС России по ЦОД
A41: 24 | B41: МИ ФНС России по ЦОД №2
A42: 25 | B42: МИ ФНС России по управлению долгом | K42: 1 | M42: 1
A43: 26 | B43: МИ ФНС России по контролю и надзору за налогоплательщиками в сфере бюджетного финансирования
A44: 27 | B44: Московская область | J44: 1 | L44: 1 | O44: 1 | Q44: 1
A45: 28 | B45: Орловская область | C45: 1 | N45: 1
A46: 29 | B46: Рязанская область
A47: 30 | B47: Смоленская область
A48: 31 | B48: Тамбовская область
A49: 32 | B49: Тверская область | E49: 1 | L49: 1
A50: 33 | B50: Тульская область
A51: 34 | B51: Ярославская область
B52: Итого: | C52: =SUM(C18:C51) -> 3 | D52: 3 | E52: 3 | F52: =SUM(F18:F51) -> 2 | G52: 3 | H52: 2 | I52: 3 | J52: 2 | K52: 5 | L52: 6 | M52: 5 | N52: 3 | O52: 3 | P52: 1 | Q52: 4
A53: Северо-Западный федеральный округ
A54: 1 | B54: Архангельская область и Ненецкий АО | C54: 1 | F54: 1 | G54: 1 | I54: 1 | J54: 1
A55: 2 | B55: Вологодская область
A56: 3 | B56: г.Санкт- Петербург | G56: 1 | P56: 2 | Q56: 1
A57: 4 | B57: Калининградская область | P57: 1
A58: 5 | B58: Ленинградская область
A59: 6 | B59: МИ ФНС России по Северо-Западному ФО | Q59: 1
A60: 7 | B60: Мурманская область | I60: 1
A61: 8 | B61: Новгородская область | E61: 1 | G61: 1 | H61: 1 | I61: 1 | J61: 1 | K61: 1 | N61: 1
A62: 9 | B62: Псковская область | F62: 1
A63: 10 | B63: Республика Карелия | C63: 1 | D63: 1 | M63: 1
A64: 11 | B64: Республика Коми
B65: Итого: | C65: =SUM(C54:C64) -> 2 | D65: 1 | E65: 1 | F65: =SUM(F54:F64) -> 2 | G65: 3 | H65: 1 | I65: 3 | J65: 2 | K65: 1 | L65: 0 | M65: 1 | N65: 1 | O65: 0 | P65: 3 | Q65: 2
A66: Южный федеральный округ
A67: 1 | B67: Астраханская область | F67: 1
A68: 2 | B68: Волгоградская область | C68: 1 | K68: 1
A69: 3 | B69: г.Севастополь | D69: 1 | G69: 1 | I69: 1 | L69: 1
A70: 4 | B70: Краснодарский край | N70: 1 | O70: 1
A71: 5 | B71: МИ ФНС России по Южному ФО
A72: 6 | B72: Республика Адыгея
A73: 7 | B73: Республика Калмыкия | N73: 1 | P73: 1
A74: 8 | B74: Республика Крым | I74: 1 | J74: 1 | K74: 1 | L74: 1 | O74: 1 | P74: 1 | Q74: 1
A75: 9 | B75: Ростовская область | C75: 1 | F75: 1 | M75: 1 | Q75: 1
B76: Итого: | C76: =SUM(C67:C75) -> 2 | D76: 1 | E76: 0 | F76: =SUM(F67:F75) -> 2 | G76: 1 | H76: 0 | I76: 2 | J76: 1 | K76: 2 | L76: 2 | M76: 1 | N76: 2 | O76: 2 | P76: 2 | Q76: 2
A77: Северо-Кавказский федеральный округ
A78: 1 | B78: Кабардино- Балкарская Республика | P78: 1
A79: 2 | B79: Карачаево- Черкесская Республика | C79: 1 | D79: 1 | E79: 1 | G79: 1 | H79: 1 | N79: 1
A80: 3 | B80: МИ ФНС России по Северо-Кавказскому ФО | Q80: 1
A81: 4 | B81: Республика Дагестан | I81: 1 | P81: 1
A82: 5 | B82: Республика Ингушетия | G82: 1 | H82: 1
A83: 6 | B83: Республика Северная Осетия - Алания | C83: 1 | D83: 1 | E83: 1 | M83: 1 | Q83: 1
A84: 7 | B84: Ставропольский край | C84: 1 | D84: 1 | E84: 1 | F84: 1 | H84: 1 | J84: 1 | O84: 1 | Q84: 1
A85: 8 | B85: Чеченская Республика | I85: 1
B86: Итого: | C86: =SUM(C78:C85) -> 3 | D86: 3 | E86: 3 | F86: =SUM(F78:F85) -> 1 | G86: 2 | H86: 3 | I86: 2 | J86: 1 | K86: 0 | L86: 0 | M86: 1 | N86: 1 | O86: 1 | P86: 2 | Q86: 3
A87: Приволжский федеральный округ
A88: 1 | B88: Кировская область | C88: 2 | D88: 2 | E88: 1 | F88: 1 | H88: 1 | J88: 1 | K88: 1
A89: 2 | B89: МИ ФНС России по Приволжскому ФО
A90: 3 | B90: Нижегородская область | C90: 1 | I90: 1 | L90: 1 | N90: 1 | O90: 1 | P90: 1
A91: 4 | B91: Оренбургская область | D91: 1 | E91: 1 | G91: 1 | K91: 1 | L91: 1 | M91: 1 | N91: 1 | O91: 1 | P91: 2 | Q91: 1
A92: 5 | B92: Пензенская область | D92: 1 | F92: 1 | G92: 1 | J92: 1
A93: 6 | B93: Пермский край | C93: 1 | D93: 1 | E93: 1 | F93: 1 | G93: 1 | H93: 1 | I93: 1 | K93: 1 | L93: 1 | M93: 1 | N93: 1 | O93: 1
A94: 7 | B94: Республика Башкортостан | C94: 1 | E94: 1 | L94: 1 | P94: 1
A95: 8 | B95: Республика Марий Эл | G95: 1
A96: 9 | B96: Республика Мордовия | D96: 1 | G96: 1 | I96: 1 | J96: 2 | L96: 1 | M96: 2
A97: 10 | B97: Республика Татарстан | C97: 1 | D97: 1 | E97: 1 | H97: 1 | K97: 2 | L97: 1 | M97: 1 | N97: 1
A98: 11 | B98: Самарская область | L98: 1 | N98: 1 | O98: 1 | Q98: 1
A99: 12 | B99: Саратовская область | D99: 1 | E99: 1 | F99: 1 | J99: 1 | K99: 1 | M99: 1 | P99: 1
A100: 13 | B100: Удмуртская Республика | L100: 1
A101: 14 | B101: Ульяновская область | H101: 2 | I101: 1 | J101: 1
A102: 15 | B102: Чувашская Республика | C102: 2 | E102: 2 | F102: 1 | H102: 2 | I102: 2 | J102: 1 | O102: 1
B103: Итого: | C103: =SUM(C88:C102) -> 8 | D103: 8 | E103: 8 | F103: =SUM(F88:F102) -> 5 | G103: 5 | H103: 7 | I103: 6 | J103: 7 | K103: 6 | L103: 8 | M103: 6 | N103: 5 | O103: 5 | P103: 5 | Q103: 2
A104: Уральский федеральный округ
A105: 1 | B105: Курганская область | J105: 1
A106: 2 | B106: МИ ФНС России по Уральскому ФО
A107: 3 | B107: Свердловская область | D107: 1 | G107: 1 | L107: 1 | N107: 1 | O107: 1
A108: 4 | B108: Тюменская область | E108: 1 | G108: 1 | H108: 1 | I108: 1 | J108: 1 | P108: 1 | Q108: 1
A109: 5 | B109: Ханты-Мансийский АО | C109: 1 | D109: 1 | E109: 1 | F109: 2 | K109: 1 | M109: 1
A110: 6 | B110: Челябинская область | C110: 1 | D110: 1 | E110: 1 | F110: 1 | J110: 1 | O110: 1 | P110: 2 | Q110: 2
A111: 7 | B111: Ямало-Ненецкий АО
B112: Итого: | C112: =SUM(C105:C111) -> 2 | D112: 3 | E112: 3 | F112: =SUM(F105:F111) -> 3 | G112: 2 | H112: 1 | I112: 1 | J112: 3 | K112: 1 | L112: 1 | M112: 1 | N112: 1 | O112: 2 | P112: 3 | Q112: 3
A113: Сибирский федеральный округ
A114: 1 | B114: Алтайский край | J114: 1 | L114: 1 | M114: 1 | O114: 1 | P114: 1
A115: 2 | B115: Иркутская область | C115: 2 | E115: 1 | G115: 1 | J115: 1 | K115: 1 | N115: 2 | O115: 1
A116: 3 | B116: Кемеровская область | M116: 1 | Q116: 1
A117: 4 | B117: Красноярский край | C117: 2 | D117: 3 | E117: 1 | F117: 2 | G117: 1 | H117: 2 | I117: 2 | J117: 3 | L117: 1 | N117: 1
A118: 5 | B118: МИ ФНС России по Сибирскому ФО
A119: 6 | B119: Новосибирская область | F119: 1 | O119: 2 | P119: 1
A120: 7 | B120: Омская область | D120: 1 | G120: 1 | I120: 1 | K120: 1 | M120: 1 | Q120: 1
A121: 8 | B121: Республика Алтай
A122: 9 | B122: Республика Тыва | C122: 1 | E122: 1
A123: 10 | B123: Республика Хакасия | D123: 1 | F123: 1 | G123: 1 | I123: 1 | K123: 1 | N123: 1 | P123: 1
A124: 11 | B124: Томская область | J124: 1
B125: Итого: | C125: =SUM(C114:C124) -> 5 | D125: 5 | E125: 3 | F125: =SUM(F114:F124) -> 4 | G125: 4 | H125: 2 | I125: 4 | J125: 6 | K125: 3 | L125: 2 | M125: 3 | N125: 4 | O125: 4 | P125: 3 | Q125: 2
A126: Дальневосточный федеральный округ
A127: 1 | B127: Амурская область | H127: 1
A128: 2 | B128: Еврейская АО | I128: 1
A129: 3 | B129: Забайкальский край | E129: 1 | H129: 1 | N129: 1
A130: 4 | B130: Камчатский край | E130: 1 | F130: 1 | H130: 1 | O130: 1
A131: 5 | B131: Магаданская область | E131: 1 | G131: 1 | M131: 1 | Q131: 1
A132: 6 | B132: МИ ФНС России по Дальневосточному ФО | F132: 1 | Q132: 1
A133: 7 | B133: Приморский край | I133: 1 | J133: 1 | K133: 1 | L133: 1 | M133: 1 | N133: 1 | O133: 1 | P133: 1 | Q133: 2
A134: 8 | B134: Республика Бурятия | F134: 2 | H134: 2 | J134: 1 | K134: 1 | L134: 2 | M134: 2 | N134: 1
A135: 9 | B135: Республика Саха (Якутия) | E135: 1 | G135: 1 | H135: 1
A136: 10 | B136: Сахалинская область | K136: 1
A137: 11 | B137: Хабаровский край | C137: 1 | D137: 1 | F137: 2 | H137: 1
A138: 12 | B138: Чукотский АО | O138: 1
B139: Итого: | C139: =SUM(C127:C138) -> 1 | D139: 1 | E139: 4 | F139: =SUM(F127:F138) -> 6 | G139: 2 | H139: 7 | I139: 2 | J139: 2 | K139: 3 | L139: 3 | M139: 4 | N139: 3 | O139: 3 | P139: 1 | Q139: 4
A140: Новые территории Российской Федерации
A141: 1 | B141: Донецкая Народная Республика | N141: 2
A142: 2 | B142: Запорожская область | O142: 1
A143: 3 | B143: Луганская Народная Республика | H143: 1 | I143: 1 | J143: 1 | O143: 1 | P143: 1
A144: 4 | B144: Херсонская область
B145: Итого: | C145: =SUM(C141:C144) -> 0 | D145: 0 | E145: 0 | F145: =SUM(F141:F144) -> 0 | G145: 0 | H145: 1 | I145: 1 | J145: 1 | K145: 0 | L145: 0 | M145: 0 | N145: 2 | O145: 2 | P145: 1 | Q145: 0
B146: Всего: | C146: =SUM(C145+C139+C125+C112+C103+C86+C76+C65+C52+C16) -> 26 | D146: 25 | E146: 25 | F146: =SUM(F145+F139+F125+F112+F103+F86+F76+F65+F52+F16) -> 25 | G146: 22 | H146: 24 | I146: 24 | J146: 25 | K146: 21 | L146: 22 | M146: 22 | N146: 22 | O146: 22 | P146: 21 | Q146: 22

Sheet Прил.34
S1: Приложение № 34
S2: УТВЕРЖДЕНО
S3: приказом ФНС России
S4: от " " 20 г.
S5: №
A7: План-график дополнительного профессионального образования гражданских служащих в в "Академии ФНС ЛАБ–Нева" в 2025 году (очная форма обучения)
A8: № п/п | B8: Структурные подразделения ЦА ФНС России, УФНС России по субъектам РФ, межрегиональные инспекции ФНС России | C8: Численность, человек
C9: В том числе по программам повышения квалификации с указанием продолжительности и периодам обучения
C10: Формирование доказательственной базы при выявлении нарушений пределов осуществления прав по исчислению налоговой базы и (или) суммы налога, сбора, страховых взносов (повышенный уровень) | F10: Формирование доказательственной базы при выявлении нарушений пределов осуществления прав по исчислению налоговой базы и (или) суммы налога, сбора, страховых взносов (мастерский уровень) | H10: Формирование команд и организация командной работы на государственной службе | K10: Школа кадровика (мастерский уровень) | L10: Эффективное взаимодействие с налогоплательщиками (мастерский уровень) | O10: Персональная эффективность гражданского служащего | S10: Контрактная система в сфере закупок товаров, работ, услуг для обеспечения государственных нужд (мастерский уровень)
C11: (72 часа) | F11: (72 часа) | H11: (72 часа) | K11: (72 часа) | L11: (72 часа) | O11: (96 часов) | S11: (112 часов)
C12: 10.02-21.02 | D12: 07.04-18.04 | E12: 22.09-03.10 | F12: 26.05-06.06 | G12: 20.10-31.10 | H12: 07.04-18.04 | I12: 14.07-25.07 | J12: 08.09-19.09 | K12: 14.07-25.07 | L12: 08.09-19.09 | M12: 06.10-17.10 | N12: 17.11-28.11 | O12: 10.03-28.03 | P12: 14.04-30.04 | Q12: 05.05-23.05 | R12: 23.06-11.07 | S12: 24.02-14.03 | T12: 19.05-06.06 | U12: 23.06-11.07
A13: 1 | B13: 2 | C13: 3 | D13: 4 | E13: 5 | F13: 6 | G13: 7 | H13: 8 | I13: 9 | J13: 10 | K13: 11 | L13: 12 | M13: 13 | N13: 14 | O13: 15 | P13: 16 | Q13: 17 | R13: 18 | S13: 19 | T13: 20 | U13: 21
A14: Центральный аппарат ФНС России
A15: 1 | B15: Управление профессионального развития | C15: 1 | D15: 1 | E15: 1 | G15: 1 | P15: 1
B16: Итого: | C16: =SUM(C15:C15) -> 1 | D16: 1 | E16: 1 | F16: 0 | G16: 1 | H16: 0 | I16: =SUM(I15:I15) -> 0 | J16: 0 | K16: 0 | L16: 0 | M16: 0 | N16: 0 | O16: 0 | P16: 1 | Q16: 0 | R16: 0 | S16: 0 | T16: 0 | U16: 0
A17: Центральный федеральный округ
A18: 1 | B18: Белгородская область | C18: 1 | S18: 1
A19: 2 | B19: Брянская область | D19: 1 | F19: 1 | I19: 1 | L19: 1 | M19: 1 | O19: 1 | Q19: 1
A20: 3 | B20: Владимирская область | E20: 1 | T20: 1 | U20: 1
A21: 4 | B21: Воронежская область
A22: 5 | B22: г.Москва | C22: 1 | D22: 1 | K22: 1 | Q22: 1 | R22: 1
A23: 6 | B23: Ивановская область | O23: 1 | P23: 1
A24: 7 | B24: Калужская область | Q24: 1
A25: 8 | B25: Костромская область | E25: 1 | G25: 1 | H25: 1 | N25: 1 | R25: 1 | S25: 1
A26: 9 | B26: Курская область | O26: 1 | P26: 1
A27: 10 | B27: Липецкая область | F27: 1 | L27: 1
A28: 11 | B28: МИ ФНС России по камеральному контролю | G28: 1 | J28: 1 | T28: 1
A29: 12 | B29: МИ ФНС России по КН № 1 | I29: 1 | K29: 1
A30: 13 | B30: МИ ФНС России по КН № 2
A31: 14 | B31: МИ ФНС России по КН № 3
A32: 15 | B32: МИ ФНС России по КН № 4 | Q32: 1
A33: 16 | B33: МИ ФНС России по КН № 5 | F33: 1 | U33: 1
A34: 17 | B34: МИ ФНС России по КН № 6 | C34: 1 | S34: 1
A35: 18 | B35: МИ ФНС России по КН № 7 | G35: 1
A36: 19 | B36: МИ ФНС России по КН № 9
A37: 20 | B37: МИ ФНС России по КН № 10
A38: 21 | B38: МИ ФНС России по ценообразованию для целей налогообложения
A39: 22 | B39: МИ ФНС России по Центральному ФО
A40: 23 | B40: МИ ФНС России по ЦОД | R40: 1
A41: 24 | B41: МИ ФНС России по ЦОД №2
A42: 25 | B42: МИ ФНС России по управлению долгом
A43: 26 | B43: МИ ФНС России по контролю и надзору за налогоплательщиками в сфере бюджетного финансирования
A44: 27 | B44: Московская область | D44: 1 | H44: 1 | M44: 1 | N44: 1 | T44: 1
A45: 28 | B45: Орловская область | E45: 1 | F45: 1 | O45: 1 | U45: 1
A46: 29 | B46: Рязанская область | P46: 1
A47: 30 | B47: Смоленская область
A48: 31 | B48: Тамбовская область | C48: 1 | D48: 1 | E48: 1 | F48: 1 | G48: 2 | K48: 1
A49: 32 | B49: Тверская область | D49: 1 | J49: 1 | L49: 1 | S49: 1
A50: 33 | B50: Тульская область | I50: 1 | T50: 1
A51: 34 | B51: Ярославская область
B52: Итого: | C52: =SUM(C18:C51) -> 4 | D52: =SUM(D18:D51) -> 5 | E52: 4 | F52: 5 | G52: 5 | H52: 2 | I52: =SUM(I18:I51) -> 3 | J52: 2 | K52: 3 | L52: 3 | M52: 2 | N52: 2 | O52: 4 | P52: 3 | Q52: 4 | R52: 3 | S52: 4 | T52: 4 | U52: 3
A53: Северо-Западный федеральный округ
A54: 1 | B54: Архангельская область и Ненецкий АО | C54: 1 | E54: 1 | L54: 1 | M54: 1 | N54: 1 | O54: 1 | Q54: 1 | R54: 1 | S54: 1 | U54: 1
A55: 2 | B55: Вологодская область
A56: 3 | B56: г.Санкт- Петербург | D56: 1 | H56: 1 | O56: 1 | P56: 1 | Q56: 1 | R56: 1 | T56: 1
A57: 4 | B57: Калининградская область | M57: 1 | O57: 1 | P57: 2 | Q57: 2 | R57: 1 | U57: 1
A58: 5 | B58: Ленинградская область | E58: 1 | J58: 1
A59: 6 | B59: МИ ФНС России по Северо-Западному ФО | S59: 1
A60: 7 | B60: Мурманская область | C60: 1 | T60: 1
A61: 8 | B61: Новгородская область | I61: 1 | K61: 1 | L61: 1 | N61: 1 | O61: 1 | R61: 1
A62: 9 | B62: Псковская область | H62: 2 | I62: 1 | J62: 1 | L62: 1 | M62: 1 | N62: 1
A63: 10 | B63: Республика Карелия | F63: 1 | J63: 1 | U63: 1
A64: 11 | B64: Республика Коми | G64: 1 | P64: 1 | S64: 1
B65: Итого: | C65: =SUM(C54:C64) -> 2 | D65: =SUM(D54:D64) -> 1 | E65: 2 | F65: 1 | G65: 1 | H65: 3 | I65: =SUM(I54:I64) -> 2 | J65: 3 | K65: 1 | L65: 3 | M65: 3 | N65: 3 | O65: 4 | P65: 4 | Q65: 4 | R65: 4 | S65: 3 | T65: 2 | U65: 3
A66: Южный федеральный округ
A67: 1 | B67: Астраханская область
A68: 2 | B68: Волгоградская область
A69: 3 | B69: г.Севастополь | D69: 1 | F69: 1 | Q69: 1 | T69: 1 | U69: 1
A70: 4 | B70: Краснодарский край | E70: 1 | G70: 1 | I70: 1 | K70: 1 | R70: 1 | S70: 1
A71: 5 | B71: МИ ФНС России по Южному ФО | O71: 1
A72: 6 | B72: Республика Адыгея | F72: 1
A73: 7 | B73: Республика Калмыкия
A74: 8 | B74: Республика Крым | C74: 1 | G74: 1 | M74: 1 | P74: 1 | T74: 1
A75: 9 | B75: Ростовская область | F75: 1 | H75: 1 | K75: 2 | L75: 1 | M75: 1 | N75: 1 | O75: 1 | Q75: 1 | R75: 1 | U75: 1
B76: Итого: | C76: =SUM(C67:C75) -> 1 | D76: =SUM(D67:D75) -> 1 | E76: 1 | F76: 3 | G76: 2 | H76: 1 | I76: =SUM(I67:I75) -> 1 | J76: 0 | K76: 3 | L76: 1 | M76: 2 | N76: 1 | O76: 2 | P76: 1 | Q76: 2 | R76: 2 | S76: 1 | T76: 2 | U76: 2
A77: Северо-Кавказский федеральный округ
A78: 1 | B78: Кабардино- Балкарская Республика | S78: 1
A79: 2 | B79: Карачаево- Черкесская Республика | J79: 1
A80: 3 | B80: МИ ФНС России по Северо-Кавказскому ФО
A81: 4 | B81: Республика Дагестан | I81: 1 | P81: 1 | T81: 1
A82: 5 | B82: Республика Ингушетия
A83: 6 | B83: Республика Северная Осетия - Алания
A84: 7 | B84: Ставропольский край | D84: 1 | H84: 1 | J84: 1 | K84: 1 | L84: 1 | M84: 1 | N84: 2 | S84: 1 | U84: 1
A85: 8 | B85: Чеченская Республика
B86: Итого: | C86: =SUM(C78:C85) -> 0 | D86: =SUM(D78:D85) -> 1 | E86: 0 | F86: 0 | G86: 0 | H86: 1 | I86: =SUM(I78:I85) -> 1 | J86: 2 | K86: 1 | L86: 1 | M86: 1 | N86: 2 | O86: 0 | P86: 1 | Q86: 0 | R86: 0 | S86: 2 | T86: 1 | U86: 1
A87: Приволжский федеральный округ
A88: 1 | B88: Кировская область | C88: 1 | D88: 1 | E88: 1 | G88: 1 | H88: 1 | I88: 1 | Q88: 1 | S88: 1 | T88: 1 | U88: 2
A89: 2 | B89: МИ ФНС России по Приволжскому ФО | R89: 1
A90: 3 | B90: Нижегородская область | C90: 1 | E90: 1 | F90: 2 | G90: 1 | I90: 1 | J90: 1 | K90: 2 | L90: 1 | M90: 1 | O90: 1 | T90: 1
A91: 4 | B91: Оренбургская область | D91: 1 | F91: 2 | G91: 1 | H91: 1 | J91: 1 | N91: 1 | P91: 1 | U91: 1
A92: 5 | B92: Пензенская область | L92: 1 | M92: 1
A93: 6 | B93: Пермский край | C93: 1 | E93: 1 | G93: 1 | H93: 2 | I93: 2 | J93: 2 | L93: 1 | M93: 1 | N93: 1
A94: 7 | B94: Республика Башкортостан | C94: 1 | D94: 1 | E94: 1 | L94: 1 | M94: 1 | N94: 2 | O94: 1 | P94: 1 | Q94: 1 | R94: 1 | S94: 1 | T94: 1
A95: 8 | B95: Республика Марий Эл | F95: 1 | G95: 1
A96: 9 | B96: Республика Мордовия
A97: 10 | B97: Республика Татарстан | E97: 1 | I97: 1 | K97: 1 | Q97: 1 | R97: 1 | U97: 1
A98: 11 | B98: Самарская область | C98: 2 | D98: 1 | E98: 1 | L98: 1 | O98: 1
A99: 12 | B99: Саратовская область | D99: 1 | H99: 1 | P99: 1 | Q99: 1 | R99: 1
A100: 13 | B100: Удмуртская Республика | E100: 1 | K100: 1 | L100: 1 | M100: 1 | N100: 1
A101: 14 | B101: Ульяновская область | C101: 1
A102: 15 | B102: Чувашская Республика | D102: 1 | M102: 1 | S102: 1
B103: Итого: | C103: =SUM(C88:C102) -> 7 | D103: =SUM(D88:D102) -> 6 | E103: 7 | F103: 5 | G103: 5 | H103: 5 | I103: =SUM(I88:I102) -> 5 | J103: 4 | K103: 4 | L103: 6 | M103: 6 | N103: 5 | O103: 3 | P103: 3 | Q103: 4 | R103: 4 | S103: 3 | T103: 3 | U103: 4
A104: Уральский федеральный округ
A105: 1 | B105: Курганская область | F105: 1 | G105: 1 | K105: 1 | O105: 1 | T105: 1
A106: 2 | B106: МИ ФНС России по Уральскому ФО | E106: 1 | U106: 1
A107: 3 | B107: Свердловская область | I107: 1 | J107: 1 | L107: 2 | M107: 1 | N107: 2 | O107: 1 | P107: 2 | Q107: 1 | R107: 1 | S107: 1 | T107: 1
A108: 4 | B108: Тюменская область | C108: 1 | F108: 1 | K108: 1 | M108: 1 | N108: 1 | Q108: 1
A109: 5 | B109: Ханты-Мансийский АО | D109: 1 | H109: 1 | U109: 1
A110: 6 | B110: Челябинская область | C110: 1 | D110: 1 | E110: 1 | G110: 1 | H110: 1 | I110: 1 | J110: 2 | K110: 1 | L110: 1 | M110: 1 | N110: 1 | R110: 1 | S110: 1 | T110: 1
A111: 7 | B111: Ямало-Ненецкий АО
B112: Итого: | C112: =SUM(C105:C111) -> 2 | D112: =SUM(D105:D111) -> 2 | E112: 2 | F112: 2 | G112: 2 | H112: 2 | I112: =SUM(I105:I111) -> 2 | J112: 3 | K112: 3 | L112: 3 | M112: 3 | N112: 4 | O112: 2 | P112: 2 | Q112: 2 | R112: 2 | S112: 2 | T112: 3 | U112: 2
A113: Сибирский федеральный округ
A114: 1 | B114: Алтайский край | E114: 1 | F114: 1 | I114: 1 | K114: 2 | L114: 1 | O114: 1 | P114: 1
A115: 2 | B115: Иркутская область | C115: 1 | D115: 1 | G115: 1 | H115: 2 | I115: 1 | J115: 1 | O115: 2 | P115: 2 | Q115: 2 | R115: 3 | S115: 1 | T115: 1 | U115: 2
A116: 3 | B116: Кемеровская область | F116: 1 | G116: 1 | J116: 1 | M116: 1 | S116: 1 | T116: 1
A117: 4 | B117: Красноярский край | E117: 1 | F117: 1 | H117: 2 | I117: 2 | J117: 2 | K117: 1 | L117: 1 | M117: 1 | N117: 1 | O117: 3 | P117: 2 | Q117: 2 | R117: 3 | S117: 1
A118: 5 | B118: МИ ФНС России по Сибирскому ФО | P118: 1
A119: 6 | B119: Новосибирская область | G119: 1 | H119: 1 | I119: 2 | J119: 1 | S119: 1 | T119: 1 | U119: 1
A120: 7 | B120: Омская область | C120: 1 | H120: 1 | I120: 1 | J120: 1 | K120: 2 | L120: 1 | N120: 1 | O120: 2 | P120: 1 | Q120: 1 | R120: 1 | T120: 1 | U120: 1
A121: 8 | B121: Республика Алтай | H121: 1 | S121: 1
A122: 9 | B122: Республика Тыва | D122: 1 | F122: 1 | T122: 1
A123: 10 | B123: Республика Хакасия | C123: 1 | E123: 1 | J123: 1 | P123: 1 | U123: 1
A124: 11 | B124: Томская область | H124: 1 | I124: 1 | J124: 1 | L124: 1 | M124: 1 | N124: 1 | Q124: 1
B125: Итого: | C125: =SUM(C114:C124) -> 3 | D125: =SUM(D114:D124) -> 2 | E125: 3 | F125: 4 | G125: 3 | H125: 8 | I125: =SUM(I114:I124) -> 8 | J125: 8 | K125: 5 | L125: 4 | M125: 3 | N125: 3 | O125: 8 | P125: 8 | Q125: 6 | R125: 7 | S125: 5 | T125: 5 | U125: 5
A126: Дальневосточный федеральный округ
A127: 1 | B127: Амурская область | I127: 1
A128: 2 | B128: Еврейская АО
A129: 3 | B129: Забайкальский край | D129: 1 | H129: 1 | M129: 1 | O129: 1 | Q129: 1 | R129: 1 | S129: 2 | T129: 2 | U129: 1
A130: 4 | B130: Камчатский край | Q130: 1 | S130: 1 | T130: 1
A131: 5 | B131: Магаданская область | G131: 1 | K131: 1
A132: 6 | B132: МИ ФНС России по Дальневосточному ФО | F132: 1 | J132: 1 | R132: 1 | U132: 1
A133: 7 | B133: Приморский край | C133: 1 | E133: 1 | G133: 1 | H133: 1 | I133: 1 | J133: 1 | L133: 2 | M133: 2 | N133: 2 | P133: 1 | Q133: 1 | S133: 1 | T133: 1
A134: 8 | B134: Республика Бурятия | F134: 1 | K134: 1 | Q134: 1 | U134: 1
A135: 9 | B135: Республика Саха (Якутия) | C135: 1 | D135: 1 | N135: 1 | R135: 1
A136: 10 | B136: Сахалинская область | L136: 1
A137: 11 | B137: Хабаровский край | C137: 1 | D137: 1 | E137: 1 | G137: 1 | H137: 1 | I137: 2 | J137: 1 | L137: 1 | M137: 1 | N137: 1
A138: 12 | B138: Чукотский АО
B139: Итого: | C139: =SUM(C127:C138) -> 3 | D139: =SUM(D127:D138) -> 3 | E139: 2 | F139: 2 | G139: 3 | H139: 3 | I139: =SUM(I127:I138) -> 4 | J139: 3 | K139: 2 | L139: 4 | M139: 4 | N139: 4 | O139: 1 | P139: 1 | Q139: 4 | R139: 3 | S139: 4 | T139: 4 | U139: 3
A140: Новые территории Российской Федерации
A141: 1 | B141: Донецкая Народная Республика | C141: 1 | D141: 2 | E141: 2 | H141: 1 | O141: 1
A142: 2 | B142: Запорожская область
A143: 3 | B143: Луганская Народная Республика | J143: 1 | K143: 3 | M143: 1 | N143: 1 | U143: 1
A144: 4 | B144: Херсонская область
B145: Итого: | C145: =SUM(C141:C144) -> 1 | D145: =SUM(D141:D144) -> 2 | E145: 2 | F145: 0 | G145: 0 | H145: 1 | I145: =SUM(I141:I144) -> 0 | J145: 1 | K145: 3 | L145: 0 | M145: 1 | N145: 1 | O145: 1 | P145: 0 | Q145: 0 | R145: 0 | S145: 0 | T145: 0 | U145: 1
B146: Всего: | C146: =C145+C139+C125+C112+C103+C86+C76+C65+C52+C16 -> 24 | D146: =D145+D139+D125+D112+D103+D86+D76+D65+D52+D16 -> 24 | E146: 24 | F146: 22 | G146: 22 | H146: 26 | I146: =I145+I139+I125+I112+I103+I86+I76+I65+I52+I16 -> 26 | J146: 26 | K146: 25 | L146: 25 | M146: 25 | N146: 25 | O146: 25 | P146: 24 | Q146: 26 | R146: 25 | S146: 24 | T146: 24 | U146: 24

Sheet Прил.35 (ОЗ)
Y1: Приложение № 35
Y2: УТВЕРЖДЕН
Y3: Приказом ФНС России
Y4: от " " 20 г.
Y5: №
A7: План-график дополнительного профессионального образования гражданских служащих в "Академии ФНС ЛАБ–Нева" в 2025 году (очная-заочная форма обучения с применением дистанционных образовательных технологий и электронного обучения)
A8: № п/п | B8: Структурные подразделения ЦА ФНС России, УФНС России по субъектам РФ, межрегиональные инспекции ФНС России | C8: Численность, человек
C9: В том числе по программам повышения квалификации с указанием продолжительности и периодам обучения
C10: Методы влияния и убеждения. Как эффективно провести переговоры, рабочие встречи и совещания | E10: Профессиональное развитие на государственной службе: лидерство, управление, технологии (1 ступень) | F10: Профессиональное развитие на государственной службе: лидерство, управление, технологии (2 ступень) | K10: Управление проектами | L10: Эффективное решение проблем | Q10: Контроль и надзор за применением контрольно-кассовой техники и полнотой учета выручки. Контроль за использованием специальных банковских счетов (повышенный уровень) | T10: Контроль и надзор за применением контрольно-кассовой техники и полнотой учета выручки. Контроль за использованием специальных банковских счетов (мастерский уровень) | V10: Лидер. Современные вызовы: эмоциональный интеллект и ситуационное лидерство | W10: Эффективный старт руководителя | Y10: Организация продуктивных коммуникаций в закупочной деятельности
C11: (72 часа) | E11: (72 часа) | F11: (72 часа) | K11: (72 часа) | L11: (72 часа) | Q11: (96 часов) | T11: (96 часов) | V11: (96 часов) | W11: (96 часов) | Y11: (128 часов)
C12: 19.05-30.05 | D12: 13.10-24.10 | E12: 17.02-28.02 | F12: 12.05-23.05 | G12: 16.06-27.06 | H12: 30.06-11.07 | I12: 10.11-21.11 | J12: 08.12-19.12 | K12: 24.11-05.12 | L12: 27.01-07.02 | M12: 24.02-07.03 | N12: 31.03-11.04 | O12: 19.05-30.05 | P12: 16.06-27.06 | Q12: 19.05-06.06 | R12: 23.06-11.07 | S12: 07.07-25.07 | T12: 29.09-17.10 | U12: 01.12-19.12 | V12: 15.09-03.10 | W12: 14.04-30.04 | X12: 26.05-11.06 | Y12: 17.03-04.04
C13: 19.05-23.05* | D13: 13.10-17.10* | E13: 17.02-21.02* | F13: 12.05-16.05* | G13: 16.06-20.06* | H13: 30.06-04.07* | I13: 10.11-14.11* | J13: 08.12-12.12* | K13: 24.11-28.11* | L13: 27.01-31.01* | M13: 24.02-28.02* | N13: 31.03-04.04* | O13: 19.05-23.05* | P13: 16.06-20.06* | Q13: 19.05-23.05* | R13: 23.06-27.06* | S13: 07.07-11.07* | T13: 29.09-03.10* | U13: 01.12-05.12* | V13: 15.09-19.09* | W13: 14.04-25.04* | X13: 26.05-06.06* | Y13: 17.03-21.03*
C14: 26.05-30.05** | D14: 20.10-24.10** | E14: 24.02-28.02** | F14: 19.05-23.05** | G14: 23.06-27.06** | H14: 07.07-11.07** | I14: 17.11-21.11** | J14: 15.12-19.12** | K14: 01.12-05.12** | L14: 03.02-07.02** | M14: 03.03-07.03** | N14: 07.04-11.04** | O14: 26.05-30.05** | P14: 23.06-27.06** | Q14: 26.05-06.06** | R14: 30.06-11.07** | S14: 14.07-25.07** | T14: 06.10-17.10** | U14: 08.12-19.12** | V14: 22.09-03.10** | W14: 28.04-30.04** | X14: 09.06-11.06** | Y14: 24.03-04.04**
C15: * обучение с применением дистанционных образовательных технологий и электронного обучения без выезда в образовательное учреждение; ** обучение в очной форме | E15: * обучение с применением дистанционных образовательных технологий и электронного обучения без выезда в образовательное учреждение; ** обучение в очной форме | F15: * обучение с применением дистанционных образовательных технологий и электронного обучения без выезда в образовательное учреждение; ** обучение в очной форме | K15: * обучение с применением дистанционных образовательных технологий и электронного обучения без выезда в образовательное учреждение; ** обучение в очной форме | L15: * обучение с применением дистанционных образовательных технологий и электронного обучения без выезда в образовательное учреждение; ** обучение в очной форме | Q15: * обучение с применением дистанционных образовательных технологий и электронного обучения без выезда в образовательное учреждение; ** обучение в очной форме | T15: * обучение с применением дистанционных образовательных технологий и электронного обучения без выезда в образовательное учреждение; ** обучение в очной форме | V15: * обучение с применением дистанционных образовательных технологий и электронного обучения без выезда в образовательное учреждение; ** обучение в очной форме | W15: * обучение с применением дистанционных образовательных технологий и электронного обучения без выезда в образовательное учреждение; ** обучение в очной форме | Y15: * обучение с применением дистанционных образовательных технологий и электронного обучения без выезда в образовательное учреждение; ** обучение в очной форме
A16: 1 | B16: 2 | C16: 3 | D16: 4 | E16: 5 | F16: 6 | G16: 7 | H16: 8 | I16: 9 | J16: 10 | K16: 11 | L16: 12 | M16: 13 | N16: 14 | O16: 15 | P16: 16 | Q16: 17 | R16: 18 | S16: 19 | T16: 20 | U16: 21 | V16: 22 | W16: 23 | X16: 24 | Y16: 25
A17: Центральный аппарат ФНС России
A18: 1 | B18: Управление профессионального развития | C18: 1 | D18: 1 | M18: 2 | N18: 1 | W18: 12 | X18: 12
B19: Итого: | C19: =SUM(C18:C18) -> 1 | D19: 1 | E19: 0 | F19: 0 | G19: 0 | H19: 0 | I19: 0 | J19: 0 | K19: 0 | L19: 0 | M19: 2 | N19: 1 | O19: 0 | P19: 0 | Q19: 0 | R19: 0 | S19: 0 | T19: 0 | U19: 0 | V19: 0 | W19: 12 | X19: 12 | Y19: 0
A20: Центральный федеральный округ
A21: 1 | B21: Белгородская область | I21: 1 | K21: 1 | N21: 1 | Q21: 1 | R21: 1
A22: 2 | B22: Брянская область | H22: 1 | V22: 1
A23: 3 | B23: Владимирская область | C23: 1 | H23: 1 | R23: 1 | S23: 1
A24: 4 | B24: Воронежская область | H24: 1 | Q24: 1 | R24: 1 | T24: 1 | U24: 1
A25: 5 | B25: г.Москва | D25: 1 | K25: 1 | M25: 1 | R25: 1 | S25: 1 | T25: 1 | V25: =3-2 -> 1
A26: 6 | B26: Ивановская область | I26: 1 | Q26: 1 | S26: 1
A27: 7 | B27: Калужская область | I27: 1 | U27: 1
A28: 8 | B28: Костромская область | C28: 1 | G28: 1 | L28: 1 | O28: 1 | R28: 1 | V28: =3-1 -> 2
A29: 9 | B29: Курская область | F29: 1 | K29: 1 | P29: 1 | Q29: 1 | S29: 1 | T29: 1
A30: 10 | B30: Липецкая область | F30: 1 | M30: 1
A31: 11 | B31: МИ ФНС России по камеральному контролю | G31: 1
A32: 12 | B32: МИ ФНС России по КН № 1 | D32: 1 | G32: 1 | L32: 3 | N32: 2 | O32: 2 | P32: 1
A33: 13 | B33: МИ ФНС России по КН № 2 | G33: 1
A34: 14 | B34: МИ ФНС России по КН № 3 | G34: 1 | K34: 1 | M34: 1
A35: 15 | B35: МИ ФНС России по КН № 4 | G35: 1
A36: 16 | B36: МИ ФНС России по КН № 5 | G36: 1
A37: 17 | B37: МИ ФНС России по КН № 6 | H37: 1 | N37: 1 | P37: 2 | Y37: 1
A38: 18 | B38: МИ ФНС России по КН № 7 | H38: 1 | O38: 1 | P38: 1
A39: 19 | B39: МИ ФНС России по КН № 9
A40: 20 | B40: МИ ФНС России по КН № 10 | G40: 1
A41: 21 | B41: МИ ФНС России по ценообразованию для целей налогообложения | C41: 1 | G41: 1 | K41: 1
A42: 22 | B42: МИ ФНС России по Центральному ФО | I42: 1 | N42: 1
A43: 23 | B43: МИ ФНС России по ЦОД | G43: 1 | K43: 1
A44: 24 | B44: МИ ФНС России по ЦОД №2 | G44: 1
A45: 25 | B45: МИ ФНС России по управлению долгом | G45: 1 | N45: 3
A46: 26 | B46: МИ ФНС России по контролю и надзору за налогоплательщиками в сфере бюджетного финансирования | P46: 1 | V46: 1
A47: 27 | B47: Московская область | N47: 1 | Q47: 1 | T47: 1 | U47: 1
A48: 28 | B48: Орловская область | I48: 1 | M48: 2 | P48: 1 | Q48: 1 | R48: 1
A49: 29 | B49: Рязанская область | D49: 1 | F49: 1 | N49: 1 | P49: 1 | U49: 1
A50: 30 | B50: Смоленская область | F50: 1 | K50: 1 | L50: 1 | S50: 1
A51: 31 | B51: Тамбовская область | C51: 1 | G51: 1
A52: 32 | B52: Тверская область | I52: 1 | P52: 1
A53: 33 | B53: Тульская область | D53: 1 | G53: 1 | K53: 2 | L53: 2
A54: 34 | B54: Ярославская область | F54: 1
B55: Итого: | C55: =SUM(C21:C54) -> 4 | D55: =SUM(D21:D54) -> 4 | E55: 0 | F55: 5 | G55: 14 | H55: 5 | I55: 6 | J55: 0 | K55: 9 | L55: 7 | M55: 5 | N55: 10 | O55: 4 | P55: 9 | Q55: 6 | R55: 6 | S55: 5 | T55: 4 | U55: 4 | V55: 5 | W55: 0 | X55: 0 | Y55: 1
A56: Северо-Западный федеральный округ
A57: 1 | B57: Архангельская область и Ненецкий АО | F57: 1 | O57: 2 | V57: =2-1 -> 1
A58: 2 | B58: Вологодская область | I58: 1
A59: 3 | B59: г.Санкт- Петербург | I59: 1 | K59: 1 | L59: 1 | Q59: 1 | T59: 1 | U59: 1 | V59: =3-2 -> 1
A60: 4 | B60: Калининградская область | I60: 1 | L60: 1 | M60: 1 | R60: 1 | T60: 1 | V60: 1 | Y60: 1
A61: 5 | B61: Ленинградская область | C61: 1 | H61: 1 | M61: 1 | N61: 1 | S61: 1 | U61: 1
A62: 6 | B62: МИ ФНС России по Северо-Западному ФО | H62: 1
A63: 7 | B63: Мурманская область | H63: 1 | V63: 1
A64: 8 | B64: Новгородская область | F64: 1 | K64: 1 | V64: 1
A65: 9 | B65: Псковская область | D65: 1 | I65: 1 | L65: 5 | M65: 1 | T65: 1
A66: 10 | B66: Республика Карелия | C66: 1 | D66: 1 | I66: 1 | M66: 1 | Q66: 1 | S66: 1
A67: 11 | B67: Республика Коми | F67: 1 | M67: 2 | U67: 1
B68: Итого: | C68: =SUM(C57:C67) -> 2 | D68: =SUM(D57:D67) -> 2 | E68: 0 | F68: 3 | G68: 0 | H68: 3 | I68: 5 | J68: 0 | K68: 2 | L68: 7 | M68: 6 | N68: 1 | O68: 2 | P68: 0 | Q68: 2 | R68: 1 | S68: 2 | T68: 3 | U68: 3 | V68: 5 | W68: 0 | X68: 0 | Y68: 1
A69: Южный федеральный округ
A70: 1 | B70: Астраханская область | F70: 1 | P70: 1
A71: 2 | B71: Волгоградская область | I71: 1
A72: 3 | B72: г.Севастополь | L72: 1 | P72: 2 | T72: 1
A73: 4 | B73: Краснодарский край | C73: 1 | H73: 1 | Q73: 1 | R73: 1 | U73: 1
A74: 5 | B74: МИ ФНС России по Южному ФО | D74: 1 | I74: 1 | L74: 1 | Y74: 1
A75: 6 | B75: Республика Адыгея | I75: 1
A76: 7 | B76: Республика Калмыкия | C76: 1
A77: 8 | B77: Республика Крым | D77: 1 | Q77: 1 | R77: 1 | S77: 1 | T77: 1
A78: 9 | B78: Ростовская область | F78: 2 | K78: 1 | R78: 1 | S78: 1 | U78: 1 | Y78: 2
B79: Итого: | C79: =SUM(C70:C78) -> 2 | D79: 2 | E79: 0 | F79: 3 | G79: 0 | H79: 1 | I79: 3 | J79: 0 | K79: 1 | L79: 2 | M79: 0 | N79: 0 | O79: 0 | P79: 3 | Q79: 2 | R79: 3 | S79: 2 | T79: 2 | U79: 2 | V79: 0 | W79: 0 | X79: 0 | Y79: 3
A80: Северо-Кавказский федеральный округ
A81: 1 | B81: Кабардино- Балкарская Республика | F81: 1 | Y81: 1
A82: 2 | B82: Карачаево- Черкесская Республика | F82: 1
A83: 3 | B83: МИ ФНС России по Северо-Кавказскому ФО | G83: 1
A84: 4 | B84: Республика Дагестан | H84: 1
A85: 5 | B85: Республика Ингушетия | I85: 1
A86: 6 | B86: Республика Северная Осетия - Алания | I86: 1 | Q86: 1 | T86: 1
A87: 7 | B87: Ставропольский край | C87: 1 | H87: 1 | K87: 1 | Q87: 1 | Y87: 1
A88: 8 | B88: Чеченская Республика | H88: 1 | T88: 2 | U88: 3
B89: Итого: | C89: =SUM(C81:C88) -> 1 | D89: 0 | E89: 0 | F89: 2 | G89: 1 | H89: 3 | I89: 2 | J89: 0 | K89: 1 | L89: 0 | M89: 0 | N89: 0 | O89: 0 | P89: 0 | Q89: 2 | R89: 0 | S89: 0 | T89: 3 | U89: 3 | V89: 0 | W89: 0 | X89: 0 | Y89: 2
A90: Приволжский федеральный округ
A91: 1 | B91: Кировская область | D91: 1 | H91: 1 | T91: 1 | U91: 1
A92: 2 | B92: МИ ФНС России по Приволжскому ФО | G92: 1 | Y92: 1
A93: 3 | B93: Нижегородская область | C93: 2 | D93: 1 | F93: 1 | K93: 1 | L93: 4 | P93: 1 | R93: 1 | S93: 1 | T93: 1
A94: 4 | B94: Оренбургская область | C94: 1 | K94: 1 | M94: 1 | N94: 5 | O94: 1 | Q94: 1 | R94: 1 | V94: 1
A95: 5 | B95: Пензенская область | C95: 1 | D95: 2 | H95: 1
A96: 6 | B96: Пермский край | C96: 1 | D96: 2 | G96: 1 | I96: 1 | K96: 2 | M96: 1 | O96: 6 | R96: 1 | S96: 1 | V96: =3-1 -> 2 | Y96: 1
A97: 7 | B97: Республика Башкортостан | C97: 2 | D97: 1 | F97: 1 | O97: 1 | Q97: 1 | S97: 1 | U97: 1 | V97: =2-1 -> 1 | Y97: 4
A98: 8 | B98: Республика Марий Эл | H98: 1 | K98: 1 | P98: 2
A99: 9 | B99: Республика Мордовия | G99: 1 | R99: 1 | T99: 1
A100: 10 | B100: Республика Татарстан | C100: 1 | E100: 1 | H100: 1 | Q100: 1 | T100: 1 | U100: 1 | V100: =2-1 -> 1 | Y100: 1
A101: 11 | B101: Самарская область | D101: 1 | M101: 1 | P101: 1 | R101: 1 | U101: 1
A102: 12 | B102: Саратовская область | C102: 1 | I102: 1 | L102: 1 | P102: 3 | T102: 1
A103: 13 | B103: Удмуртская Республика | H103: 1 | R103: 1 | S103: 1
A104: 14 | B104: Ульяновская область | H104: 1
A105: 15 | B105: Чувашская Республика | P105: 1
B106: Итого: | C106: =SUM(C91:C105) -> 9 | D106: =SUM(D91:D105) -> 8 | E106: 1 | F106: 2 | G106: 3 | H106: 6 | I106: 2 | J106: 0 | K106: 5 | L106: 5 | M106: 3 | N106: 5 | O106: 8 | P106: 8 | Q106: 3 | R106: 6 | S106: 4 | T106: 5 | U106: 4 | V106: 5 | W106: 0 | X106: 0 | Y106: 7
A107: Уральский федеральный округ
A108: 1 | B108: Курганская область | I108: 1 | O108: 6
A109: 2 | B109: МИ ФНС России по Уральскому ФО | G109: 1
A110: 3 | B110: Свердловская область | C110: 1 | F110: 1 | H110: 1 | O110: 1 | Q110: 1 | V110: 1
A111: 4 | B111: Тюменская область | H111: 1 | K111: 1 | N111: 1 | P111: 5 | R111: 1 | S111: 1 | U111: 1 | V111: 1
A112: 5 | B112: Ханты-Мансийский АО | F112: 1 | L112: 1 | M112: 1 | T112: 1
A113: 6 | B113: Челябинская область | D113: 1 | L113: 1 | M113: 1 | Q113: 1 | R113: 1 | T113: 1 | U113: 1
A114: 7 | B114: Ямало-Ненецкий АО | C114: 1 | D114: 1 | I114: 1 | S114: 1 | T114: 1 | U114: 1
B115: Итого: | C115: =SUM(C108:C114) -> 2 | D115: =SUM(D108:D114) -> 2 | E115: 0 | F115: 2 | G115: 1 | H115: 2 | I115: 2 | J115: 0 | K115: 1 | L115: 2 | M115: 2 | N115: 1 | O115: 7 | P115: 5 | Q115: 2 | R115: 2 | S115: 2 | T115: 3 | U115: 3 | V115: 2 | W115: 0 | X115: 0 | Y115: 0
A116: Сибирский федеральный округ
A117: 1 | B117: Алтайский край | C117: 1 | H117: 1 | Q117: 1 | S117: 1
A118: 2 | B118: Иркутская область | D118: 1 | H118: 1 | N118: 2 | S118: 1 | U118: 1 | V118: =2-1 -> 1
A119: 3 | B119: Кемеровская область | C119: 1 | F119: 1 | L119: 1 | O119: 1 | T119: 1
A120: 4 | B120: Красноярский край | I120: 1 | K120: 1 | M120: 5 | N120: 1 | Q120: 1 | R120: 1 | S120: 1 | V120: 1 | Y120: 2
A121: 5 | B121: МИ ФНС России по Сибирскому ФО | G121: 1 | K121: 1
A122: 6 | B122: Новосибирская область | L122: 1 | O122: 2 | Q122: 1
A123: 7 | B123: Омская область | G123: 1 | N123: 2 | R123: 1 | S123: 1 | U123: 1 | V123: 1
A124: 8 | B124: Республика Алтай | I124: 1 | Q124: 1 | R124: 1
A125: 9 | B125: Республика Тыва | D125: 1 | F125: 1 | M125: 1 | R125: 1 | S125: 1
A126: 10 | B126: Республика Хакасия | I126: 1 | T126: 1
A127: 11 | B127: Томская область | H127: 1 | N127: 1
B128: Итого: | C128: =SUM(C117:C127) -> 2 | D128: =SUM(D117:D127) -> 2 | E128: 0 | F128: 2 | G128: 2 | H128: 3 | I128: 3 | J128: 0 | K128: 2 | L128: 2 | M128: 6 | N128: 6 | O128: 3 | P128: 0 | Q128: 4 | R128: 4 | S128: 5 | T128: 2 | U128: 2 | V128: 3 | W128: 0 | X128: 0 | Y128: 2
A129: Дальневосточный федеральный округ
A130: 1 | B130: Амурская область | D130: 1 | G130: 1 | Q130: 1 | R130: 1
A131: 2 | B131: Еврейская АО | H131: 1
A132: 3 | B132: Забайкальский край | I132: 1 | K132: 1 | S132: 1 | V132: 1 | Y132: 1
A133: 4 | B133: Камчатский край | F133: 1
A134: 5 | B134: Магаданская область | G134: 1
A135: 6 | B135: МИ ФНС России по Дальневосточному ФО | G135: 1 | Y135: 1
A136: 7 | B136: Приморский край | C136: 1 | F136: 1 | Q136: 1 | S136: 1 | T136: 1 | U136: 1
A137: 8 | B137: Республика Бурятия | I137: 1 | M137: 1
A138: 9 | B138: Республика Саха (Якутия) | D138: 1 | I138: 1 | T138: 1 | U138: 1 | V138: =3-1 -> 2 | Y138: 2
A139: 10 | B139: Сахалинская область
A140: 11 | B140: Хабаровский край | H140: 1 | Q140: 1 | R140: 1 | S140: 1 | U140: 1
A141: 12 | B141: Чукотский АО | E141: 20 | H141: 1 | J141: 21 | N141: 1
B142: Итого: | C142: =SUM(C130:C141) -> 1 | D142: =SUM(D130:D141) -> 2 | E142: 20 | F142: 2 | G142: 3 | H142: 3 | I142: 3 | J142: 21 | K142: 1 | L142: 0 | M142: 1 | N142: 1 | O142: 0 | P142: 0 | Q142: 3 | R142: 2 | S142: 3 | T142: 2 | U142: 3 | V142: 3 | W142: 0 | X142: 0 | Y142: 4
A143: Новые территории Российской Федерации
A144: 1 | B144: Донецкая Народная Республика | H144: 1
A145: 2 | B145: Запорожская область | I145: 1 | V145: 1
A146: 3 | B146: Луганская Народная Республика | C146: 1 | D146: 2 | K146: 1 | O146: 1 | S146: 1 | V146: =2-1 -> 1 | Y146: 1
A147: 4 | B147: Херсонская область
B148: Итого: | C148: =SUM(C144:C147) -> 1 | D148: =SUM(D144:D147) -> 2 | E148: 0 | F148: 0 | G148: 0 | H148: 1 | I148: 1 | J148: 0 | K148: 1 | L148: 0 | M148: 0 | N148: 0 | O148: 1 | P148: 0 | Q148: 0 | R148: 0 | S148: 1 | T148: 0 | U148: 0 | V148: 2 | W148: 0 | X148: 0 | Y148: 1
B149: Всего: | C149: =C19+C55+C68+C79+C89+C106+C115+C128+C142+C148 -> 25 | D149: =D19+D55+D68+D79+D89+D106+D115+D128+D142+D148 -> 25 | E149: =E19+E55+E68+E79+E89+E106+E115+E128+E142+E148 -> 21 | F149: 21 | G149: 24 | H149: 27 | I149: 27 | J149: 21 | K149: 23 | L149: 25 | M149: 25 | N149: 25 | O149: 25 | P149: 25 | Q149: 24 | R149: 24 | S149: 24 | T149: 24 | U149: 24 | V149: 25 | W149: 12 | X149: 12 | Y149: 21

Sheet Прил.36 (ОЗ)
Z1: Приложение № 36
Z2: УТВЕРЖДЕН
Z3: Приказом ФНС России
Z4: от " " 20 г.
Z5: №
A7: План-график дополнительного профессионального образования гражданских служащих в "Академии ФНС ЛАБ–Нева" в 2025 году (очная-заочная форма обучения с применением дистанционных образовательных технологий и электронного обучения)
A8: № п/п | B8: Структурные подразделения ЦА ФНС России, УФНС России по субъектам РФ, межрегиональные инспекции ФНС России | C8: Численность, человек
C9: В том числе по программам повышения квалификации с указанием продолжительности и периодам обучения
C10: Мастер налогового контроля и финансовых расследований***
C11: (152 часа)
C12: Группа 1 | D12: Группа 2 | E12: Группа 3 | F12: Группа 4 | G12: Группа 5 | H12: Группа 6 | I12: Группа 7 | J12: Группа 8 | K12: Группа 9 | L12: Группа 10 | M12: Группа 11 | N12: Группа 12 | O12: Группа 13 | P12: Группа 14 | Q12: Группа 15 | R12: Группа 16 | S12: Группа 17 | T12: Группа 18 | U12: Группа 19 | V12: Группа 20 | W12: Группа 21 | X12: Группа 22 | Y12: Группа 23 | Z12: Группа 24
C13: 03.03-09.09 | D13: 03.03-09.09 | E13: 10.03-12.09 | F13: 10.03-12.09 | G13: 17.03-16.09 | H13: 17.03-16.09 | I13: 24.03-19.09 | J13: 24.03-19.09 | K13: 31.03-23.09 | L13: 31.03-23.09 | M13: 07.04-26.09 | N13: 07.04-26.09 | O13: 14.04-30.09 | P13: 14.04-30.09 | Q13: 21.04-03.10 | R13: 21.04-03.10 | S13: 28.04-07.10 | T13: 28.04-07.10 | U13: 05.05-10.10 | V13: 05.05-10.10 | W13: 12.05-14.10 | X13: 12.05-14.10 | Y13: 19.05-17.10 | Z13: 19.05-17.10
C14: 03.03-07.05* | D14: 03.03-07.05* | E14: 10.03-14.05* | F14: 10.03-14.05* | G14: 17.03-19.05* | H14: 17.03-19.05* | I14: 24.03-23.05* | J14: 24.03-23.05* | K14: 31.03-28.05* | L14: 31.03-28.05* | M14: 07.04-02.06* | N14: 07.04-02.06* | O14: 14.04-06.06* | P14: 14.04-06.06* | Q14: 21.04-20.06* | R14: 21.04-20.06* | S14: 28.04-25.06* | T14: 28.04-25.06* | U14: 05.05-30.06* | V14: 05.05-30.06* | W14: 12.05-11.07* | X14: 12.05-11.07* | Y14: 19.05-18.07* | Z14: 19.05-18.07*
C15: 12.05-14.05** | D15: 12.05-14.05** | E15: 16.05-19.05** | F15: 16.05-19.05** | G15: 21.05-23.05** | H15: 21.05-23.05** | I15: 26.05-28.05** | J15: 26.05-28.05** | K15: 30.05-02.06** | L15: 30.05-02.06** | M15: 04.06-06.06** | N15: 04.06-06.06** | O15: 09.06-11.06** | P15: 09.06-11.06** | Q15: 23.06-25.06** | R15: 23.06-25.06** | S15: 27.06-30.06** | T15: 27.06-30.06** | U15: 02.07-04.07** | V15: 02.07-04.07** | W15: 14.07-16.07** | X15: 14.07-16.07** | Y15: 21.07-23.07** | Z15: 21.07-23.07**
C16: 08.09-09.09** | D16: 08.09-09.09** | E16: 11.09-12.09** | F16: 11.09-12.09** | G16: 15.09-16.09** | H16: 15.09-16.09** | I16: 18.09-19.09** | J16: 18.09-19.09** | K16: 22.09-23.09** | L16: 22.09-23.09** | M16: 25.09-26.09** | N16: 25.09-26.09** | O16: 29.09-30.09** | P16: 29.09-30.09** | Q16: 02.10-03.10** | R16: 02.10-03.10** | S16: 06.10-07.10** | T16: 06.10-07.10** | U16: 09.10-10.10** | V16: 09.10-10.10** | W16: 13.10-14.10** | X16: 13.10-14.10** | Y16: 16.10-17.10** | Z16: 16.10-17.10**
C17: * обучение с применением дистанционных образовательных технологий и электронного обучения без выезда в образовательное учреждение; ** обучение в очной форме
A18: 1 | B18: 2 | C18: 3 | D18: 4 | E18: 5 | F18: 6 | G18: 7 | H18: 8 | I18: 9 | J18: 10 | K18: 11 | L18: 12 | M18: 13 | N18: 14 | O18: 15 | P18: 16 | Q18: 17 | R18: 18 | S18: 19 | T18: 20 | U18: 21 | V18: 22 | W18: 23 | X18: 24 | Y18: 25 | Z18: 26
A19: Центральный аппарат ФНС России
A20: 1 | B20: Управление профессионального развития | C20: 0 | D20: 0 | E20: 0 | F20: 0 | G20: 0 | H20: 0 | I20: 0 | J20: 0 | K20: 0 | L20: 0 | M20: 0 | N20: 0 | O20: 0 | P20: 0 | Q20: 0 | R20: 0 | S20: 0 | T20: 0 | U20: 0 | V20: 0 | W20: 0 | X20: 0 | Y20: 0 | Z20: 0
B21: Итого: | C21: 0 | D21: 0 | E21: 0 | F21: 0 | G21: 0 | H21: 0 | I21: 0 | J21: 0 | K21: 0 | L21: 0 | M21: 0 | N21: 0 | O21: 0 | P21: 0 | Q21: 0 | R21: 0 | S21: 0 | T21: 0 | U21: 0 | V21: 0 | W21: 0 | X21: 0 | Y21: 0 | Z21: 0
A22: Центральный федеральный округ
A23: 1 | B23: Белгородская область | C23: 0 | D23: 1 | E23: 0 | F23: 0 | G23: 0 | H23: 0 | I23: 0 | J23: 0 | K23: 0 | L23: 0 | M23: 0 | N23: 0 | O23: 0 | P23: 1 | Q23: 0 | R23: 0 | S23: 1 | T23: 0 | U23: 0 | V23: 0 | W23: 1 | X23: 0 | Y23: 1 | Z23: 1
A24: 2 | B24: Брянская область | C24: 0 | D24: 1 | E24: 0 | F24: 1 | G24: 0 | H24: 0 | I24: 0 | J24: 0 | K24: 0 | L24: 0 | M24: 0 | N24: 1 | O24: 0 | P24: 0 | Q24: 0 | R24: 1 | S24: 0 | T24: 0 | U24: 0 | V24: 1 | W24: 0 | X24: 0 | Y24: 0 | Z24: 0
A25: 3 | B25: Владимирская область | C25: 1 | D25: 0 | E25: 0 | F25: 0 | G25: 1 | H25: 0 | I25: 0 | J25: 0 | K25: 0 | L25: 0 | M25: 0 | N25: 0 | O25: 0 | P25: 1 | Q25: 0 | R25: 1 | S25: 0 | T25: 0 | U25: 0 | V25: 0 | W25: 1 | X25: 0 | Y25: 0 | Z25: 0
A26: 4 | B26: Воронежская область | C26: 1 | D26: 0 | E26: 0 | F26: 1 | G26: 0 | H26: 0 | I26: 1 | J26: 0 | K26: 0 | L26: 1 | M26: 0 | N26: 1 | O26: 0 | P26: 0 | Q26: 1 | R26: 0 | S26: 1 | T26: 0 | U26: 0 | V26: 0 | W26: 0 | X26: 0 | Y26: 0 | Z26: 1
A27: 5 | B27: г.Москва | C27: 2 | D27: 2 | E27: 4 | F27: 3 | G27: 2 | H27: 2 | I27: 2 | J27: 2 | K27: 2 | L27: 2 | M27: 2 | N27: 4 | O27: 2 | P27: 2 | Q27: 2 | R27: 2 | S27: 2 | T27: 2 | U27: 4 | V27: 2 | W27: 2 | X27: 2 | Y27: 2 | Z27: 2
A28: 6 | B28: Ивановская область | C28: 0 | D28: 1 | E28: 0 | F28: 1 | G28: 0 | H28: 0 | I28: 0 | J28: 0 | K28: 0 | L28: 0 | M28: 0 | N28: 0 | O28: 1 | P28: 0 | Q28: 0 | R28: 1 | S28: 0 | T28: 0 | U28: 0 | V28: 0 | W28: 0 | X28: 0 | Y28: 0 | Z28: 0
A29: 7 | B29: Калужская область | C29: 1 | D29: 0 | E29: 0 | F29: 0 | G29: 0 | H29: 0 | I29: 0 | J29: 0 | K29: 0 | L29: 1 | M29: 0 | N29: 0 | O29: 0 | P29: 0 | Q29: 0 | R29: 0 | S29: 1 | T29: 0 | U29: 1 | V29: 0 | W29: 0 | X29: 0 | Y29: 0 | Z29: 0
A30: 8 | B30: Костромская область | C30: 1 | D30: 0 | E30: 0 | F30: 0 | G30: 1 | H30: 0 | I30: 0 | J30: 0 | K30: 0 | L30: 0 | M30: 0 | N30: 0 | O30: 0 | P30: 0 | Q30: 0 | R30: 0 | S30: 0 | T30: 0 | U30: 0 | V30: 0 | W30: 0 | X30: 0 | Y30: 0 | Z30: 1
A31: 9 | B31: Курская область | C31: 0 | D31: 0 | E31: 0 | F31: 1 | G31: 0 | H31: 0 | I31: 0 | J31: 0 | K31: 0 | L31: 0 | M31: 0 | N31: 1 | O31: 0 | P31: 0 | Q31: 0 | R31: 0 | S31: 0 | T31: 1 | U31: 0 | V31: 1 | W31: 0 | X31: 0 | Y31: 0 | Z31: 0
A32: 10 | B32: Липецкая область | C32: 0 | D32: 0 | E32: 1 | F32: 0 | G32: 0 | H32: 0 | I32: 1 | J32: 0 | K32: 0 | L32: 1 | M32: 0 | N32: 0 | O32: 0 | P32: 0 | Q32: 1 | R32: 0 | S32: 0 | T32: 0 | U32: 0 | V32: 0 | W32: 0 | X32: 0 | Y32: 0 | Z32: 0
A33: 11 | B33: МИ ФНС России по камеральному контролю | C33: 0 | D33: 0 | E33: 0 | F33: 0 | G33: 0 | H33: 0 | I33: 0 | J33: 0 | K33: 0 | L33: 0 | M33: 0 | N33: 0 | O33: 0 | P33: 0 | Q33: 0 | R33: 0 | S33: 0 | T33: 0 | U33: 0 | V33: 1 | W33: 0 | X33: 0 | Y33: 0 | Z33: 0
A34: 12 | B34: МИ ФНС России по КН № 1 | C34: 0 | D34: 0 | E34: 1 | F34: 0 | G34: 0 | H34: 0 | I34: 0 | J34: 0 | K34: 0 | L34: 0 | M34: 0 | N34: 1 | O34: 0 | P34: 0 | Q34: 0 | R34: 0 | S34: 0 | T34: 1 | U34: 0 | V34: 0 | W34: 0 | X34: 0 | Y34: 0 | Z34: 0
A35: 13 | B35: МИ ФНС России по КН № 2 | C35: 0 | D35: 0 | E35: 0 | F35: 0 | G35: 1 | H35: 0 | I35: 0 | J35: 0 | K35: 0 | L35: 0 | M35: 1 | N35: 0 | O35: 0 | P35: 0 | Q35: 0 | R35: 1 | S35: 0 | T35: 0 | U35: 0 | V35: 0 | W35: 0 | X35: 0 | Y35: 0 | Z35: 0
A36: 14 | B36: МИ ФНС России по КН № 3 | C36: 0 | D36: 0 | E36: 0 | F36: 1 | G36: 0 | H36: 0 | I36: 0 | J36: 1 | K36: 0 | L36: 0 | M36: 1 | N36: 0 | O36: 0 | P36: 0 | Q36: 0 | R36: 0 | S36: 0 | T36: 0 | U36: 0 | V36: 0 | W36: 0 | X36: 0 | Y36: 0 | Z36: 0
A37: 15 | B37: МИ ФНС России по КН № 4 | C37: 0 | D37: 0 | E37: 0 | F37: 0 | G37: 0 | H37: 1 | I37: 0 | J37: 0 | K37: 0 | L37: 1 | M37: 0 | N37: 0 | O37: 0 | P37: 0 | Q37: 0 | R37: 0 | S37: 0 | T37: 0 | U37: 0 | V37: 0 | W37: 0 | X37: 0 | Y37: 0 | Z37: 0
A38: 16 | B38: МИ ФНС России по КН № 5 | C38: 0 | D38: 0 | E38: 1 | F38: 0 | G38: 0 | H38: 0 | I38: 0 | J38: 1 | K38: 0 | L38: 0 | M38: 0 | N38: 0 | O38: 0 | P38: 1 | Q38: 0 | R38: 0 | S38: 0 | T38: 0 | U38: 0 | V38: 0 | W38: 0 | X38: 0 | Y38: 0 | Z38: 0
A39: 17 | B39: МИ ФНС России по КН № 6 | C39: 0 | D39: 0 | E39: 0 | F39: 0 | G39: 0 | H39: 0 | I39: 0 | J39: 0 | K39: 0 | L39: 0 | M39: 0 | N39: 1 | O39: 0 | P39: 0 | Q39: 1 | R39: 0 | S39: 0 | T39: 1 | U39: 0 | V39: 0 | W39: 0 | X39: 0 | Y39: 0 | Z39: 0
A40: 18 | B40: МИ ФНС России по КН № 7 | C40: 0 | D40: 0 | E40: 0 | F40: 0 | G40: 0 | H40: 0 | I40: 0 | J40: 0 | K40: 0 | L40: 0 | M40: 0 | N40: 0 | O40: 0 | P40: 0 | Q40: 0 | R40: 1 | S40: 0 | T40: 0 | U40: 0 | V40: 0 | W40: 0 | X40: 0 | Y40: 0 | Z40: 0
A41: 19 | B41: МИ ФНС России по КН № 9 | C41: 0 | D41: 0 | E41: 0 | F41: 0 | G41: 0 | H41: 0 | I41: 0 | J41: 0 | K41: 0 | L41: 0 | M41: 0 | N41: 0 | O41: 0 | P41: 0 | Q41: 0 | R41: 0 | S41: 1 | T41: 0 | U41: 0 | V41: 0 | W41: 0 | X41: 0 | Y41: 0 | Z41: 0
A42: 20 | B42: МИ ФНС России по КН № 10 | C42: 0 | D42: 0 | E42: 0 | F42: 0 | G42: 0 | H42: 0 | I42: 0 | J42: 0 | K42: 0 | L42: 0 | M42: 0 | N42: 0 | O42: 1 | P42: 0 | Q42: 0 | R42: 0 | S42: 0 | T42: 0 | U42: 0 | V42: 0 | W42: 0 | X42: 0 | Y42: 0 | Z42: 0
A43: 21 | B43: МИ ФНС России по ценообразованию для целей налогообложения | C43: 0 | D43: 0 | E43: 0 | F43: 0 | G43: 0 | H43: 0 | I43: 0 | J43: 1 | K43: 0 | L43: 0 | M43: 0 | N43: 0 | O43: 0 | P43: 0 | Q43: 0 | R43: 0 | S43: 0 | T43: 0 | U43: 0 | V43: 0 | W43: 0 | X43: 0 | Y43: 0 | Z43: 0
A44: 22 | B44: МИ ФНС России по Центральному ФО | C44: 0 | D44: 0 | E44: 0 | F44: 0 | G44: 0 | H44: 0 | I44: 0 | J44: 0 | K44: 1 | L44: 0 | M44: 0 | N44: 0 | O44: 0 | P44: 0 | Q44: 0 | R44: 0 | S44: 0 | T44: 0 | U44: 0 | V44: 0 | W44: 0 | X44: 0 | Y44: 0 | Z44: 0
A45: 23 | B45: МИ ФНС России по ЦОД | C45: 0 | D45: 0 | E45: 0 | F45: 0 | G45: 0 | H45: 0 | I45: 0 | J45: 0 | K45: 0 | L45: 0 | M45: 0 | N45: 0 | O45: 0 | P45: 0 | Q45: 0 | R45: 0 | S45: 0 | T45: 0 | U45: 0 | V45: 0 | W45: 0 | X45: 0 | Y45: 0 | Z45: 0
A46: 24 | B46: МИ ФНС России по ЦОД №2 | C46: 0 | D46: 0 | E46: 0 | F46: 0 | G46: 0 | H46: 0 | I46: 0 | J46: 0 | K46: 0 | L46: 0 | M46: 0 | N46: 0 | O46: 0 | P46: 0 | Q46: 0 | R46: 0 | S46: 0 | T46: 0 | U46: 0 | V46: 0 | W46: 0 | X46: 0 | Y46: 0 | Z46: 0
A47: 25 | B47: МИ ФНС России по управлению долгом | C47: 0 | D47: 0 | E47: 0 | F47: 0 | G47: 0 | H47: 0 | I47: 0 | J47: 0 | K47: 0 | L47: 0 | M47: 0 | N47: 0 | O47: 0 | P47: 0 | Q47: 0 | R47: 0 | S47: 1 | T47: 0 | U47: 0 | V47: 0 | W47: 0 | X47: 1 | Y47: 0 | Z47: 0
A48: 26 | B48: МИ ФНС России по контролю и надзору за налогоплательщиками в сфере бюджетного финансирования | C48: 0 | D48: 0 | E48: 0 | F48: 0 | G48: 0 | H48: 0 | I48: 0 | J48: 0 | K48: 0 | L48: 1 | M48: 0 | N48: 0 | O48: 0 | P48: 0 | Q48: 0 | R48: 0 | S48: 0 | T48: 0 | U48: 0 | V48: 0 | W48: 0 | X48: 0 | Y48: 0 | Z48: 0
A49: 27 | B49: Московская область | C49: 0 | D49: 1 | E49: 1 | F49: 1 | G49: 1 | H49: 1 | I49: 1 | J49: 1 | K49: 1 | L49: 1 | M49: 1 | N49: 1 | O49: 1 | P49: 1 | Q49: 0 | R49: 0 | S49: 1 | T49: 1 | U49: 1 | V49: 1 | W49: 1 | X49: 1 | Y49: 1 | Z49: 1
A50: 28 | B50: Орловская область | C50: 1 | D50: 0 | E50: 0 | F50: 0 | G50: 1 | H50: 0 | I50: 0 | J50: 0 | K50: 0 | L50: 0 | M50: 0 | N50: 0 | O50: 0 | P50: 0 | Q50: 0 | R50: 0 | S50: 0 | T50: 1 | U50: 0 | V50: 0 | W50: 0 | X50: 0 | Y50: 0 | Z50: 1
A51: 29 | B51: Рязанская область | C51: 1 | D51: 0 | E51: 0 | F51: 0 | G51: 0 | H51: 0 | I51: 0 | J51: 0 | K51: 0 | L51: 0 | M51: 1 | N51: 0 | O51: 0 | P51: 0 | Q51: 0 | R51: 0 | S51: 0 | T51: 1 | U51: 0 | V51: 0 | W51: 0 | X51: 0 | Y51: 0 | Z51: 0
A52: 30 | B52: Смоленская область | C52: 1 | D52: 0 | E52: 0 | F52: 1 | G52: 0 | H52: 0 | I52: 0 | J52: 0 | K52: 0 | L52: 0 | M52: 0 | N52: 0 | O52: 0 | P52: 0 | Q52: 0 | R52: 0 | S52: 0 | T52: 0 | U52: 0 | V52: 0 | W52: 0 | X52: 0 | Y52: 0 | Z52: 1
A53: 31 | B53: Тамбовская область | C53: 1 | D53: 0 | E53: 0 | F53: 0 | G53: 0 | H53: 0 | I53: 0 | J53: 0 | K53: 0 | L53: 1 | M53: 0 | N53: 0 | O53: 0 | P53: 0 | Q53: 0 | R53: 1 | S53: 0 | T53: 0 | U53: 0 | V53: 0 | W53: 0 | X53: 0 | Y53: 1 | Z53: 0
A54: 32 | B54: Тверская область | C54: 0 | D54: 1 | E54: 0 | F54: 1 | G54: 0 | H54: 0 | I54: 0 | J54: 1 | K54: 0 | L54: 0 | M54: 0 | N54: 0 | O54: 0 | P54: 1 | Q54: 0 | R54: 0 | S54: 0 | T54: 0 | U54: 0 | V54: 0 | W54: 0 | X54: 0 | Y54: 0 | Z54: 0
A55: 33 | B55: Тульская область | C55: 1 | D55: 0 | E55: 0 | F55: 0 | G55: 0 | H55: 0 | I55: 1 | J55: 0 | K55: 0 | L55: 0 | M55: 0 | N55: 1 | O55: 0 | P55: 0 | Q55: 1 | R55: 0 | S55: 0 | T55: 0 | U55: 0 | V55: 0 | W55: 0 | X55: 0 | Y55: 0 | Z55: 1
A56: 34 | B56: Ярославская область | C56: 1 | D56: 0 | E56: 0 | F56: 1 | G56: 0 | H56: 1 | I56: 0 | J56: 1 | K56: 0 | L56: 0 | M56: 1 | N56: 0 | O56: 1 | P56: 0 | Q56: 0 | R56: 0 | S56: 0 | T56: 0 | U56: 0 | V56: 0 | W56: 0 | X56: 0 | Y56: 0 | Z56: 0
B57: Итого: | C57: =SUM(C22:C56) -> 12 | D57: =SUM(D22:D56) -> 7 | E57: 8 | F57: 12 | G57: 7 | H57: 5 | I57: 6 | J57: 8 | K57: 4 | L57: 9 | M57: 7 | N57: 11 | O57: 6 | P57: 7 | Q57: 6 | R57: 8 | S57: 8 | T57: 8 | U57: 6 | V57: 6 | W57: 5 | X57: 4 | Y57: 5 | Z57: 9
A58: Северо-Западный федеральный округ
A59: 1 | B59: Архангельская область и Ненецкий АО | C59: 1 | D59: 0 | E59: 0 | F59: 0 | G59: 1 | H59: 0 | I59: 0 | J59: 1 | K59: 0 | L59: 0 | M59: 0 | N59: 0 | O59: 0 | P59: 1 | Q59: 0 | R59: 0 | S59: 0 | T59: 1 | U59: 1 | V59: 0 | W59: 0 | X59: 0 | Y59: 0 | Z59: 0
A60: 2 | B60: Вологодская область | C60: 1 | D60: 0 | E60: 0 | F60: 1 | G60: 0 | H60: 0 | I60: 1 | J60: 0 | K60: 0 | L60: 0 | M60: 0 | N60: 0 | O60: 1 | P60: 0 | Q60: 1 | R60: 0 | S60: 0 | T60: 0 | U60: 0 | V60: 0 | W60: 1 | X60: 0 | Y60: 0 | Z60: 0
A61: 3 | B61: г.Санкт- Петербург | C61: 1 | D61: 1 | E61: 1 | F61: 1 | G61: 1 | H61: 1 | I61: 1 | J61: 1 | K61: 1 | L61: 1 | M61: 1 | N61: 1 | O61: 1 | P61: 1 | Q61: 1 | R61: 1 | S61: 1 | T61: 1 | U61: 1 | V61: 1 | W61: 1 | X61: 1 | Y61: 1 | Z61: 1
A62: 4 | B62: Калининградская область | C62: 1 | D62: 0 | E62: 0 | F62: 0 | G62: 1 | H62: 0 | I62: 1 | J62: 0 | K62: 0 | L62: 0 | M62: 0 | N62: 1 | O62: 0 | P62: 0 | Q62: 0 | R62: 0 | S62: 0 | T62: 0 | U62: 0 | V62: 0 | W62: 0 | X62: 0 | Y62: 0 | Z62: 0
A63: 5 | B63: Ленинградская область | C63: 1 | D63: 0 | E63: 0 | F63: 1 | G63: 0 | H63: 1 | I63: 0 | J63: 1 | K63: 0 | L63: 1 | M63: 0 | N63: 0 | O63: 0 | P63: 0 | Q63: 0 | R63: 0 | S63: 0 | T63: 1 | U63: 0 | V63: 0 | W63: 0 | X63: 0 | Y63: 0 | Z63: 0
A64: 6 | B64: МИ ФНС России по Северо-Западному ФО | C64: 1 | D64: 0 | E64: 0 | F64: 0 | G64: 0 | H64: 0 | I64: 0 | J64: 0 | K64: 0 | L64: 0 | M64: 0 | N64: 0 | O64: 0 | P64: 0 | Q64: 0 | R64: 0 | S64: 0 | T64: 0 | U64: 0 | V64: 0 | W64: 0 | X64: 0 | Y64: 0 | Z64: 0
A65: 7 | B65: Мурманская область | C65: 1 | D65: 0 | E65: 0 | F65: 0 | G65: 1 | H65: 0 | I65: 1 | J65: 0 | K65: 1 | L65: 0 | M65: 0 | N65: 0 | O65: 0 | P65: 0 | Q65: 1 | R65: 0 | S65: 0 | T65: 0 | U65: 0 | V65: 0 | W65: 0 | X65: 0 | Y65: 0 | Z65: 0
A66: 8 | B66: Новгородская область | C66: 1 | D66: 0 | E66: 0 | F66: 0 | G66: 0 | H66: 0 | I66: 0 | J66: 0 | K66: 0 | L66: 1 | M66: 0 | N66: 0 | O66: 0 | P66: 0 | Q66: 0 | R66: 0 | S66: 0 | T66: 0 | U66: 0 | V66: 0 | W66: 0 | X66: 0 | Y66: 0 | Z66: 0
A67: 9 | B67: Псковская область | C67: 0 | D67: 0 | E67: 1 | F67: 0 | G67: 0 | H67: 0 | I67: 0 | J67: 0 | K67: 0 | L67: 0 | M67: 0 | N67: 0 | O67: 1 | P67: 0 | Q67: 0 | R67: 0 | S67: 0 | T67: 0 | U67: 0 | V67: 0 | W67: 0 | X67: 0 | Y67: 0 | Z67: 0
A68: 10 | B68: Республика Карелия | C68: 0 | D68: 1 | E68: 0 | F68: 0 | G68: 0 | H68: 1 | I68: 0 | J68: 1 | K68: 0 | L68: 0 | M68: 0 | N68: 0 | O68: 0 | P68: 0 | Q68: 0 | R68: 0 | S68: 0 | T68: 0 | U68: 0 | V68: 0 | W68: 0 | X68: 0 | Y68: 0 | Z68: 0
A69: 11 | B69: Республика Коми | C69: 1 | D69: 0 | E69: 0 | F69: 1 | G69: 0 | H69: 0 | I69: 0 | J69: 0 | K69: 0 | L69: 0 | M69: 1 | N69: 0 | O69: 0 | P69: 0 | Q69: 0 | R69: 0 | S69: 0 | T69: 0 | U69: 0 | V69: 0 | W69: 0 | X69: 0 | Y69: 1 | Z69: 1
B70: Итого: | C70: =SUM(C58:C69) -> 9 | D70: =SUM(D58:D69) -> 2 | E70: 2 | F70: 4 | G70: 4 | H70: 3 | I70: 4 | J70: 4 | K70: 2 | L70: 3 | M70: 2 | N70: 2 | O70: 3 | P70: 2 | Q70: 3 | R70: 1 | S70: 1 | T70: 3 | U70: 2 | V70: 1 | W70: 2 | X70: 1 | Y70: 2 | Z70: 2
A71: Южный федеральный округ
A72: 1 | B72: Астраханская область | C72: 1 | D72: 0 | E72: 0 | F72: 0 | G72: 0 | H72: 0 | I72: 0 | J72: 1 | K72: 0 | L72: 0 | M72: 0 | N72: 0 | O72: 1 | P72: 0 | Q72: 0 | R72: 0 | S72: 0 | T72: 0 | U72: 0 | V72: 0 | W72: 0 | X72: 0 | Y72: 0 | Z72: 0
A73: 2 | B73: Волгоградская область | C73: 0 | D73: 0 | E73: 1 | F73: 0 | G73: 1 | H73: 0 | I73: 1 | J73: 0 | K73: 1 | L73: 0 | M73: 0 | N73: 1 | O73: 0 | P73: 0 | Q73: 1 | R73: 0 | S73: 0 | T73: 0 | U73: 0 | V73: 1 | W73: 0 | X73: 1 | Y73: 0 | Z73: 1
A74: 3 | B74: г.Севастополь | C74: 0 | D74: 1 | E74: 0 | F74: 0 | G74: 0 | H74: 1 | I74: 0 | J74: 0 | K74: 0 | L74: 0 | M74: 0 | N74: 0 | O74: 0 | P74: 0 | Q74: 0 | R74: 0 | S74: 0 | T74: 0 | U74: 0 | V74: 0 | W74: 0 | X74: 0 | Y74: 0 | Z74: 0
A75: 4 | B75: Краснодарский край | C75: 0 | D75: 0 | E75: 0 | F75: 1 | G75: 0 | H75: 0 | I75: 1 | J75: 0 | K75: 1 | L75: 0 | M75: 0 | N75: 1 | O75: 0 | P75: 1 | Q75: 1 | R75: 0 | S75: 1 | T75: 1 | U75: 0 | V75: 1 | W75: 0 | X75: 1 | Y75: 1 | Z75: 1
A76: 5 | B76: МИ ФНС России по Южному ФО | C76: 0 | D76: 0 | E76: 0 | F76: 1 | G76: 0 | H76: 0 | I76: 0 | J76: 0 | K76: 0 | L76: 0 | M76: 0 | N76: 0 | O76: 0 | P76: 0 | Q76: 0 | R76: 0 | S76: 0 | T76: 0 | U76: 0 | V76: 0 | W76: 0 | X76: 0 | Y76: 0 | Z76: 0
A77: 6 | B77: Республика Адыгея | C77: 1 | D77: 0 | E77: 0 | F77: 0 | G77: 0 | H77: 0 | I77: 0 | J77: 0 | K77: 0 | L77: 0 | M77: 0 | N77: 0 | O77: 0 | P77: 0 | Q77: 0 | R77: 0 | S77: 0 | T77: 0 | U77: 0 | V77: 0 | W77: 0 | X77: 0 | Y77: 0 | Z77: 0
A78: 7 | B78: Республика Калмыкия | C78: 0 | D78: 0 | E78: 0 | F78: 0 | G78: 0 | H78: 0 | I78: 0 | J78: 0 | K78: 0 | L78: 1 | M78: 0 | N78: 0 | O78: 0 | P78: 0 | Q78: 0 | R78: 0 | S78: 0 | T78: 1 | U78: 0 | V78: 0 | W78: 0 | X78: 0 | Y78: 0 | Z78: 0
A79: 8 | B79: Республика Крым | C79: 0 | D79: 1 | E79: 0 | F79: 1 | G79: 0 | H79: 0 | I79: 1 | J79: 0 | K79: 1 | L79: 0 | M79: 0 | N79: 0 | O79: 1 | P79: 0 | Q79: 0 | R79: 0 | S79: 0 | T79: 0 | U79: 0 | V79: 0 | W79: 1 | X79: 0 | Y79: 1 | Z79: 0
A80: 9 | B80: Ростовская область | C80: 0 | D80: 1 | E80: 0 | F80: 1 | G80: 0 | H80: 1 | I80: 0 | J80: 1 | K80: 0 | L80: 1 | M80: 0 | N80: 1 | O80: 0 | P80: 1 | Q80: 1 | R80: 0 | S80: 1 | T80: 1 | U80: 1 | V80: 1 | W80: 0 | X80: 1 | Y80: 1 | Z80: 0
B81: Итого: | C81: =SUM(C71:C80) -> 2 | D81: =SUM(D71:D80) -> 3 | E81: 1 | F81: 4 | G81: 1 | H81: 2 | I81: 3 | J81: 2 | K81: 3 | L81: 2 | M81: 0 | N81: 3 | O81: 2 | P81: 2 | Q81: 3 | R81: 0 | S81: 2 | T81: 3 | U81: 1 | V81: 3 | W81: 1 | X81: 3 | Y81: 3 | Z81: 2
A82: Северо-Кавказский федеральный округ
A83: 1 | B83: Кабардино- Балкарская Республика | C83: 0 | D83: 1 | E83: 0 | F83: 0 | G83: 0 | H83: 0 | I83: 0 | J83: 0 | K83: 0 | L83: 0 | M83: 0 | N83: 0 | O83: 0 | P83: 0 | Q83: 0 | R83: 0 | S83: 0 | T83: 0 | U83: 0 | V83: 0 | W83: 0 | X83: 1 | Y83: 0 | Z83: 0
A84: 2 | B84: Карачаево- Черкесская Республика | C84: 0 | D84: 0 | E84: 0 | F84: 1 | G84: 0 | H84: 0 | I84: 0 | J84: 0 | K84: 0 | L84: 0 | M84: 0 | N84: 0 | O84: 0 | P84: 0 | Q84: 0 | R84: 0 | S84: 0 | T84: 0 | U84: 0 | V84: 1 | W84: 0 | X84: 0 | Y84: 0 | Z84: 0
A85: 3 | B85: МИ ФНС России по Северо-Кавказскому ФО | C85: 0 | D85: 0 | E85: 0 | F85: 0 | G85: 0 | H85: 0 | I85: 0 | J85: 0 | K85: 0 | L85: 0 | M85: 0 | N85: 1 | O85: 0 | P85: 0 | Q85: 0 | R85: 0 | S85: 0 | T85: 0 | U85: 0 | V85: 0 | W85: 0 | X85: 0 | Y85: 0 | Z85: 0
A86: 4 | B86: Республика Дагестан | C86: 0 | D86: 1 | E86: 0 | F86: 1 | G86: 0 | H86: 0 | I86: 1 | J86: 0 | K86: 0 | L86: 1 | M86: 0 | N86: 0 | O86: 1 | P86: 0 | Q86: 1 | R86: 0 | S86: 0 | T86: 0 | U86: 0 | V86: 0 | W86: 0 | X86: 0 | Y86: 0 | Z86: 0
A87: 5 | B87: Республика Ингушетия | C87: 0 | D87: 0 | E87: 0 | F87: 0 | G87: 0 | H87: 1 | I87: 0 | J87: 0 | K87: 0 | L87: 0 | M87: 0 | N87: 0 | O87: 0 | P87: 0 | Q87: 0 | R87: 0 | S87: 0 | T87: 0 | U87: 0 | V87: 0 | W87: 0 | X87: 0 | Y87: 0 | Z87: 0
A88: 6 | B88: Республика Северная Осетия - Алания | C88: 0 | D88: 1 | E88: 0 | F88: 1 | G88: 0 | H88: 0 | I88: 0 | J88: 0 | K88: 0 | L88: 0 | M88: 0 | N88: 0 | O88: 0 | P88: 0 | Q88: 0 | R88: 0 | S88: 0 | T88: 0 | U88: 0 | V88: 0 | W88: 0 | X88: 0 | Y88: 0 | Z88: 0
A89: 7 | B89: Ставропольский край | C89: 1 | D89: 0 | E89: 0 | F89: 0 | G89: 0 | H89: 0 | I89: 0 | J89: 1 | K89: 0 | L89: 1 | M89: 0 | N89: 1 | O89: 0 | P89: 1 | Q89: 0 | R89: 0 | S89: 1 | T89: 0 | U89: 1 | V89: 0 | W89: 1 | X89: 1 | Y89: 0 | Z89: 0
A90: 8 | B90: Чеченская Республика | C90: 1 | D90: 0 | E90: 0 | F90: 0 | G90: 0 | H90: 0 | I90: 0 | J90: 0 | K90: 1 | L90: 0 | M90: 0 | N90: 0 | O90: 0 | P90: 0 | Q90: 0 | R90: 0 | S90: 0 | T90: 0 | U90: 0 | V90: 0 | W90: 0 | X90: 0 | Y90: 0 | Z90: 0
B91: Итого: | C91: =SUM(C82:C90) -> 2 | D91: =SUM(D82:D90) -> 3 | E91: 0 | F91: 3 | G91: 0 | H91: 1 | I91: 1 | J91: 1 | K91: 1 | L91: 2 | M91: 0 | N91: 2 | O91: 1 | P91: 1 | Q91: 1 | R91: 0 | S91: 1 | T91: 0 | U91: 1 | V91: 1 | W91: 1 | X91: 2 | Y91: 0 | Z91: 0
A92: Приволжский федеральный округ
A93: 1 | B93: Кировская область | C93: 0 | D93: 1 | E93: 0 | F93: 0 | G93: 1 | H93: 0 | I93: 0 | J93: 1 | K93: 0 | L93: 1 | M93: 0 | N93: 0 | O93: 0 | P93: 0 | Q93: 1 | R93: 0 | S93: 0 | T93: 0 | U93: 1 | V93: 0 | W93: 0 | X93: 0 | Y93: 1 | Z93: 0
A94: 2 | B94: МИ ФНС России по Приволжскому ФО | C94: 0 | D94: 0 | E94: 0 | F94: 0 | G94: 0 | H94: 0 | I94: 0 | J94: 0 | K94: 0 | L94: 0 | M94: 0 | N94: 1 | O94: 0 | P94: 0 | Q94: 0 | R94: 0 | S94: 0 | T94: 0 | U94: 0 | V94: 0 | W94: 0 | X94: 0 | Y94: 0 | Z94: 0
A95: 3 | B95: Нижегородская область | C95: 0 | D95: 1 | E95: 0 | F95: 0 | G95: 0 | H95: 1 | I95: 0 | J95: 1 | K95: 0 | L95: 1 | M95: 0 | N95: 0 | O95: 0 | P95: 1 | Q95: 0 | R95: 1 | S95: 0 | T95: 1 | U95: 0 | V95: 0 | W95: 1 | X95: 0 | Y95: 1 | Z95: 1
A96: 4 | B96: Оренбургская область | C96: 0 | D96: 0 | E96: 1 | F96: 0 | G96: 1 | H96: 0 | I96: 1 | J96: 0 | K96: 1 | L96: 0 | M96: 1 | N96: 0 | O96: 0 | P96: 1 | Q96: 0 | R96: 1 | S96: 0 | T96: 1 | U96: 0 | V96: 0 | W96: 0 | X96: 0 | Y96: 0 | Z96: 0
A97: 5 | B97: Пензенская область | C97: 0 | D97: 1 | E97: 0 | F97: 0 | G97: 0 | H97: 1 | I97: 0 | J97: 0 | K97: 0 | L97: 1 | M97: 0 | N97: 0 | O97: 0 | P97: 1 | Q97: 0 | R97: 0 | S97: 0 | T97: 0 | U97: 0 | V97: 0 | W97: 0 | X97: 0 | Y97: 0 | Z97: 0
A98: 6 | B98: Пермский край | C98: 0 | D98: 1 | E98: 0 | F98: 0 | G98: 1 | H98: 0 | I98: 1 | J98: 0 | K98: 1 | L98: 0 | M98: 0 | N98: 1 | O98: 0 | P98: 1 | Q98: 0 | R98: 1 | S98: 0 | T98: 1 | U98: 0 | V98: 1 | W98: 1 | X98: 1 | Y98: 1 | Z98: 1
A99: 7 | B99: Республика Башкортостан | C99: 0 | D99: 1 | E99: 0 | F99: 0 | G99: 1 | H99: 0 | I99: 1 | J99: 0 | K99: 1 | L99: 0 | M99: 0 | N99: 1 | O99: 0 | P99: 1 | Q99: 0 | R99: 1 | S99: 1 | T99: 1 | U99: 1 | V99: 1 | W99: 1 | X99: 1 | Y99: 1 | Z99: 1
A100: 8 | B100: Республика Марий Эл | C100: 0 | D100: 0 | E100: 1 | F100: 0 | G100: 0 | H100: 0 | I100: 0 | J100: 0 | K100: 0 | L100: 0 | M100: 0 | N100: 0 | O100: 1 | P100: 0 | Q100: 0 | R100: 0 | S100: 0 | T100: 0 | U100: 0 | V100: 0 | W100: 0 | X100: 0 | Y100: 0 | Z100: 0
A101: 9 | B101: Республика Мордовия | C101: 0 | D101: 1 | E101: 0 | F101: 0 | G101: 1 | H101: 0 | I101: 0 | J101: 0 | K101: 0 | L101: 0 | M101: 1 | N101: 0 | O101: 0 | P101: 0 | Q101: 0 | R101: 0 | S101: 0 | T101: 0 | U101: 0 | V101: 0 | W101: 0 | X101: 0 | Y101: 0 | Z101: 0
A102: 10 | B102: Республика Татарстан | C102: 0 | D102: 1 | E102: 0 | F102: 0 | G102: 0 | H102: 0 | I102: 1 | J102: 0 | K102: 0 | L102: 0 | M102: 1 | N102: 1 | O102: 1 | P102: 1 | Q102: 1 | R102: 1 | S102: 1 | T102: 1 | U102: 1 | V102: 1 | W102: 1 | X102: 1 | Y102: 1 | Z102: 1
A103: 11 | B103: Самарская область | C103: 0 | D103: 1 | E103: 0 | F103: 0 | G103: 0 | H103: 1 | I103: 0 | J103: 1 | K103: 0 | L103: 0 | M103: 1 | N103: 0 | O103: 1 | P103: 0 | Q103: 1 | R103: 0 | S103: 1 | T103: 0 | U103: 1 | V103: 1 | W103: 1 | X103: 1 | Y103: 1 | Z103: 1
A104: 12 | B104: Саратовская область | C104: 0 | D104: 0 | E104: 0 | F104: 0 | G104: 1 | H104: 0 | I104: 1 | J104: 0 | K104: 0 | L104: 0 | M104: 0 | N104: 0 | O104: 0 | P104: 0 | Q104: 1 | R104: 1 | S104: 1 | T104: 1 | U104: 1 | V104: 1 | W104: 1 | X104: 1 | Y104: 0 | Z104: 0
A105: 13 | B105: Удмуртская Республика | C105: 0 | D105: 0 | E105: 0 | F105: 1 | G105: 0 | H105: 1 | I105: 0 | J105: 1 | K105: 0 | L105: 0 | M105: 1 | N105: 0 | O105: 1 | P105: 0 | Q105: 0 | R105: 0 | S105: 0 | T105: 0 | U105: 0 | V105: 0 | W105: 0 | X105: 0 | Y105: 0 | Z105: 1
A106: 14 | B106: Ульяновская область | C106: 0 | D106: 1 | E106: 1 | F106: 0 | G106: 0 | H106: 0 | I106: 0 | J106: 0 | K106: 1 | L106: 0 | M106: 1 | N106: 0 | O106: 0 | P106: 0 | Q106: 0 | R106: 0 | S106: 0 | T106: 0 | U106: 0 | V106: 0 | W106: 0 | X106: 0 | Y106: 0 | Z106: 0
A107: 15 | B107: Чувашская Республика | C107: 0 | D107: 0 | E107: 0 | F107: 0 | G107: 0 | H107: 0 | I107: 0 | J107: 0 | K107: 1 | L107: 0 | M107: 0 | N107: 1 | O107: 0 | P107: 0 | Q107: 0 | R107: 1 | S107: 0 | T107: 0 | U107: 0 | V107: 1 | W107: 0 | X107: 0 | Y107: 0 | Z107: 1
B108: Итого: | C108: =SUM(C92:C107) -> 0 | D108: =SUM(D92:D107) -> 9 | E108: 3 | F108: 1 | G108: 6 | H108: 4 | I108: 5 | J108: 4 | K108: 5 | L108: 3 | M108: 6 | N108: 5 | O108: 4 | P108: 6 | Q108: 4 | R108: 7 | S108: 4 | T108: 6 | U108: 5 | V108: 6 | W108: 6 | X108: 5 | Y108: 6 | Z108: 7
A109: Уральский федеральный округ
A110: 1 | B110: Курганская область | C110: 0 | D110: 0 | E110: 1 | F110: 0 | G110: 0 | H110: 0 | I110: 0 | J110: 0 | K110: 1 | L110: 0 | M110: 0 | N110: 0 | O110: 0 | P110: 1 | Q110: 0 | R110: 0 | S110: 0 | T110: 0 | U110: 1 | V110: 0 | W110: 0 | X110: 0 | Y110: 0 | Z110: 0
A111: 2 | B111: МИ ФНС России по Уральскому ФО | C111: 0 | D111: 0 | E111: 0 | F111: 0 | G111: 0 | H111: 0 | I111: 0 | J111: 0 | K111: 0 | L111: 1 | M111: 0 | N111: 0 | O111: 0 | P111: 0 | Q111: 0 | R111: 0 | S111: 0 | T111: 0 | U111: 0 | V111: 0 | W111: 0 | X111: 0 | Y111: 0 | Z111: 0
A112: 3 | B112: Свердловская область | C112: 0 | D112: 1 | E112: 0 | F112: 0 | G112: 1 | H112: 0 | I112: 1 | J112: 0 | K112: 1 | L112: 0 | M112: 1 | N112: 0 | O112: 1 | P112: 0 | Q112: 1 | R112: 1 | S112: 1 | T112: 1 | U112: 1 | V112: 1 | W112: 1 | X112: 1 | Y112: 1 | Z112: 1
A113: 4 | B113: Тюменская область | C113: 0 | D113: 0 | E113: 0 | F113: 0 | G113: 0 | H113: 1 | I113: 0 | J113: 1 | K113: 0 | L113: 1 | M113: 0 | N113: 0 | O113: 1 | P113: 0 | Q113: 1 | R113: 0 | S113: 0 | T113: 0 | U113: 1 | V113: 0 | W113: 1 | X113: 0 | Y113: 0 | Z113: 0
A114: 5 | B114: Ханты-Мансийский АО | C114: 0 | D114: 0 | E114: 1 | F114: 0 | G114: 0 | H114: 1 | I114: 0 | J114: 1 | K114: 0 | L114: 0 | M114: 1 | N114: 0 | O114: 1 | P114: 0 | Q114: 0 | R114: 1 | S114: 0 | T114: 1 | U114: 0 | V114: 0 | W114: 0 | X114: 0 | Y114: 0 | Z114: 0
A115: 6 | B115: Челябинская область | C115: 0 | D115: 0 | E115: 0 | F115: 0 | G115: 1 | H115: 0 | I115: 1 | J115: 0 | K115: 1 | L115: 0 | M115: 1 | N115: 0 | O115: 1 | P115: 0 | Q115: 1 | R115: 0 | S115: 1 | T115: 1 | U115: 0 | V115: 1 | W115: 1 | X115: 1 | Y115: 1 | Z115: 1
A116: 7 | B116: Ямало-Ненецкий АО | C116: 0 | D116: 0 | E116: 0 | F116: 0 | G116: 0 | H116: 0 | I116: 0 | J116: 0 | K116: 0 | L116: 0 | M116: 0 | N116: 0 | O116: 0 | P116: 0 | Q116: 0 | R116: 0 | S116: 0 | T116: 0 | U116: 0 | V116: 0 | W116: 0 | X116: 0 | Y116: 1 | Z116: 0
B117: Итого: | C117: =SUM(C109:C116) -> 0 | D117: =SUM(D109:D116) -> 1 | E117: 2 | F117: 0 | G117: 2 | H117: 2 | I117: 2 | J117: 2 | K117: 3 | L117: 2 | M117: 3 | N117: 0 | O117: 4 | P117: 1 | Q117: 3 | R117: 2 | S117: 2 | T117: 3 | U117: 3 | V117: 2 | W117: 3 | X117: 2 | Y117: 3 | Z117: 2
A118: Сибирский федеральный округ
A119: 1 | B119: Алтайский край | C119: 0 | D119: 0 | E119: 1 | F119: 0 | G119: 0 | H119: 0 | I119: 1 | J119: 0 | K119: 0 | L119: 1 | M119: 0 | N119: 0 | O119: 1 | P119: 0 | Q119: 0 | R119: 0 | S119: 0 | T119: 1 | U119: 0 | V119: 1 | W119: 1 | X119: 1 | Y119: 0 | Z119: 0
A120: 2 | B120: Иркутская область | C120: 0 | D120: 0 | E120: 0 | F120: 0 | G120: 1 | H120: 0 | I120: 1 | J120: 0 | K120: 1 | L120: 0 | M120: 1 | N120: 0 | O120: 1 | P120: 0 | Q120: 0 | R120: 0 | S120: 1 | T120: 0 | U120: 1 | V120: 1 | W120: 1 | X120: 1 | Y120: 1 | Z120: 0
A121: 3 | B121: Кемеровская область | C121: 0 | D121: 0 | E121: 0 | F121: 0 | G121: 0 | H121: 1 | I121: 0 | J121: 1 | K121: 0 | L121: 1 | M121: 0 | N121: 1 | O121: 0 | P121: 1 | Q121: 0 | R121: 0 | S121: 0 | T121: 0 | U121: 1 | V121: 1 | W121: 0 | X121: 1 | Y121: 1 | Z121: 1
A122: 4 | B122: Красноярский край | C122: 0 | D122: 0 | E122: 1 | F122: 0 | G122: 1 | H122: 0 | I122: 1 | J122: 1 | K122: 0 | L122: 1 | M122: 0 | N122: 1 | O122: 0 | P122: 1 | Q122: 0 | R122: 0 | S122: 1 | T122: 0 | U122: 1 | V122: 1 | W122: 1 | X122: 1 | Y122: 1 | Z122: 0
A123: 5 | B123: МИ ФНС России по Сибирскому ФО | C123: 0 | D123: 0 | E123: 0 | F123: 0 | G123: 0 | H123: 0 | I123: 0 | J123: 1 | K123: 0 | L123: 0 | M123: 0 | N123: 0 | O123: 0 | P123: 0 | Q123: 0 | R123: 0 | S123: 0 | T123: 0 | U123: 0 | V123: 0 | W123: 0 | X123: 0 | Y123: 0 | Z123: 0
A124: 6 | B124: Новосибирская область | C124: 0 | D124: 0 | E124: 1 | F124: 0 | G124: 0 | H124: 1 | I124: 0 | J124: 0 | K124: 1 | L124: 0 | M124: 0 | N124: 0 | O124: 1 | P124: 0 | Q124: 1 | R124: 0 | S124: 0 | T124: 1 | U124: 1 | V124: 1 | W124: 1 | X124: 1 | Y124: 1 | Z124: 1
A125: 7 | B125: Омская область | C125: 0 | D125: 0 | E125: 1 | F125: 0 | G125: 0 | H125: 1 | I125: 0 | J125: 0 | K125: 0 | L125: 0 | M125: 1 | N125: 0 | O125: 0 | P125: 1 | Q125: 0 | R125: 0 | S125: 1 | T125: 0 | U125: 1 | V125: 0 | W125: 0 | X125: 1 | Y125: 0 | Z125: 0
A126: 8 | B126: Республика Алтай | C126: 0 | D126: 0 | E126: 1 | F126: 0 | G126: 0 | H126: 0 | I126: 0 | J126: 0 | K126: 0 | L126: 0 | M126: 0 | N126: 0 | O126: 0 | P126: 0 | Q126: 0 | R126: 0 | S126: 0 | T126: 0 | U126: 0 | V126: 0 | W126: 0 | X126: 0 | Y126: 0 | Z126: 0
A127: 9 | B127: Республика Тыва | C127: 0 | D127: 0 | E127: 0 | F127: 0 | G127: 0 | H127: 0 | I127: 0 | J127: 0 | K127: 0 | L127: 0 | M127: 1 | N127: 0 | O127: 0 | P127: 0 | Q127: 0 | R127: 1 | S127: 0 | T127: 0 | U127: 0 | V127: 0 | W127: 0 | X127: 0 | Y127: 0 | Z127: 0
A128: 10 | B128: Республика Хакасия | C128: 0 | D128: 0 | E128: 0 | F128: 0 | G128: 0 | H128: 1 | I128: 0 | J128: 0 | K128: 0 | L128: 0 | M128: 0 | N128: 0 | O128: 0 | P128: 1 | Q128: 0 | R128: 0 | S128: 0 | T128: 0 | U128: 0 | V128: 0 | W128: 0 | X128: 0 | Y128: 0 | Z128: 0
A129: 11 | B129: Томская область | C129: 0 | D129: 0 | E129: 1 | F129: 0 | G129: 0 | H129: 1 | I129: 0 | J129: 0 | K129: 0 | L129: 0 | M129: 1 | N129: 0 | O129: 0 | P129: 0 | Q129: 0 | R129: 1 | S129: 0 | T129: 0 | U129: 0 | V129: 1 | W129: 0 | X129: 0 | Y129: 0 | Z129: 1
B130: Итого: | C130: =SUM(C118:C129) -> 0 | D130: =SUM(D118:D129) -> 0 | E130: 6 | F130: 0 | G130: 2 | H130: 5 | I130: 3 | J130: 3 | K130: 2 | L130: 3 | M130: 4 | N130: 2 | O130: 3 | P130: 4 | Q130: 1 | R130: 2 | S130: 3 | T130: 2 | U130: 5 | V130: 6 | W130: 4 | X130: 6 | Y130: 4 | Z130: 3
A131: Дальневосточный федеральный округ
A132: 1 | B132: Амурская область | C132: 0 | D132: 0 | E132: 0 | F132: 1 | G132: 0 | H132: 0 | I132: 0 | J132: 0 | K132: 1 | L132: 0 | M132: 0 | N132: 0 | O132: 0 | P132: 0 | Q132: 0 | R132: 1 | S132: 0 | T132: 0 | U132: 0 | V132: 0 | W132: 0 | X132: 0 | Y132: 0 | Z132: 0
A133: 2 | B133: Еврейская АО | C133: 0 | D133: 0 | E133: 0 | F133: 0 | G133: 0 | H133: 0 | I133: 0 | J133: 0 | K133: 0 | L133: 1 | M133: 0 | N133: 0 | O133: 0 | P133: 0 | Q133: 0 | R133: 0 | S133: 0 | T133: 0 | U133: 0 | V133: 0 | W133: 0 | X133: 0 | Y133: 0 | Z133: 0
A134: 3 | B134: Забайкальский край | C134: 0 | D134: 0 | E134: 1 | F134: 0 | G134: 0 | H134: 0 | I134: 0 | J134: 1 | K134: 0 | L134: 0 | M134: 1 | N134: 0 | O134: 0 | P134: 0 | Q134: 1 | R134: 0 | S134: 0 | T134: 0 | U134: 0 | V134: 0 | W134: 0 | X134: 0 | Y134: 0 | Z134: 0
A135: 4 | B135: Камчатский край | C135: 0 | D135: 0 | E135: 0 | F135: 0 | G135: 0 | H135: 1 | I135: 0 | J135: 0 | K135: 0 | L135: 0 | M135: 1 | N135: 0 | O135: 0 | P135: 0 | Q135: 0 | R135: 0 | S135: 0 | T135: 0 | U135: 0 | V135: 0 | W135: 0 | X135: 0 | Y135: 0 | Z135: 0
A136: 5 | B136: Магаданская область | C136: 0 | D136: 0 | E136: 0 | F136: 0 | G136: 0 | H136: 0 | I136: 0 | J136: 0 | K136: 0 | L136: 0 | M136: 0 | N136: 0 | O136: 0 | P136: 0 | Q136: 0 | R136: 1 | S136: 0 | T136: 0 | U136: 0 | V136: 0 | W136: 0 | X136: 0 | Y136: 0 | Z136: 0
A137: 6 | B137: МИ ФНС России по Дальневосточному ФО | C137: 0 | D137: 0 | E137: 0 | F137: 0 | G137: 1 | H137: 0 | I137: 0 | J137: 0 | K137: 0 | L137: 0 | M137: 0 | N137: 0 | O137: 0 | P137: 0 | Q137: 0 | R137: 0 | S137: 0 | T137: 0 | U137: 0 | V137: 0 | W137: 0 | X137: 0 | Y137: 0 | Z137: 0
A138: 7 | B138: Приморский край | C138: 0 | D138: 0 | E138: 0 | F138: 0 | G138: 1 | H138: 0 | I138: 0 | J138: 0 | K138: 0 | L138: 0 | M138: 1 | N138: 0 | O138: 0 | P138: 1 | Q138: 1 | R138: 0 | S138: 1 | T138: 0 | U138: 0 | V138: 0 | W138: 0 | X138: 1 | Y138: 1 | Z138: 0
A139: 8 | B139: Республика Бурятия | C139: 0 | D139: 0 | E139: 0 | F139: 0 | G139: 0 | H139: 0 | I139: 0 | J139: 0 | K139: 0 | L139: 0 | M139: 0 | N139: 0 | O139: 0 | P139: 0 | Q139: 0 | R139: 0 | S139: 1 | T139: 0 | U139: 1 | V139: 0 | W139: 1 | X139: 0 | Y139: 0 | Z139: 0
A140: 9 | B140: Республика Саха (Якутия) | C140: 0 | D140: 0 | E140: 1 | F140: 0 | G140: 0 | H140: 0 | I140: 0 | J140: 0 | K140: 0 | L140: 0 | M140: 0 | N140: 0 | O140: 0 | P140: 0 | Q140: 0 | R140: 1 | S140: 0 | T140: 0 | U140: 0 | V140: 0 | W140: 1 | X140: 1 | Y140: 1 | Z140: 0
A141: 10 | B141: Сахалинская область | C141: 0 | D141: 0 | E141: 0 | F141: 0 | G141: 1 | H141: 0 | I141: 0 | J141: 0 | K141: 1 | L141: 0 | M141: 0 | N141: 0 | O141: 0 | P141: 0 | Q141: 0 | R141: 1 | S141: 0 | T141: 0 | U141: 0 | V141: 0 | W141: 0 | X141: 0 | Y141: 0 | Z141: 0
A142: 11 | B142: Хабаровский край | C142: 0 | D142: 0 | E142: 1 | F142: 0 | G142: 0 | H142: 1 | I142: 0 | J142: 0 | K142: 1 | L142: 0 | M142: 0 | N142: 0 | O142: 0 | P142: 0 | Q142: 1 | R142: 0 | S142: 1 | T142: 0 | U142: 0 | V142: 0 | W142: 1 | X142: 0 | Y142: 0 | Z142: 0
A143: 12 | B143: Чукотский АО | C143: 0 | D143: 0 | E143: 0 | F143: 0 | G143: 0 | H143: 0 | I143: 0 | J143: 0 | K143: 1 | L143: 0 | M143: 0 | N143: 0 | O143: 0 | P143: 0 | Q143: 0 | R143: 0 | S143: 0 | T143: 0 | U143: 0 | V143: 0 | W143: 0 | X143: 0 | Y143: 0 | Z143: 0
B144: Итого: | C144: =SUM(C131:C143) -> 0 | D144: =SUM(D131:D143) -> 0 | E144: 3 | F144: 1 | G144: 3 | H144: 2 | I144: 0 | J144: 1 | K144: 4 | L144: 1 | M144: 3 | N144: 0 | O144: 0 | P144: 1 | Q144: 3 | R144: 4 | S144: 3 | T144: 0 | U144: 1 | V144: 0 | W144: 3 | X144: 2 | Y144: 2 | Z144: 0
A145: Новые территории Российской Федерации
A146: 1 | B146: Донецкая Народная Республика | C146: 0 | D146: 0 | E146: 0 | F146: 0 | G146: 0 | H146: 0 | I146: 1 | J146: 0 | K146: 0 | L146: 0 | M146: 0 | N146: 0 | O146: 1 | P146: 0 | Q146: 1 | R146: 1 | S146: 0 | T146: 0 | U146: 0 | V146: 0 | W146: 0 | X146: 0 | Y146: 0 | Z146: 0
A147: 2 | B147: Запорожская область | C147: 0 | D147: 0 | E147: 0 | F147: 0 | G147: 0 | H147: 0 | I147: 0 | J147: 0 | K147: 0 | L147: 0 | M147: 0 | N147: 0 | O147: 0 | P147: 0 | Q147: 0 | R147: 0 | S147: 0 | T147: 0 | U147: 1 | V147: 0 | W147: 0 | X147: 0 | Y147: 0 | Z147: 0
A148: 3 | B148: Луганская Народная Республика | C148: 0 | D148: 0 | E148: 0 | F148: 0 | G148: 0 | H148: 1 | I148: 0 | J148: 0 | K148: 1 | L148: 0 | M148: 0 | N148: 0 | O148: 0 | P148: 1 | Q148: 0 | R148: 0 | S148: 1 | T148: 0 | U148: 0 | V148: 0 | W148: 0 | X148: 0 | Y148: 0 | Z148: 0
A149: 4 | B149: Херсонская область | C149: 0 | D149: 0 | E149: 0 | F149: 0 | G149: 0 | H149: 0 | I149: 0 | J149: 0 | K149: 0 | L149: 0 | M149: 0 | N149: 0 | O149: 1 | P149: 0 | Q149: 0 | R149: 0 | S149: 0 | T149: 0 | U149: 0 | V149: 0 | W149: 0 | X149: 0 | Y149: 0 | Z149: 0
B150: Итого: | C150: =SUM(C145:C149) -> 0 | D150: =SUM(D145:D149) -> 0 | E150: 0 | F150: 0 | G150: 0 | H150: 1 | I150: 1 | J150: 0 | K150: 1 | L150: 0 | M150: 0 | N150: 0 | O150: 2 | P150: 1 | Q150: 1 | R150: =SUM(R145:R149) -> 1 | S150: 1 | T150: 0 | U150: 1 | V150: 0 | W150: 0 | X150: 0 | Y150: 0 | Z150: 0
B151: Всего: | C151: =C21+C57+C70+C81+C91+C108+C117+C130+C144+C150 -> 25 | D151: =D21+D57+D70+D81+D91+D108+D117+D130+D144+D150 -> 25 | E151: 25 | F151: 25 | G151: 25 | H151: 25 | I151: 25 | J151: 25 | K151: 25 | L151: 25 | M151: 25 | N151: 25 | O151: 25 | P151: 25 | Q151: 25 | R151: 25 | S151: 25 | T151: 25 | U151: 25 | V151: 25 | W151: 25 | X151: 25 | Y151: 25 | Z151: 25
B153: *** перенос указанных единиц в группе на другие периоды не допускается

Sheet Прил.37 (ПП)
E1: Приложение № 37
E2: УТВЕРЖДЕНО
E3: приказом ФНС России
E4: от " " 20 г.
E5: №
A7: План-график дополнительного профессионального образования гражданских служащих в "Академии ФНС ЛАБ–Нева" в 2025 году (очная форма обучения с применением дистанционных образовательных технологий и электронного обучения)
A8: № п/п | B8: Структурные подразделения ЦА ФНС России, УФНС России по субъектам РФ, межрегиональные инспекции ФНС России | C8: Численность, человек
C9: В том числе по программам профессиональной переподготовки с указанием продолжительности, группам и категориям должностей и периодам обучения
C10: Менеджмент государственной гражданской службы | D10: Налоговое администрирование
C11: (520 часов) | D11: (520 часов)
C12: 24.02-14.03* | D12: 17.03-04.04*
C13: 05.05-23.05** | D13: 02.06-20.06** | E13: 23.06-11.07**
C14: 06.10-24.10** | D14: 27.10-14.11** | E14: 17.11-05.12**
C15: * обучение с применением дистанционных образовательных технологий и электронного обучения (без выезда в образовательное учреждение); ** обучение в очной форме
A16: 1 | B16: 2 | C16: 3 | D16: 4 | E16: 5
A17: Центральный аппарат ФНС России
A18: 1 | B18: Управление профессионального развития
B19: Итого: | C19: =SUM(C18:C18) -> 0 | D19: =SUM(D18:D18) -> 0 | E19: =SUM(E18:E18) -> 0
A20: Центральный федеральный округ
A21: 1 | B21: Белгородская область
A22: 2 | B22: Брянская область
A23: 3 | B23: Владимирская область
A24: 4 | B24: Воронежская область | E24: 1
A25: 5 | B25: г.Москва | C25: 2 | D25: 3 | E25: 2
A26: 6 | B26: Ивановская область | D26: 1 | E26: 1
A27: 7 | B27: Калужская область
A28: 8 | B28: Костромская область
A29: 9 | B29: Курская область
A30: 10 | B30: Липецкая область
A31: 11 | B31: МИ ФНС России по камеральному контролю
A32: 12 | B32: МИ ФНС России по КН № 1
A33: 13 | B33: МИ ФНС России по КН № 2
A34: 14 | B34: МИ ФНС России по КН № 3 | D34: 1
A35: 15 | B35: МИ ФНС России по КН № 4
A36: 16 | B36: МИ ФНС России по КН № 5
A37: 17 | B37: МИ ФНС России по КН № 6
A38: 18 | B38: МИ ФНС России по КН № 7
A39: 19 | B39: МИ ФНС России по КН № 9
A40: 20 | B40: МИ ФНС России по КН № 10
A41: 21 | B41: МИ ФНС России по ценообразованию для целей налогообложения | C41: 1
A42: 22 | B42: МИ ФНС России по Центральному ФО
A43: 23 | B43: МИ ФНС России по ЦОД
A44: 24 | B44: МИ ФНС России по ЦОД №2
A45: 25 | B45: МИ ФНС России по управлению долгом
A46: 26 | B46: МИ ФНС России по контролю и надзору за налогоплательщиками в сфере бюджетного финансирования | C46: 1
A47: 27 | B47: Московская область
A48: 28 | B48: Орловская область
A49: 29 | B49: Рязанская область | D49: 1
A50: 30 | B50: Смоленская область
A51: 31 | B51: Тамбовская область | D51: 1 | E51: 1
A52: 32 | B52: Тверская область
A53: 33 | B53: Тульская область
A54: 34 | B54: Ярославская область | E54: 1
B55: Итого: | C55: =SUM(C21:C54) -> 4 | D55: 7 | E55: 6
A56: Северо-Западный федеральный округ
A57: 1 | B57: Архангельская область и Ненецкий АО | C57: 1
A58: 2 | B58: Вологодская область
A59: 3 | B59: г.Санкт- Петербург | C59: 1 | D59: 1 | E59: 2
A60: 4 | B60: Калининградская область | C60: 1
A61: 5 | B61: Ленинградская область | E61: 1
A62: 6 | B62: МИ ФНС России по Северо-Западному ФО
A63: 7 | B63: Мурманская область | D63: 1 | E63: 1
A64: 8 | B64: Новгородская область | C64: 2
A65: 9 | B65: Псковская область
A66: 10 | B66: Республика Карелия
A67: 11 | B67: Республика Коми
B68: Итого: | C68: =SUM(C57:C67) -> 5 | D68: 2 | E68: 4
A69: Южный федеральный округ
A70: 1 | B70: Астраханская область
A71: 2 | B71: Волгоградская область | D71: 1
A72: 3 | B72: г.Севастополь
A73: 4 | B73: Краснодарский край | D73: 1
A74: 5 | B74: МИ ФНС России по Южному ФО | C74: 1
A75: 6 | B75: Республика Адыгея
A76: 7 | B76: Республика Калмыкия
A77: 8 | B77: Республика Крым
A78: 9 | B78: Ростовская область | D78: 1 | E78: 1
B79: Итого: | C79: =SUM(C70:C78) -> 1 | D79: 3 | E79: 1
A80: Северо-Кавказский федеральный округ
A81: 1 | B81: Кабардино- Балкарская Республика | E81: 1
A82: 2 | B82: Карачаево- Черкесская Республика
A83: 3 | B83: МИ ФНС России по Северо-Кавказскому ФО
A84: 4 | B84: Республика Дагестан
A85: 5 | B85: Республика Ингушетия | D85: 1 | E85: 1
A86: 6 | B86: Республика Северная Осетия - Алания
A87: 7 | B87: Ставропольский край
A88: 8 | B88: Чеченская Республика
B89: Итого: | C89: =SUM(C81:C88) -> 0 | D89: 1 | E89: 2
A90: Приволжский федеральный округ
A91: 1 | B91: Кировская область
A92: 2 | B92: МИ ФНС России по Приволжскому ФО
A93: 3 | B93: Нижегородская область | C93: 5
A94: 4 | B94: Оренбургская область
A95: 5 | B95: Пензенская область
A96: 6 | B96: Пермский край | E96: 1
A97: 7 | B97: Республика Башкортостан | C97: 2 | D97: 2 | E97: 2
A98: 8 | B98: Республика Марий Эл
A99: 9 | B99: Республика Мордовия | D99: 1
A100: 10 | B100: Республика Татарстан
A101: 11 | B101: Самарская область
A102: 12 | B102: Саратовская область | D102: 2 | E102: 1
A103: 13 | B103: Удмуртская Республика
A104: 14 | B104: Ульяновская область | E104: 1
A105: 15 | B105: Чувашская Республика
B106: Итого: | C106: =SUM(C91:C105) -> 7 | D106: 5 | E106: 5
A107: Уральский федеральный округ
A108: 1 | B108: Курганская область
A109: 2 | B109: МИ ФНС России по Уральскому ФО
A110: 3 | B110: Свердловская область | D110: 1
A111: 4 | B111: Тюменская область
A112: 5 | B112: Ханты-Мансийский АО | D112: 1
A113: 6 | B113: Челябинская область
A114: 7 | B114: Ямало-Ненецкий АО
B115: Итого: | C115: =SUM(C108:C114) -> 0 | D115: 2 | E115: 0
A116: Сибирский федеральный округ
A117: 1 | B117: Алтайский край
A118: 2 | B118: Иркутская область | C118: 3 | D118: 2 | E118: 2
A119: 3 | B119: Кемеровская область
A120: 4 | B120: Красноярский край
A121: 5 | B121: МИ ФНС России по Сибирскому ФО
A122: 6 | B122: Новосибирская область
A123: 7 | B123: Омская область | C123: 1
A124: 8 | B124: Республика Алтай
A125: 9 | B125: Республика Тыва
A126: 10 | B126: Республика Хакасия | C126: 1
A127: 11 | B127: Томская область | E127: 1
B128: Итого: | C128: =SUM(C117:C127) -> 5 | D128: 2 | E128: 3
A129: Дальневосточный федеральный округ
A130: 1 | B130: Амурская область
A131: 2 | B131: Еврейская АО | D131: 1
A132: 3 | B132: Забайкальский край
A133: 4 | B133: Камчатский край
A134: 5 | B134: Магаданская область | E134: 1
A135: 6 | B135: МИ ФНС России по Дальневосточному ФО
A136: 7 | B136: Приморский край
A137: 8 | B137: Республика Бурятия
A138: 9 | B138: Республика Саха (Якутия) | C138: 1 | E138: 1
A139: 10 | B139: Сахалинская область
A140: 11 | B140: Хабаровский край
A141: 12 | B141: Чукотский АО | C141: 1
B142: Итого: | C142: =SUM(C130:C141) -> 2 | D142: 1 | E142: 2
A143: Новые территории Российской Федерации
A144: 1 | B144: Донецкая Народная Республика
A145: 2 | B145: Запорожская область
A146: 3 | B146: Луганская Народная Республика | E146: 1
A147: 4 | B147: Херсонская область | D147: 1
B148: Итого: | C148: =SUM(C144:C147) -> 0 | D148: 1 | E148: 1
B149: Всего: | C149: =C19+C142+C128+C106+C115+C89+C79+C68+C55+C148 -> 24 | D149: =D19+D142+D128+D106+D115+D89+D79+D68+D55+D148 -> 24 | E149: =E19+E142+E128+E106+E115+E89+E79+E68+E55+E148 -> 24

Sheet Прил.38 (ДО)
U1: Приложение № 38
U2: УТВЕРЖДЕНО
U3: приказом ФНС России
U4: от " " 20 г.
U5: №
A7: План-график дополнительного профессионального образования гражданских служащих в "Академии ФНС ЛАБ–Нева" в 2025 году (заочная форма обучения с применением дистанционных образовательных технологий и электронного обучения)
A8: № п/п | B8: Количество человеко-часов
B9: по программам повышения квалификации с указанием периодов обучения*
A10: 1 | B10: Электронный документооборот в деятельности налоговых органо, 16 часов
A11: 2 | B11: Методика проведения интервью. Распознавание личности, 24 часа
A12: 3 | B12: Эффективный наставник для руководителей: лучшие практики развития лидеров отрасли, 32 часа
A13: 4 | B13: Актуальные вопросы и особенности администрирования налогоплательщиков, осуществляющих добычу нефти и газа, 36 часов
A14: 5 | B14: Логика и теория аргументации, 36 часов
A15: 6 | B15: Администрирование имущественных налогов физических лиц, 48 часов
A16: 7 | B16: Администрирование имущественных налогов юридических лиц, 48 часов
A17: № п/п | B17: Структурные подразделения ЦА ФНС России, УФНС России по субъектам РФ, межрегиональные инспекции ФНС России | C17: 17.03-28.03 | H17: 14.04-25.04 | I17: 19.05-30.05 | N17: 16.06-27.06 | P17: 29.09-10.10 | U17: 13.10-24.10 | W17: Всего
C18: 16 | D18: 24 | E18: 32 | F18: 36 | G18: 48 | H18: 48 | I18: 16 | J18: 24 | K18: 32 | L18: 36 | M18: 48 | N18: 36 | O18: 48 | P18: 16 | Q18: 24 | R18: 32 | S18: 36 | T18: 48 | U18: 32 | V18: 48
C19: часов | D19: часа | E19: часа | F19: часов | G19: часов | H19: часов | I19: часов | J19: часа | K19: часа | L19: часов | M19: часов | N19: часов | O19: часов | P19: часов | Q19: часа | R19: часа | S19: часов | T19: часов | U19: часа | V19: часов
A20: 1 | B20: 2 | C20: 3 | H20: 4 | I20: 5 | N20: 6 | P20: 7 | U20: 8 | W20: 9
A21: Центральный аппарат ФНС России
A22: 1 | B22: Управление профессионального развития | C22: 0 | D22: 144 | E22: 0 | F22: 144 | G22: 0 | H22: 0 | I22: 0 | J22: 144 | K22: 0 | L22: 144 | M22: 0 | N22: 144 | O22: 0 | P22: 0 | Q22: 144 | R22: 0 | S22: 144 | T22: 0 | U22: 0 | V22: 0 | W22: =SUM(C22:V22) -> 1008
B23: Итого: | C23: =SUM(C22:C22) -> 0 | D23: 144 | E23: 0 | F23: 144 | G23: 0 | H23: 0 | I23: 0 | J23: 144 | K23: 0 | L23: 144 | M23: 0 | N23: 144 | O23: 0 | P23: 0 | Q23: 144 | R23: 0 | S23: 144 | T23: 0 | U23: 0 | V23: 0 | W23: 1008
A24: Центральный федеральный округ
A25: 1 | B25: Белгородская область | C25: 48 | D25: 0 | E25: 0 | F25: 180 | G25: 144 | H25: 192 | I25: 0 | J25: 0 | K25: 0 | L25: 180 | M25: 144 | N25: 180 | O25: 192 | P25: 0 | Q25: 0 | R25: 0 | S25: 180 | T25: 144 | U25: 0 | V25: 192 | W25: =SUM(C25:V25) -> 1776
A26: 2 | B26: Брянская область | C26: 32 | D26: 0 | E26: 0 | F26: 36 | G26: 48 | H26: 48 | I26: 16 | J26: 0 | K26: 0 | L26: 72 | M26: 48 | N26: 72 | O26: 48 | P26: 32 | Q26: 0 | R26: 0 | S26: 72 | T26: 48 | U26: 0 | V26: 48 | W26: 620
A27: 3 | B27: Владимирская область | C27: 16 | D27: 24 | E27: 0 | F27: 72 | G27: 96 | H27: 48 | I27: 32 | J27: 0 | K27: 0 | L27: 72 | M27: 96 | N27: 72 | O27: 48 | P27: 16 | Q27: 24 | R27: 0 | S27: 72 | T27: 96 | U27: 0 | V27: 48 | W27: 832
A28: 4 | B28: Воронежская область | C28: 64 | D28: 72 | E28: 0 | F28: 180 | G28: 240 | H28: 240 | I28: 16 | J28: 72 | K28: 0 | L28: 180 | M28: 240 | N28: 180 | O28: 240 | P28: 16 | Q28: 48 | R28: 0 | S28: 144 | T28: 192 | U28: 0 | V28: 240 | W28: 2364
A29: 5 | B29: г.Москва | C29: 848 | D29: 144 | E29: 64 | F29: 576 | G29: 1104 | H29: 1104 | I29: 224 | J29: 144 | K29: 96 | L29: 576 | M29: 1104 | N29: 576 | O29: 1104 | P29: 224 | Q29: 144 | R29: 64 | S29: 576 | T29: 1104 | U29: 96 | V29: 1104 | W29: 10976
A30: 6 | B30: Ивановская область | C30: 48 | D30: 0 | E30: 32 | F30: 72 | G30: 96 | H30: 144 | I30: 16 | J30: 24 | K30: 0 | L30: 36 | M30: 96 | N30: 72 | O30: 96 | P30: 32 | Q30: 0 | R30: 0 | S30: 72 | T30: 144 | U30: 0 | V30: 96 | W30: 1076
A31: 7 | B31: Калужская область | C31: 64 | D31: 48 | E31: 0 | F31: 72 | G31: 48 | H31: 48 | I31: 80 | J31: 24 | K31: 0 | L31: 72 | M31: 96 | N31: 72 | O31: 96 | P31: 80 | Q31: 24 | R31: 32 | S31: 72 | T31: 96 | U31: 0 | V31: 96 | W31: 1120
A32: 8 | B32: Костромская область | C32: 112 | D32: 0 | E32: 0 | F32: 36 | G32: 96 | H32: 96 | I32: 32 | J32: 0 | K32: 0 | L32: 36 | M32: 96 | N32: 0 | O32: 96 | P32: 32 | Q32: 24 | R32: 0 | S32: 36 | T32: 96 | U32: 0 | V32: 96 | W32: 884
A33: 9 | B33: Курская область | C33: 16 | D33: 24 | E33: 0 | F33: 144 | G33: 144 | H33: 144 | I33: 32 | J33: 24 | K33: 32 | L33: 144 | M33: 144 | N33: 144 | O33: 192 | P33: 16 | Q33: 0 | R33: 0 | S33: 144 | T33: 144 | U33: 32 | V33: 144 | W33: 1664
A34: 10 | B34: Липецкая область | C34: 128 | D34: 24 | E34: 32 | F34: 72 | G34: 96 | H34: 96 | I34: 16 | J34: 24 | K34: 0 | L34: 108 | M34: 96 | N34: 72 | O34: 96 | P34: 32 | Q34: 48 | R34: 32 | S34: 72 | T34: 96 | U34: 0 | V34: 48 | W34: 1188
A35: 11 | B35: МИ ФНС России по камеральному контролю | C35: 16 | D35: 24 | E35: 32 | F35: 108 | G35: 0 | H35: 0 | I35: 16 | J35: 0 | K35: 32 | L35: 72 | M35: 0 | N35: 108 | O35: 0 | P35: 16 | Q35: 24 | R35: 32 | S35: 108 | T35: 0 | U35: 32 | V35: 0 | W35: 620
A36: 12 | B36: МИ ФНС России по КН № 1 | C36: 32 | D36: 0 | E36: 64 | F36: 72 | G36: 0 | H36: 0 | I36: 0 | J36: 24 | K36: 32 | L36: 36 | M36: 0 | N36: 72 | O36: 0 | P36: 16 | Q36: 0 | R36: 32 | S36: 36 | T36: 0 | U36: 32 | V36: 0 | W36: 448
A37: 13 | B37: МИ ФНС России по КН № 2 | C37: 48 | D37: 0 | E37: 0 | F37: 288 | G37: 48 | H37: 48 | I37: 16 | J37: 0 | K37: 0 | L37: 324 | M37: 48 | N37: 288 | O37: 48 | P37: 0 | Q37: 0 | R37: 0 | S37: 324 | T37: 48 | U37: 0 | V37: 48 | W37: 1576
A38: 14 | B38: МИ ФНС России по КН № 3 | C38: 32 | D38: 24 | E38: 0 | F38: 108 | G38: 0 | H38: 0 | I38: 16 | J38: 0 | K38: 0 | L38: 144 | M38: 0 | N38: 108 | O38: 0 | P38: 0 | Q38: 0 | R38: 0 | S38: 144 | T38: 0 | U38: 0 | V38: 0 | W38: 576
A39: 15 | B39: МИ ФНС России по КН № 4 | C39: 16 | D39: 0 | E39: 0 | F39: 72 | G39: 48 | H39: 48 | I39: 32 | J39: 24 | K39: 0 | L39: 36 | M39: 0 | N39: 36 | O39: 0 | P39: 16 | Q39: 0 | R39: 0 | S39: 36 | T39: 0 | U39: 0 | V39: 48 | W39: 412
A40: 16 | B40: МИ ФНС России по КН № 5 | C40: 16 | D40: 24 | E40: 0 | F40: 72 | G40: 0 | H40: 0 | I40: 0 | J40: 0 | K40: 0 | L40: 36 | M40: 0 | N40: 72 | O40: 0 | P40: 0 | Q40: 24 | R40: 0 | S40: 36 | T40: 0 | U40: 0 | V40: 0 | W40: 280
A41: 17 | B41: МИ ФНС России по КН № 6 | C41: 32 | D41: 0 | E41: 0 | F41: 36 | G41: 96 | H41: 48 | I41: 32 | J41: 0 | K41: 32 | L41: 72 | M41: 96 | N41: 36 | O41: 96 | P41: 16 | Q41: 24 | R41: 0 | S41: 36 | T41: 96 | U41: 0 | V41: 96 | W41: 844
A42: 18 | B42: МИ ФНС России по КН № 7 | C42: 0 | D42: 24 | E42: 0 | F42: 0 | G42: 0 | H42: 0 | I42: 0 | J42: 24 | K42: 0 | L42: 36 | M42: 48 | N42: 36 | O42: 0 | P42: 0 | Q42: 24 | R42: 32 | S42: 36 | T42: 48 | U42: 0 | V42: 48 | W42: 356
A43: 19 | B43: МИ ФНС России по КН № 9 | C43: 32 | D43: 0 | E43: 0 | F43: 72 | G43: 48 | H43: 48 | I43: 32 | J43: 0 | K43: 0 | L43: 36 | M43: 48 | N43: 72 | O43: 96 | P43: 16 | Q43: 0 | R43: 0 | S43: 36 | T43: 48 | U43: 0 | V43: 96 | W43: 680
A44: 20 | B44: МИ ФНС России по КН № 10 | C44: 0 | D44: 0 | E44: 0 | F44: 0 | G44: 48 | H44: 0 | I44: 0 | J44: 0 | K44: 0 | L44: 0 | M44: 0 | N44: 0 | O44: 0 | P44: 0 | Q44: 0 | R44: 0 | S44: 36 | T44: 0 | U44: 0 | V44: 0 | W44: 84
A45: 21 | B45: МИ ФНС России по ценообразованию для целей налогообложения | C45: 0 | D45: 24 | E45: 0 | F45: 36 | G45: 0 | H45: 0 | I45: 0 | J45: 0 | K45: 0 | L45: 36 | M45: 0 | N45: 36 | O45: 0 | P45: 0 | Q45: 24 | R45: 0 | S45: 36 | T45: 0 | U45: 0 | V45: 0 | W45: 192
A46: 22 | B46: МИ ФНС России по Центральному ФО | C46: 0 | D46: 0 | E46: 0 | F46: 0 | G46: 0 | H46: 0 | I46: 0 | J46: 0 | K46: 0 | L46: 0 | M46: 0 | N46: 0 | O46: 0 | P46: 0 | Q46: 0 | R46: 0 | S46: 0 | T46: 0 | U46: 0 | V46: 0 | W46: 0
A47: 23 | B47: МИ ФНС России по ЦОД | C47: 0 | D47: 0 | E47: 0 | F47: 0 | G47: 0 | H47: 48 | I47: 0 | J47: 0 | K47: 0 | L47: 36 | M47: 0 | N47: 0 | O47: 0 | P47: 0 | Q47: 0 | R47: 0 | S47: 36 | T47: 0 | U47: 0 | V47: 0 | W47: 120
A48: 24 | B48: МИ ФНС России по ЦОД №2 | C48: 0 | D48: 24 | E48: 0 | F48: 0 | G48: 0 | H48: 0 | I48: 0 | J48: 0 | K48: 0 | L48: 0 | M48: 0 | N48: 0 | O48: 0 | P48: 0 | Q48: 0 | R48: 0 | S48: 0 | T48: 0 | U48: 0 | V48: 0 | W48: 24
A49: 25 | B49: МИ ФНС России по управлению долгом | C49: 0 | D49: 0 | E49: 0 | F49: 0 | G49: 0 | H49: 0 | I49: 0 | J49: 24 | K49: 0 | L49: 0 | M49: 0 | N49: 36 | O49: 0 | P49: 0 | Q49: 24 | R49: 0 | S49: 0 | T49: 0 | U49: 0 | V49: 0 | W49: 84
A50: 26 | B50: МИ ФНС России по контролю и надзору за налогоплательщиками в сфере бюджетного финансирования | C50: 0 | D50: 0 | E50: 0 | F50: 36 | G50: 0 | H50: 0 | I50: 0 | J50: 0 | K50: 0 | L50: 0 | M50: 0 | N50: 0 | O50: 0 | P50: 0 | Q50: 0 | R50: 0 | S50: 0 | T50: 0 | U50: 0 | V50: 0 | W50: 36
A51: 27 | B51: Московская область | C51: 112 | D51: 96 | E51: 32 | F51: 324 | G51: 720 | H51: 672 | I51: 128 | J51: 96 | K51: 32 | L51: 288 | M51: 720 | N51: 324 | O51: 672 | P51: 128 | Q51: 96 | R51: 32 | S51: 288 | T51: 720 | U51: 64 | V51: 672 | W51: 6216
A52: 28 | B52: Орловская область | C52: 32 | D52: 0 | E52: 32 | F52: 0 | G52: 0 | H52: 48 | I52: 32 | J52: 48 | K52: 0 | L52: 36 | M52: 48 | N52: 36 | O52: 48 | P52: 16 | Q52: 24 | R52: 0 | S52: 36 | T52: 48 | U52: 0 | V52: 48 | W52: 532
A53: 29 | B53: Рязанская область | C53: 112 | D53: 0 | E53: 64 | F53: 72 | G53: 144 | H53: 144 | I53: 0 | J53: 0 | K53: 64 | L53: 36 | M53: 96 | N53: 72 | O53: 96 | P53: 16 | Q53: 0 | R53: 96 | S53: 72 | T53: 96 | U53: 64 | V53: 96 | W53: 1340
A54: 30 | B54: Смоленская область | C54: 96 | D54: 24 | E54: 0 | F54: 108 | G54: 96 | H54: 144 | I54: 32 | J54: 0 | K54: 0 | L54: 108 | M54: 96 | N54: 108 | O54: 96 | P54: 32 | Q54: 24 | R54: 0 | S54: 108 | T54: 96 | U54: 0 | V54: 96 | W54: 1264
A55: 31 | B55: Тамбовская область | C55: 64 | D55: 0 | E55: 0 | F55: 36 | G55: 192 | H55: 144 | I55: 64 | J55: 24 | K55: 0 | L55: 36 | M55: 144 | N55: 36 | O55: 144 | P55: 64 | Q55: 0 | R55: 0 | S55: 36 | T55: 144 | U55: 0 | V55: 192 | W55: 1320
A56: 32 | B56: Тверская область | C56: 32 | D56: 24 | E56: 0 | F56: 72 | G56: 144 | H56: 192 | I56: 16 | J56: 24 | K56: 0 | L56: 108 | M56: 192 | N56: 72 | O56: 192 | P56: 32 | Q56: 0 | R56: 0 | S56: 108 | T56: 192 | U56: 0 | V56: 144 | W56: 1544
A57: 33 | B57: Тульская область | C57: 48 | D57: 24 | E57: 0 | F57: 72 | G57: 144 | H57: 96 | I57: 48 | J57: 24 | K57: 0 | L57: 72 | M57: 96 | N57: 72 | O57: 96 | P57: 48 | Q57: 24 | R57: 0 | S57: 72 | T57: 96 | U57: 0 | V57: 96 | W57: 1128
A58: 34 | B58: Ярославская область | C58: 240 | D58: 0 | E58: 0 | F58: 108 | G58: 96 | H58: 96 | I58: 0 | J58: 0 | K58: 0 | L58: 72 | M58: 144 | N58: 72 | O58: 144 | P58: 0 | Q58: 0 | R58: 0 | S58: 72 | T58: 144 | U58: 0 | V58: 96 | W58: 1284
B59: Итого: | C59: =SUM(C25:C58) -> 2336 | D59: 648 | E59: 352 | F59: 3132 | G59: 3936 | H59: 3936 | I59: 928 | J59: 624 | K59: 320 | L59: 3096 | M59: 3936 | N59: 3132 | O59: 3936 | P59: 896 | Q59: 624 | R59: 352 | S59: 3132 | T59: 3936 | U59: 320 | V59: 3888 | W59: =SUM(W25:W58) -> 43460
A60: Северо-Западный федеральный округ
A61: 1 | B61: Архангельская область и Ненецкий АО | C61: 80 | D61: 24 | E61: 0 | F61: 324 | G61: 48 | H61: 48 | I61: 80 | J61: 48 | K61: 32 | L61: 360 | M61: 48 | N61: 360 | O61: 48 | P61: 96 | Q61: 48 | R61: 0 | S61: 360 | T61: 48 | U61: 0 | V61: 0 | W61: =SUM(C61:V61) -> 2052
A62: 2 | B62: Вологодская область | C62: 64 | D62: 0 | E62: 0 | F62: 36 | G62: 48 | H62: 96 | I62: 32 | J62: 0 | K62: 0 | L62: 36 | M62: 96 | N62: 0 | O62: 96 | P62: 16 | Q62: 0 | R62: 0 | S62: 0 | T62: 96 | U62: 0 | V62: 96 | W62: 712
A63: 3 | B63: г.Санкт- Петербург | C63: 176 | D63: 96 | E63: 32 | F63: 288 | G63: 528 | H63: 528 | I63: 80 | J63: 96 | K63: 32 | L63: 324 | M63: 480 | N63: 288 | O63: 480 | P63: 96 | Q63: 120 | R63: 32 | S63: 288 | T63: 480 | U63: 64 | V63: 480 | W63: 4988
A64: 4 | B64: Калининградская область | C64: 112 | D64: 48 | E64: 0 | F64: 180 | G64: 96 | H64: 96 | I64: 96 | J64: 24 | K64: 0 | L64: 144 | M64: 96 | N64: 180 | O64: 96 | P64: 96 | Q64: 24 | R64: 0 | S64: 180 | T64: 96 | U64: 0 | V64: 96 | W64: 1660
A65: 5 | B65: Ленинградская область | C65: 32 | D65: 24 | E65: 0 | F65: 72 | G65: 96 | H65: 96 | I65: 48 | J65: 0 | K65: 0 | L65: 108 | M65: 96 | N65: 72 | O65: 96 | P65: 48 | Q65: 0 | R65: 0 | S65: 108 | T65: 96 | U65: 0 | V65: 144 | W65: 1136
A66: 6 | B66: МИ ФНС России по Северо-Западному ФО | C66: 32 | D66: 0 | E66: 0 | F66: 0 | G66: 0 | H66: 0 | I66: 0 | J66: 24 | K66: 0 | L66: 0 | M66: 0 | N66: 36 | O66: 0 | P66: 0 | Q66: 0 | R66: 0 | S66: 0 | T66: 0 | U66: 0 | V66: 0 | W66: 92
A67: 7 | B67: Мурманская область | C67: 48 | D67: 0 | E67: 0 | F67: 180 | G67: 48 | H67: 48 | I67: 48 | J67: 0 | K67: 0 | L67: 216 | M67: 48 | N67: 216 | O67: 48 | P67: 48 | Q67: 24 | R67: 0 | S67: 216 | T67: 48 | U67: 0 | V67: 48 | W67: 1284
A68: 8 | B68: Новгородская область | C68: 144 | D68: 24 | E68: 0 | F68: 36 | G68: 96 | H68: 48 | I68: 32 | J68: 24 | K68: 0 | L68: 36 | M68: 96 | N68: 72 | O68: 48 | P68: 32 | Q68: 0 | R68: 0 | S68: 72 | T68: 96 | U68: 0 | V68: 48 | W68: 904
A69: 9 | B69: Псковская область | C69: 16 | D69: 0 | E69: 0 | F69: 72 | G69: 48 | H69: 48 | I69: 16 | J69: 0 | K69: 0 | L69: 72 | M69: 48 | N69: 36 | O69: 48 | P69: 16 | Q69: 24 | R69: 0 | S69: 36 | T69: 48 | U69: 0 | V69: 48 | W69: 576
A70: 10 | B70: Республика Карелия | C70: 32 | D70: 0 | E70: 32 | F70: 36 | G70: 48 | H70: 96 | I70: 16 | J70: 24 | K70: 0 | L70: 36 | M70: 48 | N70: 72 | O70: 96 | P70: 16 | Q70: 24 | R70: 0 | S70: 72 | T70: 48 | U70: 0 | V70: 96 | W70: 792
A71: 11 | B71: Республика Коми | C71: 112 | D71: 0 | E71: 0 | F71: 216 | G71: 96 | H71: 96 | I71: 0 | J71: 0 | K71: 32 | L71: 252 | M71: 96 | N71: 252 | O71: 96 | P71: 0 | Q71: 0 | R71: 0 | S71: 252 | T71: 96 | U71: 0 | V71: 144 | W71: 1740
B72: Итого: | C72: =SUM(C61:C71) -> 848 | D72: 216 | E72: 64 | F72: 1440 | G72: 1152 | H72: 1200 | I72: 448 | J72: 240 | K72: 96 | L72: 1584 | M72: 1152 | N72: 1584 | O72: 1152 | P72: 464 | Q72: 264 | R72: 32 | S72: 1584 | T72: 1152 | U72: 64 | V72: 1200 | W72: =SUM(W61:W71) -> 15936
A73: Южный федеральный округ
A74: 1 | B74: Астраханская область | C74: 16 | D74: 0 | E74: 0 | F74: 0 | G74: 96 | H74: 96 | I74: 0 | J74: 0 | K74: 0 | L74: 0 | M74: 96 | N74: 0 | O74: 48 | P74: 16 | Q74: 0 | R74: 0 | S74: 0 | T74: 96 | U74: 0 | V74: 96 | W74: =SUM(C74:V74) -> 560
A75: 2 | B75: Волгоградская область | C75: 32 | D75: 24 | E75: 32 | F75: 72 | G75: 192 | H75: 192 | I75: 16 | J75: 0 | K75: 0 | L75: 72 | M75: 192 | N75: 72 | O75: 192 | P75: 0 | Q75: 24 | R75: 0 | S75: 36 | T75: 192 | U75: 0 | V75: 192 | W75: 1532
A76: 3 | B76: г.Севастополь | C76: 0 | D76: 24 | E76: 0 | F76: 36 | G76: 0 | H76: 0 | I76: 0 | J76: 24 | K76: 0 | L76: 36 | M76: 48 | N76: 0 | O76: 48 | P76: 0 | Q76: 0 | R76: 0 | S76: 0 | T76: 48 | U76: 0 | V76: 0 | W76: 264
A77: 4 | B77: Краснодарский край | C77: 112 | D77: 0 | E77: 0 | F77: 72 | G77: 528 | H77: 528 | I77: 64 | J77: 0 | K77: 0 | L77: 72 | M77: 480 | N77: 72 | O77: 528 | P77: 64 | Q77: 24 | R77: 32 | S77: 36 | T77: 480 | U77: 32 | V77: 528 | W77: 3652
A78: 5 | B78: МИ ФНС России по Южному ФО | C78: 16 | D78: 24 | E78: 0 | F78: 36 | G78: 0 | H78: 0 | I78: 0 | J78: 24 | K78: 0 | L78: 36 | M78: 0 | N78: 0 | O78: 0 | P78: 0 | Q78: 0 | R78: 0 | S78: 36 | T78: 0 | U78: 0 | V78: 0 | W78: 172
A79: 6 | B79: Республика Адыгея | C79: 0 | D79: 0 | E79: 0 | F79: 0 | G79: 0 | H79: 0 | I79: 0 | J79: 0 | K79: 0 | L79: 0 | M79: 48 | N79: 0 | O79: 0 | P79: 0 | Q79: 0 | R79: 0 | S79: 0 | T79: 0 | U79: 0 | V79: 0 | W79: 48
A80: 7 | B80: Республика Калмыкия | C80: 0 | D80: 24 | E80: 0 | F80: 0 | G80: 48 | H80: 0 | I80: 0 | J80: 0 | K80: 0 | L80: 36 | M80: 0 | N80: 0 | O80: 0 | P80: 0 | Q80: 0 | R80: 0 | S80: 0 | T80: 0 | U80: 0 | V80: 0 | W80: 108
A81: 8 | B81: Республика Крым | C81: 80 | D81: 0 | E81: 0 | F81: 36 | G81: 96 | H81: 96 | I81: 48 | J81: 24 | K81: 32 | L81: 36 | M81: 96 | N81: 36 | O81: 144 | P81: 64 | Q81: 24 | R81: 0 | S81: 36 | T81: 96 | U81: 0 | V81: 96 | W81: 1040
A82: 9 | B82: Ростовская область | C82: 48 | D82: 24 | E82: 32 | F82: 108 | G82: 624 | H82: 576 | I82: 32 | J82: 24 | K82: 32 | L82: 144 | M82: 624 | N82: 108 | O82: 576 | P82: 16 | Q82: 24 | R82: 32 | S82: 108 | T82: 624 | U82: 32 | V82: 576 | W82: 4364
B83: Итого: | C83: =SUM(C74:C82) -> 304 | D83: 120 | E83: 64 | F83: 360 | G83: 1584 | H83: 1488 | I83: 160 | J83: 96 | K83: 64 | L83: 432 | M83: 1584 | N83: 288 | O83: 1536 | P83: 160 | Q83: 96 | R83: 64 | S83: 252 | T83: 1536 | U83: 64 | V83: 1488 | W83: 11740
A84: Северо-Кавказский федеральный округ
A85: 1 | B85: Кабардино- Балкарская Республика | C85: 0 | D85: 0 | E85: 0 | F85: 36 | G85: 0 | H85: 0 | I85: 0 | J85: 0 | K85: 0 | L85: 36 | M85: 0 | N85: 36 | O85: 48 | P85: 0 | Q85: 0 | R85: 0 | S85: 0 | T85: 48 | U85: 0 | V85: 0 | W85: =SUM(C85:V85) -> 204
A86: 2 | B86: Карачаево- Черкесская Республика | C86: 16 | D86: 24 | E86: 0 | F86: 0 | G86: 48 | H86: 48 | I86: 0 | J86: 0 | K86: 0 | L86: 0 | M86: 48 | N86: 0 | O86: 48 | P86: 0 | Q86: 0 | R86: 0 | S86: 36 | T86: 48 | U86: 0 | V86: 0 | W86: 316
A87: 3 | B87: МИ ФНС России по Северо-Кавказскому ФО | C87: 16 | D87: 0 | E87: 0 | F87: 36 | G87: 0 | H87: 0 | I87: 0 | J87: 24 | K87: 0 | L87: 0 | M87: 0 | N87: 0 | O87: 0 | P87: 0 | Q87: 24 | R87: 0 | S87: 36 | T87: 0 | U87: 0 | V87: 0 | W87: 136
A88: 4 | B88: Республика Дагестан | C88: 32 | D88: 24 | E88: 0 | F88: 36 | G88: 96 | H88: 144 | I88: 0 | J88: 0 | K88: 0 | L88: 0 | M88: 96 | N88: 0 | O88: 144 | P88: 0 | Q88: 0 | R88: 0 | S88: 0 | T88: 96 | U88: 0 | V88: 144 | W88: 812
A89: 5 | B89: Республика Ингушетия | C89: 0 | D89: 0 | E89: 0 | F89: 0 | G89: 0 | H89: 0 | I89: 0 | J89: 0 | K89: 0 | L89: 0 | M89: 0 | N89: 0 | O89: 0 | P89: 0 | Q89: 0 | R89: 0 | S89: 0 | T89: 0 | U89: 0 | V89: 0 | W89: 0
A90: 6 | B90: Республика Северная Осетия - Алания | C90: 0 | D90: 0 | E90: 0 | F90: 0 | G90: 48 | H90: 48 | I90: 16 | J90: 0 | K90: 0 | L90: 0 | M90: 48 | N90: 0 | O90: 48 | P90: 0 | Q90: 0 | R90: 0 | S90: 36 | T90: 48 | U90: 0 | V90: 48 | W90: 340
A91: 7 | B91: Ставропольский край | C91: 224 | D91: 0 | E91: 0 | F91: 144 | G91: 480 | H91: 432 | I91: 80 | J91: 24 | K91: 0 | L91: 108 | M91: 480 | N91: 144 | O91: 480 | P91: 80 | Q91: 24 | R91: 0 | S91: 144 | T91: 480 | U91: 32 | V91: 432 | W91: 3788
A92: 8 | B92: Чеченская Республика | C92: 0 | D92: 0 | E92: 0 | F92: 0 | G92: 0 | H92: 0 | I92: 0 | J92: 0 | K92: 0 | L92: 0 | M92: 0 | N92: 0 | O92: 0 | P92: 0 | Q92: 0 | R92: 0 | S92: 0 | T92: 0 | U92: 0 | V92: 0 | W92: 0
B93: Итого: | C93: =SUM(C85:C92) -> 288 | D93: 48 | E93: 0 | F93: 252 | G93: 672 | H93: 672 | I93: 96 | J93: 48 | K93: 0 | L93: 144 | M93: 672 | N93: 180 | O93: 768 | P93: 80 | Q93: 48 | R93: 0 | S93: 252 | T93: 720 | U93: 32 | V93: 624 | W93: =SUM(W85:W92) -> 5596
A94: Приволжский федеральный округ
A95: 1 | B95: Кировская область | C95: 0 | D95: 24 | E95: 0 | F95: 72 | G95: 48 | H95: 96 | I95: 16 | J95: 0 | K95: 0 | L95: 72 | M95: 48 | N95: 72 | O95: 48 | P95: 16 | Q95: 0 | R95: 0 | S95: 72 | T95: 48 | U95: 0 | V95: 96 | W95: =SUM(C95:V95) -> 728
A96: 2 | B96: МИ ФНС России по Приволжскому ФО | C96: 160 | D96: 0 | E96: 0 | F96: 0 | G96: 0 | H96: 0 | I96: 0 | J96: 0 | K96: 0 | L96: 0 | M96: 0 | N96: 0 | O96: 0 | P96: 0 | Q96: 0 | R96: 0 | S96: 0 | T96: 0 | U96: 0 | V96: 0 | W96: 160
A97: 3 | B97: Нижегородская область | C97: 112 | D97: 48 | E97: 32 | F97: 144 | G97: 240 | H97: 288 | I97: 48 | J97: 48 | K97: 32 | L97: 144 | M97: 240 | N97: 144 | O97: 288 | P97: 64 | Q97: 24 | R97: 0 | S97: 180 | T97: 240 | U97: 0 | V97: 288 | W97: 2604
A98: 4 | B98: Оренбургская область | C98: 144 | D98: 0 | E98: 0 | F98: 180 | G98: 144 | H98: 192 | I98: 80 | J98: 0 | K98: 0 | L98: 144 | M98: 144 | N98: 144 | O98: 192 | P98: 80 | Q98: 24 | R98: 0 | S98: 144 | T98: 144 | U98: 0 | V98: 192 | W98: 1948
A99: 5 | B99: Пензенская область | C99: 320 | D99: 0 | E99: 0 | F99: 0 | G99: 192 | H99: 144 | I99: 0 | J99: 0 | K99: 0 | L99: 0 | M99: 192 | N99: 72 | O99: 144 | P99: 0 | Q99: 0 | R99: 0 | S99: 0 | T99: 192 | U99: 0 | V99: 144 | W99: 1400
A100: 6 | B100: Пермский край | C100: 512 | D100: 24 | E100: 0 | F100: 288 | G100: 288 | H100: 288 | I100: 32 | J100: 24 | K100: 0 | L100: 324 | M100: 288 | N100: 324 | O100: 288 | P100: 32 | Q100: 24 | R100: 32 | S100: 324 | T100: 288 | U100: 0 | V100: 288 | W100: 3668
A101: 7 | B101: Республика Башкортостан | C101: 112 | D101: 24 | E101: 0 | F101: 108 | G101: 384 | H101: 432 | I101: 48 | J101: 24 | K101: 0 | L101: 108 | M101: 432 | N101: 108 | O101: 432 | P101: 32 | Q101: 24 | R101: 0 | S101: 108 | T101: 384 | U101: 0 | V101: 432 | W101: 3192
A102: 8 | B102: Республика Марий Эл | C102: 64 | D102: 0 | E102: 0 | F102: 0 | G102: 48 | H102: 0 | I102: 0 | J102: 24 | K102: 0 | L102: 36 | M102: 48 | N102: 36 | O102: 0 | P102: 0 | Q102: 24 | R102: 0 | S102: 36 | T102: 48 | U102: 0 | V102: 0 | W102: 364
A103: 9 | B103: Республика Мордовия | C103: 64 | D103: 24 | E103: 0 | F103: 36 | G103: 48 | H103: 96 | I103: 16 | J103: 0 | K103: 0 | L103: 36 | M103: 48 | N103: 36 | O103: 96 | P103: 0 | Q103: 0 | R103: 0 | S103: 0 | T103: 96 | U103: 0 | V103: 96 | W103: 692
A104: 10 | B104: Республика Татарстан | C104: 80 | D104: 24 | E104: 0 | F104: 144 | G104: 336 | H104: 288 | I104: 64 | J104: 48 | K104: 32 | L104: 144 | M104: 336 | N104: 72 | O104: 288 | P104: 80 | Q104: 24 | R104: 32 | S104: 0 | T104: 336 | U104: 32 | V104: 288 | W104: 2648
A105: 11 | B105: Самарская область | C105: 80 | D105: 24 | E105: 0 | F105: 144 | G105: 288 | H105: 288 | I105: 64 | J105: 24 | K105: 0 | L105: 144 | M105: 288 | N105: 144 | O105: 288 | P105: 80 | Q105: 48 | R105: 0 | S105: 144 | T105: 288 | U105: 32 | V105: 240 | W105: 2608
A106: 12 | B106: Саратовская область | C106: 16 | D106: 0 | E106: 0 | F106: 0 | G106: 96 | H106: 144 | I106: 32 | J106: 0 | K106: 0 | L106: 36 | M106: 96 | N106: 108 | O106: 96 | P106: 16 | Q106: 0 | R106: 0 | S106: 108 | T106: 96 | U106: 0 | V106: 96 | W106: 940
A107: 13 | B107: Удмуртская Республика | C107: 16 | D107: 24 | E107: 0 | F107: 108 | G107: 288 | H107: 240 | I107: 16 | J107: 24 | K107: 0 | L107: 144 | M107: 288 | N107: 108 | O107: 240 | P107: 16 | Q107: 0 | R107: 0 | S107: 144 | T107: 288 | U107: 0 | V107: 240 | W107: 2184
A108: 14 | B108: Ульяновская область | C108: 128 | D108: 0 | E108: 0 | F108: 108 | G108: 96 | H108: 48 | I108: 0 | J108: 0 | K108: 0 | L108: 108 | M108: 48 | N108: 108 | O108: 96 | P108: 0 | Q108: 0 | R108: 0 | S108: 108 | T108: 96 | U108: 0 | V108: 96 | W108: 1040
A109: 15 | B109: Чувашская Республика | C109: 0 | D109: 0 | E109: 0 | F109: 36 | G109: 0 | H109: 0 | I109: 0 | J109: 0 | K109: 0 | L109: 0 | M109: 0 | N109: 0 | O109: 0 | P109: 0 | Q109: 24 | R109: 0 | S109: 0 | T109: 0 | U109: 0 | V109: 0 | W109: 60
B110: Итого: | C110: =SUM(C95:C109) -> 1808 | D110: 216 | E110: 32 | F110: 1368 | G110: 2496 | H110: 2544 | I110: 416 | J110: 216 | K110: 64 | L110: 1440 | M110: 2496 | N110: 1476 | O110: 2496 | P110: 416 | Q110: 216 | R110: 64 | S110: 1368 | T110: 2544 | U110: 64 | V110: =SUM(V95:V109) -> 2496 | W110: =SUM(W95:W109) -> 24236
A111: Уральский федеральный округ
A112: 1 | B112: Курганская область | C112: 128 | D112: 0 | E112: 0 | F112: 0 | G112: 96 | H112: 48 | I112: 0 | J112: 0 | K112: 0 | L112: 0 | M112: 96 | N112: 0 | O112: 96 | P112: 16 | Q112: 0 | R112: 0 | S112: 0 | T112: 96 | U112: 0 | V112: 96 | W112: =SUM(C112:V112) -> 672
A113: 2 | B113: МИ ФНС России по Уральскому ФО | C113: 0 | D113: 0 | E113: 0 | F113: 36 | G113: 0 | H113: 0 | I113: 0 | J113: 0 | K113: 0 | L113: 72 | M113: 0 | N113: 36 | O113: 0 | P113: 0 | Q113: 0 | R113: 0 | S113: 36 | T113: 0 | U113: 0 | V113: 48 | W113: 228
A114: 3 | B114: Свердловская область | C114: 544 | D114: 24 | E114: 0 | F114: 216 | G114: 288 | H114: 288 | I114: 80 | J114: 48 | K114: 0 | L114: 216 | M114: 288 | N114: 216 | O114: 288 | P114: 80 | Q114: 48 | R114: 0 | S114: 216 | T114: 288 | U114: 0 | V114: 288 | W114: 3416
A115: 4 | B115: Тюменская область | C115: 32 | D115: 24 | E115: 32 | F115: 72 | G115: 48 | H115: 48 | I115: 48 | J115: 0 | K115: 0 | L115: 36 | M115: 96 | N115: 72 | O115: 48 | P115: 32 | Q115: 0 | R115: 32 | S115: 72 | T115: 48 | U115: 0 | V115: 96 | W115: 836
A116: 5 | B116: Ханты-Мансийский АО | C116: 144 | D116: 0 | E116: 0 | F116: 72 | G116: 144 | H116: 192 | I116: 16 | J116: 24 | K116: 0 | L116: 0 | M116: 144 | N116: 0 | O116: 192 | P116: 32 | Q116: 0 | R116: 0 | S116: 72 | T116: 144 | U116: 0 | V116: 192 | W116: 1368
A117: 6 | B117: Челябинская область | C117: 272 | D117: 72 | E117: 0 | F117: 216 | G117: 336 | H117: 384 | I117: 176 | J117: 48 | K117: 32 | L117: 180 | M117: 384 | N117: 216 | O117: 384 | P117: 160 | Q117: 48 | R117: 0 | S117: 216 | T117: 336 | U117: 32 | V117: 384 | W117: 3876
A118: 7 | B118: Ямало-Ненецкий АО | C118: 32 | D118: 0 | E118: 0 | F118: 72 | G118: 48 | H118: 96 | I118: 16 | J118: 0 | K118: 0 | L118: 72 | M118: 48 | N118: 72 | O118: 48 | P118: 32 | Q118: 0 | R118: 32 | S118: 72 | T118: 48 | U118: 0 | V118: 96 | W118: 784
B119: Итого: | C119: =SUM(C112:C118) -> 1152 | D119: 120 | E119: 32 | F119: 684 | G119: 960 | H119: 1056 | I119: 336 | J119: 120 | K119: 32 | L119: 576 | M119: 1056 | N119: 612 | O119: 1056 | P119: 352 | Q119: 96 | R119: 64 | S119: 684 | T119: 960 | U119: 32 | V119: 1200 | W119: 11180
A120: Сибирский федеральный округ
A121: 1 | B121: Алтайский край | C121: 96 | D121: 0 | E121: 0 | F121: 72 | G121: 144 | H121: 144 | I121: 64 | J121: 24 | K121: 0 | L121: 72 | M121: 144 | N121: 72 | O121: 144 | P121: 48 | Q121: 24 | R121: 0 | S121: 72 | T121: 144 | U121: 0 | V121: 144 | W121: =SUM(C121:V121) -> 1408
A122: 2 | B122: Иркутская область | C122: 32 | D122: 0 | E122: 0 | F122: 180 | G122: 192 | H122: 240 | I122: 0 | J122: 0 | K122: 32 | L122: 144 | M122: 192 | N122: 144 | O122: 192 | P122: 16 | Q122: 0 | R122: 0 | S122: 180 | T122: 240 | U122: 0 | V122: 192 | W122: 1976
A123: 3 | B123: Кемеровская область | C123: 128 | D123: 48 | E123: 0 | F123: 72 | G123: 240 | H123: 240 | I123: 16 | J123: 24 | K123: 0 | L123: 108 | M123: 240 | N123: 72 | O123: 240 | P123: 16 | Q123: 48 | R123: 0 | S123: 108 | T123: 288 | U123: 0 | V123: 240 | W123: 2128
A124: 4 | B124: Красноярский край | C124: 496 | D124: 48 | E124: 0 | F124: 180 | G124: 192 | H124: 144 | I124: 48 | J124: 48 | K124: 0 | L124: 216 | M124: 144 | N124: 180 | O124: 192 | P124: 64 | Q124: 48 | R124: 0 | S124: 216 | T124: 192 | U124: 0 | V124: 192 | W124: 2600
A125: 5 | B125: МИ ФНС России по Сибирскому ФО | C125: 32 | D125: 24 | E125: 0 | F125: 0 | G125: 48 | H125: 0 | I125: 0 | J125: 0 | K125: 0 | L125: 36 | M125: 48 | N125: 36 | O125: 0 | P125: 0 | Q125: 0 | R125: 0 | S125: 0 | T125: 0 | U125: 0 | V125: 0 | W125: 224
A126: 6 | B126: Новосибирская область | C126: 160 | D126: 24 | E126: 0 | F126: 72 | G126: 336 | H126: 288 | I126: 48 | J126: 24 | K126: 0 | L126: 108 | M126: 288 | N126: 108 | O126: 288 | P126: 48 | Q126: 24 | R126: 0 | S126: 108 | T126: 288 | U126: 0 | V126: 288 | W126: 2500
A127: 7 | B127: Омская область | C127: 64 | D127: 24 | E127: 0 | F127: 180 | G127: 192 | H127: 192 | I127: 64 | J127: 48 | K127: 0 | L127: 216 | M127: 192 | N127: 180 | O127: 192 | P127: 48 | Q127: 48 | R127: 0 | S127: 216 | T127: 144 | U127: 0 | V127: 192 | W127: 2192
A128: 8 | B128: Республика Алтай | C128: 32 | D128: 0 | E128: 32 | F128: 36 | G128: 0 | H128: 48 | I128: 0 | J128: 24 | K128: 0 | L128: 36 | M128: 48 | N128: 36 | O128: 48 | P128: 0 | Q128: 0 | R128: 0 | S128: 36 | T128: 0 | U128: 0 | V128: 0 | W128: 376
A129: 9 | B129: Республика Тыва | C129: 208 | D129: 24 | E129: 0 | F129: 36 | G129: 96 | H129: 48 | I129: 0 | J129: 24 | K129: 0 | L129: 0 | M129: 48 | N129: 0 | O129: 48 | P129: 16 | Q129: 0 | R129: 0 | S129: 36 | T129: 48 | U129: 0 | V129: 48 | W129: 680
A130: 10 | B130: Республика Хакасия | C130: 16 | D130: 0 | E130: 0 | F130: 0 | G130: 0 | H130: 0 | I130: 16 | J130: 0 | K130: 0 | L130: 36 | M130: 48 | N130: 0 | O130: 0 | P130: 0 | Q130: 0 | R130: 0 | S130: 0 | T130: 48 | U130: 0 | V130: 48 | W130: 212
A131: 11 | B131: Томская область | C131: 48 | D131: 0 | E131: 0 | F131: 108 | G131: 0 | H131: 48 | I131: 0 | J131: 0 | K131: 0 | L131: 108 | M131: 48 | N131: 108 | O131: 0 | P131: 16 | Q131: 24 | R131: 0 | S131: 108 | T131: 0 | U131: 0 | V131: 0 | W131: 616
B132: Итого: | C132: =SUM(C121:C131) -> 1312 | D132: 192 | E132: 32 | F132: 936 | G132: 1440 | H132: 1392 | I132: 256 | J132: 216 | K132: 32 | L132: 1080 | M132: 1440 | N132: 936 | O132: 1344 | P132: 272 | Q132: 216 | R132: 0 | S132: 1080 | T132: 1392 | U132: 0 | V132: 1344 | W132: =SUM(W121:W131) -> 14912
A133: Дальневосточный федеральный округ
A134: 1 | B134: Амурская область | C134: 272 | D134: 24 | E134: 0 | F134: 36 | G134: 96 | H134: 48 | I134: 0 | J134: 0 | K134: 0 | L134: 0 | M134: 96 | N134: 0 | O134: 48 | P134: 0 | Q134: 0 | R134: 0 | S134: 0 | T134: 96 | U134: 0 | V134: 0 | W134: =SUM(C134:V134) -> 716
A135: 2 | B135: Еврейская АО | C135: 16 | D135: 0 | E135: 0 | F135: 0 | G135: 0 | H135: 0 | I135: 0 | J135: 0 | K135: 0 | L135: 0 | M135: 0 | N135: 0 | O135: 0 | P135: 0 | Q135: 0 | R135: 0 | S135: 0 | T135: 0 | U135: 0 | V135: 0 | W135: 16
A136: 3 | B136: Забайкальский край | C136: 272 | D136: 24 | E136: 32 | F136: 36 | G136: 48 | H136: 96 | I136: 16 | J136: 24 | K136: 0 | L136: 36 | M136: 96 | N136: 72 | O136: 48 | P136: 16 | Q136: 24 | R136: 0 | S136: 36 | T136: 96 | U136: 0 | V136: 96 | W136: 1068
A137: 4 | B137: Камчатский край | C137: 32 | D137: 0 | E137: 0 | F137: 36 | G137: 48 | H137: 48 | I137: 16 | J137: 0 | K137: 0 | L137: 36 | M137: 0 | N137: 36 | O137: 48 | P137: 0 | Q137: 24 | R137: 0 | S137: 36 | T137: 48 | U137: 0 | V137: 48 | W137: 456
A138: 5 | B138: Магаданская область | C138: 16 | D138: 0 | E138: 0 | F138: 108 | G138: 0 | H138: 48 | I138: 0 | J138: 0 | K138: 0 | L138: 36 | M138: 0 | N138: 36 | O138: 48 | P138: 0 | Q138: 0 | R138: 0 | S138: 0 | T138: 0 | U138: 0 | V138: 0 | W138: 292
A139: 6 | B139: МИ ФНС России по Дальневосточному ФО | C139: 16 | D139: 0 | E139: 0 | F139: 72 | G139: 48 | H139: 0 | I139: 0 | J139: 0 | K139: 0 | L139: 36 | M139: 48 | N139: 72 | O139: 0 | P139: 0 | Q139: 0 | R139: 0 | S139: 72 | T139: 48 | U139: 0 | V139: 48 | W139: 460
A140: 7 | B140: Приморский край | C140: 528 | D140: 24 | E140: 0 | F140: 72 | G140: 144 | H140: 192 | I140: 48 | J140: 24 | K140: 0 | L140: 72 | M140: 144 | N140: 72 | O140: 192 | P140: 48 | Q140: 24 | R140: 0 | S140: 36 | T140: 144 | U140: 0 | V140: 192 | W140: 1956
A141: 8 | B141: Республика Бурятия | C141: 112 | D141: 0 | E141: 0 | F141: 36 | G141: 0 | H141: 0 | I141: 0 | J141: 0 | K141: 0 | L141: 36 | M141: 48 | N141: 36 | O141: 0 | P141: 16 | Q141: 0 | R141: 32 | S141: 72 | T141: 0 | U141: 0 | V141: 0 | W141: 388
A142: 9 | B142: Республика Саха (Якутия) | C142: 128 | D142: 0 | E142: 0 | F142: 72 | G142: 48 | H142: 48 | I142: 16 | J142: 24 | K142: 0 | L142: 72 | M142: 48 | N142: 72 | O142: 48 | P142: 0 | Q142: 0 | R142: 0 | S142: 36 | T142: 48 | U142: 0 | V142: 48 | W142: 708
A143: 10 | B143: Сахалинская область | C143: 16 | D143: 0 | E143: 0 | F143: 0 | G143: 96 | H143: 48 | I143: 0 | J143: 0 | K143: 0 | L143: 0 | M143: 48 | N143: 0 | O143: 48 | P143: 0 | Q143: 24 | R143: 0 | S143: 0 | T143: 48 | U143: 0 | V143: 48 | W143: 376
A144: 11 | B144: Хабаровский край | C144: 0 | D144: 0 | E144: 0 | F144: 144 | G144: 48 | H144: 48 | I144: 0 | J144: 0 | K144: 0 | L144: 180 | M144: 48 | N144: 180 | O144: 48 | P144: 0 | Q144: 0 | R144: 0 | S144: 180 | T144: 48 | U144: 0 | V144: 48 | W144: 972
A145: 12 | B145: Чукотский АО | C145: 0 | D145: 0 | E145: 0 | F145: 36 | G145: 0 | H145: 0 | I145: 0 | J145: 0 | K145: 0 | L145: 0 | M145: 0 | N145: 0 | O145: 0 | P145: 16 | Q145: 0 | R145: 0 | S145: 0 | T145: 0 | U145: 0 | V145: 0 | W145: 52
B146: Итого: | C146: =SUM(C134:C145) -> 1408 | D146: 72 | E146: 32 | F146: 648 | G146: 576 | H146: 576 | I146: 96 | J146: 72 | K146: 0 | L146: 504 | M146: 576 | N146: 576 | O146: 528 | P146: 96 | Q146: 96 | R146: 32 | S146: 468 | T146: 576 | U146: 0 | V146: 528 | W146: =SUM(W134:W145) -> 7460
A147: Новые территории Российской Федерации
A148: 1 | B148: Донецкая Народная Республика | C148: 128 | D148: 24 | E148: 0 | F148: 36 | G148: 48 | H148: 48 | I148: 32 | J148: 0 | K148: 0 | L148: 36 | M148: 48 | N148: 72 | O148: 96 | P148: 32 | Q148: 0 | R148: 0 | S148: 72 | T148: 96 | U148: 0 | V148: 96 | W148: =SUM(C148:V148) -> 864
A149: 2 | B149: Запорожская область | C149: 0 | D149: 0 | E149: 0 | F149: 36 | G149: 48 | H149: 48 | I149: 16 | J149: 0 | K149: 0 | L149: 0 | M149: 48 | N149: 0 | O149: 0 | P149: 16 | Q149: 24 | R149: 0 | S149: 0 | T149: 0 | U149: 0 | V149: 0 | W149: =SUM(C149:V149) -> 236
A150: 3 | B150: Луганская Народная Республика | C150: 288 | D150: 72 | E150: 32 | F150: 108 | G150: 288 | H150: 240 | I150: 48 | J150: 96 | K150: 32 | L150: 108 | M150: 240 | N150: 144 | O150: 240 | P150: 64 | Q150: 72 | R150: 32 | S150: 108 | T150: 240 | U150: 32 | V150: 240 | W150: =SUM(C150:V150) -> 2724
A151: 4 | B151: Херсонская область | C151: 0 | D151: 0 | E151: 0 | F151: 0 | G151: 0 | H151: 48 | I151: 0 | J151: 0 | K151: 0 | L151: 0 | M151: 0 | N151: 0 | O151: 48 | P151: 16 | Q151: 0 | R151: 0 | S151: 0 | T151: 48 | U151: 0 | V151: 48 | W151: =SUM(C151:V151) -> 208
B152: Итого: | C152: 416 | D152: =SUM(D148:D151) -> 96 | E152: 32 | F152: 180 | G152: 384 | H152: 384 | I152: 96 | J152: 96 | K152: 32 | L152: 144 | M152: 336 | N152: 216 | O152: 384 | P152: 128 | Q152: 96 | R152: 32 | S152: 180 | T152: 384 | U152: 32 | V152: 384 | W152: 4032
B153: Всего: | C153: =C23+C59+C72+C83+C93+C110+C119+C132+C146+C152 -> 9872 | D153: 1872 | E153: 640 | F153: 9144 | G153: 13200 | H153: 13248 | I153: 2832 | J153: 1872 | K153: 640 | L153: 9144 | M153: 13248 | N153: 9144 | O153: 13200 | P153: 2864 | Q153: 1896 | R153: 640 | S153: 9144 | T153: 13200 | U153: 608 | V153: 13152 | W153: =W23+W59+W72+W83+W93+W110+W119+W132+W146+W152 -> 139560
A155: * | B155: Структурные подразделения ЦА ФНС России и ТНО ФНС России выбирают самостоятельно из перечня учебные программы для обучающихся, исходя из указанных человеко-часов

Sheet Прил.39 (ДО)
S1: Приложение № 39
S2: УТВЕРЖДЕН
S3: Приказом ФНС России
S4: от " " 20 г.
S5: №
A7: План-график дополнительного профессионального образования гражданских служащих в в "Академии ФНС ЛАБ–Нева" в 2025 году (заочная форма обучения с применением дистанционных образовательных технологий и электронного обучения)
A8: № п/п | B8: Количество человеко-часов
B9: по программам повышения квалификации с указанием периодов обучения*
A10: 1 | B10: Администрирование акцизов, 56 часов
A11: =A10+1 -> 2 | B11: Администрирование налога на добычу полезных ископаемых, ресурсных платежей, 56 часов
A12: =A11+1 -> 3 | B12: Организация делопроизводства и архивного дела, 56 часов
A13: 4 | B13: Предупреждение коррупции на государственной службе, 56 часов
A14: 5 | B14: Администрирование страховых взносов (базовый уровень), 72 часа
A15: 6 | B15: Администрирование страховых взносов (повышенный уровень), 72 часа
A16: 7 | B16: Анализ и прогнозирование налоговых и неналоговых поступлений в бюджетную систему Российской Федерации (базовый уровень), 72 часа
A17: 8 | B17: Анализ и прогнозирование налоговых и неналоговых поступлений в бюджетную систему Российской Федерации (повышенный уровень), 72 часа
A18: 9 | B18: Досудебное урегулирование налоговых споров, 72 часа
A19: 10 | B19: Инструменты анализа данных в современных офисных приложениях. Анализ больших данных, 72 часа
A20: 11 | B20: Личностное и профессиональное развитие руководителя. Современные коммуникации, 72 часа
A21: 12 | B21: Налогообложение доходов физических лиц (повышенный уровень), 72 часа
A22: 13 | B22: Наставничество в системе налоговой службы, 72 часа
A23: 14 | B23: Проектное управление, 72 часа
A24: 15 | B24: Совершенствование навыков письменной деловой коммуникации, 72 часа
A25: 16 | B25: Школа кадровика (базовый уровень), 72 часа
A26: 17 | B26: Эффективное взаимодействие с налогоплательщиками (базовый уровень), 72 часа
A27: 18 | B27: Анализ финансовой деятельности в целях налогового контроля (базовый уровень), 96 часов
A28: 19 | B28: Анализ финансовой деятельности в целях налогового контроля (повышенный уровень), 96 часов
A29: 20 | B29: Контроль и надзор за применением контрольно-кассовой техники и полнотой учета выручки. Контроль за использованием специальных банковских счетов (базовый уровень), 96 часов
A30: 21 | B30: Налогообложение при применении специальных налоговых режимов (базовый уровень), 96 часов
A31: 22 | B31: Налогообложение при применении специальных налоговых режимов (повышенный уровень), 96 часов
A32: 23 | B32: Учебный доктринальный курс по правовым и судебным аспектам деятельности налоговых органов (повышенный уровень), 96 часов
A33: № п/п | B33: Структурные подразделения ЦА ФНС России, УФНС России по субъектам РФ, межрегиональные инспекции ФНС России | C33: 03.03-28.03 | E33: 31.03-25.04 | G33: 28.04-30.05 | J33: 02.06-27.06 | M33: 11.08-05.09 | P33: 15.09-10.10 | S33: 20.10-14.11 | V33: Всего
C34: 72 | D34: 96 | E34: 72 | F34: 96 | G34: 56 | H34: 72 | I34: 96 | J34: 56 | K34: 72 | L34: 96 | M34: 56 | N34: 72 | O34: 96 | P34: 56 | Q34: 72 | R34: 96 | S34: 56 | T34: 72 | U34: 96
C35: часа | D35: часов | E35: часа | F35: часов | G35: часов | H35: часа | I35: часов | J35: часов | K35: часа | L35: часов | M35: часов | N35: часа | O35: часов | P35: часов | Q35: часа | R35: часов | S35: часов | T35: часа | U35: часов
A36: 1 | B36: 2 | C36: 3 | E36: 4 | G36: 5 | J36: 6 | M36: 7 | P36: 8 | S36: 9 | V36: 10
A37: Центральный аппарат ФНС России
A38: 1 | B38: Управление профессионального развития | C38: 288 | D38: 0 | E38: 288 | F38: 0 | G38: 112 | H38: 288 | I38: 192 | J38: 112 | K38: 288 | L38: 96 | M38: 112 | N38: 288 | O38: 0 | P38: 112 | Q38: 216 | R38: 0 | S38: 0 | T38: 216 | U38: 0 | V38: =SUM(C38:U38) -> 2608
B39: Итого: | C39: =SUM(C38:C38) -> 288 | D39: 0 | E39: 288 | F39: 0 | G39: 112 | H39: 288 | I39: 192 | J39: 112 | K39: 288 | L39: 96 | M39: 112 | N39: 288 | O39: 0 | P39: 112 | Q39: 216 | R39: 0 | S39: 0 | T39: 216 | U39: 0 | V39: 2608
A40: Центральный федеральный округ
A41: 1 | B41: Белгородская область | C41: 288 | D41: 288 | E41: 2304 | F41: 192 | G41: 224 | H41: 3384 | I41: 192 | J41: 224 | K41: 288 | L41: 192 | M41: 224 | N41: 216 | O41: 192 | P41: 168 | Q41: 216 | R41: 192 | S41: 224 | T41: 216 | U41: 192 | V41: =SUM(C41:U41) -> 9416
A42: 2 | B42: Брянская область | C42: 576 | D42: 288 | E42: 1584 | F42: 288 | G42: 168 | H42: 1512 | I42: 288 | J42: 112 | K42: 504 | L42: 288 | M42: 112 | N42: 504 | O42: 384 | P42: 168 | Q42: 504 | R42: 384 | S42: 112 | T42: 504 | U42: 384 | V42: 8664
A43: 3 | B43: Владимирская область | C43: 504 | D43: 288 | E43: 2232 | F43: 384 | G43: 168 | H43: 2448 | I43: 384 | J43: 168 | K43: 432 | L43: 384 | M43: 168 | N43: 432 | O43: 384 | P43: 168 | Q43: 432 | R43: 384 | S43: 112 | T43: 432 | U43: 384 | V43: 10288
A44: 4 | B44: Воронежская область | C44: 720 | D44: 0 | E44: 1224 | F44: 480 | G44: 224 | H44: 2664 | I44: 480 | J44: 280 | K44: 720 | L44: 480 | M44: 224 | N44: 720 | O44: 480 | P44: 224 | Q44: 720 | R44: 480 | S44: 224 | T44: 648 | U44: 384 | V44: 11376
A45: 5 | B45: г.Москва | C45: 5112 | D45: 2688 | E45: 16416 | F45: 2592 | G45: 1624 | H45: 40392 | I45: 2592 | J45: 1624 | K45: 5040 | L45: 2592 | M45: 1624 | N45: 5040 | O45: 2592 | P45: 1624 | Q45: 5040 | R45: 2592 | S45: 1624 | T45: 5040 | U45: 2592 | V45: 108440
A46: 6 | B46: Ивановская область | C46: 288 | D46: 0 | E46: 432 | F46: 192 | G46: 0 | H46: 2232 | I46: 192 | J46: 0 | K46: 288 | L46: 192 | M46: 0 | N46: 288 | O46: 192 | P46: 112 | Q46: 216 | R46: 0 | S46: 112 | T46: 216 | U46: 0 | V46: 4952
A47: 7 | B47: Калужская область | C47: 504 | D47: 0 | E47: 504 | F47: 0 | G47: 56 | H47: 432 | I47: 288 | J47: 56 | K47: 432 | L47: 192 | M47: 56 | N47: 432 | O47: 192 | P47: 0 | Q47: 432 | R47: 192 | S47: 0 | T47: 432 | U47: 192 | V47: 4392
A48: 8 | B48: Костромская область | C48: 936 | D48: 0 | E48: 2880 | F48: 288 | G48: 168 | H48: 5904 | I48: 288 | J48: 168 | K48: 936 | L48: 288 | M48: 168 | N48: 936 | O48: 288 | P48: 168 | Q48: 936 | R48: 288 | S48: 168 | T48: 936 | U48: 192 | V48: 15936
A49: 9 | B49: Курская область | C49: 864 | D49: 288 | E49: 1800 | F49: 0 | G49: 168 | H49: 1584 | I49: 288 | J49: 112 | K49: 864 | L49: 288 | M49: 112 | N49: 864 | O49: 288 | P49: 168 | Q49: 792 | R49: 288 | S49: 112 | T49: 792 | U49: 288 | V49: 9960
A50: 10 | B50: Липецкая область | C50: 1008 | D50: 288 | E50: 1368 | F50: 0 | G50: 224 | H50: 5976 | I50: 192 | J50: 224 | K50: 1008 | L50: 192 | M50: 224 | N50: 1008 | O50: 192 | P50: 224 | Q50: 1008 | R50: 192 | S50: 224 | T50: 936 | U50: 192 | V50: 14680
A51: 11 | B51: МИ ФНС России по камеральному контролю | C51: 216 | D51: 0 | E51: 216 | F51: 0 | G51: 0 | H51: 288 | I51: 0 | J51: 0 | K51: 216 | L51: 288 | M51: 0 | N51: 216 | O51: 0 | P51: 168 | Q51: 216 | R51: 0 | S51: 0 | T51: 216 | U51: 0 | V51: 2040
A52: 12 | B52: МИ ФНС России по КН № 1 | C52: 288 | D52: 0 | E52: 1008 | F52: 0 | G52: 0 | H52: 2592 | I52: 0 | J52: 0 | K52: 288 | L52: 0 | M52: 168 | N52: 288 | O52: 288 | P52: 0 | Q52: 288 | R52: 0 | S52: 0 | T52: 216 | U52: 0 | V52: 5424
A53: 13 | B53: МИ ФНС России по КН № 2 | C53: 288 | D53: 0 | E53: 2016 | F53: 288 | G53: 224 | H53: 4176 | I53: 288 | J53: 224 | K53: 288 | L53: 192 | M53: 112 | N53: 216 | O53: 192 | P53: 0 | Q53: 216 | R53: 192 | S53: 0 | T53: 216 | U53: 192 | V53: 9320
A54: 14 | B54: МИ ФНС России по КН № 3 | C54: 504 | D54: 0 | E54: 936 | F54: 288 | G54: 0 | H54: 1944 | I54: 288 | J54: 0 | K54: 432 | L54: 288 | M54: 168 | N54: 432 | O54: 288 | P54: 168 | Q54: 432 | R54: 192 | S54: 112 | T54: 432 | U54: 0 | V54: 6904
A55: 15 | B55: МИ ФНС России по КН № 4 | C55: 216 | D55: 0 | E55: 1368 | F55: 0 | G55: 0 | H55: 1656 | I55: 0 | J55: 224 | K55: 144 | L55: 0 | M55: 0 | N55: 144 | O55: 0 | P55: 0 | Q55: 144 | R55: 192 | S55: 0 | T55: 144 | U55: 192 | V55: 4424
A56: 16 | B56: МИ ФНС России по КН № 5 | C56: 216 | D56: 0 | E56: 216 | F56: 192 | G56: 168 | H56: 1008 | I56: 192 | J56: 168 | K56: 144 | L56: 192 | M56: 168 | N56: 144 | O56: 192 | P56: 168 | Q56: 144 | R56: 0 | S56: 168 | T56: 144 | U56: 0 | V56: 3624
A57: 17 | B57: МИ ФНС России по КН № 6 | C57: 432 | D57: 0 | E57: 576 | F57: 192 | G57: 168 | H57: 360 | I57: 0 | J57: 112 | K57: 360 | L57: 192 | M57: 0 | N57: 360 | O57: 0 | P57: 0 | Q57: 360 | R57: 192 | S57: 0 | T57: 360 | U57: 0 | V57: 3664
A58: 18 | B58: МИ ФНС России по КН № 7 | C58: 288 | D58: 0 | E58: 288 | F58: 0 | G58: 0 | H58: 216 | I58: 192 | J58: 0 | K58: 216 | L58: 192 | M58: 168 | N58: 216 | O58: 192 | P58: 0 | Q58: 216 | R58: 192 | S58: 0 | T58: 216 | U58: 192 | V58: 2784
A59: 19 | B59: МИ ФНС России по КН № 9 | C59: 216 | D59: 0 | E59: 216 | F59: 0 | G59: 0 | H59: 432 | I59: 0 | J59: 0 | K59: 288 | L59: 192 | M59: 0 | N59: 288 | O59: 192 | P59: 112 | Q59: 288 | R59: 0 | S59: 0 | T59: 288 | U59: 0 | V59: 2512
A60: 20 | B60: МИ ФНС России по КН № 10 | C60: 0 | D60: 0 | E60: 0 | F60: 0 | G60: 112 | H60: 0 | I60: 0 | J60: 168 | K60: 0 | L60: 0 | M60: 168 | N60: 0 | O60: 0 | P60: 112 | Q60: 144 | R60: 0 | S60: 168 | T60: 144 | U60: 0 | V60: 1016
A61: 21 | B61: МИ ФНС России по ценообразованию для целей налогообложения | C61: 0 | D61: 0 | E61: 144 | F61: 192 | G61: 0 | H61: 144 | I61: 192 | J61: 168 | K61: 144 | L61: 192 | M61: 0 | N61: 144 | O61: 192 | Q61: 0 | R61: 192 | S61: 0 | T61: 0 | U61: 0 | V61: 1704
A62: 22 | B62: МИ ФНС России по Центральному ФО | C62: 144 | E62: 144 | F62: 0 | G62: 0 | H62: 0 | I62: 0 | J62: 0 | K62: 0 | L62: 0 | M62: 56 | N62: 0 | O62: 0 | P62: 0 | Q62: 0 | R62: 192 | S62: 0 | T62: 0 | U62: 192 | V62: 728
A63: 23 | B63: МИ ФНС России по ЦОД | C63: 0 | D63: 0 | E63: 0 | F63: 0 | G63: 0 | H63: 144 | I63: 0 | K63: 144 | L63: 0 | M63: 0 | N63: 144 | O63: 0 | P63: 112 | Q63: 72 | R63: 0 | S63: 112 | T63: 0 | U63: 0 | V63: 728
A64: 24 | B64: МИ ФНС России по ЦОД №2 | C64: 0 | D64: 0 | E64: 0 | F64: 0 | G64: 0 | H64: 144 | I64: 0 | J64: 0 | K64: 0 | L64: 0 | M64: 0 | N64: 0 | O64: 0 | P64: 0 | Q64: 72 | R64: 0 | S64: 0 | T64: 0 | U64: 0 | V64: 216
A65: 25 | B65: МИ ФНС России по управлению долгом | C65: 0 | D65: 192 | E65: 792 | F65: 192 | G65: 112 | H65: 792 | I65: 0 | J65: 0 | K65: 144 | L65: 0 | M65: 0 | N65: 144 | O65: 0 | P65: 0 | Q65: 144 | R65: 0 | S65: 0 | T65: 144 | U65: 0 | V65: 2656
A66: 26 | B66: МИ ФНС России по контролю и надзору за налогоплательщиками в сфере бюджетного финансирования | C66: 0 | D66: 0 | E66: 216 | F66: 0 | G66: 0 | H66: 216 | I66: 0 | J66: 0 | K66: 0 | L66: 0 | M66: 0 | N66: 0 | O66: 0 | P66: 0 | Q66: 0 | R66: 0 | S66: 0 | T66: 0 | U66: 0 | V66: 432
A67: 27 | B67: Московская область | C67: 2808 | D67: 1728 | E67: 11376 | F67: 1728 | G67: 560 | H67: 12168 | I67: 1728 | J67: 560 | K67: 2880 | L67: 1728 | M67: 560 | N67: 2880 | O67: 1728 | P67: 560 | Q67: 2808 | R67: 1728 | S67: 560 | T67: 2808 | U67: 1728 | V67: 52624
A68: 28 | B68: Орловская область | C68: 360 | D68: 0 | E68: 432 | F68: 192 | G68: 112 | H68: 2376 | I68: 192 | J68: 168 | K68: 360 | L68: 192 | M68: 168 | N68: 360 | O68: 192 | P68: 112 | Q68: 432 | R68: 192 | S68: 112 | T68: 432 | U68: 192 | V68: 6576
A69: 29 | B69: Рязанская область | C69: 936 | D69: 288 | E69: 936 | F69: 288 | G69: 224 | H69: 3600 | I69: 288 | J69: 280 | K69: 864 | L69: 288 | M69: 224 | N69: 864 | O69: 288 | P69: 224 | Q69: 864 | R69: 288 | S69: 224 | T69: 864 | U69: 288 | V69: 12120
A70: 30 | B70: Смоленская область | C70: 720 | D70: 288 | E70: 2232 | F70: 288 | G70: 224 | H70: 4680 | I70: 288 | J70: 224 | K70: 720 | L70: 192 | M70: 224 | N70: 720 | O70: 288 | P70: 224 | Q70: 720 | R70: 288 | S70: 168 | T70: 648 | U70: 288 | V70: 13424
A71: 31 | B71: Тамбовская область | C71: 432 | D71: 480 | E71: 1296 | F71: 0 | G71: 56 | H71: 2952 | I71: 480 | J71: 112 | K71: 432 | L71: 480 | M71: 0 | N71: 360 | O71: 480 | P71: 56 | Q71: 360 | R71: 480 | S71: 0 | T71: 360 | U71: 480 | V71: 9296
A72: 32 | B72: Тверская область | C72: 720 | D72: 384 | E72: 1008 | F72: 0 | G72: 112 | H72: 720 | I72: 384 | J72: 168 | K72: 720 | L72: 384 | M72: 168 | N72: 720 | O72: 384 | P72: 112 | Q72: 720 | R72: 384 | S72: 112 | T72: 720 | U72: 288 | V72: 8208
A73: 33 | B73: Тульская область | C73: 504 | D73: 0 | E73: 504 | F73: 288 | G73: 0 | H73: 648 | I73: 288 | J73: 168 | K73: 432 | L73: 288 | M73: 0 | N73: 432 | O73: 288 | P73: 0 | Q73: 432 | R73: 288 | S73: 0 | T73: 432 | U73: 192 | V73: 5184
A74: 34 | B74: Ярославская область | C74: 720 | D74: 384 | E74: 1944 | F74: 480 | G74: 168 | H74: 2088 | I74: 0 | J74: 168 | K74: 648 | L74: 384 | M74: 112 | N74: 648 | O74: 384 | P74: 168 | Q74: 648 | R74: 384 | S74: 168 | T74: 648 | U74: 384 | V74: 10528
B75: Итого: | C75: =SUM(C41:C74) -> 20808 | D75: 7872 | E75: 58608 | F75: 9024 | G75: 5264 | H75: 109872 | I75: 9984 | J75: 5880 | K75: 20376 | L75: 10752 | M75: 5376 | N75: 20160 | O75: 10752 | P75: 5320 | Q75: 20016 | R75: 10368 | S75: 4816 | T75: 19584 | U75: 9408 | V75: =SUM(V41:V74) -> 364240
A76: Северо-Западный федеральный округ
A77: 1 | B77: Архангельская область и Ненецкий АО | C77: 936 | D77: 0 | E77: 4464 | F77: 384 | G77: 112 | H77: 27792 | I77: 288 | J77: 168 | K77: 864 | L77: 288 | M77: 112 | N77: 864 | O77: 288 | P77: 168 | Q77: 864 | R77: 288 | S77: 112 | T77: 864 | U77: 288 | V77: =SUM(C77:U77) -> 39144
A78: 2 | B78: Вологодская область | C78: 432 | D78: 0 | E78: 648 | F78: 288 | G78: 224 | H78: 1296 | I78: 288 | J78: 280 | K78: 432 | L78: 288 | M78: 224 | N78: 432 | O78: 288 | P78: 224 | Q78: 360 | R78: 288 | S78: 224 | T78: 360 | U78: 288 | V78: 6864
A79: 3 | B79: г.Санкт- Петербург | C79: 2592 | D79: 1248 | E79: 12888 | F79: 1248 | G79: 672 | H79: 8784 | I79: 1248 | J79: 672 | K79: 2592 | L79: 1248 | M79: 616 | N79: 2592 | O79: 1152 | P79: 672 | Q79: 2592 | R79: 1152 | S79: 616 | T79: 2592 | U79: 1152 | V79: 46328
A80: 4 | B80: Калининградская область | C80: 1152 | D80: 288 | E80: 2232 | F80: 384 | G80: 224 | H80: 2016 | I80: 288 | J80: 280 | K80: 1152 | L80: 0 | M80: 280 | N80: 1152 | O80: 288 | P80: 280 | Q80: 1152 | R80: 288 | S80: 224 | T80: 1080 | U80: 288 | V80: 13048
A81: 5 | B81: Ленинградская область | C81: 720 | D81: 0 | E81: 3384 | F81: 288 | G81: 224 | H81: 5112 | I81: 288 | J81: 224 | K81: 720 | L81: 192 | M81: 224 | N81: 648 | O81: 192 | P81: 224 | Q81: 648 | R81: 192 | S81: 168 | T81: 648 | U81: 192 | V81: 14288
A82: 6 | B82: МИ ФНС России по Северо-Западному ФО | C82: 0 | D82: 0 | E82: 0 | F82: 0 | G82: 112 | H82: 288 | I82: 0 | J82: 0 | K82: 0 | L82: 192 | M82: 0 | N82: 0 | O82: 0 | P82: 0 | Q82: 144 | R82: 0 | S82: 0 | T82: 144 | U82: 0 | V82: 880
A83: 7 | B83: Мурманская область | C83: 288 | D83: 0 | E83: 288 | F83: 0 | G83: 112 | H83: 1440 | I83: 192 | J83: 168 | K83: 288 | L83: 192 | M83: 168 | N83: 288 | O83: 288 | P83: 168 | Q83: 216 | R83: 288 | S83: 112 | T83: 216 | U83: 288 | V83: 5000
A84: 8 | B84: Новгородская область | C84: 360 | D84: 0 | E84: 1584 | F84: 288 | G84: 0 | H84: 5112 | I84: 288 | J84: 0 | K84: 360 | L84: 288 | M84: 0 | N84: 432 | O84: 288 | P84: 0 | Q84: 432 | R84: 288 | S84: 56 | T84: 432 | U84: 192 | V84: 10400
A85: 9 | B85: Псковская область | C85: 504 | D85: 0 | E85: 648 | F85: 0 | G85: 0 | H85: 7056 | I85: 288 | J85: 56 | K85: 504 | L85: 288 | M85: 56 | N85: 504 | O85: 0 | P85: 56 | Q85: 504 | R85: 0 | S85: 0 | T85: 504 | U85: 0 | V85: 10968
A86: 10 | B86: Республика Карелия | C86: 576 | D86: 0 | E86: 1440 | F86: 0 | G86: 112 | H86: 1368 | I86: 192 | J86: 168 | K86: 504 | L86: 192 | M86: 112 | N86: 504 | O86: 288 | P86: 112 | Q86: 504 | R86: 288 | S86: 168 | T86: 504 | U86: 288 | V86: 7320
A87: 11 | B87: Республика Коми | C87: 1296 | D87: 576 | E87: 4608 | F87: 672 | G87: 224 | H87: 4608 | I87: 672 | J87: 224 | K87: 1224 | L87: 672 | M87: 224 | N87: 1224 | O87: 672 | P87: 224 | Q87: 1224 | R87: 0 | S87: 280 | T87: 1224 | U87: 576 | V87: 20424
B88: Итого: | C88: =SUM(C77:C87) -> 8856 | D88: 2112 | E88: 32184 | F88: 3552 | G88: 2016 | H88: 64872 | I88: 4032 | J88: 2240 | K88: 8640 | L88: 3840 | M88: 2016 | N88: 8640 | O88: 3744 | P88: 2128 | Q88: 8640 | R88: 3072 | S88: 1960 | T88: 8568 | U88: 3552 | V88: 174664
A89: Южный федеральный округ
A90: 1 | B90: Астраханская область | C90: 144 | D90: 0 | E90: 144 | F90: 0 | G90: 0 | H90: 1800 | I90: 0 | J90: 112 | K90: 144 | L90: 0 | M90: 0 | N90: 216 | O90: 0 | P90: 0 | Q90: 216 | R90: 288 | S90: 0 | T90: 216 | U90: 192 | V90: =SUM(C90:U90) -> 3472
A91: 2 | B91: Волгоградская область | C91: 1008 | D91: 672 | E91: 2016 | F91: 672 | G91: 392 | H91: 2304 | I91: 672 | J91: 392 | K91: 864 | L91: 672 | M91: 392 | N91: 864 | O91: 576 | P91: 392 | Q91: 936 | R91: 576 | S91: 392 | T91: 936 | U91: 576 | V91: 15304
A92: 3 | B92: г.Севастополь | C92: 216 | D92: 0 | E92: 936 | F92: 0 | G92: 0 | H92: 504 | I92: 0 | J92: 0 | K92: 216 | L92: 0 | M92: 168 | N92: 216 | O92: 288 | P92: 0 | Q92: 216 | R92: 192 | S92: 0 | T92: 72 | U92: 192 | V92: 3216
A93: 4 | B93: Краснодарский край | C93: 1512 | D93: 768 | E93: 2664 | F93: 672 | G93: 616 | H93: 2304 | I93: 672 | J93: 616 | K93: 1440 | L93: 672 | M93: 616 | N93: 1440 | O93: 672 | P93: 616 | Q93: 1440 | R93: 672 | S93: 560 | T93: 1440 | U93: 672 | V93: 20064
A94: 5 | B94: МИ ФНС России по Южному ФО | C94: 0 | D94: 0 | E94: 0 | F94: 192 | G94: 0 | H94: 360 | I94: 192 | J94: 0 | K94: 144 | L94: 192 | M94: 0 | N94: 144 | O94: 192 | P94: 112 | Q94: 144 | R94: 192 | S94: 0 | T94: 144 | U94: 0 | V94: 2008
A95: 6 | B95: Республика Адыгея | C95: 144 | D95: 192 | E95: 216 | F95: 0 | G95: 0 | H95: 504 | I95: 0 | J95: 0 | K95: 144 | L95: 192 | M95: 0 | N95: 144 | O95: 288 | P95: 0 | Q95: 0 | R95: 288 | S95: 224 | T95: 0 | U95: 288 | V95: 2624
A96: 7 | B96: Республика Калмыкия | C96: 144 | D96: 0 | E96: 144 | F96: 288 | G96: 0 | H96: 504 | I96: 0 | J96: 0 | K96: 216 | L96: 0 | M96: 0 | N96: 144 | O96: 0 | P96: 0 | Q96: 144 | R96: 0 | S96: 0 | T96: 144 | U96: 0 | V96: 1728
A97: 8 | B97: Республика Крым | C97: 648 | D97: 0 | E97: 7272 | F97: 768 | G97: 280 | H97: 7272 | I97: 768 | J97: 224 | K97: 576 | L97: 768 | M97: 280 | N97: 576 | O97: 768 | P97: 280 | Q97: 576 | R97: 768 | S97: 224 | T97: 576 | U97: 768 | V97: 23392
A98: 9 | B98: Ростовская область | C98: 1512 | D98: 0 | E98: 4248 | F98: 1248 | G98: 560 | H98: 10728 | I98: 1248 | J98: 616 | K98: 1440 | L98: 1248 | M98: 616 | N98: 1440 | O98: 1248 | P98: 616 | Q98: 1440 | R98: 1152 | S98: 616 | T98: 1440 | U98: 1152 | V98: 32568
B99: Итого: | C99: =SUM(C90:C98) -> 5328 | D99: 1632 | E99: 17640 | F99: 3840 | G99: 1848 | H99: 26280 | I99: 3552 | J99: 1960 | K99: 5184 | L99: 3744 | M99: 2072 | N99: 5184 | O99: 4032 | P99: 2016 | Q99: 5112 | R99: 4128 | S99: 2016 | T99: 4968 | U99: 3840 | V99: 104376
A100: Северо-Кавказский федеральный округ
A101: 1 | B101: Кабардино- Балкарская Республика | C101: 288 | D101: 0 | E101: 288 | F101: 192 | G101: 0 | H101: 216 | I101: 0 | J101: 0 | K101: 216 | L101: 0 | M101: 0 | N101: 216 | O101: 0 | P101: 0 | Q101: 216 | R101: 0 | S101: 0 | T101: 216 | U101: 0 | V101: =SUM(C101:U101) -> 1848
A102: 2 | B102: Карачаево- Черкесская Республика | C102: 144 | D102: 192 | E102: 216 | F102: 0 | G102: 0 | H102: 504 | I102: 192 | J102: 0 | K102: 216 | L102: 192 | M102: 0 | N102: 216 | O102: 192 | P102: 0 | Q102: 216 | R102: 192 | S102: 0 | T102: 216 | U102: 192 | V102: 2880
A103: 3 | B103: МИ ФНС России по Северо-Кавказскому ФО | C103: 0 | D103: 0 | E103: 0 | F103: 0 | G103: 0 | H103: 216 | I103: 0 | J103: 0 | K103: 144 | L103: 0 | M103: 56 | N103: 144 | O103: 0 | P103: 0 | Q103: 144 | R103: 0 | S103: 0 | U103: 288 | V103: 992
A104: 4 | B104: Республика Дагестан | C104: 432 | D104: 480 | E104: 432 | F104: 576 | G104: 0 | H104: 936 | I104: 576 | J104: 0 | K104: 432 | L104: 576 | M104: 0 | N104: 360 | O104: 0 | P104: 112 | Q104: 360 | R104: 480 | S104: 0 | T104: 360 | U104: 480 | V104: 6592
A105: 5 | B105: Республика Ингушетия | C105: 0 | D105: 0 | E105: 72 | F105: 0 | G105: 0 | H105: 288 | I105: 0 | J105: 0 | K105: 0 | L105: 0 | M105: 0 | N105: 144 | O105: 0 | P105: 0 | Q105: 0 | R105: 0 | S105: 0 | T105: 0 | U105: 192 | V105: 696
A106: 6 | B106: Республика Северная Осетия - Алания | C106: 216 | D106: 0 | E106: 216 | F106: 192 | G106: 0 | H106: 216 | I106: 192 | J106: 0 | K106: 144 | L106: 192 | M106: 112 | N106: 144 | O106: 192 | P106: 168 | Q106: 144 | R106: 192 | S106: 168 | T106: 144 | U106: 192 | V106: 2824
A107: 7 | B107: Ставропольский край | C107: 1584 | D107: 1152 | E107: 4536 | F107: 0 | G107: 560 | H107: 3888 | I107: 1152 | J107: 616 | K107: 1584 | L107: 1152 | M107: 616 | N107: 1512 | O107: 1056 | P107: 616 | Q107: 1512 | R107: 1056 | S107: 560 | T107: 1512 | U107: 1056 | V107: 25720
A108: 8 | B108: Чеченская Республика | C108: 0 | D108: 0 | E108: 216 | F108: 0 | G108: 0 | H108: 144 | I108: 0 | J108: 0 | K108: 144 | L108: 288 | M108: 0 | N108: 144 | O108: 0 | P108: 0 | Q108: 144 | R108: 0 | S108: 0 | T108: 144 | U108: 0 | V108: 1224
B109: Итого: | C109: =SUM(C101:C108) -> 2664 | D109: 1824 | E109: 5976 | F109: 960 | G109: 560 | H109: 6408 | I109: 2112 | J109: 616 | K109: 2880 | L109: 2400 | M109: 784 | N109: 2880 | O109: 1440 | P109: 896 | Q109: 2736 | R109: 1920 | S109: 728 | T109: 2592 | U109: 2400 | V109: 42776
A110: Приволжский федеральный округ
A111: 1 | B111: Кировская область | C111: 864 | D111: 192 | E111: 1080 | F111: 192 | G111: 168 | H111: 2088 | I111: 288 | J111: 224 | K111: 792 | L111: 288 | M111: 224 | N111: 792 | O111: 288 | P111: 224 | Q111: 792 | R111: 288 | S111: 224 | T111: 792 | U111: 288 | V111: =SUM(C111:U111) -> 10088
A112: 2 | B112: МИ ФНС России по Приволжскому ФО | C112: 0 | D112: 0 | E112: 864 | F112: 0 | G112: 0 | H112: 648 | I112: 0 | J112: 0 | K112: 0 | L112: 0 | M112: 0 | N112: 0 | O112: 0 | P112: 0 | Q112: 0 | R112: 0 | S112: 0 | T112: 0 | U112: 0 | V112: 1512
A113: 3 | B113: Нижегородская область | C113: 1656 | D113: 960 | E113: 3816 | F113: 960 | G113: 392 | H113: 5400 | I113: 960 | J113: 392 | K113: 1584 | L113: 864 | M113: 448 | N113: 1584 | O113: 864 | P113: 448 | Q113: 1584 | R113: 864 | S113: 448 | T113: 1584 | U113: 864 | V113: 25672
A114: 4 | B114: Оренбургская область | C114: 1080 | D114: 576 | E114: 4464 | F114: 576 | G114: 336 | H114: 6912 | I114: 576 | J114: 336 | K114: 1080 | L114: 576 | M114: 336 | N114: 1080 | O114: 576 | P114: 336 | Q114: 1152 | R114: 576 | S114: 336 | T114: 1152 | U114: 480 | V114: 22536
A115: 5 | B115: Пензенская область | C115: 576 | D115: 192 | E115: 720 | F115: 0 | G115: 168 | H115: 5904 | I115: 0 | J115: 168 | K115: 504 | L115: 288 | M115: 168 | N115: 504 | O115: 288 | P115: 168 | Q115: 504 | R115: 288 | S115: 112 | T115: 504 | U115: 288 | V115: 11344
A116: 6 | B116: Пермский край | C116: 2160 | D116: 672 | E116: 8568 | F116: 672 | G116: 336 | H116: 2160 | I116: 672 | J116: 280 | K116: 2160 | L116: 672 | M116: 280 | N116: 2088 | O116: 576 | P116: 280 | Q116: 2088 | R116: 576 | S116: 280 | T116: 2088 | U116: 576 | V116: 27184
A117: 7 | B117: Республика Башкортостан | C117: 1440 | D117: 576 | E117: 4104 | F117: 576 | G117: 448 | H117: 6048 | I117: 576 | J117: 448 | K117: 1440 | L117: 480 | M117: 504 | N117: 1440 | O117: 480 | P117: 504 | Q117: 1368 | R117: 480 | S117: 448 | T117: 1368 | U117: 480 | V117: 23208
A118: 8 | B118: Республика Марий Эл | C118: 216 | D118: 0 | E118: 432 | F118: 192 | G118: 0 | H118: 3744 | I118: 192 | J118: 0 | K118: 144 | L118: 288 | M118: 168 | N118: 144 | O118: 192 | P118: 0 | Q118: 144 | R118: 0 | S118: 168 | T118: 144 | U118: 0 | V118: 6168
A119: 9 | B119: Республика Мордовия | C119: 648 | D119: 288 | E119: 1080 | F119: 288 | G119: 112 | H119: 648 | I119: 288 | J119: 112 | K119: 648 | L119: 288 | M119: 112 | N119: 720 | O119: 384 | P119: 112 | Q119: 720 | R119: 384 | S119: 0 | T119: 720 | U119: 384 | V119: 7936
A120: 10 | B120: Республика Татарстан | C120: 1296 | D120: 768 | E120: 2304 | F120: 768 | G120: 560 | H120: 4392 | I120: 768 | J120: 560 | K120: 1296 | L120: 768 | M120: 560 | N120: 1296 | O120: 768 | P120: 560 | Q120: 1296 | R120: 672 | S120: 560 | T120: 1296 | U120: 672 | V120: 21160
A121: 11 | B121: Самарская область | C121: 1152 | D121: 576 | E121: 1440 | F121: 576 | G121: 392 | H121: 2088 | I121: 576 | J121: 392 | K121: 1080 | L121: 480 | M121: 392 | N121: 1080 | O121: 480 | P121: 448 | Q121: 1080 | R121: 480 | S121: 448 | T121: 1080 | U121: 480 | V121: 14720
A122: 12 | B122: Саратовская область | C122: 504 | D122: 384 | E122: 1152 | F122: 384 | G122: 224 | H122: 864 | I122: 384 | J122: 224 | K122: 504 | L122: 384 | M122: 224 | N122: 504 | O122: 288 | P122: 224 | Q122: 504 | R122: 288 | S122: 168 | T122: 432 | U122: 288 | V122: 7928
A123: 13 | B123: Удмуртская Республика | C123: 720 | D123: 576 | E123: 720 | F123: 576 | G123: 168 | H123: 1440 | I123: 576 | J123: 224 | K123: 648 | L123: 576 | M123: 224 | N123: 648 | O123: 480 | P123: 224 | Q123: 648 | R123: 480 | S123: 168 | T123: 648 | U123: 480 | V123: 10224
A124: 14 | B124: Ульяновская область | C124: 504 | D124: 0 | E124: 504 | F124: 384 | G124: 112 | H124: 1944 | I124: 384 | J124: 112 | K124: 504 | L124: 384 | M124: 112 | N124: 504 | O124: 288 | P124: 112 | Q124: 432 | R124: 288 | S124: 0 | T124: 432 | U124: 288 | V124: 7288
A125: 15 | B125: Чувашская Республика | C125: 576 | D125: 0 | E125: 576 | F125: 0 | G125: 0 | H125: 504 | I125: 0 | J125: 0 | K125: 504 | L125: 0 | M125: 112 | N125: 504 | O125: 0 | P125: 168 | Q125: 504 | R125: 0 | S125: 112 | T125: 504 | U125: 0 | V125: 4064
B126: Итого: | C126: =SUM(C111:C125) -> 13392 | D126: 5760 | E126: 31824 | F126: 6144 | G126: 3416 | H126: 44784 | I126: 6240 | J126: 3472 | K126: 12888 | L126: 6336 | M126: 3864 | N126: 12888 | O126: 5952 | P126: 3808 | Q126: 12816 | R126: 5664 | S126: 3472 | T126: 12744 | U126: 5568 | V126: 201032
A127: Уральский федеральный округ
A128: 1 | B128: Курганская область | C128: 216 | D128: 0 | E128: 1008 | F128: 0 | G128: 0 | H128: 648 | I128: 0 | J128: 112 | K128: 216 | L128: 288 | M128: 168 | N128: 216 | O128: 0 | P128: 0 | Q128: 216 | R128: 0 | S128: 0 | T128: 216 | U128: 0 | V128: =SUM(C128:U128) -> 3304
A129: 2 | B129: МИ ФНС России по Уральскому ФО | C129: 0 | D129: 0 | E129: 144 | F129: 0 | G129: 0 | H129: 144 | I129: 0 | J129: 0 | K129: 144 | L129: 0 | M129: 0 | N129: 144 | O129: 96 | P129: 112 | Q129: 144 | R129: 0 | S129: 112 | T129: 144 | U129: 0 | V129: 1184
A130: 3 | B130: Свердловская область | C130: 1800 | D130: 864 | E130: 11016 | F130: 864 | G130: 392 | H130: 13464 | I130: 768 | J130: 392 | K130: 1728 | L130: 768 | M130: 448 | N130: 1728 | O130: 768 | P130: 448 | Q130: 1728 | R130: 768 | S130: 392 | T130: 1728 | U130: 768 | V130: 40832
A131: 4 | B131: Тюменская область | C131: 576 | D131: 0 | E131: 2808 | F131: 0 | G131: 168 | H131: 8208 | I131: 0 | J131: 224 | K131: 576 | L131: 288 | M131: 168 | N131: 576 | O131: 288 | P131: 168 | Q131: 576 | R131: 288 | S131: 168 | T131: 648 | U131: 0 | V131: 15728
A132: 5 | B132: Ханты-Мансийский АО | C132: 792 | D132: 384 | E132: 4752 | F132: 384 | G132: 224 | H132: 1296 | I132: 384 | J132: 224 | K132: 864 | L132: 384 | M132: 224 | N132: 864 | O132: 384 | P132: 280 | Q132: 864 | R132: 384 | S132: 224 | T132: 864 | U132: 288 | V132: 14064
A133: 6 | B133: Челябинская область | C133: 1728 | D133: 864 | E133: 7632 | F133: 864 | G133: 448 | H133: 1656 | I133: 864 | J133: 448 | K133: 1656 | L133: 864 | M133: 448 | N133: 1656 | O133: 768 | P133: 448 | Q133: 1656 | R133: 768 | S133: 448 | T133: 1656 | U133: 768 | V133: 25640
A134: 7 | B134: Ямало-Ненецкий АО | C134: 576 | D134: 288 | E134: 648 | F134: 288 | G134: 0 | H134: 1008 | I134: 192 | J134: 112 | K134: 504 | L134: 192 | M134: 112 | N134: 504 | O134: 192 | P134: 0 | Q134: 504 | R134: 192 | S134: 0 | T134: 504 | U134: 192 | V134: 6008
B135: Итого: | C135: =SUM(C128:C134) -> 5688 | D135: 2400 | E135: 28008 | F135: 2400 | G135: 1232 | H135: 26424 | I135: 2208 | J135: 1512 | K135: 5688 | L135: 2784 | M135: 1568 | N135: 5688 | O135: 2496 | P135: 1456 | Q135: 5688 | R135: 2400 | S135: 1344 | T135: 5760 | U135: 2016 | V135: 106760
A136: Сибирский федеральный округ
A137: 1 | B137: Алтайский край | C137: 576 | D137: 576 | E137: 1368 | F137: 576 | G137: 224 | H137: 1008 | I137: 576 | J137: 224 | K137: 576 | L137: 480 | M137: 224 | N137: 576 | O137: 480 | P137: 224 | Q137: 576 | R137: 480 | S137: 168 | T137: 576 | U137: 480 | V137: =SUM(C137:U137) -> 9968
A138: 2 | B138: Иркутская область | C138: 1080 | D138: 480 | E138: 1368 | F138: 384 | G138: 280 | H138: 1008 | I138: 384 | J138: 336 | K138: 1008 | L138: 384 | M138: 336 | N138: 1008 | O138: 384 | P138: 280 | Q138: 1008 | R138: 384 | S138: 280 | T138: 1008 | U138: 384 | V138: 11784
A139: 3 | B139: Кемеровская область | C139: 1584 | D139: 768 | E139: 4464 | F139: 768 | G139: 672 | H139: 2016 | I139: 672 | J139: 728 | K139: 1512 | L139: 672 | M139: 672 | N139: 1512 | O139: 672 | P139: 672 | Q139: 1512 | R139: 672 | S139: 672 | T139: 1512 | U139: 672 | V139: 22424
A140: 4 | B140: Красноярский край | C140: 1080 | D140: 384 | E140: 3024 | F140: 384 | G140: 224 | H140: 2664 | I140: 384 | J140: 280 | K140: 1224 | L140: 384 | M140: 224 | N140: 1224 | O140: 384 | P140: 280 | Q140: 1224 | R140: 384 | S140: 280 | T140: 1224 | U140: 288 | V140: 15544
A141: 5 | B141: МИ ФНС России по Сибирскому ФО | C141: 0 | D141: 0 | E141: 432 | F141: 0 | G141: 168 | H141: 792 | I141: 0 | J141: 168 | K141: 144 | L141: 0 | M141: 0 | N141: 144 | O141: 0 | P141: 0 | Q141: 0 | R141: 96 | S141: 0 | T141: 0 | U141: 0 | V141: 1944
A142: 6 | B142: Новосибирская область | C142: 1152 | D142: 576 | E142: 1512 | F142: 576 | G142: 280 | H142: 1584 | I142: 576 | J142: 280 | K142: 1080 | L142: 576 | M142: 280 | N142: 1080 | O142: 480 | P142: 224 | Q142: 1080 | R142: 480 | S142: 224 | T142: 1080 | U142: 480 | V142: 13600
A143: 7 | B143: Омская область | C143: 1224 | D143: 0 | E143: 3744 | F143: 288 | G143: 280 | H143: 1656 | I143: 288 | J143: 280 | K143: 1224 | L143: 288 | M143: 280 | N143: 1224 | O143: 288 | P143: 280 | Q143: 1152 | R143: 192 | S143: 280 | T143: 1152 | U143: 192 | V143: 14312
A144: 8 | B144: Республика Алтай | C144: 216 | D144: 0 | E144: 792 | F144: 0 | G144: 0 | H144: 576 | I144: 0 | J144: 0 | K144: 144 | L144: 0 | M144: 0 | N144: 144 | O144: 0 | P144: 112 | Q144: 144 | R144: 96 | S144: 168 | T144: 144 | U144: 0 | V144: 2536
A145: 9 | B145: Республика Тыва | C145: 360 | D145: 0 | E145: 1872 | F145: 0 | G145: 0 | H145: 792 | I145: 0 | J145: 112 | K145: 360 | L145: 192 | M145: 168 | N145: 288 | O145: 192 | P145: 0 | Q145: 288 | R145: 192 | S145: 0 | T145: 288 | U145: 192 | V145: 5296
A146: 10 | B146: Республика Хакасия | C146: 0 | D146: 0 | E146: 0 | F146: 0 | G146: 168 | H146: 648 | I146: 96 | J146: 0 | K146: 144 | L146: 0 | M146: 0 | N146: 0 | O146: 0 | P146: 0 | Q146: 0 | R146: 0 | S146: 0 | T146: 0 | U146: 0 | V146: 1056
A147: 11 | B147: Томская область | C147: 432 | D147: 0 | E147: 2664 | F147: 0 | G147: 0 | H147: 864 | I147: 0 | J147: 0 | K147: 432 | L147: 192 | M147: 0 | N147: 432 | O147: 192 | P147: 168 | Q147: 432 | R147: 192 | S147: 168 | T147: 360 | U147: 192 | V147: 6720
B148: Итого: | C148: =SUM(C137:C147) -> 7704 | D148: 2784 | E148: 21240 | F148: 2976 | G148: 2296 | H148: 13608 | I148: 2976 | J148: 2408 | K148: 7848 | L148: 3168 | M148: 2184 | N148: 7632 | O148: 3072 | P148: 2240 | Q148: 7416 | R148: 3168 | S148: 2240 | T148: 7344 | U148: 2880 | V148: 105184
A149: Дальневосточный федеральный округ
A150: 1 | B150: Амурская область | C150: 432 | D150: 0 | E150: 1584 | F150: 192 | G150: 168 | H150: 648 | I150: 288 | J150: 0 | K150: 360 | L150: 192 | M150: 0 | N150: 360 | O150: 0 | P150: 0 | Q150: 360 | R150: 0 | S150: 0 | T150: 360 | U150: 0 | V150: =SUM(C150:U150) -> 4944
A151: 2 | B151: Еврейская АО | C151: 0 | D151: 0 | E151: 144 | F151: 0 | G151: 0 | H151: 144 | I151: 0 | J151: 168 | K151: 0 | L151: 0 | M151: 168 | N151: 0 | O151: 288 | P151: 168 | Q151: 0 | R151: 0 | S151: 168 | T151: 0 | U151: 0 | V151: 1248
A152: 3 | B152: Забайкальский край | C152: 720 | D152: 0 | E152: 1080 | F152: 288 | G152: 112 | H152: 648 | I152: 288 | J152: 112 | K152: 720 | L152: 288 | M152: 168 | N152: 648 | O152: 288 | P152: 0 | Q152: 648 | R152: 192 | S152: 112 | T152: 648 | U152: 0 | V152: 6960
A153: 4 | B153: Камчатский край | C153: 360 | D153: 0 | E153: 360 | F153: 0 | G153: 168 | H153: 648 | I153: 0 | J153: 168 | K153: 360 | L153: 0 | M153: 168 | N153: 360 | O153: 0 | P153: 168 | Q153: 360 | R153: 0 | S153: 168 | T153: 288 | U153: 96 | V153: 3672
A154: 5 | B154: Магаданская область | C154: 144 | D154: 0 | E154: 864 | F154: 0 | G154: 112 | H154: 648 | I154: 0 | J154: 112 | K154: 216 | L154: 0 | M154: 112 | N154: 216 | O154: 0 | P154: 112 | Q154: 216 | R154: 0 | S154: 112 | T154: 216 | U154: 288 | V154: 3368
A155: 6 | B155: МИ ФНС России по Дальневосточному ФО | C155: 144 | D155: 0 | E155: 288 | F155: 0 | G155: 0 | H155: 576 | I155: 0 | J155: 0 | K155: 144 | L155: 0 | M155: 0 | N155: 216 | O155: 0 | P155: 0 | Q155: 0 | R155: 192 | S155: 56 | T155: 0 | U155: 0 | V155: 1616
A156: 7 | B156: Приморский край | C156: 432 | D156: 288 | E156: 2952 | F156: 288 | G156: 224 | H156: 864 | I156: 288 | J156: 168 | K156: 432 | L156: 288 | M156: 224 | N156: 432 | O156: 288 | P156: 168 | Q156: 432 | R156: 192 | S156: 168 | T156: 504 | U156: 192 | V156: 8824
A157: 8 | B157: Республика Бурятия | C157: 216 | D157: 0 | E157: 360 | F157: 0 | G157: 112 | H157: 648 | I157: 0 | J157: 112 | K157: 216 | L157: 0 | M157: 112 | N157: 216 | O157: 0 | P157: 112 | Q157: 144 | R157: 192 | S157: 112 | T157: 144 | U157: 0 | V157: 2696
A158: 9 | B158: Республика Саха (Якутия) | C158: 432 | D158: 288 | E158: 1584 | F158: 288 | G158: 0 | H158: 864 | I158: 192 | J158: 112 | K158: 432 | L158: 192 | M158: 112 | N158: 432 | O158: 192 | P158: 112 | Q158: 432 | R158: 192 | S158: 112 | T158: 360 | U158: 288 | V158: 6616
A159: 10 | B159: Сахалинская область | C159: 216 | D159: 0 | E159: 360 | F159: 0 | G159: 112 | H159: 648 | I159: 0 | J159: 168 | K159: 144 | L159: 0 | M159: 168 | N159: 144 | O159: 96 | P159: 112 | Q159: 144 | R159: 0 | S159: 112 | T159: 144 | U159: 0 | V159: 2568
A160: 11 | B160: Хабаровский край | C160: 432 | D160: 384 | E160: 576 | F160: 288 | G160: 0 | H160: 360 | I160: 288 | J160: 0 | K160: 360 | L160: 288 | M160: 0 | N160: 360 | O160: 288 | P160: 0 | Q160: 360 | R160: 288 | S160: 168 | T160: 360 | U160: 288 | V160: 5088
A161: 12 | B161: Чукотский АО | C161: 0 | D161: 0 | E161: 0 | F161: 0 | G161: 0 | H161: 432 | I161: 0 | J161: 168 | K161: 216 | L161: 0 | M161: 168 | N161: 144 | O161: 192 | P161: 0 | Q161: 144 | R161: 0 | S161: 0 | T161: 144 | U161: 0 | V161: 1608
B162: Итого: | C162: =SUM(C150:C161) -> 3528 | D162: 960 | E162: 10152 | F162: 1344 | G162: 1008 | H162: 7128 | I162: 1344 | J162: 1288 | K162: 3600 | L162: 1248 | M162: 1400 | N162: 3528 | O162: 1632 | P162: 952 | Q162: 3240 | R162: 1248 | S162: 1288 | T162: 3168 | U162: 1152 | V162: =SUM(V150:V161) -> 49208
A163: Новые территории Российской Федерации
A164: 1 | B164: Донецкая Народная Республика | C164: 576 | D164: 384 | E164: 936 | F164: 384 | G164: 112 | H164: 936 | I164: 384 | J164: 168 | K164: 576 | L164: 384 | M164: 168 | N164: 576 | O164: 288 | P164: 168 | Q164: 576 | R164: 288 | S164: 112 | T164: 504 | U164: 192 | V164: =SUM(C164:U164) -> 7712
A165: 2 | B165: Запорожская область | C165: 144 | D165: 0 | E165: 144 | F165: 0 | G165: 112 | H165: 144 | I165: 192 | J165: 112 | K165: 144 | L165: 192 | M165: 112 | N165: 144 | O165: 192 | P165: 112 | Q165: 144 | R165: 192 | S165: 0 | T165: 144 | U165: 192 | V165: =SUM(C165:U165) -> 2416
A166: 3 | B166: Луганская Народная Республика | C166: 936 | D166: 0 | E166: 1296 | F166: 576 | G166: 224 | H166: 1224 | I166: 576 | J166: 224 | K166: 864 | L166: 576 | M166: 224 | N166: 864 | O166: 576 | P166: 224 | Q166: 864 | R166: 576 | S166: 224 | T166: 864 | U166: 384 | V166: =SUM(C166:U166) -> 11296
A167: 4 | B167: Херсонская область | C167: 0 | D167: 0 | E167: 0 | F167: 0 | H167: 0 | I167: 0 | J167: 0 | K167: 360 | L167: 192 | M167: 0 | N167: 0 | O167: 0 | P167: 0 | Q167: 0 | R167: 0 | S167: 0 | T167: 0 | U167: 0 | V167: =SUM(C167:U167) -> 552
B168: Итого: | C168: =SUM(C164:C167) -> 1656 | D168: =SUM(D164:D167) -> 384 | E168: 2376 | F168: 960 | G168: 448 | H168: 2304 | I168: 1152 | J168: 504 | K168: 1944 | L168: 1344 | M168: 504 | N168: 1584 | O168: 1056 | P168: 504 | Q168: 1584 | R168: 1056 | S168: 336 | T168: 1512 | U168: 768 | V168: =SUM(V164:V167) -> 21976
B169: Всего: | C169: =C168+C162+C148+C135+C126+C109+C99+C88+C75+C39 -> 69912 | D169: 25728 | E169: 208296 | F169: 31200 | G169: 18200 | H169: 301968 | I169: 33792 | J169: 19992 | K169: 69336 | L169: 35712 | M169: 19880 | N169: 68472 | O169: 34176 | P169: 19432 | Q169: 67464 | R169: 33024 | S169: 18200 | T169: 66456 | U169: 31584 | V169: =V168+V162+V148+V135+V126+V109+V99+V88+V75+V39 -> 1172824
A171: * | B171: Структурные подразделения ЦА ФНС России и ТНО ФНС России выбирают самостоятельно из перечня учебные программы для обучающихся, исходя из указанных человеко-часов

Sheet Прил.40 (ДО)
N1: Приложение № 40
N2: УТВЕРЖДЕН
N3: Приказом ФНС России
N4: от " " 202 г.
N5: №
A7: План-график дополнительного профессионального образования гражданских служащих в "Академии ФНС ЛАБ–Нева" в 2025 году (заочная форма обучения с применением дистанционных образовательных технологий и электронного обучения)
A8: № п/п | B8: Количество человеко-часов
B9: по программам повышения квалификации с указанием периодов обучения*
A10: 1 | B10: Организация и осуществление внутреннего финансового аудита, 72 часа
A11: =A10+1 -> 2 | B11: Организация и технология проведения камеральных налоговых проверок (базовый уровень), 72 часа
A12: 3 | B12: Организация и технология проведения камеральных налоговых проверок (повышенный уровень), 72 часа
A13: 4 | B13: Планирование, организация и проведение выездных налоговых проверок (базовый уровень), 72 часа
A14: 5 | B14: Планирование, организация и проведение выездных налоговых проверок (повышенный уровень), 72 часа
A15: 6 | B15: Контрольно-аналитическая работа налоговых органов по устранению «налоговых разрывов», 96 часов
A16: 7 | B16: Налог на добавленную стоимость (базовый уровень), 96 часов
